Workbook

Sheet PEDIDO
E2: TOTAL PEDIDOS
E3: CAJAS | F3: DIVISAS
E4: =D19+D36+D53+D70+D87+D104+D121+D138+D155+D172+D189+D206+D223+D240+D257 -> 0 | F4: =G20+G37+G54+G71+G88+G105+G122+G139+G156+G173+G190+G207+G224+G241+G258 -> 0
B6: PEDIDOS DE CLIENTES REGULARES ON Y OFF TRADE
B8: CODIGO | C8: VENDEDOR | E8: FECHA | F8: N° PEDIDO
B9: j001708685 | C9: =IFERROR(VLOOKUP(B9,CLIENTE!$A:$AW,2,0),"") -> 550 - CARLOS C. PROLICOR | F9: =IF(J9="","",CONCATENATE(LEFT(C9,3),VLOOKUP(DAY(E9),$M$9:$N$43,2),VLOOKUP(MONTH(E9),$K$9:$L$20,2),RIGHT(YEAR(E9),2),J9)) ->  | J9: =IFERROR(IF(AND($B9,$E9)="","","01"),"") ->  | K9: 1 | L9: 01 | M9: 1 | N9: 01
B10: =IFERROR(VLOOKUP(B9,CLIENTE!$A:$AW,3,0),"") -> PROV DE LICORES PROLICOR,C.A. | K10: 2 | L10: 02 | M10: 2 | N10: 02
B11: CODIGO PRODUCTO | C11: DESCRIPCION | D11: UNIDAD | E11: PRECIO | F11: TOTAL | G11: TOTAL USD$ / Euro€ | K11: 3 | L11: 03 | M11: 3 | N11: 03
B12: 0000013205 | C12: =IFERROR(CONCATENATE(VLOOKUP(RIGHT(CONCATENATE("0000000000",$B12),10),PRECIO_FACT!A:E,2,0)," ","(",$I12,"$)"),"") ->  | E12: =IFERROR(VLOOKUP(RIGHT(CONCATENATE("0000000000",$B12),10),PRECIO_FACT!$A:$G,6,FALSE),"") ->  | F12: =IFERROR(D12*E12,"") ->  | G12: =IFERROR(D12*I12,"") ->  | H12: =IFERROR($D12/VLOOKUP(RIGHT(CONCATENATE("0000000000",$B12),10),'Lista de Precios_USD$_Euro€'!E:L,4,FALSE),"") ->  | I12: =IFERROR(VLOOKUP(RIGHT(CONCATENATE("0000000000",$B12),10),PRECIO_FACT!A:G,7,FALSE),"") ->  | K12: 4 | L12: 04 | M12: 4 | N12: 04
B13: 0000000896 | C13: =IFERROR(CONCATENATE(VLOOKUP(RIGHT(CONCATENATE("0000000000",$B13),10),PRECIO_FACT!A:E,2,0)," ","(",$I13,"$)"),"") ->  | E13: =IFERROR(VLOOKUP(RIGHT(CONCATENATE("0000000000",$B13),10),PRECIO_FACT!$A:$G,6,FALSE),"") ->  | H13: =IFERROR($D13/VLOOKUP(RIGHT(CONCATENATE("0000000000",$B13),10),'Lista de Precios_USD$_Euro€'!E:L,4,FALSE),"") ->  | I13: =IFERROR(VLOOKUP(RIGHT(CONCATENATE("0000000000",$B13),10),PRECIO_FACT!A:G,7,FALSE),"") ->  | K13: 5 | L13: 05 | M13: 5 | N13: 05
C14: =IFERROR(CONCATENATE(VLOOKUP(RIGHT(CONCATENATE("0000000000",$B14),10),PRECIO_FACT!A:E,2,0)," ","(",$I14,"$)"),"") ->  | E14: =IFERROR(VLOOKUP(RIGHT(CONCATENATE("0000000000",$B14),10),PRECIO_FACT!$A:$G,6,FALSE),"") ->  | H14: =IFERROR($D14/VLOOKUP(RIGHT(CONCATENATE("0000000000",$B14),10),'Lista de Precios_USD$_Euro€'!E:L,4,FALSE),"") ->  | I14: =IFERROR(VLOOKUP(RIGHT(CONCATENATE("0000000000",$B14),10),PRECIO_FACT!A:G,7,FALSE),"") ->  | K14: 6 | L14: 06 | M14: 6 | N14: 06
C15: =IFERROR(CONCATENATE(VLOOKUP(RIGHT(CONCATENATE("0000000000",$B15),10),PRECIO_FACT!A:E,2,0)," ","(",$I15,"$)"),"") ->  | E15: =IFERROR(VLOOKUP(RIGHT(CONCATENATE("0000000000",$B15),10),PRECIO_FACT!$A:$G,6,FALSE),"") ->  | H15: =IFERROR($D15/VLOOKUP(RIGHT(CONCATENATE("0000000000",$B15),10),'Lista de Precios_USD$_Euro€'!E:L,4,FALSE),"") ->  | I15: =IFERROR(VLOOKUP(RIGHT(CONCATENATE("0000000000",$B15),10),PRECIO_FACT!A:G,7,FALSE),"") ->  | K15: 7 | L15: 07 | M15: 7 | N15: 07
C16: =IFERROR(CONCATENATE(VLOOKUP(RIGHT(CONCATENATE("0000000000",$B16),10),PRECIO_FACT!A:E,2,0)," ","(",$I16,"$)"),"") ->  | E16: =IFERROR(VLOOKUP(RIGHT(CONCATENATE("0000000000",$B16),10),PRECIO_FACT!$A:$G,6,FALSE),"") ->  | H16: =IFERROR($D16/VLOOKUP(RIGHT(CONCATENATE("0000000000",$B16),10),'Lista de Precios_USD$_Euro€'!E:L,4,FALSE),"") ->  | I16: =IFERROR(VLOOKUP(RIGHT(CONCATENATE("0000000000",$B16),10),PRECIO_FACT!A:G,7,FALSE),"") ->  | K16: 8 | L16: 08 | M16: 8 | N16: 08
C17: =IFERROR(CONCATENATE(VLOOKUP(RIGHT(CONCATENATE("0000000000",$B17),10),PRECIO_FACT!A:E,2,0)," ","(",$I17,"$)"),"") ->  | E17: =IFERROR(VLOOKUP(RIGHT(CONCATENATE("0000000000",$B17),10),PRECIO_FACT!$A:$G,6,FALSE),"") ->  | H17: =IFERROR($D17/VLOOKUP(RIGHT(CONCATENATE("0000000000",$B17),10),'Lista de Precios_USD$_Euro€'!E:L,4,FALSE),"") ->  | I17: =IFERROR(VLOOKUP(RIGHT(CONCATENATE("0000000000",$B17),10),PRECIO_FACT!A:G,7,FALSE),"") ->  | K17: 9 | L17: 09 | M17: 9 | N17: 09
C18: =IFERROR(CONCATENATE(VLOOKUP(RIGHT(CONCATENATE("0000000000",$B18),10),PRECIO_FACT!A:E,2,0)," ","(",$I18,"$)"),"") ->  | E18: =IFERROR(VLOOKUP(RIGHT(CONCATENATE("0000000000",$B18),10),PRECIO_FACT!$A:$G,6,FALSE),"") ->  | H18: =IFERROR($D18/VLOOKUP(RIGHT(CONCATENATE("0000000000",$B18),10),'Lista de Precios_USD$_Euro€'!E:L,4,FALSE),"") ->  | I18: =IFERROR(VLOOKUP(RIGHT(CONCATENATE("0000000000",$B18),10),PRECIO_FACT!A:G,7,FALSE),"") ->  | K18: 10 | L18: 10 | M18: 10 | N18: 10
B19: TOTAL CAJAS | D19: =IFERROR(SUM(H12:H18),"") -> 0 | G19: =IFERROR(D19*#REF!,"") ->  | H19: =IFERROR($D19/VLOOKUP(RIGHT(CONCATENATE("0000000000",$B19),10),'Lista de Precios_USD$_Euro€'!E:L,4,FALSE),"") ->  | I19: =IFERROR(VLOOKUP(RIGHT(CONCATENATE("0000000000",$B19),10),PRECIO_FACT!A:G,7,FALSE),"") ->  | K19: 11 | L19: 11 | M19: 11 | N19: 11
F20: =SUM(F12:F19) -> 0 | G20: =SUM(G12:G19) -> 0 | K20: 12 | L20: 12 | M20: 12 | N20: 12
B21: =IFERROR(VLOOKUP($B9,CLIENTE!A:AW,49,0),"") -> RECIBE DE LUNES A VIERNES 09:00AM A 08:00PM | M21: 13 | N21: 13
B23: PEDIDOS DE CLIENTES REGULARES ON Y OFF TRADE
M24: 14 | N24: 14
B25: CODIGO | C25: VENDEDOR | E25: FECHA | F25: N° PEDIDO | M25: 15 | N25: 15
C26: =IFERROR(VLOOKUP(B26,CLIENTE!$A:$AW,2,0),"") ->  | F26: =IF(J26="","",CONCATENATE(LEFT(C26,3),VLOOKUP(DAY(E26),$M$9:$N$43,2),VLOOKUP(MONTH(E26),$K$9:$L$20,2),RIGHT(YEAR(E26),2),J26)) ->  | J26: =IFERROR(IF(AND($B26,$E26)="","","02"),"") ->  | M26: 16 | N26: 16
B27: =IFERROR(VLOOKUP(B26,CLIENTE!$A:$AW,3,0),"") ->  | M27: 17 | N27: 17
B28: CODIGO PRODUCTO | C28: DESCRIPCION | D28: UNIDAD | E28: PRECIO | F28: TOTAL | G28: TOTAL USD$ / Euro€ | M28: 18 | N28: 18
B29: 896 | C29: =IFERROR(CONCATENATE(VLOOKUP(RIGHT(CONCATENATE("0000000000",$B29),10),PRECIO_FACT!A:E,2,0)," ","(",$I29,"$)"),"") ->  | E29: =IFERROR(VLOOKUP(RIGHT(CONCATENATE("0000000000",$B29),10),PRECIO_FACT!$A:$G,6,FALSE),"") ->  | F29: =IFERROR(D29*E29,"") ->  | G29: =IFERROR(D29*I29,"") ->  | H29: =IFERROR($D29/VLOOKUP(RIGHT(CONCATENATE("0000000000",$B29),10),'Lista de Precios_USD$_Euro€'!E:L,4,FALSE),"") ->  | I29: =IFERROR(VLOOKUP(RIGHT(CONCATENATE("0000000000",$B29),10),PRECIO_FACT!A:G,7,FALSE),"") ->  | M29: 19 | N29: 19
C30: =IFERROR(CONCATENATE(VLOOKUP(RIGHT(CONCATENATE("0000000000",$B30),10),PRECIO_FACT!A:E,2,0)," ","(",$I30,"$)"),"") ->  | E30: =IFERROR(VLOOKUP(RIGHT(CONCATENATE("0000000000",$B30),10),PRECIO_FACT!$A:$G,6,FALSE),"") ->  | F30: =IFERROR(D30*E30,"") ->  | H30: =IFERROR($D30/VLOOKUP(RIGHT(CONCATENATE("0000000000",$B30),10),'Lista de Precios_USD$_Euro€'!E:L,4,FALSE),"") ->  | I30: =IFERROR(VLOOKUP(RIGHT(CONCATENATE("0000000000",$B30),10),PRECIO_FACT!A:G,7,FALSE),"") ->  | M30: 20 | N30: 20
C31: =IFERROR(CONCATENATE(VLOOKUP(RIGHT(CONCATENATE("0000000000",$B31),10),PRECIO_FACT!A:E,2,0)," ","(",$I31,"$)"),"") ->  | E31: =IFERROR(VLOOKUP(RIGHT(CONCATENATE("0000000000",$B31),10),PRECIO_FACT!$A:$G,6,FALSE),"") ->  | H31: =IFERROR($D31/VLOOKUP(RIGHT(CONCATENATE("0000000000",$B31),10),'Lista de Precios_USD$_Euro€'!E:L,4,FALSE),"") ->  | I31: =IFERROR(VLOOKUP(RIGHT(CONCATENATE("0000000000",$B31),10),PRECIO_FACT!A:G,7,FALSE),"") ->  | M31: 21 | N31: 21
C32: =IFERROR(CONCATENATE(VLOOKUP(RIGHT(CONCATENATE("0000000000",$B32),10),PRECIO_FACT!A:E,2,0)," ","(",$I32,"$)"),"") ->  | E32: =IFERROR(VLOOKUP(RIGHT(CONCATENATE("0000000000",$B32),10),PRECIO_FACT!$A:$G,6,FALSE),"") ->  | H32: =IFERROR($D32/VLOOKUP(RIGHT(CONCATENATE("0000000000",$B32),10),'Lista de Precios_USD$_Euro€'!E:L,4,FALSE),"") ->  | I32: =IFERROR(VLOOKUP(RIGHT(CONCATENATE("0000000000",$B32),10),PRECIO_FACT!A:G,7,FALSE),"") ->  | M32: 22 | N32: 22
C33: =IFERROR(CONCATENATE(VLOOKUP(RIGHT(CONCATENATE("0000000000",$B33),10),PRECIO_FACT!A:E,2,0)," ","(",$I33,"$)"),"") ->  | E33: =IFERROR(VLOOKUP(RIGHT(CONCATENATE("0000000000",$B33),10),PRECIO_FACT!$A:$G,6,FALSE),"") ->  | H33: =IFERROR($D33/VLOOKUP(RIGHT(CONCATENATE("0000000000",$B33),10),'Lista de Precios_USD$_Euro€'!E:L,4,FALSE),"") ->  | I33: =IFERROR(VLOOKUP(RIGHT(CONCATENATE("0000000000",$B33),10),PRECIO_FACT!A:G,7,FALSE),"") ->  | M33: 23 | N33: 23
C34: =IFERROR(CONCATENATE(VLOOKUP(RIGHT(CONCATENATE("0000000000",$B34),10),PRECIO_FACT!A:E,2,0)," ","(",$I34,"$)"),"") ->  | E34: =IFERROR(VLOOKUP(RIGHT(CONCATENATE("0000000000",$B34),10),PRECIO_FACT!$A:$G,6,FALSE),"") ->  | H34: =IFERROR($D34/VLOOKUP(RIGHT(CONCATENATE("0000000000",$B34),10),'Lista de Precios_USD$_Euro€'!E:L,4,FALSE),"") ->  | I34: =IFERROR(VLOOKUP(RIGHT(CONCATENATE("0000000000",$B34),10),PRECIO_FACT!A:G,7,FALSE),"") ->  | M34: 24 | N34: 24
C35: =IFERROR(CONCATENATE(VLOOKUP(RIGHT(CONCATENATE("0000000000",$B35),10),PRECIO_FACT!A:E,2,0)," ","(",$I35,"$)"),"") ->  | E35: =IFERROR(VLOOKUP(RIGHT(CONCATENATE("0000000000",$B35),10),PRECIO_FACT!$A:$G,6,FALSE),"") ->  | H35: =IFERROR($D35/VLOOKUP(RIGHT(CONCATENATE("0000000000",$B35),10),'Lista de Precios_USD$_Euro€'!E:L,4,FALSE),"") ->  | I35: =IFERROR(VLOOKUP(RIGHT(CONCATENATE("0000000000",$B35),10),PRECIO_FACT!A:G,7,FALSE),"") ->  | M35: 25 | N35: 25
B36: TOTAL CAJAS | D36: =IFERROR(SUM(H29:H35),"") -> 0 | G36: =IFERROR(D36*#REF!,"") ->  | H36: =IFERROR($D36/VLOOKUP(RIGHT(CONCATENATE("0000000000",$B36),10),'Lista de Precios_USD$_Euro€'!E:L,4,FALSE),"") ->  | I36: =IFERROR(VLOOKUP(RIGHT(CONCATENATE("0000000000",$B36),10),PRECIO_FACT!A:G,7,FALSE),"") ->  | M36: 26 | N36: 26
F37: =SUM(F29:F36) -> 0 | G37: =SUM(G29:G36) -> 0 | M37: 27 | N37: 27
B38: =IFERROR(VLOOKUP($B26,CLIENTE!A:AW,49,0),"") ->  | M38: 28 | N38: 28
B40: PEDIDOS DE CLIENTES REGULARES ON Y OFF TRADE
M41: 29 | N41: 29
B42: CODIGO | C42: VENDEDOR | E42: FECHA | F42: N° PEDIDO | M42: 30 | N42: 30
C43: =IFERROR(VLOOKUP(B43,CLIENTE!$A:$AW,2,0),"") ->  | F43: =IF(J43="","",CONCATENATE(LEFT(C43,3),VLOOKUP(DAY(E43),$M$9:$N$43,2),VLOOKUP(MONTH(E43),$K$9:$L$20,2),RIGHT(YEAR(E43),2),J43)) ->  | J43: =IFERROR(IF(AND($B43,$E43)="","","03"),"") ->  | M43: 31 | N43: 31
B44: =IFERROR(VLOOKUP(B43,CLIENTE!$A:$AW,3,0),"") -> 
B45: CODIGO PRODUCTO | C45: DESCRIPCION | D45: UNIDAD | E45: PRECIO | F45: TOTAL | G45: TOTAL USD$ / Euro€
C46: =IFERROR(CONCATENATE(VLOOKUP(RIGHT(CONCATENATE("0000000000",$B46),10),PRECIO_FACT!A:E,2,0)," ","(",$I46,"$)"),"") ->  | E46: =IFERROR(VLOOKUP(RIGHT(CONCATENATE("0000000000",$B46),10),PRECIO_FACT!$A:$G,6,FALSE),"") ->  | F46: =IFERROR(D46*E46,"") ->  | G46: =IFERROR(D46*I46,"") ->  | H46: =IFERROR($D46/VLOOKUP(RIGHT(CONCATENATE("0000000000",$B46),10),'Lista de Precios_USD$_Euro€'!E:L,4,FALSE),"") ->  | I46: =IFERROR(VLOOKUP(RIGHT(CONCATENATE("0000000000",$B46),10),PRECIO_FACT!A:G,7,FALSE),"") -> 
C47: =IFERROR(CONCATENATE(VLOOKUP(RIGHT(CONCATENATE("0000000000",$B47),10),PRECIO_FACT!A:E,2,0)," ","(",$I47,"$)"),"") ->  | E47: =IFERROR(VLOOKUP(RIGHT(CONCATENATE("0000000000",$B47),10),PRECIO_FACT!$A:$G,6,FALSE),"") ->  | F47: =IFERROR(D47*E47,"") ->  | H47: =IFERROR($D47/VLOOKUP(RIGHT(CONCATENATE("0000000000",$B47),10),'Lista de Precios_USD$_Euro€'!E:L,4,FALSE),"") ->  | I47: =IFERROR(VLOOKUP(RIGHT(CONCATENATE("0000000000",$B47),10),PRECIO_FACT!A:G,7,FALSE),"") -> 
C48: =IFERROR(CONCATENATE(VLOOKUP(RIGHT(CONCATENATE("0000000000",$B48),10),PRECIO_FACT!A:E,2,0)," ","(",$I48,"$)"),"") ->  | E48: =IFERROR(VLOOKUP(RIGHT(CONCATENATE("0000000000",$B48),10),PRECIO_FACT!$A:$G,6,FALSE),"") ->  | H48: =IFERROR($D48/VLOOKUP(RIGHT(CONCATENATE("0000000000",$B48),10),'Lista de Precios_USD$_Euro€'!E:L,4,FALSE),"") ->  | I48: =IFERROR(VLOOKUP(RIGHT(CONCATENATE("0000000000",$B48),10),PRECIO_FACT!A:G,7,FALSE),"") -> 
C49: =IFERROR(CONCATENATE(VLOOKUP(RIGHT(CONCATENATE("0000000000",$B49),10),PRECIO_FACT!A:E,2,0)," ","(",$I49,"$)"),"") ->  | E49: =IFERROR(VLOOKUP(RIGHT(CONCATENATE("0000000000",$B49),10),PRECIO_FACT!$A:$G,6,FALSE),"") ->  | H49: =IFERROR($D49/VLOOKUP(RIGHT(CONCATENATE("0000000000",$B49),10),'Lista de Precios_USD$_Euro€'!E:L,4,FALSE),"") ->  | I49: =IFERROR(VLOOKUP(RIGHT(CONCATENATE("0000000000",$B49),10),PRECIO_FACT!A:G,7,FALSE),"") -> 
C50: =IFERROR(CONCATENATE(VLOOKUP(RIGHT(CONCATENATE("0000000000",$B50),10),PRECIO_FACT!A:E,2,0)," ","(",$I50,"$)"),"") ->  | E50: =IFERROR(VLOOKUP(RIGHT(CONCATENATE("0000000000",$B50),10),PRECIO_FACT!$A:$G,6,FALSE),"") ->  | H50: =IFERROR($D50/VLOOKUP(RIGHT(CONCATENATE("0000000000",$B50),10),'Lista de Precios_USD$_Euro€'!E:L,4,FALSE),"") ->  | I50: =IFERROR(VLOOKUP(RIGHT(CONCATENATE("0000000000",$B50),10),PRECIO_FACT!A:G,7,FALSE),"") -> 
C51: =IFERROR(CONCATENATE(VLOOKUP(RIGHT(CONCATENATE("0000000000",$B51),10),PRECIO_FACT!A:E,2,0)," ","(",$I51,"$)"),"") ->  | E51: =IFERROR(VLOOKUP(RIGHT(CONCATENATE("0000000000",$B51),10),PRECIO_FACT!$A:$G,6,FALSE),"") ->  | H51: =IFERROR($D51/VLOOKUP(RIGHT(CONCATENATE("0000000000",$B51),10),'Lista de Precios_USD$_Euro€'!E:L,4,FALSE),"") ->  | I51: =IFERROR(VLOOKUP(RIGHT(CONCATENATE("0000000000",$B51),10),PRECIO_FACT!A:G,7,FALSE),"") -> 
C52: =IFERROR(CONCATENATE(VLOOKUP(RIGHT(CONCATENATE("0000000000",$B52),10),PRECIO_FACT!A:E,2,0)," ","(",$I52,"$)"),"") ->  | E52: =IFERROR(VLOOKUP(RIGHT(CONCATENATE("0000000000",$B52),10),PRECIO_FACT!$A:$G,6,FALSE),"") ->  | H52: =IFERROR($D52/VLOOKUP(RIGHT(CONCATENATE("0000000000",$B52),10),'Lista de Precios_USD$_Euro€'!E:L,4,FALSE),"") ->  | I52: =IFERROR(VLOOKUP(RIGHT(CONCATENATE("0000000000",$B52),10),PRECIO_FACT!A:G,7,FALSE),"") -> 
B53: TOTAL CAJAS | D53: =IFERROR(SUM(H46:H52),"") -> 0 | G53: =IFERROR(D53*#REF!,"") ->  | H53: =IFERROR($D53/VLOOKUP(RIGHT(CONCATENATE("0000000000",$B53),10),'Lista de Precios_USD$_Euro€'!E:L,4,FALSE),"") ->  | I53: =IFERROR(VLOOKUP(RIGHT(CONCATENATE("0000000000",$B53),10),PRECIO_FACT!A:G,7,FALSE),"") -> 
F54: =SUM(F46:F53) -> 0 | G54: =SUM(G46:G53) -> 0
B55: =IFERROR(VLOOKUP($B43,CLIENTE!A:AW,49,0),"") -> 
B57: PEDIDOS DE CLIENTES REGULARES ON Y OFF TRADE
B59: CODIGO | C59: VENDEDOR | E59: FECHA | F59: N° PEDIDO
C60: =IFERROR(VLOOKUP(B60,CLIENTE!$A:$AW,2,0),"") ->  | F60: =IF(J60="","",CONCATENATE(LEFT(C60,3),VLOOKUP(DAY(E60),$M$9:$N$43,2),VLOOKUP(MONTH(E60),$K$9:$L$20,2),RIGHT(YEAR(E60),2),J60)) ->  | J60: =IFERROR(IF(AND($B60,$E60)="","","04"),"") -> 
B61: =IFERROR(VLOOKUP(B60,CLIENTE!$A:$AW,3,0),"") -> 
B62: CODIGO PRODUCTO | C62: DESCRIPCION | D62: UNIDAD | E62: PRECIO | F62: TOTAL | G62: TOTAL USD$ / Euro€
C63: =IFERROR(CONCATENATE(VLOOKUP(RIGHT(CONCATENATE("0000000000",$B63),10),PRECIO_FACT!A:E,2,0)," ","(",$I63,"$)"),"") ->  | E63: =IFERROR(VLOOKUP(RIGHT(CONCATENATE("0000000000",$B63),10),PRECIO_FACT!$A:$G,6,FALSE),"") ->  | F63: =IFERROR(D63*E63,"") ->  | G63: =IFERROR(D63*I63,"") ->  | H63: =IFERROR($D63/VLOOKUP(RIGHT(CONCATENATE("0000000000",$B63),10),'Lista de Precios_USD$_Euro€'!E:L,4,FALSE),"") ->  | I63: =IFERROR(VLOOKUP(RIGHT(CONCATENATE("0000000000",$B63),10),PRECIO_FACT!A:G,7,FALSE),"") -> 
C64: =IFERROR(CONCATENATE(VLOOKUP(RIGHT(CONCATENATE("0000000000",$B64),10),PRECIO_FACT!A:E,2,0)," ","(",$I64,"$)"),"") ->  | E64: =IFERROR(VLOOKUP(RIGHT(CONCATENATE("0000000000",$B64),10),PRECIO_FACT!$A:$G,6,FALSE),"") ->  | F64: =IFERROR(D64*E64,"") ->  | H64: =IFERROR($D64/VLOOKUP(RIGHT(CONCATENATE("0000000000",$B64),10),'Lista de Precios_USD$_Euro€'!E:L,4,FALSE),"") ->  | I64: =IFERROR(VLOOKUP(RIGHT(CONCATENATE("0000000000",$B64),10),PRECIO_FACT!A:G,7,FALSE),"") -> 
C65: =IFERROR(CONCATENATE(VLOOKUP(RIGHT(CONCATENATE("0000000000",$B65),10),PRECIO_FACT!A:E,2,0)," ","(",$I65,"$)"),"") ->  | E65: =IFERROR(VLOOKUP(RIGHT(CONCATENATE("0000000000",$B65),10),PRECIO_FACT!$A:$G,6,FALSE),"") ->  | H65: =IFERROR($D65/VLOOKUP(RIGHT(CONCATENATE("0000000000",$B65),10),'Lista de Precios_USD$_Euro€'!E:L,4,FALSE),"") ->  | I65: =IFERROR(VLOOKUP(RIGHT(CONCATENATE("0000000000",$B65),10),PRECIO_FACT!A:G,7,FALSE),"") -> 
C66: =IFERROR(CONCATENATE(VLOOKUP(RIGHT(CONCATENATE("0000000000",$B66),10),PRECIO_FACT!A:E,2,0)," ","(",$I66,"$)"),"") ->  | E66: =IFERROR(VLOOKUP(RIGHT(CONCATENATE("0000000000",$B66),10),PRECIO_FACT!$A:$G,6,FALSE),"") ->  | H66: =IFERROR($D66/VLOOKUP(RIGHT(CONCATENATE("0000000000",$B66),10),'Lista de Precios_USD$_Euro€'!E:L,4,FALSE),"") ->  | I66: =IFERROR(VLOOKUP(RIGHT(CONCATENATE("0000000000",$B66),10),PRECIO_FACT!A:G,7,FALSE),"") -> 
C67: =IFERROR(CONCATENATE(VLOOKUP(RIGHT(CONCATENATE("0000000000",$B67),10),PRECIO_FACT!A:E,2,0)," ","(",$I67,"$)"),"") ->  | E67: =IFERROR(VLOOKUP(RIGHT(CONCATENATE("0000000000",$B67),10),PRECIO_FACT!$A:$G,6,FALSE),"") ->  | H67: =IFERROR($D67/VLOOKUP(RIGHT(CONCATENATE("0000000000",$B67),10),'Lista de Precios_USD$_Euro€'!E:L,4,FALSE),"") ->  | I67: =IFERROR(VLOOKUP(RIGHT(CONCATENATE("0000000000",$B67),10),PRECIO_FACT!A:G,7,FALSE),"") -> 
C68: =IFERROR(CONCATENATE(VLOOKUP(RIGHT(CONCATENATE("0000000000",$B68),10),PRECIO_FACT!A:E,2,0)," ","(",$I68,"$)"),"") ->  | E68: =IFERROR(VLOOKUP(RIGHT(CONCATENATE("0000000000",$B68),10),PRECIO_FACT!$A:$G,6,FALSE),"") ->  | H68: =IFERROR($D68/VLOOKUP(RIGHT(CONCATENATE("0000000000",$B68),10),'Lista de Precios_USD$_Euro€'!E:L,4,FALSE),"") ->  | I68: =IFERROR(VLOOKUP(RIGHT(CONCATENATE("0000000000",$B68),10),PRECIO_FACT!A:G,7,FALSE),"") -> 
C69: =IFERROR(CONCATENATE(VLOOKUP(RIGHT(CONCATENATE("0000000000",$B69),10),PRECIO_FACT!A:E,2,0)," ","(",$I69,"$)"),"") ->  | E69: =IFERROR(VLOOKUP(RIGHT(CONCATENATE("0000000000",$B69),10),PRECIO_FACT!$A:$G,6,FALSE),"") ->  | H69: =IFERROR($D69/VLOOKUP(RIGHT(CONCATENATE("0000000000",$B69),10),'Lista de Precios_USD$_Euro€'!E:L,4,FALSE),"") ->  | I69: =IFERROR(VLOOKUP(RIGHT(CONCATENATE("0000000000",$B69),10),PRECIO_FACT!A:G,7,FALSE),"") -> 
B70: TOTAL CAJAS | D70: =IFERROR(SUM(H63:H69),"") -> 0 | G70: =IFERROR(D70*#REF!,"") ->  | H70: =IFERROR($D70/VLOOKUP(RIGHT(CONCATENATE("0000000000",$B70),10),'Lista de Precios_USD$_Euro€'!E:L,4,FALSE),"") ->  | I70: =IFERROR(VLOOKUP(RIGHT(CONCATENATE("0000000000",$B70),10),PRECIO_FACT!A:G,7,FALSE),"") -> 
F71: =SUM(F63:F70) -> 0 | G71: =SUM(G63:G70) -> 0
B72: =IFERROR(VLOOKUP($B60,CLIENTE!A:AW,49,0),"") -> 
B74: PEDIDOS DE CLIENTES REGULARES ON Y OFF TRADE
B76: CODIGO | C76: VENDEDOR | E76: FECHA | F76: N° PEDIDO
C77: =IFERROR(VLOOKUP(B77,CLIENTE!$A:$AW,2,0),"") ->  | F77: =IF(J77="","",CONCATENATE(LEFT(C77,3),VLOOKUP(DAY(E77),$M$9:$N$43,2),VLOOKUP(MONTH(E77),$K$9:$L$20,2),RIGHT(YEAR(E77),2),J77)) ->  | J77: =IFERROR(IF(AND($B77,$E77)="","","05"),"") -> 
B78: =IFERROR(VLOOKUP(B77,CLIENTE!$A:$AW,3,0),"") -> 
B79: CODIGO PRODUCTO | C79: DESCRIPCION | D79: UNIDAD | E79: PRECIO | F79: TOTAL | G79: TOTAL USD$ / Euro€
C80: =IFERROR(CONCATENATE(VLOOKUP(RIGHT(CONCATENATE("0000000000",$B80),10),PRECIO_FACT!A:E,2,0)," ","(",$I80,"$)"),"") ->  | E80: =IFERROR(VLOOKUP(RIGHT(CONCATENATE("0000000000",$B80),10),PRECIO_FACT!$A:$G,6,FALSE),"") ->  | F80: =IFERROR(D80*E80,"") ->  | G80: =IFERROR(D80*I80,"") ->  | H80: =IFERROR($D80/VLOOKUP(RIGHT(CONCATENATE("0000000000",$B80),10),'Lista de Precios_USD$_Euro€'!E:L,4,FALSE),"") ->  | I80: =IFERROR(VLOOKUP(RIGHT(CONCATENATE("0000000000",$B80),10),PRECIO_FACT!A:G,7,FALSE),"") -> 
C81: =IFERROR(CONCATENATE(VLOOKUP(RIGHT(CONCATENATE("0000000000",$B81),10),PRECIO_FACT!A:E,2,0)," ","(",$I81,"$)"),"") ->  | E81: =IFERROR(VLOOKUP(RIGHT(CONCATENATE("0000000000",$B81),10),PRECIO_FACT!$A:$G,6,FALSE),"") ->  | F81: =IFERROR(D81*E81,"") ->  | H81: =IFERROR($D81/VLOOKUP(RIGHT(CONCATENATE("0000000000",$B81),10),'Lista de Precios_USD$_Euro€'!E:L,4,FALSE),"") ->  | I81: =IFERROR(VLOOKUP(RIGHT(CONCATENATE("0000000000",$B81),10),PRECIO_FACT!A:G,7,FALSE),"") -> 
C82: =IFERROR(CONCATENATE(VLOOKUP(RIGHT(CONCATENATE("0000000000",$B82),10),PRECIO_FACT!A:E,2,0)," ","(",$I82,"$)"),"") ->  | E82: =IFERROR(VLOOKUP(RIGHT(CONCATENATE("0000000000",$B82),10),PRECIO_FACT!$A:$G,6,FALSE),"") ->  | H82: =IFERROR($D82/VLOOKUP(RIGHT(CONCATENATE("0000000000",$B82),10),'Lista de Precios_USD$_Euro€'!E:L,4,FALSE),"") ->  | I82: =IFERROR(VLOOKUP(RIGHT(CONCATENATE("0000000000",$B82),10),PRECIO_FACT!A:G,7,FALSE),"") -> 
C83: =IFERROR(CONCATENATE(VLOOKUP(RIGHT(CONCATENATE("0000000000",$B83),10),PRECIO_FACT!A:E,2,0)," ","(",$I83,"$)"),"") ->  | E83: =IFERROR(VLOOKUP(RIGHT(CONCATENATE("0000000000",$B83),10),PRECIO_FACT!$A:$G,6,FALSE),"") ->  | H83: =IFERROR($D83/VLOOKUP(RIGHT(CONCATENATE("0000000000",$B83),10),'Lista de Precios_USD$_Euro€'!E:L,4,FALSE),"") ->  | I83: =IFERROR(VLOOKUP(RIGHT(CONCATENATE("0000000000",$B83),10),PRECIO_FACT!A:G,7,FALSE),"") -> 
C84: =IFERROR(CONCATENATE(VLOOKUP(RIGHT(CONCATENATE("0000000000",$B84),10),PRECIO_FACT!A:E,2,0)," ","(",$I84,"$)"),"") ->  | E84: =IFERROR(VLOOKUP(RIGHT(CONCATENATE("0000000000",$B84),10),PRECIO_FACT!$A:$G,6,FALSE),"") ->  | H84: =IFERROR($D84/VLOOKUP(RIGHT(CONCATENATE("0000000000",$B84),10),'Lista de Precios_USD$_Euro€'!E:L,4,FALSE),"") ->  | I84: =IFERROR(VLOOKUP(RIGHT(CONCATENATE("0000000000",$B84),10),PRECIO_FACT!A:G,7,FALSE),"") -> 
C85: =IFERROR(CONCATENATE(VLOOKUP(RIGHT(CONCATENATE("0000000000",$B85),10),PRECIO_FACT!A:E,2,0)," ","(",$I85,"$)"),"") ->  | E85: =IFERROR(VLOOKUP(RIGHT(CONCATENATE("0000000000",$B85),10),PRECIO_FACT!$A:$G,6,FALSE),"") ->  | H85: =IFERROR($D85/VLOOKUP(RIGHT(CONCATENATE("0000000000",$B85),10),'Lista de Precios_USD$_Euro€'!E:L,4,FALSE),"") ->  | I85: =IFERROR(VLOOKUP(RIGHT(CONCATENATE("0000000000",$B85),10),PRECIO_FACT!A:G,7,FALSE),"") -> 
C86: =IFERROR(CONCATENATE(VLOOKUP(RIGHT(CONCATENATE("0000000000",$B86),10),PRECIO_FACT!A:E,2,0)," ","(",$I86,"$)"),"") ->  | E86: =IFERROR(VLOOKUP(RIGHT(CONCATENATE("0000000000",$B86),10),PRECIO_FACT!$A:$G,6,FALSE),"") ->  | H86: =IFERROR($D86/VLOOKUP(RIGHT(CONCATENATE("0000000000",$B86),10),'Lista de Precios_USD$_Euro€'!E:L,4,FALSE),"") ->  | I86: =IFERROR(VLOOKUP(RIGHT(CONCATENATE("0000000000",$B86),10),PRECIO_FACT!A:G,7,FALSE),"") -> 
B87: TOTAL CAJAS | D87: =IFERROR(SUM(H80:H86),"") -> 0 | G87: =IFERROR(D87*#REF!,"") ->  | H87: =IFERROR($D87/VLOOKUP(RIGHT(CONCATENATE("0000000000",$B87),10),'Lista de Precios_USD$_Euro€'!E:L,4,FALSE),"") ->  | I87: =IFERROR(VLOOKUP(RIGHT(CONCATENATE("0000000000",$B87),10),PRECIO_FACT!A:G,7,FALSE),"") -> 
F88: =SUM(F80:F87) -> 0 | G88: =SUM(G80:G87) -> 0
B89: =IFERROR(VLOOKUP($B77,CLIENTE!A:AW,49,0),"") -> 
B91: PEDIDOS DE CLIENTES REGULARES ON Y OFF TRADE
B93: CODIGO | C93: VENDEDOR | E93: FECHA | F93: N° PEDIDO
C94: =IFERROR(VLOOKUP(B94,CLIENTE!$A:$AW,2,0),"") ->  | F94: =IF(J94="","",CONCATENATE(LEFT(C94,3),VLOOKUP(DAY(E94),$M$9:$N$43,2),VLOOKUP(MONTH(E94),$K$9:$L$20,2),RIGHT(YEAR(E94),2),J94)) ->  | J94: =IFERROR(IF(AND($B94,$E94)="","","06"),"") -> 
B95: =IFERROR(VLOOKUP(B94,CLIENTE!$A:$AW,3,0),"") -> 
B96: CODIGO PRODUCTO | C96: DESCRIPCION | D96: UNIDAD | E96: PRECIO | F96: TOTAL | G96: TOTAL USD$ / Euro€
C97: =IFERROR(CONCATENATE(VLOOKUP(RIGHT(CONCATENATE("0000000000",$B97),10),PRECIO_FACT!A:E,2,0)," ","(",$I97,"$)"),"") ->  | E97: =IFERROR(VLOOKUP(RIGHT(CONCATENATE("0000000000",$B97),10),PRECIO_FACT!$A:$G,6,FALSE),"") ->  | F97: =IFERROR(D97*E97,"") ->  | G97: =IFERROR(D97*I97,"") ->  | H97: =IFERROR($D97/VLOOKUP(RIGHT(CONCATENATE("0000000000",$B97),10),'Lista de Precios_USD$_Euro€'!E:L,4,FALSE),"") ->  | I97: =IFERROR(VLOOKUP(RIGHT(CONCATENATE("0000000000",$B97),10),PRECIO_FACT!A:G,7,FALSE),"") -> 
C98: =IFERROR(CONCATENATE(VLOOKUP(RIGHT(CONCATENATE("0000000000",$B98),10),PRECIO_FACT!A:E,2,0)," ","(",$I98,"$)"),"") ->  | E98: =IFERROR(VLOOKUP(RIGHT(CONCATENATE("0000000000",$B98),10),PRECIO_FACT!$A:$G,6,FALSE),"") ->  | F98: =IFERROR(D98*E98,"") ->  | H98: =IFERROR($D98/VLOOKUP(RIGHT(CONCATENATE("0000000000",$B98),10),'Lista de Precios_USD$_Euro€'!E:L,4,FALSE),"") ->  | I98: =IFERROR(VLOOKUP(RIGHT(CONCATENATE("0000000000",$B98),10),PRECIO_FACT!A:G,7,FALSE),"") -> 
C99: =IFERROR(CONCATENATE(VLOOKUP(RIGHT(CONCATENATE("0000000000",$B99),10),PRECIO_FACT!A:E,2,0)," ","(",$I99,"$)"),"") ->  | E99: =IFERROR(VLOOKUP(RIGHT(CONCATENATE("0000000000",$B99),10),PRECIO_FACT!$A:$G,6,FALSE),"") ->  | H99: =IFERROR($D99/VLOOKUP(RIGHT(CONCATENATE("0000000000",$B99),10),'Lista de Precios_USD$_Euro€'!E:L,4,FALSE),"") ->  | I99: =IFERROR(VLOOKUP(RIGHT(CONCATENATE("0000000000",$B99),10),PRECIO_FACT!A:G,7,FALSE),"") -> 
C100: =IFERROR(CONCATENATE(VLOOKUP(RIGHT(CONCATENATE("0000000000",$B100),10),PRECIO_FACT!A:E,2,0)," ","(",$I100,"$)"),"") ->  | E100: =IFERROR(VLOOKUP(RIGHT(CONCATENATE("0000000000",$B100),10),PRECIO_FACT!$A:$G,6,FALSE),"") ->  | H100: =IFERROR($D100/VLOOKUP(RIGHT(CONCATENATE("0000000000",$B100),10),'Lista de Precios_USD$_Euro€'!E:L,4,FALSE),"") ->  | I100: =IFERROR(VLOOKUP(RIGHT(CONCATENATE("0000000000",$B100),10),PRECIO_FACT!A:G,7,FALSE),"") -> 
C101: =IFERROR(CONCATENATE(VLOOKUP(RIGHT(CONCATENATE("0000000000",$B101),10),PRECIO_FACT!A:E,2,0)," ","(",$I101,"$)"),"") ->  | E101: =IFERROR(VLOOKUP(RIGHT(CONCATENATE("0000000000",$B101),10),PRECIO_FACT!$A:$G,6,FALSE),"") ->  | H101: =IFERROR($D101/VLOOKUP(RIGHT(CONCATENATE("0000000000",$B101),10),'Lista de Precios_USD$_Euro€'!E:L,4,FALSE),"") ->  | I101: =IFERROR(VLOOKUP(RIGHT(CONCATENATE("0000000000",$B101),10),PRECIO_FACT!A:G,7,FALSE),"") -> 
C102: =IFERROR(CONCATENATE(VLOOKUP(RIGHT(CONCATENATE("0000000000",$B102),10),PRECIO_FACT!A:E,2,0)," ","(",$I102,"$)"),"") ->  | E102: =IFERROR(VLOOKUP(RIGHT(CONCATENATE("0000000000",$B102),10),PRECIO_FACT!$A:$G,6,FALSE),"") ->  | H102: =IFERROR($D102/VLOOKUP(RIGHT(CONCATENATE("0000000000",$B102),10),'Lista de Precios_USD$_Euro€'!E:L,4,FALSE),"") ->  | I102: =IFERROR(VLOOKUP(RIGHT(CONCATENATE("0000000000",$B102),10),PRECIO_FACT!A:G,7,FALSE),"") -> 
C103: =IFERROR(CONCATENATE(VLOOKUP(RIGHT(CONCATENATE("0000000000",$B103),10),PRECIO_FACT!A:E,2,0)," ","(",$I103,"$)"),"") ->  | E103: =IFERROR(VLOOKUP(RIGHT(CONCATENATE("0000000000",$B103),10),PRECIO_FACT!$A:$G,6,FALSE),"") ->  | H103: =IFERROR($D103/VLOOKUP(RIGHT(CONCATENATE("0000000000",$B103),10),'Lista de Precios_USD$_Euro€'!E:L,4,FALSE),"") ->  | I103: =IFERROR(VLOOKUP(RIGHT(CONCATENATE("0000000000",$B103),10),PRECIO_FACT!A:G,7,FALSE),"") -> 
B104: TOTAL CAJAS | D104: =IFERROR(SUM(H97:H103),"") -> 0 | G104: =IFERROR(D104*#REF!,"") ->  | H104: =IFERROR($D104/VLOOKUP(RIGHT(CONCATENATE("0000000000",$B104),10),'Lista de Precios_USD$_Euro€'!E:L,4,FALSE),"") ->  | I104: =IFERROR(VLOOKUP(RIGHT(CONCATENATE("0000000000",$B104),10),PRECIO_FACT!A:G,7,FALSE),"") -> 
F105: =SUM(F97:F104) -> 0 | G105: =SUM(G97:G104) -> 0
B106: =IFERROR(VLOOKUP($B94,CLIENTE!A:AW,49,0),"") -> 
B108: PEDIDOS DE CLIENTES REGULARES ON Y OFF TRADE
B110: CODIGO | C110: VENDEDOR | E110: FECHA | F110: N° PEDIDO
C111: =IFERROR(VLOOKUP(B111,CLIENTE!$A:$AW,2,0),"") ->  | F111: =IF(J111="","",CONCATENATE(LEFT(C111,3),VLOOKUP(DAY(E111),$M$9:$N$43,2),VLOOKUP(MONTH(E111),$K$9:$L$20,2),RIGHT(YEAR(E111),2),J111)) ->  | J111: =IFERROR(IF(AND($B111,$E111)="","","07"),"") -> 
B112: =IFERROR(VLOOKUP(B111,CLIENTE!$A:$AW,3,0),"") -> 
B113: CODIGO PRODUCTO | C113: DESCRIPCION | D113: UNIDAD | E113: PRECIO | F113: TOTAL | G113: TOTAL USD$ / Euro€
C114: =IFERROR(CONCATENATE(VLOOKUP(RIGHT(CONCATENATE("0000000000",$B114),10),PRECIO_FACT!A:E,2,0)," ","(",$I114,"$)"),"") ->  | E114: =IFERROR(VLOOKUP(RIGHT(CONCATENATE("0000000000",$B114),10),PRECIO_FACT!$A:$G,6,FALSE),"") ->  | F114: =IFERROR(D114*E114,"") ->  | G114: =IFERROR(D114*I114,"") ->  | H114: =IFERROR($D114/VLOOKUP(RIGHT(CONCATENATE("0000000000",$B114),10),'Lista de Precios_USD$_Euro€'!E:L,4,FALSE),"") ->  | I114: =IFERROR(VLOOKUP(RIGHT(CONCATENATE("0000000000",$B114),10),PRECIO_FACT!A:G,7,FALSE),"") -> 
C115: =IFERROR(CONCATENATE(VLOOKUP(RIGHT(CONCATENATE("0000000000",$B115),10),PRECIO_FACT!A:E,2,0)," ","(",$I115,"$)"),"") ->  | E115: =IFERROR(VLOOKUP(RIGHT(CONCATENATE("0000000000",$B115),10),PRECIO_FACT!$A:$G,6,FALSE),"") ->  | F115: =IFERROR(D115*E115,"") ->  | H115: =IFERROR($D115/VLOOKUP(RIGHT(CONCATENATE("0000000000",$B115),10),'Lista de Precios_USD$_Euro€'!E:L,4,FALSE),"") ->  | I115: =IFERROR(VLOOKUP(RIGHT(CONCATENATE("0000000000",$B115),10),PRECIO_FACT!A:G,7,FALSE),"") -> 
C116: =IFERROR(CONCATENATE(VLOOKUP(RIGHT(CONCATENATE("0000000000",$B116),10),PRECIO_FACT!A:E,2,0)," ","(",$I116,"$)"),"") ->  | E116: =IFERROR(VLOOKUP(RIGHT(CONCATENATE("0000000000",$B116),10),PRECIO_FACT!$A:$G,6,FALSE),"") ->  | H116: =IFERROR($D116/VLOOKUP(RIGHT(CONCATENATE("0000000000",$B116),10),'Lista de Precios_USD$_Euro€'!E:L,4,FALSE),"") ->  | I116: =IFERROR(VLOOKUP(RIGHT(CONCATENATE("0000000000",$B116),10),PRECIO_FACT!A:G,7,FALSE),"") -> 
C117: =IFERROR(CONCATENATE(VLOOKUP(RIGHT(CONCATENATE("0000000000",$B117),10),PRECIO_FACT!A:E,2,0)," ","(",$I117,"$)"),"") ->  | E117: =IFERROR(VLOOKUP(RIGHT(CONCATENATE("0000000000",$B117),10),PRECIO_FACT!$A:$G,6,FALSE),"") ->  | H117: =IFERROR($D117/VLOOKUP(RIGHT(CONCATENATE("0000000000",$B117),10),'Lista de Precios_USD$_Euro€'!E:L,4,FALSE),"") ->  | I117: =IFERROR(VLOOKUP(RIGHT(CONCATENATE("0000000000",$B117),10),PRECIO_FACT!A:G,7,FALSE),"") -> 
C118: =IFERROR(CONCATENATE(VLOOKUP(RIGHT(CONCATENATE("0000000000",$B118),10),PRECIO_FACT!A:E,2,0)," ","(",$I118,"$)"),"") ->  | E118: =IFERROR(VLOOKUP(RIGHT(CONCATENATE("0000000000",$B118),10),PRECIO_FACT!$A:$G,6,FALSE),"") ->  | H118: =IFERROR($D118/VLOOKUP(RIGHT(CONCATENATE("0000000000",$B118),10),'Lista de Precios_USD$_Euro€'!E:L,4,FALSE),"") ->  | I118: =IFERROR(VLOOKUP(RIGHT(CONCATENATE("0000000000",$B118),10),PRECIO_FACT!A:G,7,FALSE),"") -> 
C119: =IFERROR(CONCATENATE(VLOOKUP(RIGHT(CONCATENATE("0000000000",$B119),10),PRECIO_FACT!A:E,2,0)," ","(",$I119,"$)"),"") ->  | E119: =IFERROR(VLOOKUP(RIGHT(CONCATENATE("0000000000",$B119),10),PRECIO_FACT!$A:$G,6,FALSE),"") ->  | H119: =IFERROR($D119/VLOOKUP(RIGHT(CONCATENATE("0000000000",$B119),10),'Lista de Precios_USD$_Euro€'!E:L,4,FALSE),"") ->  | I119: =IFERROR(VLOOKUP(RIGHT(CONCATENATE("0000000000",$B119),10),PRECIO_FACT!A:G,7,FALSE),"") -> 
C120: =IFERROR(CONCATENATE(VLOOKUP(RIGHT(CONCATENATE("0000000000",$B120),10),PRECIO_FACT!A:E,2,0)," ","(",$I120,"$)"),"") ->  | E120: =IFERROR(VLOOKUP(RIGHT(CONCATENATE("0000000000",$B120),10),PRECIO_FACT!$A:$G,6,FALSE),"") ->  | H120: =IFERROR($D120/VLOOKUP(RIGHT(CONCATENATE("0000000000",$B120),10),'Lista de Precios_USD$_Euro€'!E:L,4,FALSE),"") ->  | I120: =IFERROR(VLOOKUP(RIGHT(CONCATENATE("0000000000",$B120),10),PRECIO_FACT!A:G,7,FALSE),"") -> 
B121: TOTAL CAJAS | D121: =IFERROR(SUM(H114:H120),"") -> 0 | G121: =IFERROR(D121*#REF!,"") ->  | H121: =IFERROR($D121/VLOOKUP(RIGHT(CONCATENATE("0000000000",$B121),10),'Lista de Precios_USD$_Euro€'!E:L,4,FALSE),"") ->  | I121: =IFERROR(VLOOKUP(RIGHT(CONCATENATE("0000000000",$B121),10),PRECIO_FACT!A:G,7,FALSE),"") -> 
F122: =SUM(F114:F121) -> 0 | G122: =SUM(G114:G121) -> 0
B123: =IFERROR(VLOOKUP($B111,CLIENTE!A:AW,49,0),"") -> 
B125: PEDIDOS DE CLIENTES REGULARES ON Y OFF TRADE
B127: CODIGO | C127: VENDEDOR | E127: FECHA | F127: N° PEDIDO
C128: =IFERROR(VLOOKUP(B128,CLIENTE!$A:$AW,2,0),"") ->  | F128: =IF(J128="","",CONCATENATE(LEFT(C128,3),VLOOKUP(DAY(E128),$M$9:$N$43,2),VLOOKUP(MONTH(E128),$K$9:$L$20,2),RIGHT(YEAR(E128),2),J128)) ->  | J128: =IFERROR(IF(AND($B128,$E128)="","","08"),"") -> 
B129: =IFERROR(VLOOKUP(B128,CLIENTE!$A:$AW,3,0),"") -> 
B130: CODIGO PRODUCTO | C130: DESCRIPCION | D130: UNIDAD | E130: PRECIO | F130: TOTAL | G130: TOTAL USD$ / Euro€
C131: =IFERROR(CONCATENATE(VLOOKUP(RIGHT(CONCATENATE("0000000000",$B131),10),PRECIO_FACT!A:E,2,0)," ","(",$I131,"$)"),"") ->  | E131: =IFERROR(VLOOKUP(RIGHT(CONCATENATE("0000000000",$B131),10),PRECIO_FACT!$A:$G,6,FALSE),"") ->  | F131: =IFERROR(D131*E131,"") ->  | G131: =IFERROR(D131*I131,"") ->  | H131: =IFERROR($D131/VLOOKUP(RIGHT(CONCATENATE("0000000000",$B131),10),'Lista de Precios_USD$_Euro€'!E:L,4,FALSE),"") ->  | I131: =IFERROR(VLOOKUP(RIGHT(CONCATENATE("0000000000",$B131),10),PRECIO_FACT!A:G,7,FALSE),"") -> 
C132: =IFERROR(CONCATENATE(VLOOKUP(RIGHT(CONCATENATE("0000000000",$B132),10),PRECIO_FACT!A:E,2,0)," ","(",$I132,"$)"),"") ->  | E132: =IFERROR(VLOOKUP(RIGHT(CONCATENATE("0000000000",$B132),10),PRECIO_FACT!$A:$G,6,FALSE),"") ->  | F132: =IFERROR(D132*E132,"") ->  | H132: =IFERROR($D132/VLOOKUP(RIGHT(CONCATENATE("0000000000",$B132),10),'Lista de Precios_USD$_Euro€'!E:L,4,FALSE),"") ->  | I132: =IFERROR(VLOOKUP(RIGHT(CONCATENATE("0000000000",$B132),10),PRECIO_FACT!A:G,7,FALSE),"") -> 
C133: =IFERROR(CONCATENATE(VLOOKUP(RIGHT(CONCATENATE("0000000000",$B133),10),PRECIO_FACT!A:E,2,0)," ","(",$I133,"$)"),"") ->  | E133: =IFERROR(VLOOKUP(RIGHT(CONCATENATE("0000000000",$B133),10),PRECIO_FACT!$A:$G,6,FALSE),"") ->  | H133: =IFERROR($D133/VLOOKUP(RIGHT(CONCATENATE("0000000000",$B133),10),'Lista de Precios_USD$_Euro€'!E:L,4,FALSE),"") ->  | I133: =IFERROR(VLOOKUP(RIGHT(CONCATENATE("0000000000",$B133),10),PRECIO_FACT!A:G,7,FALSE),"") -> 
C134: =IFERROR(CONCATENATE(VLOOKUP(RIGHT(CONCATENATE("0000000000",$B134),10),PRECIO_FACT!A:E,2,0)," ","(",$I134,"$)"),"") ->  | E134: =IFERROR(VLOOKUP(RIGHT(CONCATENATE("0000000000",$B134),10),PRECIO_FACT!$A:$G,6,FALSE),"") ->  | H134: =IFERROR($D134/VLOOKUP(RIGHT(CONCATENATE("0000000000",$B134),10),'Lista de Precios_USD$_Euro€'!E:L,4,FALSE),"") ->  | I134: =IFERROR(VLOOKUP(RIGHT(CONCATENATE("0000000000",$B134),10),PRECIO_FACT!A:G,7,FALSE),"") -> 
C135: =IFERROR(CONCATENATE(VLOOKUP(RIGHT(CONCATENATE("0000000000",$B135),10),PRECIO_FACT!A:E,2,0)," ","(",$I135,"$)"),"") ->  | E135: =IFERROR(VLOOKUP(RIGHT(CONCATENATE("0000000000",$B135),10),PRECIO_FACT!$A:$G,6,FALSE),"") ->  | H135: =IFERROR($D135/VLOOKUP(RIGHT(CONCATENATE("0000000000",$B135),10),'Lista de Precios_USD$_Euro€'!E:L,4,FALSE),"") ->  | I135: =IFERROR(VLOOKUP(RIGHT(CONCATENATE("0000000000",$B135),10),PRECIO_FACT!A:G,7,FALSE),"") -> 
C136: =IFERROR(CONCATENATE(VLOOKUP(RIGHT(CONCATENATE("0000000000",$B136),10),PRECIO_FACT!A:E,2,0)," ","(",$I136,"$)"),"") ->  | E136: =IFERROR(VLOOKUP(RIGHT(CONCATENATE("0000000000",$B136),10),PRECIO_FACT!$A:$G,6,FALSE),"") ->  | H136: =IFERROR($D136/VLOOKUP(RIGHT(CONCATENATE("0000000000",$B136),10),'Lista de Precios_USD$_Euro€'!E:L,4,FALSE),"") ->  | I136: =IFERROR(VLOOKUP(RIGHT(CONCATENATE("0000000000",$B136),10),PRECIO_FACT!A:G,7,FALSE),"") -> 
C137: =IFERROR(CONCATENATE(VLOOKUP(RIGHT(CONCATENATE("0000000000",$B137),10),PRECIO_FACT!A:E,2,0)," ","(",$I137,"$)"),"") ->  | E137: =IFERROR(VLOOKUP(RIGHT(CONCATENATE("0000000000",$B137),10),PRECIO_FACT!$A:$G,6,FALSE),"") ->  | H137: =IFERROR($D137/VLOOKUP(RIGHT(CONCATENATE("0000000000",$B137),10),'Lista de Precios_USD$_Euro€'!E:L,4,FALSE),"") ->  | I137: =IFERROR(VLOOKUP(RIGHT(CONCATENATE("0000000000",$B137),10),PRECIO_FACT!A:G,7,FALSE),"") -> 
B138: TOTAL CAJAS | D138: =IFERROR(SUM(H131:H137),"") -> 0 | G138: =IFERROR(D138*#REF!,"") ->  | H138: =IFERROR($D138/VLOOKUP(RIGHT(CONCATENATE("0000000000",$B138),10),'Lista de Precios_USD$_Euro€'!E:L,4,FALSE),"") ->  | I138: =IFERROR(VLOOKUP(RIGHT(CONCATENATE("0000000000",$B138),10),PRECIO_FACT!A:G,7,FALSE),"") -> 
F139: =SUM(F131:F138) -> 0 | G139: =SUM(G131:G138) -> 0
B140: =IFERROR(VLOOKUP($B128,CLIENTE!A:AW,49,0),"") -> 
B142: PEDIDOS DE CLIENTES REGULARES ON Y OFF TRADE
B144: CODIGO | C144: VENDEDOR | E144: FECHA | F144: N° PEDIDO
C145: =IFERROR(VLOOKUP(B145,CLIENTE!$A:$AW,2,0),"") ->  | F145: =IF(J145="","",CONCATENATE(LEFT(C145,3),VLOOKUP(DAY(E145),$M$9:$N$43,2),VLOOKUP(MONTH(E145),$K$9:$L$20,2),RIGHT(YEAR(E145),2),J145)) ->  | J145: =IFERROR(IF(AND($B145,$E145)="","","09"),"") -> 
B146: =IFERROR(VLOOKUP(B145,CLIENTE!$A:$AW,3,0),"") -> 
B147: CODIGO PRODUCTO | C147: DESCRIPCION | D147: UNIDAD | E147: PRECIO | F147: TOTAL | G147: TOTAL USD$ / Euro€
C148: =IFERROR(CONCATENATE(VLOOKUP(RIGHT(CONCATENATE("0000000000",$B148),10),PRECIO_FACT!A:E,2,0)," ","(",$I148,"$)"),"") ->  | E148: =IFERROR(VLOOKUP(RIGHT(CONCATENATE("0000000000",$B148),10),PRECIO_FACT!$A:$G,6,FALSE),"") ->  | F148: =IFERROR(D148*E148,"") ->  | G148: =IFERROR(D148*I148,"") ->  | H148: =IFERROR($D148/VLOOKUP(RIGHT(CONCATENATE("0000000000",$B148),10),'Lista de Precios_USD$_Euro€'!E:L,4,FALSE),"") ->  | I148: =IFERROR(VLOOKUP(RIGHT(CONCATENATE("0000000000",$B148),10),PRECIO_FACT!A:G,7,FALSE),"") -> 
C149: =IFERROR(CONCATENATE(VLOOKUP(RIGHT(CONCATENATE("0000000000",$B149),10),PRECIO_FACT!A:E,2,0)," ","(",$I149,"$)"),"") ->  | E149: =IFERROR(VLOOKUP(RIGHT(CONCATENATE("0000000000",$B149),10),PRECIO_FACT!$A:$G,6,FALSE),"") ->  | F149: =IFERROR(D149*E149,"") ->  | H149: =IFERROR($D149/VLOOKUP(RIGHT(CONCATENATE("0000000000",$B149),10),'Lista de Precios_USD$_Euro€'!E:L,4,FALSE),"") ->  | I149: =IFERROR(VLOOKUP(RIGHT(CONCATENATE("0000000000",$B149),10),PRECIO_FACT!A:G,7,FALSE),"") -> 
C150: =IFERROR(CONCATENATE(VLOOKUP(RIGHT(CONCATENATE("0000000000",$B150),10),PRECIO_FACT!A:E,2,0)," ","(",$I150,"$)"),"") ->  | E150: =IFERROR(VLOOKUP(RIGHT(CONCATENATE("0000000000",$B150),10),PRECIO_FACT!$A:$G,6,FALSE),"") ->  | H150: =IFERROR($D150/VLOOKUP(RIGHT(CONCATENATE("0000000000",$B150),10),'Lista de Precios_USD$_Euro€'!E:L,4,FALSE),"") ->  | I150: =IFERROR(VLOOKUP(RIGHT(CONCATENATE("0000000000",$B150),10),PRECIO_FACT!A:G,7,FALSE),"") -> 
C151: =IFERROR(CONCATENATE(VLOOKUP(RIGHT(CONCATENATE("0000000000",$B151),10),PRECIO_FACT!A:E,2,0)," ","(",$I151,"$)"),"") ->  | E151: =IFERROR(VLOOKUP(RIGHT(CONCATENATE("0000000000",$B151),10),PRECIO_FACT!$A:$G,6,FALSE),"") ->  | H151: =IFERROR($D151/VLOOKUP(RIGHT(CONCATENATE("0000000000",$B151),10),'Lista de Precios_USD$_Euro€'!E:L,4,FALSE),"") ->  | I151: =IFERROR(VLOOKUP(RIGHT(CONCATENATE("0000000000",$B151),10),PRECIO_FACT!A:G,7,FALSE),"") -> 
C152: =IFERROR(CONCATENATE(VLOOKUP(RIGHT(CONCATENATE("0000000000",$B152),10),PRECIO_FACT!A:E,2,0)," ","(",$I152,"$)"),"") ->  | E152: =IFERROR(VLOOKUP(RIGHT(CONCATENATE("0000000000",$B152),10),PRECIO_FACT!$A:$G,6,FALSE),"") ->  | H152: =IFERROR($D152/VLOOKUP(RIGHT(CONCATENATE("0000000000",$B152),10),'Lista de Precios_USD$_Euro€'!E:L,4,FALSE),"") ->  | I152: =IFERROR(VLOOKUP(RIGHT(CONCATENATE("0000000000",$B152),10),PRECIO_FACT!A:G,7,FALSE),"") -> 
C153: =IFERROR(CONCATENATE(VLOOKUP(RIGHT(CONCATENATE("0000000000",$B153),10),PRECIO_FACT!A:E,2,0)," ","(",$I153,"$)"),"") ->  | E153: =IFERROR(VLOOKUP(RIGHT(CONCATENATE("0000000000",$B153),10),PRECIO_FACT!$A:$G,6,FALSE),"") ->  | H153: =IFERROR($D153/VLOOKUP(RIGHT(CONCATENATE("0000000000",$B153),10),'Lista de Precios_USD$_Euro€'!E:L,4,FALSE),"") ->  | I153: =IFERROR(VLOOKUP(RIGHT(CONCATENATE("0000000000",$B153),10),PRECIO_FACT!A:G,7,FALSE),"") -> 
C154: =IFERROR(CONCATENATE(VLOOKUP(RIGHT(CONCATENATE("0000000000",$B154),10),PRECIO_FACT!A:E,2,0)," ","(",$I154,"$)"),"") ->  | E154: =IFERROR(VLOOKUP(RIGHT(CONCATENATE("0000000000",$B154),10),PRECIO_FACT!$A:$G,6,FALSE),"") ->  | H154: =IFERROR($D154/VLOOKUP(RIGHT(CONCATENATE("0000000000",$B154),10),'Lista de Precios_USD$_Euro€'!E:L,4,FALSE),"") ->  | I154: =IFERROR(VLOOKUP(RIGHT(CONCATENATE("0000000000",$B154),10),PRECIO_FACT!A:G,7,FALSE),"") -> 
B155: TOTAL CAJAS | D155: =IFERROR(SUM(H148:H154),"") -> 0 | G155: =IFERROR(D155*#REF!,"") ->  | H155: =IFERROR($D155/VLOOKUP(RIGHT(CONCATENATE("0000000000",$B155),10),'Lista de Precios_USD$_Euro€'!$F:$I,4,FALSE),"") ->  | I155: =IFERROR(VLOOKUP(RIGHT(CONCATENATE("0000000000",$B155),10),PRECIO_FACT!A:G,7,FALSE),"") -> 
F156: =SUM(F148:F155) -> 0 | G156: =SUM(G148:G155) -> 0
B157: =IFERROR(VLOOKUP($B145,CLIENTE!A:AW,49,0),"") -> 
B159: PEDIDOS DE CLIENTES REGULARES ON Y OFF TRADE
B161: CODIGO | C161: VENDEDOR | E161: FECHA | F161: N° PEDIDO
C162: =IFERROR(VLOOKUP(B162,CLIENTE!$A:$AW,2,0),"") ->  | F162: =IF(J162="","",CONCATENATE(LEFT(C162,3),VLOOKUP(DAY(E162),$M$9:$N$43,2),VLOOKUP(MONTH(E162),$K$9:$L$20,2),RIGHT(YEAR(E162),2),J162)) ->  | J162: =IFERROR(IF(AND($B162,$E162)="","","10"),"") -> 
B163: =IFERROR(VLOOKUP(B162,CLIENTE!$A:$AW,3,0),"") -> 
B164: CODIGO PRODUCTO | C164: DESCRIPCION | D164: UNIDAD | E164: PRECIO | F164: TOTAL | G164: TOTAL USD$ / Euro€
C165: =IFERROR(CONCATENATE(VLOOKUP(RIGHT(CONCATENATE("0000000000",$B165),10),PRECIO_FACT!A:E,2,0)," ","(",$I165,"$)"),"") ->  | E165: =IFERROR(VLOOKUP(RIGHT(CONCATENATE("0000000000",$B165),10),PRECIO_FACT!$A:$G,6,FALSE),"") ->  | F165: =IFERROR(D165*E165,"") ->  | G165: =IFERROR(D165*I165,"") ->  | H165: =IFERROR($D165/VLOOKUP(RIGHT(CONCATENATE("0000000000",$B165),10),'Lista de Precios_USD$_Euro€'!E:L,4,FALSE),"") ->  | I165: =IFERROR(VLOOKUP(RIGHT(CONCATENATE("0000000000",$B165),10),PRECIO_FACT!A:G,7,FALSE),"") -> 
C166: =IFERROR(CONCATENATE(VLOOKUP(RIGHT(CONCATENATE("0000000000",$B166),10),PRECIO_FACT!A:E,2,0)," ","(",$I166,"$)"),"") ->  | E166: =IFERROR(VLOOKUP(RIGHT(CONCATENATE("0000000000",$B166),10),PRECIO_FACT!$A:$G,6,FALSE),"") ->  | F166: =IFERROR(D166*E166,"") ->  | G166: =IFERROR(D166*I166,"") ->  | H166: =IFERROR($D166/VLOOKUP(RIGHT(CONCATENATE("0000000000",$B166),10),'Lista de Precios_USD$_Euro€'!E:L,4,FALSE),"") ->  | I166: =IFERROR(VLOOKUP(RIGHT(CONCATENATE("0000000000",$B166),10),PRECIO_FACT!A:G,7,FALSE),"") -> 
C167: =IFERROR(CONCATENATE(VLOOKUP(RIGHT(CONCATENATE("0000000000",$B167),10),PRECIO_FACT!A:E,2,0)," ","(",$I167,"$)"),"") ->  | E167: =IFERROR(VLOOKUP(RIGHT(CONCATENATE("0000000000",$B167),10),PRECIO_FACT!$A:$G,6,FALSE),"") ->  | H167: =IFERROR($D167/VLOOKUP(RIGHT(CONCATENATE("0000000000",$B167),10),'Lista de Precios_USD$_Euro€'!E:L,4,FALSE),"") ->  | I167: =IFERROR(VLOOKUP(RIGHT(CONCATENATE("0000000000",$B167),10),PRECIO_FACT!A:G,7,FALSE),"") -> 
C168: =IFERROR(CONCATENATE(VLOOKUP(RIGHT(CONCATENATE("0000000000",$B168),10),PRECIO_FACT!A:E,2,0)," ","(",$I168,"$)"),"") ->  | E168: =IFERROR(VLOOKUP(RIGHT(CONCATENATE("0000000000",$B168),10),PRECIO_FACT!$A:$G,6,FALSE),"") ->  | H168: =IFERROR($D168/VLOOKUP(RIGHT(CONCATENATE("0000000000",$B168),10),'Lista de Precios_USD$_Euro€'!E:L,4,FALSE),"") ->  | I168: =IFERROR(VLOOKUP(RIGHT(CONCATENATE("0000000000",$B168),10),PRECIO_FACT!A:G,7,FALSE),"") -> 
C169: =IFERROR(CONCATENATE(VLOOKUP(RIGHT(CONCATENATE("0000000000",$B169),10),PRECIO_FACT!A:E,2,0)," ","(",$I169,"$)"),"") ->  | E169: =IFERROR(VLOOKUP(RIGHT(CONCATENATE("0000000000",$B169),10),PRECIO_FACT!$A:$G,6,FALSE),"") ->  | H169: =IFERROR($D169/VLOOKUP(RIGHT(CONCATENATE("0000000000",$B169),10),'Lista de Precios_USD$_Euro€'!E:L,4,FALSE),"") ->  | I169: =IFERROR(VLOOKUP(RIGHT(CONCATENATE("0000000000",$B169),10),PRECIO_FACT!A:G,7,FALSE),"") -> 
C170: =IFERROR(CONCATENATE(VLOOKUP(RIGHT(CONCATENATE("0000000000",$B170),10),PRECIO_FACT!A:E,2,0)," ","(",$I170,"$)"),"") ->  | E170: =IFERROR(VLOOKUP(RIGHT(CONCATENATE("0000000000",$B170),10),PRECIO_FACT!$A:$G,6,FALSE),"") ->  | H170: =IFERROR($D170/VLOOKUP(RIGHT(CONCATENATE("0000000000",$B170),10),'Lista de Precios_USD$_Euro€'!E:L,4,FALSE),"") ->  | I170: =IFERROR(VLOOKUP(RIGHT(CONCATENATE("0000000000",$B170),10),PRECIO_FACT!A:G,7,FALSE),"") -> 
C171: =IFERROR(CONCATENATE(VLOOKUP(RIGHT(CONCATENATE("0000000000",$B171),10),PRECIO_FACT!A:E,2,0)," ","(",$I171,"$)"),"") ->  | E171: =IFERROR(VLOOKUP(RIGHT(CONCATENATE("0000000000",$B171),10),PRECIO_FACT!$A:$G,6,FALSE),"") ->  | H171: =IFERROR($D171/VLOOKUP(RIGHT(CONCATENATE("0000000000",$B171),10),'Lista de Precios_USD$_Euro€'!E:L,4,FALSE),"") ->  | I171: =IFERROR(VLOOKUP(RIGHT(CONCATENATE("0000000000",$B171),10),PRECIO_FACT!A:G,7,FALSE),"") -> 
B172: TOTAL CAJAS | D172: =IFERROR(SUM(H165:H171),"") -> 0 | G172: =IFERROR(D172*#REF!,"") ->  | H172: =IFERROR($D172/VLOOKUP(RIGHT(CONCATENATE("0000000000",$B172),10),'Lista de Precios_USD$_Euro€'!E:L,4,FALSE),"") ->  | I172: =IFERROR(VLOOKUP(RIGHT(CONCATENATE("0000000000",$B172),10),PRECIO_FACT!A:G,7,FALSE),"") -> 
F173: =SUM(F165:F172) -> 0 | G173: =SUM(G165:G172) -> 0 | H173: =IFERROR(VLOOKUP($B173,#REF!,6,0),"") -> 
B174: =IFERROR(VLOOKUP($B162,CLIENTE!A:AW,49,0),"") ->  | H174: =IFERROR(VLOOKUP($B174,#REF!,6,0),"") -> 
B176: PEDIDOS DE CLIENTES REGULARES ON Y OFF TRADE
B178: CODIGO | C178: VENDEDOR | D178: FECHA | F178: N° PEDIDO
C179: =IFERROR(VLOOKUP(B179,CLIENTE!$A:$AW,2,0),"") ->  | F179: =IF(J179="","",CONCATENATE(LEFT(C179,3),VLOOKUP(DAY(E179),$M$9:$N$43,2),VLOOKUP(MONTH(E179),$K$9:$L$20,2),RIGHT(YEAR(E179),2),J179)) ->  | J179: =IFERROR(IF(AND($B179,$E179)="","","11"),"") -> 
B180: =IFERROR(VLOOKUP(B179,CLIENTE!$A:$AW,3,0),"") -> 
B181: CODIGO PRODUCTO | C181: DESCRIPCION | D181: UNIDAD | E181: PRECIO | F181: TOTAL | G181: TOTAL USD$ / Euro€
C182: =IFERROR(CONCATENATE(VLOOKUP(RIGHT(CONCATENATE("0000000000",$B182),10),PRECIO_FACT!A:E,2,0)," ","(",$I182,"$)"),"") ->  | E182: =IFERROR(VLOOKUP(RIGHT(CONCATENATE("0000000000",$B182),10),PRECIO_FACT!$A:$G,6,FALSE),"") ->  | F182: =IFERROR(D182*E182,"") ->  | G182: =IFERROR(D182*I182,"") ->  | H182: =IFERROR($D182/VLOOKUP(RIGHT(CONCATENATE("0000000000",$B182),10),'Lista de Precios_USD$_Euro€'!E:L,4,FALSE),"") ->  | I182: =IFERROR(VLOOKUP(RIGHT(CONCATENATE("0000000000",$B182),10),PRECIO_FACT!A:G,7,FALSE),"") -> 
C183: =IFERROR(CONCATENATE(VLOOKUP(RIGHT(CONCATENATE("0000000000",$B183),10),PRECIO_FACT!A:E,2,0)," ","(",$I183,"$)"),"") ->  | E183: =IFERROR(VLOOKUP(RIGHT(CONCATENATE("0000000000",$B183),10),PRECIO_FACT!$A:$G,6,FALSE),"") ->  | F183: =IFERROR(D183*E183,"") ->  | H183: =IFERROR($D183/VLOOKUP(RIGHT(CONCATENATE("0000000000",$B183),10),'Lista de Precios_USD$_Euro€'!E:L,4,FALSE),"") ->  | I183: =IFERROR(VLOOKUP(RIGHT(CONCATENATE("0000000000",$B183),10),PRECIO_FACT!A:G,7,FALSE),"") -> 
C184: =IFERROR(CONCATENATE(VLOOKUP(RIGHT(CONCATENATE("0000000000",$B184),10),PRECIO_FACT!A:E,2,0)," ","(",$I184,"$)"),"") ->  | E184: =IFERROR(VLOOKUP(RIGHT(CONCATENATE("0000000000",$B184),10),PRECIO_FACT!$A:$G,6,FALSE),"") ->  | H184: =IFERROR($D184/VLOOKUP(RIGHT(CONCATENATE("0000000000",$B184),10),'Lista de Precios_USD$_Euro€'!E:L,4,FALSE),"") ->  | I184: =IFERROR(VLOOKUP(RIGHT(CONCATENATE("0000000000",$B184),10),PRECIO_FACT!A:G,7,FALSE),"") -> 
C185: =IFERROR(CONCATENATE(VLOOKUP(RIGHT(CONCATENATE("0000000000",$B185),10),PRECIO_FACT!A:E,2,0)," ","(",$I185,"$)"),"") ->  | E185: =IFERROR(VLOOKUP(RIGHT(CONCATENATE("0000000000",$B185),10),PRECIO_FACT!$A:$G,6,FALSE),"") ->  | H185: =IFERROR($D185/VLOOKUP(RIGHT(CONCATENATE("0000000000",$B185),10),'Lista de Precios_USD$_Euro€'!E:L,4,FALSE),"") ->  | I185: =IFERROR(VLOOKUP(RIGHT(CONCATENATE("0000000000",$B185),10),PRECIO_FACT!A:G,7,FALSE),"") -> 
C186: =IFERROR(CONCATENATE(VLOOKUP(RIGHT(CONCATENATE("0000000000",$B186),10),PRECIO_FACT!A:E,2,0)," ","(",$I186,"$)"),"") ->  | E186: =IFERROR(VLOOKUP(RIGHT(CONCATENATE("0000000000",$B186),10),PRECIO_FACT!$A:$G,6,FALSE),"") ->  | H186: =IFERROR($D186/VLOOKUP(RIGHT(CONCATENATE("0000000000",$B186),10),'Lista de Precios_USD$_Euro€'!E:L,4,FALSE),"") ->  | I186: =IFERROR(VLOOKUP(RIGHT(CONCATENATE("0000000000",$B186),10),PRECIO_FACT!A:G,7,FALSE),"") -> 
C187: =IFERROR(CONCATENATE(VLOOKUP(RIGHT(CONCATENATE("0000000000",$B187),10),PRECIO_FACT!A:E,2,0)," ","(",$I187,"$)"),"") ->  | E187: =IFERROR(VLOOKUP(RIGHT(CONCATENATE("0000000000",$B187),10),PRECIO_FACT!$A:$G,6,FALSE),"") ->  | H187: =IFERROR($D187/VLOOKUP(RIGHT(CONCATENATE("0000000000",$B187),10),'Lista de Precios_USD$_Euro€'!E:L,4,FALSE),"") ->  | I187: =IFERROR(VLOOKUP(RIGHT(CONCATENATE("0000000000",$B187),10),PRECIO_FACT!A:G,7,FALSE),"") -> 
C188: =IFERROR(CONCATENATE(VLOOKUP(RIGHT(CONCATENATE("0000000000",$B188),10),PRECIO_FACT!A:E,2,0)," ","(",$I188,"$)"),"") ->  | E188: =IFERROR(VLOOKUP(RIGHT(CONCATENATE("0000000000",$B188),10),PRECIO_FACT!$A:$G,6,FALSE),"") ->  | H188: =IFERROR($D188/VLOOKUP(RIGHT(CONCATENATE("0000000000",$B188),10),'Lista de Precios_USD$_Euro€'!E:L,4,FALSE),"") ->  | I188: =IFERROR(VLOOKUP(RIGHT(CONCATENATE("0000000000",$B188),10),PRECIO_FACT!A:G,7,FALSE),"") -> 
B189: TOTAL CAJAS | D189: =IFERROR(SUM(H182:H188),"") -> 0 | G189: =IFERROR(D189*#REF!,"") ->  | H189: =IFERROR($D189/VLOOKUP(RIGHT(CONCATENATE("0000000000",$B189),10),'Lista de Precios_USD$_Euro€'!E:L,4,FALSE),"") ->  | I189: =IFERROR(VLOOKUP(RIGHT(CONCATENATE("0000000000",$B189),10),PRECIO_FACT!A:G,7,FALSE),"") -> 
F190: =SUM(F182:F189) -> 0 | G190: =SUM(G182:G189) -> 0 | H190: =IFERROR(VLOOKUP($B190,#REF!,6,0),"") -> 
B191: =IFERROR(VLOOKUP($B179,CLIENTE!A:AW,49,0),"") ->  | H191: =IFERROR(VLOOKUP($B191,#REF!,6,0),"") -> 
B193: PEDIDOS DE CLIENTES REGULARES ON Y OFF TRADE
B195: CODIGO | C195: VENDEDOR | D195: FECHA | F195: N° PEDIDO
C196: =IFERROR(VLOOKUP(B196,CLIENTE!$A:$AW,2,0),"") ->  | F196: =IF(J196="","",CONCATENATE(LEFT(C196,3),VLOOKUP(DAY(E196),$M$9:$N$43,2),VLOOKUP(MONTH(E196),$K$9:$L$20,2),RIGHT(YEAR(E196),2),J196)) ->  | J196: =IFERROR(IF(AND($B196,$E196)="","","12"),"") -> 
B197: =IFERROR(VLOOKUP(B196,CLIENTE!$A:$AW,3,0),"") -> 
B198: CODIGO PRODUCTO | C198: DESCRIPCION | D198: UNIDAD | E198: PRECIO | F198: TOTAL | G198: TOTAL USD$ / Euro€
C199: =IFERROR(CONCATENATE(VLOOKUP(RIGHT(CONCATENATE("0000000000",$B199),10),PRECIO_FACT!A:E,2,0)," ","(",$I199,"$)"),"") ->  | E199: =IFERROR(VLOOKUP(RIGHT(CONCATENATE("0000000000",$B199),10),PRECIO_FACT!$A:$G,6,FALSE),"") ->  | F199: =IFERROR(D199*E199,"") ->  | G199: =IFERROR(D199*I199,"") ->  | H199: =IFERROR($D199/VLOOKUP(RIGHT(CONCATENATE("0000000000",$B199),10),'Lista de Precios_USD$_Euro€'!E:L,4,FALSE),"") ->  | I199: =IFERROR(VLOOKUP(RIGHT(CONCATENATE("0000000000",$B199),10),PRECIO_FACT!A:G,7,FALSE),"") -> 
C200: =IFERROR(CONCATENATE(VLOOKUP(RIGHT(CONCATENATE("0000000000",$B200),10),PRECIO_FACT!A:E,2,0)," ","(",$I200,"$)"),"") ->  | E200: =IFERROR(VLOOKUP(RIGHT(CONCATENATE("0000000000",$B200),10),PRECIO_FACT!$A:$G,6,FALSE),"") ->  | F200: =IFERROR(D200*E200,"") ->  | H200: =IFERROR($D200/VLOOKUP(RIGHT(CONCATENATE("0000000000",$B200),10),'Lista de Precios_USD$_Euro€'!E:L,4,FALSE),"") ->  | I200: =IFERROR(VLOOKUP(RIGHT(CONCATENATE("0000000000",$B200),10),PRECIO_FACT!A:G,7,FALSE),"") -> 
C201: =IFERROR(CONCATENATE(VLOOKUP(RIGHT(CONCATENATE("0000000000",$B201),10),PRECIO_FACT!A:E,2,0)," ","(",$I201,"$)"),"") ->  | E201: =IFERROR(VLOOKUP(RIGHT(CONCATENATE("0000000000",$B201),10),PRECIO_FACT!$A:$G,6,FALSE),"") ->  | H201: =IFERROR($D201/VLOOKUP(RIGHT(CONCATENATE("0000000000",$B201),10),'Lista de Precios_USD$_Euro€'!E:L,4,FALSE),"") ->  | I201: =IFERROR(VLOOKUP(RIGHT(CONCATENATE("0000000000",$B201),10),PRECIO_FACT!A:G,7,FALSE),"") -> 
C202: =IFERROR(CONCATENATE(VLOOKUP(RIGHT(CONCATENATE("0000000000",$B202),10),PRECIO_FACT!A:E,2,0)," ","(",$I202,"$)"),"") ->  | E202: =IFERROR(VLOOKUP(RIGHT(CONCATENATE("0000000000",$B202),10),PRECIO_FACT!$A:$G,6,FALSE),"") ->  | H202: =IFERROR($D202/VLOOKUP(RIGHT(CONCATENATE("0000000000",$B202),10),'Lista de Precios_USD$_Euro€'!E:L,4,FALSE),"") ->  | I202: =IFERROR(VLOOKUP(RIGHT(CONCATENATE("0000000000",$B202),10),PRECIO_FACT!A:G,7,FALSE),"") -> 
C203: =IFERROR(CONCATENATE(VLOOKUP(RIGHT(CONCATENATE("0000000000",$B203),10),PRECIO_FACT!A:E,2,0)," ","(",$I203,"$)"),"") ->  | E203: =IFERROR(VLOOKUP(RIGHT(CONCATENATE("0000000000",$B203),10),PRECIO_FACT!$A:$G,6,FALSE),"") ->  | H203: =IFERROR($D203/VLOOKUP(RIGHT(CONCATENATE("0000000000",$B203),10),'Lista de Precios_USD$_Euro€'!E:L,4,FALSE),"") ->  | I203: =IFERROR(VLOOKUP(RIGHT(CONCATENATE("0000000000",$B203),10),PRECIO_FACT!A:G,7,FALSE),"") -> 
C204: =IFERROR(CONCATENATE(VLOOKUP(RIGHT(CONCATENATE("0000000000",$B204),10),PRECIO_FACT!A:E,2,0)," ","(",$I204,"$)"),"") ->  | E204: =IFERROR(VLOOKUP(RIGHT(CONCATENATE("0000000000",$B204),10),PRECIO_FACT!$A:$G,6,FALSE),"") ->  | H204: =IFERROR($D204/VLOOKUP(RIGHT(CONCATENATE("0000000000",$B204),10),'Lista de Precios_USD$_Euro€'!E:L,4,FALSE),"") ->  | I204: =IFERROR(VLOOKUP(RIGHT(CONCATENATE("0000000000",$B204),10),PRECIO_FACT!A:G,7,FALSE),"") -> 
C205: =IFERROR(CONCATENATE(VLOOKUP(RIGHT(CONCATENATE("0000000000",$B205),10),PRECIO_FACT!A:E,2,0)," ","(",$I205,"$)"),"") ->  | E205: =IFERROR(VLOOKUP(RIGHT(CONCATENATE("0000000000",$B205),10),PRECIO_FACT!$A:$G,6,FALSE),"") ->  | H205: =IFERROR($D205/VLOOKUP(RIGHT(CONCATENATE("0000000000",$B205),10),'Lista de Precios_USD$_Euro€'!E:L,4,FALSE),"") ->  | I205: =IFERROR(VLOOKUP(RIGHT(CONCATENATE("0000000000",$B205),10),PRECIO_FACT!A:G,7,FALSE),"") -> 
B206: TOTAL CAJAS | D206: =IFERROR(SUM(H199:H205),"") -> 0 | G206: =IFERROR(D206*#REF!,"") ->  | H206: =IFERROR($D206/VLOOKUP(RIGHT(CONCATENATE("0000000000",$B206),10),'Lista de Precios_USD$_Euro€'!E:L,4,FALSE),"") ->  | I206: =IFERROR(VLOOKUP(RIGHT(CONCATENATE("0000000000",$B206),10),PRECIO_FACT!A:G,7,FALSE),"") -> 
F207: =SUM(F199:F206) -> 0 | G207: =SUM(G199:G206) -> 0 | H207: =IFERROR(VLOOKUP($B207,#REF!,6,0),"") -> 
B208: =IFERROR(VLOOKUP($B196,CLIENTE!A:AW,49,0),"") ->  | H208: =IFERROR(VLOOKUP($B208,#REF!,6,0),"") -> 
B210: PEDIDOS DE CLIENTES REGULARES ON Y OFF TRADE
B212: CODIGO | C212: VENDEDOR | D212: FECHA | F212: N° PEDIDO
C213: =IFERROR(VLOOKUP(B213,CLIENTE!$A:$AW,2,0),"") ->  | F213: =IF(J213="","",CONCATENATE(LEFT(C213,3),VLOOKUP(DAY(E213),$M$9:$N$43,2),VLOOKUP(MONTH(E213),$K$9:$L$20,2),RIGHT(YEAR(E213),2),J213)) ->  | J213: =IFERROR(IF(AND($B213,$E213)="","","13"),"") -> 
B214: =IFERROR(VLOOKUP(B213,CLIENTE!$A:$AW,3,0),"") -> 
B215: CODIGO PRODUCTO | C215: DESCRIPCION | D215: UNIDAD | E215: PRECIO | F215: TOTAL | G215: TOTAL USD$ / Euro€
C216: =IFERROR(CONCATENATE(VLOOKUP(RIGHT(CONCATENATE("0000000000",$B216),10),PRECIO_FACT!A:E,2,0)," ","(",$I216,"$)"),"") ->  | E216: =IFERROR(VLOOKUP(RIGHT(CONCATENATE("0000000000",$B216),10),PRECIO_FACT!$A:$G,6,FALSE),"") ->  | F216: =IFERROR(D216*E216,"") ->  | G216: =IFERROR(D216*I216,"") ->  | H216: =IFERROR($D216/VLOOKUP(RIGHT(CONCATENATE("0000000000",$B216),10),'Lista de Precios_USD$_Euro€'!E:L,4,FALSE),"") ->  | I216: =IFERROR(VLOOKUP(RIGHT(CONCATENATE("0000000000",$B216),10),PRECIO_FACT!A:G,7,FALSE),"") -> 
C217: =IFERROR(CONCATENATE(VLOOKUP(RIGHT(CONCATENATE("0000000000",$B217),10),PRECIO_FACT!A:E,2,0)," ","(",$I217,"$)"),"") ->  | E217: =IFERROR(VLOOKUP(RIGHT(CONCATENATE("0000000000",$B217),10),PRECIO_FACT!$A:$G,6,FALSE),"") ->  | F217: =IFERROR(D217*E217,"") ->  | H217: =IFERROR($D217/VLOOKUP(RIGHT(CONCATENATE("0000000000",$B217),10),'Lista de Precios_USD$_Euro€'!E:L,4,FALSE),"") ->  | I217: =IFERROR(VLOOKUP(RIGHT(CONCATENATE("0000000000",$B217),10),PRECIO_FACT!A:G,7,FALSE),"") -> 
C218: =IFERROR(CONCATENATE(VLOOKUP(RIGHT(CONCATENATE("0000000000",$B218),10),PRECIO_FACT!A:E,2,0)," ","(",$I218,"$)"),"") ->  | E218: =IFERROR(VLOOKUP(RIGHT(CONCATENATE("0000000000",$B218),10),PRECIO_FACT!$A:$G,6,FALSE),"") ->  | H218: =IFERROR($D218/VLOOKUP(RIGHT(CONCATENATE("0000000000",$B218),10),'Lista de Precios_USD$_Euro€'!E:L,4,FALSE),"") ->  | I218: =IFERROR(VLOOKUP(RIGHT(CONCATENATE("0000000000",$B218),10),PRECIO_FACT!A:G,7,FALSE),"") -> 
C219: =IFERROR(CONCATENATE(VLOOKUP(RIGHT(CONCATENATE("0000000000",$B219),10),PRECIO_FACT!A:E,2,0)," ","(",$I219,"$)"),"") ->  | E219: =IFERROR(VLOOKUP(RIGHT(CONCATENATE("0000000000",$B219),10),PRECIO_FACT!$A:$G,6,FALSE),"") ->  | H219: =IFERROR($D219/VLOOKUP(RIGHT(CONCATENATE("0000000000",$B219),10),'Lista de Precios_USD$_Euro€'!E:L,4,FALSE),"") ->  | I219: =IFERROR(VLOOKUP(RIGHT(CONCATENATE("0000000000",$B219),10),PRECIO_FACT!A:G,7,FALSE),"") -> 
C220: =IFERROR(CONCATENATE(VLOOKUP(RIGHT(CONCATENATE("0000000000",$B220),10),PRECIO_FACT!A:E,2,0)," ","(",$I220,"$)"),"") ->  | E220: =IFERROR(VLOOKUP(RIGHT(CONCATENATE("0000000000",$B220),10),PRECIO_FACT!$A:$G,6,FALSE),"") ->  | H220: =IFERROR($D220/VLOOKUP(RIGHT(CONCATENATE("0000000000",$B220),10),'Lista de Precios_USD$_Euro€'!E:L,4,FALSE),"") ->  | I220: =IFERROR(VLOOKUP(RIGHT(CONCATENATE("0000000000",$B220),10),PRECIO_FACT!A:G,7,FALSE),"") -> 
C221: =IFERROR(CONCATENATE(VLOOKUP(RIGHT(CONCATENATE("0000000000",$B221),10),PRECIO_FACT!A:E,2,0)," ","(",$I221,"$)"),"") ->  | E221: =IFERROR(VLOOKUP(RIGHT(CONCATENATE("0000000000",$B221),10),PRECIO_FACT!$A:$G,6,FALSE),"") ->  | H221: =IFERROR($D221/VLOOKUP(RIGHT(CONCATENATE("0000000000",$B221),10),'Lista de Precios_USD$_Euro€'!E:L,4,FALSE),"") ->  | I221: =IFERROR(VLOOKUP(RIGHT(CONCATENATE("0000000000",$B221),10),PRECIO_FACT!A:G,7,FALSE),"") -> 
C222: =IFERROR(CONCATENATE(VLOOKUP(RIGHT(CONCATENATE("0000000000",$B222),10),PRECIO_FACT!A:E,2,0)," ","(",$I222,"$)"),"") ->  | E222: =IFERROR(VLOOKUP(RIGHT(CONCATENATE("0000000000",$B222),10),PRECIO_FACT!$A:$G,6,FALSE),"") ->  | H222: =IFERROR($D222/VLOOKUP(RIGHT(CONCATENATE("0000000000",$B222),10),'Lista de Precios_USD$_Euro€'!E:L,4,FALSE),"") ->  | I222: =IFERROR(VLOOKUP(RIGHT(CONCATENATE("0000000000",$B222),10),PRECIO_FACT!A:G,7,FALSE),"") -> 
B223: TOTAL CAJAS | D223: =IFERROR(SUM(H216:H222),"") -> 0 | G223: =IFERROR(D223*#REF!,"") ->  | H223: =IFERROR($D223/VLOOKUP(RIGHT(CONCATENATE("0000000000",$B223),10),'Lista de Precios_USD$_Euro€'!E:L,4,FALSE),"") ->  | I223: =IFERROR(VLOOKUP(RIGHT(CONCATENATE("0000000000",$B223),10),PRECIO_FACT!A:G,7,FALSE),"") -> 
F224: =SUM(F216:F223) -> 0 | G224: =SUM(G216:G223) -> 0 | H224: =IFERROR(VLOOKUP($B224,#REF!,6,0),"") -> 
B225: =IFERROR(VLOOKUP($B213,CLIENTE!A:AW,49,0),"") ->  | H225: =IFERROR(VLOOKUP($B225,#REF!,6,0),"") -> 
... 30 more rows

Sheet Lista de Precios_USD$_Euro€ (hidden)
C2: 5 | D2: 6 | K2: inclusión de promoción ENJOY | O2: 3
O4: Vigencia:
O5: 2023-12-27
O6: Emisión:
A7: Lista de Precios Única | O7: 2023-12-27
A9: USD$ / Euro€ | E9: *CAMBIO DINAZ e INCLUSION DE SKU a partir del 27/ DIC/2023. Correo del 27/DIC/2023.
E10: *CAMBIO DINAZ e INCLUSION DE SKU a partir del 15/ DIC/2023. Correo del 15/DIC/2023.
E11: *CAMBIO DINAZ e INCLUSION DE SKU a partir del 08/ DIC/2023. Correo del 08/DIC/2023. | I11: USD $ | N11: Precio USD$ / Euro€
A12: PORTAFOLIO | B12: Nota | C12: Código de Barras | E12: Cód | F12: PRODUCTO | G12: Cap. | H12: UxC | I12: Precio Base | K12: Impuestos | N12: Precio de Venta
C13: Botella | D13: Caja | I13: Caja | J13: Unid. | K13: PVP (Caja) | L13: IVA (Caja) | M13: Total Imp | N13: Caja | O13: Unid.
A14: PERNOD RICARD VENEZUELA
C15: WHISKY ESCOCES
C16: SUB STANDARD
C17: 980432402655 | D17: 5000299202654 | E17: 0000000381 | F17: WHISKY SCOTCH 100 PIPERS 40º | G17: 0.7 | H17: 6 | I17: 51.35520685 | J17: 8.559201141 | K17: 10 | L17: 8.216833096 | M17: 18.2168331 | N17: 69.57203994 | O17: 11.59533999
C19: 980432402655 | E19: 0000012976 | F19: W.CONTIGO 100 PIPERS 40° 0.700 LTS | G19: 0.7 | H19: 6 | I19: 50.99127076 | J19: 8.498545127 | K19: 8.142436937 | L19: 8 | M19: 16.14243694 | N19: 67.1337077 | O19: 11.18895128
E21: 0000013083 | F21: W.PROM 100 PIPERS ACT PERNOD 40° 0.700LTS | G21: 0.7 | H21: 6 | I21: 50.99127076 | J21: 8.498545127 | K21: 8.142436937 | L21: 8 | M21: 16.14243694 | N21: 67.1337077 | O21: 11.18895128
C22: 8 AÑOS
C23: 80432402795 | D23: 10080432402792 | E23: 0000000893 | F23: SOMETHING SPECIAL 40° | G23: 0.75 | H23: 12 | I23: 126.6571019 | J23: 10.55475849 | K23: 36.1 | L23: 20.2651363 | M23: 56.3651363 | N23: 183.0222382 | O23: 15.25185318
E24: 0000000895 | F24: WHISKY BALLANTINES FINEST 40° | G24: 0.75 | H24: 12 | I24: 134.8472222 | J24: 11.23726852 | K24: 45.02 | L24: 21.57555556 | M24: 66.59555556 | N24: 201.4427778 | O24: 16.78689815
C26: 80432402795 | D26: 10080432402792 | E26: 0000013024 | F26: WHISKY FOREVER SOMETHING S.40° 0.750LTS | G26: 0.75 | H26: 12 | I26: 123.7470972 | J26: 10.3122581 | K26: 35.8 | L26: 19.79953556 | M26: 55.59953556 | N26: 179.3466328 | O26: 14.94555273
C27: 12 AÑOS
C28: 80432400395 | D28: 400832400393 | E28: 0000000371 | F28: CHIVAS REGAL 12 AÑOS 40° | G28: 0.75 | H28: 12 | I28: 207.9352851 | J28: 17.32794042 | K28: 76.65 | L28: 33.26964561 | M28: 109.9196456 | N28: 317.8549307 | O28: 26.48791089
E29: 0000000828 | F29: WHISKY BALLANTINES 12 AÑOS 40° 0.700LTS | G29: 0.75 | H29: 12 | I29: 203.41 | J29: 16.95083333 | K29: 86.2 | L29: 32.55 | M29: 118.75 | N29: 322.16 | O29: 26.84666667
C30: 13 AÑOS
E31: 0000012874 | F31: WHISKY CHIVAS REGAL 40° 13YO 0.700LTS. | G31: 0.75 | H31: 6 | I31: 136.84 | J31: 22.80666667 | K31: 53.4 | L31: 21.89 | M31: 75.29 | N31: 212.13 | O31: 35.355
C33: 80432400395 | D33: 400832400393 | E33: 0000012973 | F33: W.CELEBRA PROM CHIVAS REGAL 40° 0.750LTS | G33: 0.75 | H33: 12 | I33: 216.1581818 | J33: 18.01318182 | K33: 67.17922433 | L33: 34.58530909 | M33: 101.7645334 | N33: 317.9227152 | O33: 26.4935596
C35: 80432400395 | D35: 400832400393 | E35: 0000013029 | F35: W.CHIVAS REGAL 12AÑO CELEBRA PAPA 40° 0.750LTS | G35: 0.75 | H35: 12 | I35: 216.6 | J35: 18.01 | K35: 67.18 | L35: 34.59 | M35: 101.76 | N35: 317.92 | O35: 26.49
C37: 80432400395 | D37: 400832400393 | E37: 0000013076 | F37: W.PROM CHIVAS R.12AÑOS ACT PERNOD 40° 0.750LTS | G37: 0.75 | H37: 12 | I37: 216.6 | J37: 18.01 | K37: 67.18 | L37: 34.59 | M37: 101.76 | N37: 317.92 | O37: 26.49
E39: 0000013161 | F39: WHISKY CHIVAS REGAL 12AÑOS ENJOY 40°0.750LTS | G39: 0.75 | H39: 12 | I39: 216.6 | J39: 18.01 | K39: 67.18 | L39: 34.59 | M39: 101.76 | N39: 317.92 | O39: 26.49
C40: 18 AÑOS
C41: 5000299225103 | D41: 5000299225103 | E41: 0000001770 | F41: CHIVAS REGAL 18 AÑOS 40° | G41: 0.7 | H41: 6 | I41: 264.12 | J41: 44.02 | K41: 70.05 | L41: 42.26 | M41: 112.31 | N41: 376.43 | O41: 62.73833333
E43: 0000013084 | F43: W.PROM CHIVAS R,18AÑOS ACT PERNOD 40° 0.700LTS | G43: 0.7 | H43: 6 | I43: 290.2949583 | J43: =+I43/H43 -> 48.38249304 | K43: 62.98530668 | L43: =+I43*16% -> 46.44719332 | M43: =+K43+L43 -> 109.4325 | N43: =+M43+I43 -> 399.7274583 | O43: =+N43/H43 -> 66.62124304
C44: 21 AÑOS
C45: 5000299211236 | D45: 5000299211236 | E45: 0000001565 | F45: ROYAL SALUTE 21 AÑOS 40° | G45: 0.7 | H45: 6 | I45: 1127.8 | J45: 187.9666667 | K45: 164.39 | L45: 180.45 | M45: 344.84 | N45: 1472.64 | O45: 245.44
E47: 0000013079 | F47: W.PROM ROYAL SALUTE ACT PERNOD 40° 0.700LTS | G47: 0.7 | H47: 6 | I47: 909.9911536 | J47: 151.6651923 | K47: 164.4502618 | L47: 145.5985846 | M47: 310.0488464 | N47: 1220.04 | O47: 203.34
C48: VODKA IMPORTADA
C49: 7312040017683 | D49: 27312040017687 | E49: 0000000878 | F49: VODKA ABSOLUT 40° | G49: 0.7 | H49: 12 | I49: 154.9066667 | J49: 12.90888889 | K49: 24.79 | L49: 24.78506667 | M49: 49.57506667 | N49: 204.4817333 | O49: 17.04014444
E51: 0000013080 | F51: V.PROM VODKA ABSOLUT ACT PERNOD 40° 0.700LTS | G51: 0.7 | H51: 12 | I51: 128.8965517 | J51: 10.74137931 | K51: 32.64 | L51: 20.62344828 | M51: 53.26344828 | N51: 182.16 | O51: 15.18
C52: GINEBRA IMPORTADA
C53: 5000329002193 | D53: 5000329001202 | E53: 0000000572 | F53: BEEFEATER DRY GIN 40° | G53: 0.7 | H53: 12 | I53: 273.5673448 | J53: 22.79727873 | K53: 17.44 | L53: 43.77077516 | M53: 61.21077516 | N53: 334.7781199 | O53: 27.89817666
E55: 0000013081 | F55: G.PROM BEEFEATER ACT PERNOD 40° 0.700LTS | G55: 0.7 | H55: 12 | I55: 272.33 | J55: =+I55/H55 -> 22.69416667 | K55: 17.44 | L55: 43.57 | M55: =+L55+K55 -> 61.01 | N55: =+M55+I55 -> 333.34 | O55: =+N55/H55 -> 27.77833333
C56: LICOR DE CAFÉ
C57: 7610594251455 | D57: 17610594252213 | E57: 0000012403 | F57: LICOR DE CAFÉ KAHLUA 20° | G57: 0.75 | H57: 12 | I57: 156.6 | J57: 13.05 | K57: 9.06 | L57: 25.06 | M57: 34.12 | N57: 190.72 | O57: 15.89333333
A59: CORP. ALIVARI | C59: WHISKY ESCOCES
C60: 8 AÑOS
C61: 5010314750008 | D61: 5010314759094 | E61: 0000009260 | F61: WHISKY SCOTCH THE FAMOUS GROUSE 8 AÑOS 40º | G61: 0.75 | H61: 12 | I61: 101.3906897 | J61: 8.449224138 | K61: 15.9468 | L61: 16.22251034 | M61: 32.16931034 | N61: 133.56 | O61: 11.13
C62: 5010314101015 | D62: 5010314101091 | E62: 0000012593 | F62: WHISKY SCOTCH FAMOUS GROUSE 8 AÑOS 40º | G62: 1 | H62: 12 | I62: 152.8851724 | J62: 12.74043103 | K62: 18.9732 | L62: 24.46162759 | M62: 43.43482759 | N62: 196.32 | O62: 16.36
C63: 5010327926490 | D63: 5010327926506 | E63: 0000012521 | F63: WHISKY SCOTH SIR ALBERT 40° | G63: 0.7 | H63: 12 | I63: 77.01206897 | J63: 6.417672414 | K63: 1.746 | L63: 12.32193103 | M63: 14.06793103 | N63: 91.08 | O63: 7.59
C64: 12 AÑOS
C65: 5010314017408 | D65: 5010314017491 | E65: 0000012518 | F65: WHISKY SCOTCH THE MACALLAN SHERRY 12AÑOS 40° | G65: 0.7 | H65: 12 | I65: 997.7865517 | J65: 83.14887931 | K65: 1.0476 | L65: 159.6458483 | M65: 160.6934483 | N65: 1158.48 | O65: 96.54
C66: 5010314048907 | D66: 5010314040796 | E66: 0000012519 | F66: WHISKY SCOTCH THE MACALLAN TRIPLE CASK 12AÑOS 40° | G66: 0.7 | H66: 12 | I66: 867.2524138 | J66: 72.27103448 | K66: 28.8672 | L66: 138.7603862 | M66: 167.6275862 | N66: 1034.88 | O66: 86.24
C67: 5010314302863 | D67: 5010314203009 | E67: 0000012520 | F67: WHISKY SCOTCH THE MACALLAN DOUBLE CASK 12AÑOS 40° | G67: 0.7 | H67: 12 | I67: 968.4641379 | J67: 80.70534483 | K67: 10.9416 | L67: 154.9542621 | M67: 165.8958621 | N67: 1134.36 | O67: 94.53
C68: 5010314309978 | D68: 5010314209377 | E68: 0000012517 | F68: WHISKY SCOTCH THE MACALLAN CLASSIC CUT 55° | G68: 0.7 | H68: 12 | I68: 1481.080345 | J68: 123.4233621 | K68: 15.9468 | L68: 236.9728552 | M68: 252.9196552 | N68: 1734 | O68: 144.5
C69: 15 AÑOS
C70: 5010314308469 | D70: 5010314207700 | E70: 0000012516 | F70: WHISKY SCOTH THE MACALLAN 15AÑOS DOUBLE CASK 43° | G70: 0.7 | H70: 6 | I70: 823.1606897 | J70: 137.1934483 | K70: 14.4336 | L70: 131.7057103 | M70: 146.1393103 | N70: 969.3 | O70: 161.55
C71: 18 AÑOS
C72: 5010314309862 | D72: 5010314209254 | E72: 0000012515 | F72: WHISKY SCOTCH THE MACALLAN 18AÑOS DOUBLE CASK 43° | G72: 0.7 | H72: 6 | I72: 2234.126379 | J72: 372.3543966 | K72: 7.9734 | L72: 357.4602207 | M72: 365.4336207 | N72: 2599.56 | O72: 433.26
C73: LICOR DE CREMA
C74: 6001495062508 | D74: 6001495062515 | E74: 0000002098 | F74: LICOR DE CREMA DE FRUTAS AMARULA 17º | G74: 0.75 | H74: 12 | I74: 211.2662069 | J74: 17.60551724 | K74: 0.9312 | L74: 33.8025931 | M74: 34.7337931 | N74: 246 | O74: 20.5
C75: 6001108093776 | D75: 16001108 073157 | E75: 0000012523 | F75: LICOR DE CREMA AMARULA VAINILLA 15.5° | G75: 0.75 | H75: 12 | I75: 211.2662069 | J75: 17.60551724 | K75: 0.9312 | L75: 33.8025931 | M75: 34.7337931 | N75: 246 | O75: 20.5
C76: 6001108103956 | D76: 16001108082357 | E76: 0000012650 | F76: LICOR DE CREMA AMARULA ETHIOPIAN COFEE 15.5° | G76: 0.75 | H76: 12 | I76: 211.2662069 | J76: 17.60551724 | K76: 0.9312 | L76: 33.8025931 | M76: 34.7337931 | N76: 246 | O76: 20.5
C77: LICOR DULCE
E78: 0000000114 | F78: COINTREAU LICOR DE NARANJA 40° | G78: 0.75 | H78: 12 | I78: 252.08 | J78: =+I78/H78 -> 21.00666667 | K78: 2.76 | L78: 40.3328 | M78: =+L78+K78 -> 43.0928 | N78: =+M78+I78 -> 295.1728 | O78: =+N78/H78 -> 24.59773333
C79: BRANDY
C80: 3161420000203 | D80: 316142002153 | E80: 0000012828 | F80: BRANDY ST-RÉMY VSOP 40° | G80: 0.75 | H80: 12 | I80: 203.92 | J80: =+I80/H80 -> 16.99333333 | K80: 2.76 | L80: 32.6272 | M80: =+L80+K80 -> 35.3872 | N80: =+M80+I80 -> 239.3072 | O80: =+N80/H80 -> 19.94226667
C81: VINO EEUU
C82: 85000001882 | D82: 10085000001889 | E82: 0000012584 | F82: VINO TTO CARLO ROSSI CALIFORNIA RED 12° | G82: 0.75 | H82: 12 | I82: 80.50137931 | J82: 6.708448276 | K82: 0.6984 | L82: 12.88022069 | M82: 13.57862069 | N82: 94.08 | O82: 7.84
C83: 82100179039 | D83: 10082100179036 | E83: 0000012585 | F83: VINO ARBOR MIST STRAWBERRY WHITE ZINFANDEL 6° | G83: 0.75 | H83: 12 | I83: 82.88068966 | J83: 6.906724138 | K83: 0.6984 | L83: 13.26091034 | M83: 13.95931034 | N83: 96.84 | O83: 8.07
C84: 82100179237 | D84: 10082100179234 | E84: 0000012586 | F84: VINO ARBOR MIST BLACKBERRY MERLOT 6° | G84: 0.75 | H84: 12 | I84: 82.88068966 | J84: 6.906724138 | K84: 0.6984 | L84: 13.26091034 | M84: 13.95931034 | N84: 96.84 | O84: 8.07
C85: 82100738755 | D85: 10082100738752 | E85: 0000012588 | F85: VINO TTO ARBOR MIST MOSCATO RASPBERRY 6° | G85: 0.75 | H85: 12 | I85: 82.88068966 | J85: 6.906724138 | K85: 0.6984 | L85: 13.26091034 | M85: 13.95931034 | N85: 96.84 | O85: 8.07
C86: 85000007495 | D86: 30085000007496 | E86: 0000012587 | F86: VINO ESPUMOSO ANDRE ROSE 10.5 | G86: 0.75 | H86: 12 | I86: 128.0875862 | J86: 10.67396552 | K86: 0.6984 | L86: 20.49401379 | M86: 21.19241379 | N86: 149.28 | O86: 12.44
E87: 0000012661 | F87: VINO ESPUMANTE ANDRE BRUT 10.5° 0.750LTS | G87: 0.75 | H87: 12 | I87: 134 | J87: =+I87/H87 -> 11.16666667 | K87: 0.72 | L87: 21.44 | M87: =+L87+K87 -> 22.16 | N87: =+M87+I87 -> 156.16 | O87: =+N87/H87 -> 13.01333333
E88: 0000012972 | F88: ARBOR MIST PEACH CHARDONNAY 6° | G88: 0.75 | H88: 12 | I88: 87.44 | J88: =+I88/H88 -> 7.286666667 | K88: 2.76 | L88: 13.9904 | M88: =+L88+K88 -> 16.7504 | N88: =+M88+I88 -> 104.1904 | O88: =+N88/H88 -> 8.682533333
C89: VINO ALEMAN
C90: 85976033931 | D90: 85976033986 | E90: 0000012583 | F90: VINO TTO KOSCHER MANISCHEWITZ 11° | G90: 0.75 | H90: 12 | I90: 82.88068966 | J90: 6.906724138 | K90: 0.6984 | L90: 13.26091034 | M90: 13.95931034 | N90: 96.84 | O90: 8.07
A91: Cont. CORP. ALIVARI | C91: SANGRIA
C92: 85000025031 | D92: 10085000025038 | E92: 0000012589 | F92: SANGRIA RSD CARLO ROSSI PINK SWEET 8° | G92: 0.75 | H92: 12 | I92: 77.08758621 | J92: 6.423965517 | K92: 0.6984 | L92: 12.33401379 | M92: 13.03241379 | N92: 90.12 | O92: 7.51
C93: BEBIDA GASEOSAS
C94: 849806001206 | D94: 20849806001200 | E94: 0000012526 | F94: BEBIDA GASEOSA FOUR LOKO SANDIA 12° | G94: 0.473 | H94: 24 | I94: 73.29724138 | J94: 3.054051724 | K94: 2.0952 | L94: 11.72755862 | M94: 13.82275862 | N94: 87.12 | O94: 3.63
C95: 849806001220 | D95: 20849806001224 | E95: 0000012527 | F95: BEBIDA GASEOSA FOUR LOKO PONCHE DE FRUTAS 12° | G95: 0.473 | H95: 24 | I95: 73.29724138 | J95: 3.054051724 | K95: 2.0952 | L95: 11.72755862 | M95: 13.82275862 | N95: 87.12 | O95: 3.63
C96: 849806001756 | D96: 108498060017353 | E96: 0000012528 | F96: BEBIDA GASEOSA FOUR LOKO GOLD 12° | G96: 0.473 | H96: 24 | I96: 73.29724138 | J96: 3.054051724 | K96: 2.0952 | L96: 11.72755862 | M96: 13.82275862 | N96: 87.12 | O96: 3.63
C97: 849806002746 | D97: 10849806002743 | E97: 0000012529 | F97: BEBIDA GASEOSA FOUR LOKO PURPLE-UVA 12° | G97: 0.473 | H97: 24 | I97: 73.29724138 | J97: 3.054051724 | K97: 2.0952 | L97: 11.72755862 | M97: 13.82275862 | N97: 87.12 | O97: 3.63
C98: 849806002319 | D98: 10849806002316 | E98: 0000012530 | F98: BEBIDA GASEOSA FOUR LOKO BLUE 12° | G98: 0.473 | H98: 24 | I98: 73.29724138 | J98: 3.054051724 | K98: 2.0952 | L98: 11.72755862 | M98: 13.82275862 | N98: 87.12 | O98: 3.63
C99: 849806001855 | D99: 20849806001859 | E99: 0000012531 | F99: BEBIDA GASEOSA FOUR LOKO GREEN 12° | G99: 0.473 | H99: 24 | I99: 73.29724138 | J99: 3.054051724 | K99: 2.0952 | L99: 11.72755862 | M99: 13.82275862 | N99: 87.12 | O99: 3.63
A101: IMPORTADOS | C101: VINO CHILENO
C102: MISIONES DE RENGO VARIETAL
C103: 7808704640040 | D103: 0 | E103: 0000006382 | F103: TINTO CABERNET SAUVIGNON 13.5° | G103: 0.185 | H103: 24 | I103: 44.0304195 | J103: 1.834600813 | K103: 0.0447133758 | L103: 7.044867121 | M103: 7.089580496 | N103: 51.12 | O103: 2.13
C104: 7808704700058 | D104: 17808704700147 | E104: 0000003041 | F104: MISIONES DE RENGO CAB SAUVIGNON 13° 0.750 LTS | G104: 0.75 | H104: 12 | I104: 65.79 | J104: 5.4825 | K104: 1.68 | L104: 10.5264 | M104: 12.2064 | N104: 77.9964 | O104: 6.4997
C105: 7808704700140 | D105: 17808704700055 | E105: 0000003042 | F105: MISIONES DE RENGO MERLOT 12.9° 0.750 LTS | G105: 0.75 | H105: 12 | I105: 65.79 | J105: 5.4825 | K105: 1.68 | L105: 10.5264 | M105: 12.2064 | N105: 77.9964 | O105: 6.4997
C106: 7808704700065 | D106: 17808704700062 | E106: 0000003043 | F106: VINO BCO MISIONES DE RENGO SAUV 13.3° 0.750 LTS | G106: 0.75 | H106: 12 | I106: 63.969 | J106: 5.33075 | K106: 3.8 | L106: 10.23504 | M106: 14.03504 | N106: 78.00404 | O106: 6.500336667
C107: 7808704700034 | D107: 17808704700031 | E107: 0000003040 | F107: MISIONES DE RENGO CARMENERE 13,30° 0.750 LTS | G107: 0.75 | H107: 12 | I107: 65.05 | J107: 5.420833333 | K107: 2.54 | L107: 10.408 | M107: 12.948 | N107: 77.998 | O107: 6.499833333
C108: MISIONES DE RENGO RESERVA
C109: 7808704700157 | D109: 7808704700154 | E109: 0000008596 | F109: MISIONES RESERVA CABERNET SAUVIGNON 13.50° | G109: 0.75 | H109: 12 | I109: 84.54761905 | J109: 7.045634921 | K109: 4.21 | L109: 13.52761905 | M109: 17.73761905 | N109: 102.2852381 | O109: 8.523769841
C110: MISIONES DE RENGO VINO ESPUMANTE
C111: 7808704700850 | D111: 27808704700854 | E111: 0000012566 | F111: VINO BCO ESP MISIONES DE RENGO DEMI SEC 12.10° | G111: 0.75 | H111: 6 | I111: 50.61016949 | J111: 8.435028249 | K111: 1.29 | L111: 8.097627119 | M111: 9.387627119 | N111: 59.99779661 | O111: =+N111/H111 -> 9.999632768
C112: 7808704700973 | D112: 27808704700977 | E112: 0000012567 | F112: VINO RSD ESP MISIONES DE RENGO ROSE 12.2° | G112: 0.75 | H112: 6 | I112: 50.61016949 | J112: 8.435028249 | K112: 1.29 | L112: 8.097627119 | M112: 9.387627119 | N112: 59.99779661 | O112: =+N112/H112 -> 9.999632768
C113: 7808704700843 | D113: 17808704700505 | E113: 0000012568 | F113: VINO BCO ESP MISIONES DE RENGO BRUT 12.4° | G113: 0.75 | H113: 6 | I113: 50.61016949 | J113: 8.435028249 | K113: 1.28101799 | L113: 8.097627119 | M113: 9.378645108 | N113: 59.9888146 | O113: =+N113/H113 -> 9.998135767
C114: MISIONES DE RENGO CUVEE
C115: 7808704700164 | D115: 17808704700161 | E115: 0000008219 | F115: MISIONES DE RENGO CUVEE CARMENERE 14° 0.750 LTS | G115: 0.75 | H115: 12 | I115: 150.7741935 | J115: 12.56451613 | K115: 5.06 | L115: 24.12387097 | M115: 29.18387097 | N115: 179.9580645 | O115: 14.99650538
C116: 7808704700119 | D116: 17808704700 | E116: 0000006062 | F116: MISIONES DE RENGO CUVEE CABERNET SAUVIG 14° 0.750 LTS | G116: 0.75 | H116: 12 | I116: 150.7741935 | J116: 12.56451613 | K116: 5.06 | L116: 24.12387097 | M116: 29.18387097 | N116: 179.9580645 | O116: 14.99650538
C117: ROSARIO VARIETAL
C118: 7804436702513 | D118: 7804436702510 | E118: 0000001885 | F118: ROSARIO CAB SAUV 13.1° 0.750 LTS | G118: 0.75 | H118: 12 | I118: 55.59 | J118: 4.6325 | K118: 1.51 | L118: 8.896 | M118: 10.406 | N118: 65.996 | O118: 5.499666667
C119: 7804436702537 | D119: 7804436702534 | E119: 0000002158 | F119: ROSARIO TINTO MERLOT 12.9° 0.750 LTS | G119: 0.75 | H119: 12 | I119: 54.719 | J119: 4.559916667 | K119: 2.526902052 | L119: 8.75504 | M119: 11.28194205 | N119: 66.00094205 | O119: 5.500078504
C120: 7804436702544 | D120: 17804436702541 | E120: 0000002160 | F120: ROSADO ROSARIO 12.6° | G120: 0.75 | H120: 12 | I120: 59.57792208 | J120: 4.96482684 | K120: 2.9 | L120: 9.532467532 | M120: 12.43246753 | N120: 72.01038961 | O120: 6.000865801
C121: 7804436702520 | E121: 0000001886 | F121: ROSARIO BLANCO SAUVIGNON 12.5° 0.750 LTS | G121: 0.75 | H121: 12 | I121: 54.83 | J121: 4.569166667 | K121: 2.4 | L121: 8.7728 | M121: 11.1728 | N121: 66.0028 | O121: 5.500233333
C122: ROSARIO RESERVA
C123: 7804436702018 | D123: 17804436702015 | E123: '0000001888 | F123: ROSARIO RESERVA CABERNET SAUVIGNON 13,40° | G123: 0.75 | H123: 12 | I123: 94.69333333 | J123: 7.891111111 | K123: 4.21 | L123: 15.15093333 | M123: 19.36093333 | N123: 114.0542667 | O123: 9.504522222
C124: ROSARIO RESERVA PRIVADA
C125: 7804436701035 | D125: 7804436701032 | E125: 0000001887 | F125: TINTO CABERNET SAUVIGNON 13.5° | G125: 0.75 | H125: 12 | I125: 110.7638362 | J125: 9.230319684 | K125: 0.03395 | L125: 17.72221379 | M125: 17.75616379 | N125: 128.52 | O125: 10.71
C126: VINO ESPAÑOL
C127: CRIANZA
C128: 8410106022400 | D128: 8410106022404 | E128: 0000007949 | F128: TINTO RIOJA BORDÓN CRIANZA 12.5° | G128: 0.75 | H128: 12 | I128: 92.89655172 | J128: 7.74137931 | K128: 8.295e-09 | L128: 14.86344827 | M128: 14.86344828 | N128: 107.76 | O128: 8.98
C129: CONSTELACION
C130: 40232911033 | D130: 10040232911030 | E130: 0000012313 | F130: VINO CONSTELACION TINTO 12° | G130: 0.75 | H130: 6 | I130: 22.38916299 | J130: 3.731527165 | K130: 0.008570930233 | L130: 3.582266079 | M130: 3.590837009 | N130: 25.98 | O130: 4.33
C131: 40232911033 | D131: 10040232911030 | E131: 0000012395 | F131: VINO CONSTELACION BLANCO 12° | G131: 0.75 | H131: 6 | I131: 22.38916299 | J131: 3.731527165 | K131: 0.008570930233 | L131: 3.582266079 | M131: 3.590837009 | N131: 25.98 | O131: 4.33
C132: VINO PORTUGUES
C133: CASAL MENDES VARIETAL
B134: * | C134: 5601213184867 | D134: 5601213184862 | E134: 0000000278 | F134: VINO ROSADO CASAL MENDES 10.5° | G134: 0.75 | H134: 6 | I134: 40.77901431 | J134: 6.576666667 | K134: 0.68 | L134: 6.524642289 | M134: 7.204642289 | N134: 47.9836566 | O134: 7.9972761
B135: * | C135: 5601213181057 | D135: 5560123581050 | E135: 0000000280 | F135: VINO TINTO CASAL MENDES 12° | G135: 0.75 | H135: 6 | I135: 40.77901431 | J135: 6.576666667 | K135: 0.68 | L135: 6.524642289 | M135: 7.204642289 | N135: 47.9836566 | O135: 7.9972761
B136: * | C136: 5601213188216 | D136: 5560123188211 | E136: 0000000967 | F136: VINO BLANCO CASAL MENDES VINHO VERDE 9º | G136: 0.75 | H136: 6 | I136: 40.77901431 | J136: 6.576666667 | K136: 0.68 | L136: 6.524642289 | M136: 7.204642289 | N136: 47.9836566 | O136: 7.9972761
C137: SIDRA CERESER
C138: 7896072902679 | E138: 0000000473 | F138: SIDRA DE UVA CERESER 4.7º | G138: 0.66 | H138: 12 | I138: 60.85893769 | J138: 5.071578141 | K138: 1.405240952 | L138: 9.73743003 | M138: 11.14267098 | N138: 72.00160867 | O138: 6.000134056
C139: 7896072902693 | D139: 17896072910398 | E139: 0000002249 | F139: SIDRA DE FRESA CERESER 4.7º | G139: 0.66 | H139: 12 | I139: 60.85893769 | J139: 5.071578141 | K139: 1.405240952 | L139: 9.73743003 | M139: 11.14267098 | N139: 72.00160867 | O139: 6.000134056
C140: 7896072902709 | D140: 17896072910381 | E140: 0000002250 | F140: SIDRA DE DURAZNO CERESER 4.7º | G140: 0.66 | H140: 12 | I140: 60.17761501 | J140: 5.01480125 | K140: 2.197616419 | L140: 9.628418401 | M140: 11.82603482 | N140: 72.00364983 | O140: 6.000304152
C141: 7896072902686 | D141: 17896072910039 | E141: 0000002251 | F141: SIDRA DE MANZANA CERESER 6º | G141: 0.66 | H141: 12 | I141: 60.17097355 | J141: 5.014247796 | K141: 2.20276758 | L141: 9.627355769 | M141: 11.83012335 | N141: 72.0010969 | O141: 6.000091409
A143: MARCAS PROPIAS | C143: LICOR SECO
C144: 7591179002835 | E144: 0000011873 | F144: DOBLE 5 BLANCO 30° | G144: 0.35 | H144: 24 | I144: 22.28591954 | J144: 0.9285799808 | K144: 0.06833333333 | L144: 3.565747126 | M144: 3.63408046 | N144: 25.92 | O144: 1.08
A146: DESTILERÍA CARÚPANO | C146: LICOR SECO A BASE DE WHISKY
C147: 7591179002900 | D147: 7591323001503 | E147: 0000010202 | F147: PRESIDENT 40° | G147: 0.7 | H147: 12 | I147: 33.27333333 | J147: 2.772777778 | K147: 2.38 | L147: 5.323733333 | M147: 7.703733333 | N147: 40.97706667 | O147: 3.414755556
C148: LICOR SECO A BASE DE RON
C149: 7591323000202 | E149: 0000012009 | F149: CARUPANO EXTRA 39° | G149: 1 | H149: 12 | I149: 30.96 | J149: 2.58 | K149: 2.32 | L149: 4.9536 | M149: 7.2736 | N149: 38.2336 | O149: 3.186133333
C150: 7591323000196 | D150: 7591323000349 | E150: 0000007900 | F150: CARUPANO EXTRA 39° | G150: 0.7 | H150: 12 | I150: 28.90333333 | J150: 2.408611111 | K150: 2.01 | L150: 4.624533333 | M150: 6.634533333 | N150: 35.53786667 | O150: 2.961488889
A152: INVERSIONES MCDA | C152: RON ANTIGUO
C153: 7591411000763 | D153: 17591411000760 | E153: 0000012677 | F153: RON ANTIGUO MESTIZO 20 COLECCION PRIV 40° | G153: 0.7 | H153: 4 | I153: 149.5086207 | J153: 37.37715517 | K153: 10.09 | L153: 23.92137931 | M153: 34.01137931 | N153: 183.52 | O153: 45.88
C154: 7591411000756 | E154: 0000012989 | F154: RON ANTIGUO MESTIZO 40° | G154: 0.7 | H154: 6 | I154: 104.08 | J154: 17.34666667 | K154: 12.77 | L154: 16.65 | M154: 29.42 | N154: 133.5 | O154: 22.25
C155: LICOR SECO A BASE DE RON
C156: 7591411000817 | E156: 0000012817 | F156: LICOR SECO BASE RON TRANCAO 34° | G156: 1 | H156: 12 | I156: 31.3125 | J156: 2.609375 | K156: 1.8 | L156: 5.01 | M156: 6.81 | N156: 38.1225 | O156: 3.176875
C157: ANIS
C158: 75914110000039 | E158: 0000012268 | F158: ANIS EXTRA 55 30° | G158: 1 | H158: 12 | I158: 37.15242755 | J158: 3.096035629 | K158: 3 | L158: 5.944388408 | M158: 8.944388408 | N158: 46.09681596 | O158: 3.84140133
E159: 0000013025 | F159: ANIS EXTRA 55 30° 1.500LTS | G159: 1.5 | H159: 6 | I159: 27.46034816 | J159: 4.576724694 | K159: 3 | L159: 4.393655706 | M159: 7.393655706 | N159: 34.85400387 | O159: 5.809000645
C160: 7591411000794 | E160: 0000012563 | F160: ANIS EXTRA 55 MARAQUITA 30° | G160: 1 | H160: 12 | I160: 37.15683814 | J160: 3.096403179 | K160: 3 | L160: 5.945094103 | M160: 8.945094103 | N160: 46.10193225 | O160: 3.841827687
C161: 7591411000800 | E161: 0000012564 | F161: ANIS EXTRA 55 STAR PURE BLUE 25° | G161: 1 | H161: 12 | I161: 37.15683814 | J161: 3.096403179 | K161: 3 | L161: 5.945094103 | M161: 8.945094103 | N161: 46.10193225 | O161: 3.841827687
C162: AGUARDIENTES
C163: 7591861000429 | E163: 0000002893 | F163: 55 BLANCO 40° | G163: 1 | H163: 12 | I163: 30.2875 | J163: 2.523958333 | K163: 1.8 | L163: 4.846 | M163: 6.646 | N163: 36.9335 | O163: 3.077791667
E164: 0000012386 | F164: 55 BLANCO 40° | G164: 1500 | H164: 6 | I164: 21.81379136 | J164: 3.635631893 | K164: 1.8 | L164: 3.490206617 | M164: 5.290206617 | N164: 27.10399797 | O164: 4.517332995
C165: 7591861013610 | E165: 0000002517 | F165: ANISADO MICHE ANDINO LA MULERA 40° | G165: 1 | H165: 12 | I165: 32.975 | J165: 2.747916667 | K165: 1.8 | L165: 5.276 | M165: 7.076 | N165: 40.051 | O165: 3.337583333
C166: SANGRIA
C167: 7594002400676 | E167: 0000008344 | F167: DON JULIAN PET 8° | G167: 1.75 | H167: 6 | I167: 21.8131532 | J167: 3.635525533 | K167: 2.25 | L167: 3.490104512 | M167: 5.740104512 | N167: 27.55325771 | O167: 4.592209618
C168: 7591411000770 | E168: 0000012466 | F168: SANGRIA DON JULIAN PET 8° | G168: 1 | H168: 12 | I168: 26.32758621 | J168: 2.193965517 | K168: 0.9 | L168: 4.212413793 | M168: 5.112413793 | N168: 31.44 | O168: 2.62
C169: 7591411000848 | E169: 0000013144 | F169: SANGRIA DON JULIAN ROSADA | G169: 1.75 | H169: 6 | I169: 21.8131532 | J169: 3.635525533 | K169: 2.25 | L169: 3.490104512 | M169: 5.740104512 | N169: 27.55325771 | O169: 4.592209618
C170: 7591411000831 | E170: 0000013143 | F170: SANGRIA DON JULIAN BLANCA | G170: 1.75 | H170: 6 | I170: 21.8131532 | J170: 3.635525533 | K170: 2.25 | L170: 3.490104512 | M170: 5.740104512 | N170: 27.55325771 | O170: 4.592209618
C171: LICOR SECO A BASE DE BRANDY
C172: 7591861012323 | E172: 0000007885 | F172: BRANDIÑAC 40° | G172: 0.7 | H172: 12 | I172: 45.34708613 | J172: 3.778923844 | K172: 1.8 | L172: 7.25553378 | M172: 9.05553378 | N172: 54.40261991 | O172: 4.533551659
A173: BEBIDAS NO ALCOHÓLICAS | C173: BEBIDA ENERGIZANTE
C174: 742832854801 | D174: 0 | E174: 0000012508 | F174: BEBIDA ENERGETICA FURIA ENERGY SIN AZUCAR | G174: 0.25 | H174: 24 | I174: 29.17241379 | J174: 1.215517241 | K174: 0 | L174: 4.667586207 | M174: 4.667586207 | N174: 33.84 | O174: 1.41
A175: Cont. INVERSIONES MCDA | C175: BEBIDA ESPIRITUOSA SECA
E176: 0000012007 | F176: COLAITO DORADO 30° (PLÁSTICO) | G176: 1 | H176: 12 | I176: 17.7625 | J176: 1.374104715 | K176: 0.37 | L176: 2.842 | M176: 3.212 | N176: 20.9745 | O176: 1.747875
E177: 0000010535 | F177: B.E.S. EXTRA COSTEÑO 32° 0,700 LTS | G177: 0.7 | H177: 12 | I177: 32.07 | J177: 2.67 | K177: 1.2 | L177: 5.13 | M177: 6.33 | N177: 38.4 | O177: 3.2
C178: GINEBRA NACIONAL
C179: 7591411000015 | E179: 0000002257 | F179: GINEBRA CITY OF LONDON 40° | G179: 0.7 | H179: 12 | I179: 39.78 | J179: 3.315 | K179: 5.16 | L179: 6.3648 | M179: 11.5248 | N179: 51.3048 | O179: 4.2754
C180: 7591861013481 | E180: 0000010506 | F180: GINEBRA ERISTOFF 40° | G180: 0.7 | H180: 12 | I180: 64.43 | J180: 5.369166667 | K180: 5.16 | L180: 10.3088 | M180: 15.4688 | N180: 79.8988 | O180: 6.658233333
A181: Cont. INVERSIONES MCDA | C181: VODKA NACIONAL
C182: 7591411000022 | E182: 0000002256 | F182: VODKA CITY OF LONDON 40° | G182: 0.7 | H182: 12 | I182: 39.78 | J182: 3.315 | K182: 5.16 | L182: 6.3648 | M182: 11.5248 | N182: 51.3048 | O182: 4.2754
C183: 7591861000122 | E183: 0000005492 | F183: VODKA ERISTOFF 40° | G183: 0.7 | H183: 12 | I183: 64.43 | J183: 5.369166667 | K183: 5.16 | L183: 10.3088 | M183: 15.4688 | N183: 79.8988 | O183: 6.658233333
C184: VODKA NACIONAL SABORIZADA
C185: 7591518006828 | E185: 0000010367 | F185: GUARANA ZEPPELIN 30° | G185: 0.7 | H185: 12 | I185: 41.37931034 | J185: 3.448275862 | K185: 0 | L185: 6.620689655 | M185: 6.620689655 | N185: 48 | O185: 4
C186: LICOR DULCE
C187: 7591861012286 | E187: 0000010160 | F187: NÁPOLI SAMBVCA 40° | G187: 0.7 | H187: 12 | I187: 63.17241379 | J187: 5.264367816 | K187: 4.36 | L187: 10.10758621 | M187: 14.46758621 | N187: 77.64 | O187: 6.47
C188: 7591518006057 | E188: 0000009942 | F188: VERONA AMARETO 28° | G188: 0.7 | H188: 12 | I188: 61.56896552 | J188: 5.130747126 | K188: 6.22 | L188: 9.851034483 | M188: 16.07103448 | N188: 77.64 | O188: 6.47
C189: 7591861012224 | E189: 0000010159 | F189: CREMA DE CAFÉ MORASAN 26.5° | G189: 0.7 | H189: 12 | I189: 60.80172414 | J189: 5.066810345 | K189: 7.11 | L189: 9.728275862 | M189: 16.83827586 | N189: 77.64 | O189: 6.47
C190: 7591861012309 | E190: 0000009941 | F190: MOLIERE TRIPLE SEC ORANGE 40° | G190: 0.7 | H190: 12 | I190: 62.87068966 | J190: 5.239224138 | K190: 4.71 | L190: 10.05931034 | M190: 14.76931034 | N190: 77.64 | O190: 6.47
C191: VINOS IMPORTADOS
C192: 5604135003032 | E192: 0000002539 | F192: VINO TINTO MARQUES DE BORBA 14° 0.750LTS | G192: 0.75 | H192: 6 | I192: 63.91698411 | J192: =+I192/H192 -> 10.65283068 | K192: 2.56 | L192: 10.22671746 | M192: =+L192+K192 -> 12.78671746 | N192: =+M192+I192 -> 76.70370156 | O192: =+N192/H192 -> 12.78395026
C193: 5604135003049 | E193: 0000013036 | F193: VINO TTO MARQUES DE BORBA 14° 1.500LTS | G193: 1500 | H193: 6 | I193: 112.7011118 | J193: =+I193/H193 -> 18.78351864 | K193: 3.25 | L193: 18.03217789 | M193: =+L193+K193 -> 21.28217789 | N193: =+M193+I193 -> 133.9832897 | O193: =+N193/H193 -> 22.33054829
C194: 5604135002011 | E194: 0000007540 | F194: VINO BCO MARQUES DE BORBA 12.5ª 0.750 LTS | G194: 0.75 | H194: 6 | I194: 63.91698411 | J194: =+I194/H194 -> 10.65283068 | K194: 2.56 | L194: 10.22671746 | M194: =+L194+K194 -> 12.78671746 | N194: =+M194+I194 -> 76.70370156 | O194: =+N194/H194 -> 12.78395026
C195: 5604135001144 | E195: 0000007537 | F195: VINO TINTO LOIOS ALENTEJANO TTO 14ª 0.750 LTS | G195: 0.75 | H195: 6 | I195: 52.20472441 | J195: =+I195/H195 -> 8.700787402 | K195: 1.86 | L195: 8.352755906 | M195: =+L195+K195 -> 10.21275591 | N195: =+M195+I195 -> 62.41748031 | O195: =+N195/H195 -> 10.40291339
C196: 5604135001243 | E196: 0000007538 | F196: VINO BCO LOIOS ALENTEJO BCO 12.5ª 0.750 LTS | G196: 0.75 | H196: 6 | I196: 52.20472441 | J196: =+I196/H196 -> 8.700787402 | K196: 1.86 | L196: 8.352755906 | M196: =+L196+K196 -> 10.21275591 | N196: =+M196+I196 -> 62.41748031 | O196: =+N196/H196 -> 10.40291339
C197: WHISKY SCOTH
C198: 5010852001563 | E198: 0000005493 | F198: WHISKY SCOTCH DUNFIFE 40? 0.700 LTS | G198: 0.75 | H198: 12 | I198: 66.06535948 | J198: =+I198/H198 -> 5.505446623 | K198: 1.38 | L198: 10.57045752 | M198: =+L198+K198 -> 11.95045752 | N198: =+M198+I198 -> 78.01581699 | O198: =+N198/H198 -> 6.501318083
A200: REPRESENTACIONES SINKO C.A. | C200: LICOR SECO BASE DE WHISKY
B201: ** | C201: 7591834103706 | D201: 17591834103703 | E201: 0000001474 | F201: LICOR SECO BASE DE WHISKY COUNTRY CLUB 40º | G201: 0.7 | H201: 12 | I201: 37.5 | J201: 3.125 | K201: 2.59 | L201: 6 | M201: 8.59 | N201: 46.09 | O201: 3.840833333
C202: 7591834109708 | D202: 17591834109705 | E202: 0000000886 | F202: LICOR SECO GOLD MEMBER 40º | G202: 0.7 | H202: 12 | I202: 39.7 | J202: 3.308333333 | K202: 2.59 | L202: 6.352 | M202: 8.942 | N202: 48.642 | O202: 4.0535
C203: VINO DE COCINA
B204: ** | C204: 7591834602759 | D204: 17591834602756 | E204: 0000000340 | F204: VINO TINTO LA SAGRADA FAMILIA 10º | G204: 0.7 | H204: 12 | I204: 36.45 | J204: 3.0375 | K204: 1.96 | L204: 5.83 | M204: 7.79 | N204: 44.24 | O204: 3.69
B205: ** | C205: 7591834602766 | D205: 17591834602763 | E205: 0000000341 | F205: VINO BLANCO LA SAGRADA FAMILIA 10º | G205: 0.7 | H205: 12 | I205: 36.45 | J205: 3.0375 | K205: 1.96 | L205: 5.83 | M205: 7.79 | N205: 44.24 | O205: 3.69
C206: SANGRIA
C207: 7591834701759 | D207: 17591834701756 | E207: 0000006139 | F207: SANGRIA FIESTA BRAVA 7° | G207: 1.75 | H207: 6 | I207: 22.7 | J207: 3.783333333 | K207: 2.85 | L207: 3.632 | M207: 6.482 | N207: 29.182 | O207: 4.863666667
C208: 7591834701759 | D208: 17591834701756 | E208: 0000013028 | F208: COMBO S. FIESTA BRAVA 7° 6UNID+12VASOS 1.750LTS | G208: 1.75 | H208: 6 | I208: 18.36619718 | J208: 3.061032864 | K208: 0.46 | L208: 2.938591549 | M208: 3.398591549 | N208: 21.76478873 | O208: 3.627464789
B209: ** | C209: 7591834602766 | D209: 17591834602763 | E209: 0000005961 | F209: SANGRIA LA ESPAÑOLA DE VINO BCO 7° | G209: 0.75 | H209: 12 | I209: 37.85 | J209: 3.154166667 | K209: 1.59 | L209: 6.056 | M209: 7.646 | N209: 45.496 | O209: 3.791333333
C210: 7591834602759 | D210: 17591834602756 | E210: 0000008400 | F210: SANGRIA LA ESPAÑOLA VINO TINTO 7° 0.750 LTS | G210: 0.75 | H210: 12 | I210: 37.85 | J210: 3.154166667 | K210: 1.59 | L210: 6.056 | M210: 7.646 | N210: 45.496 | O210: 3.791333333
C212: VODKA Y GINEBRA NACIONAL
C213: 7591834400126 | D213: 7591834701759 | E213: 0000010233 | F213: LICOR DE VODKA TRAGOS VODKA COCO 40º PET | G213: 1.75 | H213: 6 | I213: 26 | J213: 4.333333333 | K213: 3.24 | L213: 4.16 | M213: 7.4 | N213: 33.4 | O213: 5.566666667
C214: 7591894400027 | D214: 1759134400024 | E214: 0000007972 | F214: VODKA BOTELLA DE VODKA 40º PET | G214: 1.75 | H214: 6 | I214: 26 | J214: 4.333333333 | K214: 3.24 | L214: 4.16 | M214: 7.4 | N214: 33.4 | O214: 5.566666667
C215: 7591834400133 | D215: 17591834400130 | E215: 0000010283 | F215: LICOR DE VODKA TRAGOS VODKA PARCHITA 40º PET | G215: 1.75 | H215: 6 | I215: 26 | J215: 4.333333333 | K215: 3.24 | L215: 4.16 | M215: 7.4 | N215: 33.4 | O215: 5.566666667
C216: 7591834400034 | D216: 17591834400031 | E216: 0000007971 | F216: GINEBRA BOTELLA DE GINEBRA 40º PET | G216: 1.75 | H216: 6 | I216: 26 | J216: 4.333333333 | K216: 3.24 | L216: 4.16 | M216: 7.4 | N216: 33.4 | O216: 5.566666667
C217: SANGRIA SABORIZADA
E218: 0000011507 | F218: LA ESPAÑOLA MANZANA 7° | G218: 0.75 | H218: 12 | I218: 45.2 | J218: 3.766666667 | K218: 2.46 | L218: 7.232 | M218: 9.692 | N218: 54.892 | O218: 4.574333333
C219: 7591834102778 | D219: 17591834102775 | E219: 0000009386 | F219: VINO ESPUMANTE SANGRIA LA ESPAÑOLA FRESA 7° | G219: 0.75 | H219: 12 | I219: 45.2 | J219: 3.766666667 | K219: 2.46 | L219: 7.232 | M219: 9.692 | N219: 54.892 | O219: 4.574333333
C220: 7591834102792 | D220: 17591834102799 | E220: 0000009387 | F220: SANGRIA LA ESPAÑOLA DURAZNO 7° 0.750 LTS | G220: 0.75 | H220: 12 | I220: 45.2 | J220: 3.766666667 | K220: 2.46 | L220: 7.232 | M220: 9.692 | N220: 54.892 | O220: 4.574333333
C221: 7591834102723 | D221: 17591834102720 | E221: 0000010214 | F221: SANGRIA LA ESPAÑOLA PARCHITA 7° 0.750 LTS | G221: 0.75 | H221: 12 | I221: 45.2 | J221: 3.766666667 | K221: 2.46 | L221: 7.232 | M221: 9.692 | N221: 54.892 | O221: 4.574333333
... 60 more rows

Sheet PRECIO_FACT (hidden)
A1: CODIGOPROD | B1: DESCRIPCION | C1: PRECIO | D1: Precio sin impuestos | E1: Precio con impuestos | F1: PRECIO PEDIDO | G1: Precio USD
A2: 0000000114 | B2: LICOR DULCE NARANJA COINTREAU 40° 0.700 LTS | C2: 757.1 | D2: =IFERROR(VLOOKUP($A2,'Lista de Precios_Bolívares_S'!$F:$Q,6,FALSE),"") ->  | E2: =IFERROR(VLOOKUP($A2,'Lista de Precios_Bolívares_S'!$F:$Q,12,FALSE),"") ->  | F2: =IFERROR(IF(ROUND($C2,2)=ROUND($D2,2),ROUND($E2,2),ROUND($C2,2)),"") ->  | G2: =IFERROR(VLOOKUP($A2,'Lista de Precios_USD$_Euro€'!$E:$O,11,FALSE),"") -> 24.59773333
A3: 0000000236 | B3: RON AÑEJO DE LUXE ESTELAR 40° 0.700 LTS | C3: 134.98 | D3: =IFERROR(VLOOKUP($A3,'Lista de Precios_Bolívares_S'!$F:$Q,6,FALSE),"") ->  | E3: =IFERROR(VLOOKUP($A3,'Lista de Precios_Bolívares_S'!$F:$Q,12,FALSE),"") ->  | F3: =IFERROR(IF(ROUND($C3,2)=ROUND($D3,2),ROUND($E3,2),ROUND($C3,2)),"") ->  | G3: =IFERROR(VLOOKUP($A3,'Lista de Precios_USD$_Euro€'!$E:$O,11,FALSE),"") -> 4.521619718
A4: 0000000278 | B4: VINO ROSADO CASAL MENDES 10.5° 0.750 LTS | C4: 246.66 | D4: =IFERROR(VLOOKUP($A4,'Lista de Precios_Bolívares_S'!$F:$Q,6,FALSE),"") -> 39.47833333 | E4: =IFERROR(VLOOKUP($A4,'Lista de Precios_Bolívares_S'!$F:$Q,12,FALSE),"") -> 43.5 | F4: 246.66 | G4: =IFERROR(VLOOKUP($A4,'Lista de Precios_USD$_Euro€'!$E:$O,11,FALSE),"") -> 7.9972761
A5: 0000000280 | B5: VINO TINTO CASAL MENDES 12° 0.750 LTS | C5: 246.66 | D5: =IFERROR(VLOOKUP($A5,'Lista de Precios_Bolívares_S'!$F:$Q,6,FALSE),"") ->  | E5: =IFERROR(VLOOKUP($A5,'Lista de Precios_Bolívares_S'!$F:$Q,12,FALSE),"") ->  | G5: =IFERROR(VLOOKUP($A5,'Lista de Precios_USD$_Euro€'!$E:$O,11,FALSE),"") -> 7.9972761
A6: 0000000340 | B6: VINO TINTO LA SAGRADA FAMILIA 10º 0.700 LTS | C6: 113.32 | D6: =IFERROR(VLOOKUP($A6,'Lista de Precios_Bolívares_S'!$F:$Q,6,FALSE),"") ->  | E6: =IFERROR(VLOOKUP($A6,'Lista de Precios_Bolívares_S'!$F:$Q,12,FALSE),"") ->  | G6: =IFERROR(VLOOKUP($A6,'Lista de Precios_USD$_Euro€'!$E:$O,11,FALSE),"") -> 3.69
A7: 0000000341 | B7: VINO BLANCO LA SAGRADA FAMILIA 10º 0.700 LTS | C7: 113.32 | D7: =IFERROR(VLOOKUP($A7,'Lista de Precios_Bolívares_S'!$F:$Q,6,FALSE),"") ->  | E7: =IFERROR(VLOOKUP($A7,'Lista de Precios_Bolívares_S'!$F:$Q,12,FALSE),"") ->  | G7: =IFERROR(VLOOKUP($A7,'Lista de Precios_USD$_Euro€'!$E:$O,11,FALSE),"") -> 3.69
A8: 0000000371 | B8: WHISKY SCOTCH PREMIUM CHIVAS REGAL 40º 0.750 LTS 12 A?OS | C8: 687.66 | D8: =IFERROR(VLOOKUP($A8,'Lista de Precios_Bolívares_S'!$F:$Q,6,FALSE),"") -> 136.56 | E8: =IFERROR(VLOOKUP($A8,'Lista de Precios_Bolívares_S'!$F:$Q,12,FALSE),"") -> 154.5 | F8: 687.66 | G8: =IFERROR(VLOOKUP($A8,'Lista de Precios_USD$_Euro€'!$E:$O,11,FALSE),"") -> 26.48791089
A9: 0000000381 | B9: WHISKY SCOTCH 100 PIPERS 40º 0.700 LTS | C9: 324 | D9: =IFERROR(VLOOKUP($A9,'Lista de Precios_Bolívares_S'!$F:$Q,6,FALSE),"") -> 50.28 | E9: =IFERROR(VLOOKUP($A9,'Lista de Precios_Bolívares_S'!$F:$Q,12,FALSE),"") -> 57 | F9: 324 | G9: =IFERROR(VLOOKUP($A9,'Lista de Precios_USD$_Euro€'!$E:$O,11,FALSE),"") -> 11.59533999
A10: 0000000442 | B10: LICOR AMARGO DE ANGOSTURA 44,7° 0.100 LTS | C10: 237.88 | D10: =IFERROR(VLOOKUP($A10,'Lista de Precios_Bolívares_S'!$F:$Q,6,FALSE),"") -> 76.08583333 | E10: =IFERROR(VLOOKUP($A10,'Lista de Precios_Bolívares_S'!$F:$Q,12,FALSE),"") -> 90 | F10: 237.88 | G10: =IFERROR(VLOOKUP($A10,'Lista de Precios_USD$_Euro€'!$E:$O,11,FALSE),"") -> 
A11: 0000000455 | B11: B.E.S.ANISADO CALICANTO MICHE ANDINO 30° 0.350 LTS | C11: 43.66 | D11: =IFERROR(VLOOKUP($A11,'Lista de Precios_Bolívares_S'!$F:$Q,6,FALSE),"") -> 11.99 | E11: =IFERROR(VLOOKUP($A11,'Lista de Precios_Bolívares_S'!$F:$Q,12,FALSE),"") -> 12 | F11: 43.66 | G11: =IFERROR(VLOOKUP($A11,'Lista de Precios_USD$_Euro€'!$E:$O,11,FALSE),"") -> 1.41
A12: 0000000473 | B12: SIDRA DE UVA CERESER 4.7° 0.660 LTS | C12: 182.33 | D12: =IFERROR(VLOOKUP($A12,'Lista de Precios_Bolívares_S'!$F:$Q,6,FALSE),"") ->  | E12: =IFERROR(VLOOKUP($A12,'Lista de Precios_Bolívares_S'!$F:$Q,12,FALSE),"") ->  | G12: =IFERROR(VLOOKUP($A12,'Lista de Precios_USD$_Euro€'!$E:$O,11,FALSE),"") -> 6.000134056
A13: 0000000553 | B13: AGTE DE COCUY ESPECIAL LARA 40° 0.700 LTS | C13: 74.32 | D13: =IFERROR(VLOOKUP($A13,'Lista de Precios_Bolívares_S'!$F:$Q,6,FALSE),"") -> 14.98 | E13: =IFERROR(VLOOKUP($A13,'Lista de Precios_Bolívares_S'!$F:$Q,12,FALSE),"") -> 15 | F13: 74.32 | G13: =IFERROR(VLOOKUP($A13,'Lista de Precios_USD$_Euro€'!$E:$O,11,FALSE),"") -> 
A14: 0000000554 | B14: AGUARDIENTE DE COCUY LARA 40º 0.350 LTS | C14: 43.66 | D14: =IFERROR(VLOOKUP($A14,'Lista de Precios_Bolívares_S'!$F:$Q,6,FALSE),"") -> 10.49 | E14: =IFERROR(VLOOKUP($A14,'Lista de Precios_Bolívares_S'!$F:$Q,12,FALSE),"") -> 10.5 | F14: 43.66 | G14: =IFERROR(VLOOKUP($A14,'Lista de Precios_USD$_Euro€'!$E:$O,11,FALSE),"") -> 1.41
A15: 0000000572 | B15: GINEBRA BEEFEATER DRY GIN 40° 0.700 LTS | C15: 837.93 | D15: =IFERROR(VLOOKUP($A15,'Lista de Precios_Bolívares_S'!$F:$Q,6,FALSE),"") -> 153.08 | E15: =IFERROR(VLOOKUP($A15,'Lista de Precios_Bolívares_S'!$F:$Q,12,FALSE),"") -> 162 | F15: 837.93 | G15: =IFERROR(VLOOKUP($A15,'Lista de Precios_USD$_Euro€'!$E:$O,11,FALSE),"") -> 27.89817666
A16: 0000000692 | B16: AGUARDIENTE LA VIRGINIA 40º 1 LTS | C16: 79.59 | D16: =IFERROR(VLOOKUP($A16,'Lista de Precios_Bolívares_S'!$F:$Q,6,FALSE),"") -> 16.49 | E16: =IFERROR(VLOOKUP($A16,'Lista de Precios_Bolívares_S'!$F:$Q,12,FALSE),"") -> 16.5 | F16: 79.59 | G16: =IFERROR(VLOOKUP($A16,'Lista de Precios_USD$_Euro€'!$E:$O,11,FALSE),"") -> 
A17: 0000000828 | B17: WHISKY BALLANTINES 12 AÑOS 40° 0.700LTS. | C17: 738.67 | D17: =IFERROR(VLOOKUP($A17,'Lista de Precios_Bolívares_S'!$F:$Q,6,FALSE),"") ->  | E17: =IFERROR(VLOOKUP($A17,'Lista de Precios_Bolívares_S'!$F:$Q,12,FALSE),"") ->  | G17: =IFERROR(VLOOKUP($A17,'Lista de Precios_USD$_Euro€'!$E:$O,11,FALSE),"") -> 26.84666667
A18: 0000000878 | B18: VODKA ABSOLUT 40° 0.700 LTS | C18: 495.95 | D18: =IFERROR(VLOOKUP($A18,'Lista de Precios_Bolívares_S'!$F:$Q,6,FALSE),"") -> 92.29 | E18: =IFERROR(VLOOKUP($A18,'Lista de Precios_Bolívares_S'!$F:$Q,12,FALSE),"") -> 102 | F18: 495.95 | G18: =IFERROR(VLOOKUP($A18,'Lista de Precios_USD$_Euro€'!$E:$O,11,FALSE),"") -> 17.04014444
A19: 0000000886 | B19: LICOR SECO GOLD MEMBER 40º 0.700 LTS | C19: 118.82 | D19: =IFERROR(VLOOKUP($A19,'Lista de Precios_Bolívares_S'!$F:$Q,6,FALSE),"") ->  | E19: =IFERROR(VLOOKUP($A19,'Lista de Precios_Bolívares_S'!$F:$Q,12,FALSE),"") ->  | G19: =IFERROR(VLOOKUP($A19,'Lista de Precios_USD$_Euro€'!$E:$O,11,FALSE),"") -> 4.0535
A20: 0000000893 | B20: WHISKY SCOTCH SOMETHING SPECIAL 40º 0.750 LTS | C20: 408 | D20: =IFERROR(VLOOKUP($A20,'Lista de Precios_Bolívares_S'!$F:$Q,6,FALSE),"") -> 79.58 | E20: =IFERROR(VLOOKUP($A20,'Lista de Precios_Bolívares_S'!$F:$Q,12,FALSE),"") -> 90 | F20: 408 | G20: =IFERROR(VLOOKUP($A20,'Lista de Precios_USD$_Euro€'!$E:$O,11,FALSE),"") -> 15.25185318
A21: 0000000895 | B21: WHISKY BALLANTINES FINEST 40° 0.700LTS | C21: 426.31 | D21: =IFERROR(VLOOKUP($A21,'Lista de Precios_Bolívares_S'!$F:$Q,6,FALSE),"") ->  | E21: =IFERROR(VLOOKUP($A21,'Lista de Precios_Bolívares_S'!$F:$Q,12,FALSE),"") ->  | G21: =IFERROR(VLOOKUP($A21,'Lista de Precios_USD$_Euro€'!$E:$O,11,FALSE),"") -> 16.78689815
A22: 0000000967 | B22: VINO BLANCO CASAL MENDES VINHO VERDE 9º 0.750 LTS | C22: 246.66 | D22: =IFERROR(VLOOKUP($A22,'Lista de Precios_Bolívares_S'!$F:$Q,6,FALSE),"") ->  | E22: =IFERROR(VLOOKUP($A22,'Lista de Precios_Bolívares_S'!$F:$Q,12,FALSE),"") ->  | G22: =IFERROR(VLOOKUP($A22,'Lista de Precios_USD$_Euro€'!$E:$O,11,FALSE),"") -> 7.9972761
A23: 0000001474 | B23: LICOR SECO BASE DE WHISKY COUNTRY CLUB 40° 0.700 LTS | C23: 112.32 | D23: =IFERROR(VLOOKUP($A23,'Lista de Precios_Bolívares_S'!$F:$Q,6,FALSE),"") ->  | E23: =IFERROR(VLOOKUP($A23,'Lista de Precios_Bolívares_S'!$F:$Q,12,FALSE),"") ->  | G23: =IFERROR(VLOOKUP($A23,'Lista de Precios_USD$_Euro€'!$E:$O,11,FALSE),"") -> 3.840833333
A24: 0000001565 | B24: WHISKY SCOTCH DE LUXE ROYAL SALUTE 40º 0.700 LTS 21 A?OS | C24: 7 | D24: =IFERROR(VLOOKUP($A24,'Lista de Precios_Bolívares_S'!$F:$Q,6,FALSE),"") -> 1232.1 | E24: =IFERROR(VLOOKUP($A24,'Lista de Precios_Bolívares_S'!$F:$Q,12,FALSE),"") -> 1380 | F24: 7 | G24: =IFERROR(VLOOKUP($A24,'Lista de Precios_USD$_Euro€'!$E:$O,11,FALSE),"") -> 245.44
A25: 0000001770 | B25: WHISKY SCOTCH CHIVAS REGAL GOLD SIGNATURE 40° 0.700 LTS 18 AÑOS | C25: 1 | D25: =IFERROR(VLOOKUP($A25,'Lista de Precios_Bolívares_S'!$F:$Q,6,FALSE),"") -> 321.26 | E25: =IFERROR(VLOOKUP($A25,'Lista de Precios_Bolívares_S'!$F:$Q,12,FALSE),"") -> 357 | F25: 1 | G25: =IFERROR(VLOOKUP($A25,'Lista de Precios_USD$_Euro€'!$E:$O,11,FALSE),"") -> 62.73833333
A26: 0000001885 | B26: VINO TINTO ROSARIO CAB SAUV 13.5° 0.750 LTS | C26: 157.17 | D26: =IFERROR(VLOOKUP($A26,'Lista de Precios_Bolívares_S'!$F:$Q,6,FALSE),"") -> 27.3275 | E26: =IFERROR(VLOOKUP($A26,'Lista de Precios_Bolívares_S'!$F:$Q,12,FALSE),"") -> 33 | F26: 157.17 | G26: =IFERROR(VLOOKUP($A26,'Lista de Precios_USD$_Euro€'!$E:$O,11,FALSE),"") -> 5.499666667
A27: 0000001886 | B27: VINO BLANCO ROSARIO SAUVIGNON 12.5° 0.750 LTS | C27: 155.27 | D27: =IFERROR(VLOOKUP($A27,'Lista de Precios_Bolívares_S'!$F:$Q,6,FALSE),"") -> 27.3275 | E27: =IFERROR(VLOOKUP($A27,'Lista de Precios_Bolívares_S'!$F:$Q,12,FALSE),"") -> 33 | F27: 155.27 | G27: =IFERROR(VLOOKUP($A27,'Lista de Precios_USD$_Euro€'!$E:$O,11,FALSE),"") -> 5.500233333
A28: 0000001887 | B28: VINO TTO ROSARIO RES PRIVADO CAB SAUV 13.5° 0.750 LTS | C28: 331.72 | D28: =IFERROR(VLOOKUP($A28,'Lista de Precios_Bolívares_S'!$F:$Q,6,FALSE),"") -> 60.1025 | E28: =IFERROR(VLOOKUP($A28,'Lista de Precios_Bolívares_S'!$F:$Q,12,FALSE),"") -> 72 | F28: 331.72 | G28: =IFERROR(VLOOKUP($A28,'Lista de Precios_USD$_Euro€'!$E:$O,11,FALSE),"") -> 10.71
A29: 0000001888 | B29: VINO TTO RESERVA ROSARIO CAB SAUV 13.8° 0.750 LTS | C29: 288.56 | D29: =IFERROR(VLOOKUP($A29,'Lista de Precios_Bolívares_S'!$F:$Q,6,FALSE),"") ->  | E29: =IFERROR(VLOOKUP($A29,'Lista de Precios_Bolívares_S'!$F:$Q,12,FALSE),"") ->  | G29: =IFERROR(VLOOKUP($A29,'Lista de Precios_USD$_Euro€'!$E:$O,11,FALSE),"") -> 
A30: 0000002070 | B30: SANGRIA OLE 8° 1.750 LTS | C30: 92.66 | D30: =IFERROR(VLOOKUP($A30,'Lista de Precios_Bolívares_S'!$F:$Q,6,FALSE),"") -> 19.96 | E30: =IFERROR(VLOOKUP($A30,'Lista de Precios_Bolívares_S'!$F:$Q,12,FALSE),"") -> 21 | F30: 92.66 | G30: =IFERROR(VLOOKUP($A30,'Lista de Precios_USD$_Euro€'!$E:$O,11,FALSE),"") -> 
A31: 0000002098 | B31: LICOR DE CREMA DE FRUTAS AMARULA 17º 0.750 LTS | C31: 634.41 | D31: =IFERROR(VLOOKUP($A31,'Lista de Precios_Bolívares_S'!$F:$Q,6,FALSE),"") ->  | E31: =IFERROR(VLOOKUP($A31,'Lista de Precios_Bolívares_S'!$F:$Q,12,FALSE),"") ->  | G31: =IFERROR(VLOOKUP($A31,'Lista de Precios_USD$_Euro€'!$E:$O,11,FALSE),"") -> 20.5
A32: 0000002158 | B32: VINO TINTO ROSARIO MERLOT 13.2° 0.750 LTS | C32: 155.27 | D32: =IFERROR(VLOOKUP($A32,'Lista de Precios_Bolívares_S'!$F:$Q,6,FALSE),"") -> 27.3275 | E32: =IFERROR(VLOOKUP($A32,'Lista de Precios_Bolívares_S'!$F:$Q,12,FALSE),"") -> 33 | F32: 155.27 | G32: =IFERROR(VLOOKUP($A32,'Lista de Precios_USD$_Euro€'!$E:$O,11,FALSE),"") -> 5.500078504
A33: 0000002160 | B33: VINO ROSADO ROSARIO 12.6° 0.750 LTS | C33: 168.99 | D33: =IFERROR(VLOOKUP($A33,'Lista de Precios_Bolívares_S'!$F:$Q,6,FALSE),"") -> 27.3275 | E33: =IFERROR(VLOOKUP($A33,'Lista de Precios_Bolívares_S'!$F:$Q,12,FALSE),"") -> 33 | F33: 168.99 | G33: =IFERROR(VLOOKUP($A33,'Lista de Precios_USD$_Euro€'!$E:$O,11,FALSE),"") -> 6.000865801
A34: 0000002161 | B34: AGUARDIENTE CALICANTO 40? 1LTS | C34: 94.14 | D34: =IFERROR(VLOOKUP($A34,'Lista de Precios_Bolívares_S'!$F:$Q,6,FALSE),"") -> 22.47 | E34: =IFERROR(VLOOKUP($A34,'Lista de Precios_Bolívares_S'!$F:$Q,12,FALSE),"") -> 22.5 | F34: 94.14 | G34: =IFERROR(VLOOKUP($A34,'Lista de Precios_USD$_Euro€'!$E:$O,11,FALSE),"") -> 3.04
A35: 0000002249 | B35: SIDRA DE FRESA CERESER 4.7º 0.660 LTS | C35: 182.33 | D35: =IFERROR(VLOOKUP($A35,'Lista de Precios_Bolívares_S'!$F:$Q,6,FALSE),"") ->  | E35: =IFERROR(VLOOKUP($A35,'Lista de Precios_Bolívares_S'!$F:$Q,12,FALSE),"") ->  | G35: =IFERROR(VLOOKUP($A35,'Lista de Precios_USD$_Euro€'!$E:$O,11,FALSE),"") -> 6.000134056
A36: 0000002250 | B36: SIDRA DE DURAZNO CERESER 4.7° 0.660 LTS | C36: 180.24 | D36: =IFERROR(VLOOKUP($A36,'Lista de Precios_Bolívares_S'!$F:$Q,6,FALSE),"") ->  | E36: =IFERROR(VLOOKUP($A36,'Lista de Precios_Bolívares_S'!$F:$Q,12,FALSE),"") ->  | G36: =IFERROR(VLOOKUP($A36,'Lista de Precios_USD$_Euro€'!$E:$O,11,FALSE),"") -> 6.000304152
A37: 0000002251 | B37: SIDRA DE MANZANA CERESER 6º 0.660 LTS | C37: 180.24 | D37: =IFERROR(VLOOKUP($A37,'Lista de Precios_Bolívares_S'!$F:$Q,6,FALSE),"") ->  | E37: =IFERROR(VLOOKUP($A37,'Lista de Precios_Bolívares_S'!$F:$Q,12,FALSE),"") ->  | G37: =IFERROR(VLOOKUP($A37,'Lista de Precios_USD$_Euro€'!$E:$O,11,FALSE),"") -> 6.000091409
A38: 0000002256 | B38: VODKA CITY OF LONDON DRY GIN 40° 0.700 LTS | C38: 119.35 | D38: =IFERROR(VLOOKUP($A38,'Lista de Precios_Bolívares_S'!$F:$Q,6,FALSE),"") -> 18.66 | E38: =IFERROR(VLOOKUP($A38,'Lista de Precios_Bolívares_S'!$F:$Q,12,FALSE),"") -> 19 | F38: 119.35 | G38: =IFERROR(VLOOKUP($A38,'Lista de Precios_USD$_Euro€'!$E:$O,11,FALSE),"") -> 4.2754
A39: 0000002257 | B39: GINEBRA CITY OF LONDON DRY GIN 40º 0.700 LTS | C39: 92.51 | D39: =IFERROR(VLOOKUP($A39,'Lista de Precios_Bolívares_S'!$F:$Q,6,FALSE),"") -> 18.66 | E39: =IFERROR(VLOOKUP($A39,'Lista de Precios_Bolívares_S'!$F:$Q,12,FALSE),"") -> 19 | F39: 92.51 | G39: =IFERROR(VLOOKUP($A39,'Lista de Precios_USD$_Euro€'!$E:$O,11,FALSE),"") -> 4.2754
A40: 0000002517 | B40: AGUARDIENTE ANISADO MICHE ANDINO LA MULERA 40° 1 LTS | C40: 99.45 | D40: =IFERROR(VLOOKUP($A40,'Lista de Precios_Bolívares_S'!$F:$Q,6,FALSE),"") -> 14.34 | E40: =IFERROR(VLOOKUP($A40,'Lista de Precios_Bolívares_S'!$F:$Q,12,FALSE),"") -> 14.7 | F40: 99.45 | G40: =IFERROR(VLOOKUP($A40,'Lista de Precios_USD$_Euro€'!$E:$O,11,FALSE),"") -> 3.337583333
A41: 0000002539 | B41: VINO TINTO MARQUES DE BORBA 14° 0.750LTS. | C41: 385.97 | D41: =IFERROR(VLOOKUP($A41,'Lista de Precios_Bolívares_S'!$F:$Q,6,FALSE),"") ->  | E41: =IFERROR(VLOOKUP($A41,'Lista de Precios_Bolívares_S'!$F:$Q,12,FALSE),"") ->  | G41: =IFERROR(VLOOKUP($A41,'Lista de Precios_USD$_Euro€'!$E:$O,11,FALSE),"") -> 12.78395026
A42: 0000002558 | B42: AGUARDIENTE DE COCUY ESPECIAL LARA 40º 1 LTS | C42: 92.9 | D42: =IFERROR(VLOOKUP($A42,'Lista de Precios_Bolívares_S'!$F:$Q,6,FALSE),"") -> 17.97 | E42: =IFERROR(VLOOKUP($A42,'Lista de Precios_Bolívares_S'!$F:$Q,12,FALSE),"") -> 18 | F42: 92.9 | G42: =IFERROR(VLOOKUP($A42,'Lista de Precios_USD$_Euro€'!$E:$O,11,FALSE),"") -> 
A43: 0000002760 | B43: WHISKY SCOTCH WILLIAM GRANT'S 40º 0.375 LTS | C43: 0.17 | D43: =IFERROR(VLOOKUP($A43,'Lista de Precios_Bolívares_S'!$F:$Q,6,FALSE),"") ->  | E43: =IFERROR(VLOOKUP($A43,'Lista de Precios_Bolívares_S'!$F:$Q,12,FALSE),"") ->  | G43: =IFERROR(VLOOKUP($A43,'Lista de Precios_USD$_Euro€'!$E:$O,11,FALSE),"") -> 
A44: 0000002893 | B44: AGUARDIENTE 55 BLANCO 40° 1.000 LTS | C44: 91.39 | D44: =IFERROR(VLOOKUP($A44,'Lista de Precios_Bolívares_S'!$F:$Q,6,FALSE),"") -> 13.45 | E44: =IFERROR(VLOOKUP($A44,'Lista de Precios_Bolívares_S'!$F:$Q,12,FALSE),"") -> 13.8 | F44: 91.39 | G44: =IFERROR(VLOOKUP($A44,'Lista de Precios_USD$_Euro€'!$E:$O,11,FALSE),"") -> 3.077791667
A45: 0000002920 | B45: BEBIDA GASEOSA DE FRESA ROBBY BUBBLE 0.750 LTS | C45: 179.65 | D45: =IFERROR(VLOOKUP($A45,'Lista de Precios_Bolívares_S'!$F:$Q,6,FALSE),"") ->  | E45: =IFERROR(VLOOKUP($A45,'Lista de Precios_Bolívares_S'!$F:$Q,12,FALSE),"") ->  | G45: =IFERROR(VLOOKUP($A45,'Lista de Precios_USD$_Euro€'!$E:$O,11,FALSE),"") -> 5.8
A46: 0000003008 | B46: LICOR DE COCO COCO MAMBO 30°GL 1LTS | C46: 100.73 | D46: =IFERROR(VLOOKUP($A46,'Lista de Precios_Bolívares_S'!$F:$Q,6,FALSE),"") -> 19.74 | E46: =IFERROR(VLOOKUP($A46,'Lista de Precios_Bolívares_S'!$F:$Q,12,FALSE),"") -> 21 | F46: 100.73 | G46: =IFERROR(VLOOKUP($A46,'Lista de Precios_USD$_Euro€'!$E:$O,11,FALSE),"") -> 
A47: 0000003040 | B47: VINO TINTO MISIONES DE RENGO CARMENÉRE 14° 0.750 LTS | C47: 189.95 | D47: =IFERROR(VLOOKUP($A47,'Lista de Precios_Bolívares_S'!$F:$Q,6,FALSE),"") ->  | E47: =IFERROR(VLOOKUP($A47,'Lista de Precios_Bolívares_S'!$F:$Q,12,FALSE),"") ->  | G47: =IFERROR(VLOOKUP($A47,'Lista de Precios_USD$_Euro€'!$E:$O,11,FALSE),"") -> 6.499833333
A48: 0000003041 | B48: VINO TINTO MISIONES DE RENGO CAB SAUVIGNON 14,10° 0.750 LTS | C48: 188.14 | D48: =IFERROR(VLOOKUP($A48,'Lista de Precios_Bolívares_S'!$F:$Q,6,FALSE),"") -> 34.95666667 | E48: =IFERROR(VLOOKUP($A48,'Lista de Precios_Bolívares_S'!$F:$Q,12,FALSE),"") -> 42 | F48: 188.14 | G48: =IFERROR(VLOOKUP($A48,'Lista de Precios_USD$_Euro€'!$E:$O,11,FALSE),"") -> 6.4997
A49: 0000003042 | B49: VINO TINTO MISIONES DE RENGO MERLOT 13.8° 0.750 LTS | C49: 188.14 | D49: =IFERROR(VLOOKUP($A49,'Lista de Precios_Bolívares_S'!$F:$Q,6,FALSE),"") -> 34.95666667 | E49: =IFERROR(VLOOKUP($A49,'Lista de Precios_Bolívares_S'!$F:$Q,12,FALSE),"") -> 42 | F49: 188.14 | G49: =IFERROR(VLOOKUP($A49,'Lista de Precios_USD$_Euro€'!$E:$O,11,FALSE),"") -> 6.4997
A50: 0000003043 | B50: VINO BCO MISIONES DE RENGO SAUV 13.3° 0.750 LTS | C50: 179.44 | D50: =IFERROR(VLOOKUP($A50,'Lista de Precios_Bolívares_S'!$F:$Q,6,FALSE),"") -> 34.95666667 | E50: =IFERROR(VLOOKUP($A50,'Lista de Precios_Bolívares_S'!$F:$Q,12,FALSE),"") -> 42 | F50: 179.44 | G50: =IFERROR(VLOOKUP($A50,'Lista de Precios_USD$_Euro€'!$E:$O,11,FALSE),"") -> 6.500336667
A51: 0000003719 | B51: VINO BLANCO ESPUMANTE DEMI-SEC ALEXANDER 12? 0.750 LTS | C51: 149.82 | D51: =IFERROR(VLOOKUP($A51,'Lista de Precios_Bolívares_S'!$F:$Q,6,FALSE),"") ->  | E51: =IFERROR(VLOOKUP($A51,'Lista de Precios_Bolívares_S'!$F:$Q,12,FALSE),"") ->  | G51: =IFERROR(VLOOKUP($A51,'Lista de Precios_USD$_Euro€'!$E:$O,11,FALSE),"") -> 
A52: 0000005334 | B52: AGUARDIENTE CALICANTO 40º 0.350 LTS | C52: 43.05 | D52: =IFERROR(VLOOKUP($A52,'Lista de Precios_Bolívares_S'!$F:$Q,6,FALSE),"") -> 11.99 | E52: =IFERROR(VLOOKUP($A52,'Lista de Precios_Bolívares_S'!$F:$Q,12,FALSE),"") -> 12 | F52: 43.05 | G52: =IFERROR(VLOOKUP($A52,'Lista de Precios_USD$_Euro€'!$E:$O,11,FALSE),"") -> 1.39
A53: 0000005492 | B53: VODKA ERISTOFF 40° 0.700 LTS | C53: 166.23 | D53: =IFERROR(VLOOKUP($A53,'Lista de Precios_Bolívares_S'!$F:$Q,6,FALSE),"") -> 30 | E53: =IFERROR(VLOOKUP($A53,'Lista de Precios_Bolívares_S'!$F:$Q,12,FALSE),"") -> 30 | F53: 166.23 | G53: =IFERROR(VLOOKUP($A53,'Lista de Precios_USD$_Euro€'!$E:$O,11,FALSE),"") -> 6.658233333
A54: 0000005493 | B54: WHISKY SCOTCH DUNFIFE 40? 0.700 LTS. | C54: 198.67 | D54: =IFERROR(VLOOKUP($A54,'Lista de Precios_Bolívares_S'!$F:$Q,6,FALSE),"") ->  | E54: =IFERROR(VLOOKUP($A54,'Lista de Precios_Bolívares_S'!$F:$Q,12,FALSE),"") ->  | G54: =IFERROR(VLOOKUP($A54,'Lista de Precios_USD$_Euro€'!$E:$O,11,FALSE),"") -> 6.501318083
A55: 0000005540 | B55: VINO BCO MISIONES DE RENGO CHARDONNAY 13.5° 0.750 LTS | C55: 0.2 | D55: =IFERROR(VLOOKUP($A55,'Lista de Precios_Bolívares_S'!$F:$Q,6,FALSE),"") ->  | E55: =IFERROR(VLOOKUP($A55,'Lista de Precios_Bolívares_S'!$F:$Q,12,FALSE),"") ->  | G55: =IFERROR(VLOOKUP($A55,'Lista de Precios_USD$_Euro€'!$E:$O,11,FALSE),"") -> 
A56: 0000005961 | B56: SANGRIA LA ESPAÑOLA DE VINO BLANCO 7° 0.750 LTS | C56: 129.37 | D56: =IFERROR(VLOOKUP($A56,'Lista de Precios_Bolívares_S'!$F:$Q,6,FALSE),"") ->  | E56: =IFERROR(VLOOKUP($A56,'Lista de Precios_Bolívares_S'!$F:$Q,12,FALSE),"") ->  | G56: =IFERROR(VLOOKUP($A56,'Lista de Precios_USD$_Euro€'!$E:$O,11,FALSE),"") -> 3.791333333
A57: 0000006062 | B57: VINO TINTO MISIONES DE RENGO CUVÉE CAB SAUV GRAN RESERVA 14° 0.750 LTS | C57: 437.8 | D57: =IFERROR(VLOOKUP($A57,'Lista de Precios_Bolívares_S'!$F:$Q,6,FALSE),"") ->  | E57: =IFERROR(VLOOKUP($A57,'Lista de Precios_Bolívares_S'!$F:$Q,12,FALSE),"") ->  | G57: =IFERROR(VLOOKUP($A57,'Lista de Precios_USD$_Euro€'!$E:$O,11,FALSE),"") -> 14.99650538
A58: 0000006063 | B58: VINO BCO MISIONES DE RENGO CUVÉE CHARDONNAY 14° 0.750 LTS | C58: 0.37 | D58: =IFERROR(VLOOKUP($A58,'Lista de Precios_Bolívares_S'!$F:$Q,6,FALSE),"") ->  | E58: =IFERROR(VLOOKUP($A58,'Lista de Precios_Bolívares_S'!$F:$Q,12,FALSE),"") ->  | G58: =IFERROR(VLOOKUP($A58,'Lista de Precios_USD$_Euro€'!$E:$O,11,FALSE),"") -> 
A59: 0000006102 | B59: VODKA MOSKOVSKAYA 40° 0.700 LTS | C59: 316.37 | D59: =IFERROR(VLOOKUP($A59,'Lista de Precios_Bolívares_S'!$F:$Q,6,FALSE),"") ->  | E59: =IFERROR(VLOOKUP($A59,'Lista de Precios_Bolívares_S'!$F:$Q,12,FALSE),"") ->  | G59: =IFERROR(VLOOKUP($A59,'Lista de Precios_USD$_Euro€'!$E:$O,11,FALSE),"") -> 11.68428571
A60: 0000006103 | B60: VINO BCO ESP LIEBFRAUMILCH SCHLOSS ARRAS N 11.5° 0.750 LTS | C60: 288.61 | D60: =IFERROR(VLOOKUP($A60,'Lista de Precios_Bolívares_S'!$F:$Q,6,FALSE),"") ->  | E60: =IFERROR(VLOOKUP($A60,'Lista de Precios_Bolívares_S'!$F:$Q,12,FALSE),"") ->  | G60: =IFERROR(VLOOKUP($A60,'Lista de Precios_USD$_Euro€'!$E:$O,11,FALSE),"") -> 10.14833333
A61: 0000006105 | B61: BEBIDA GASEOSA ROBBY BUBBLE DURAZNO 0.750L | C61: 179.65 | D61: =IFERROR(VLOOKUP($A61,'Lista de Precios_Bolívares_S'!$F:$Q,6,FALSE),"") ->  | E61: =IFERROR(VLOOKUP($A61,'Lista de Precios_Bolívares_S'!$F:$Q,12,FALSE),"") ->  | G61: =IFERROR(VLOOKUP($A61,'Lista de Precios_USD$_Euro€'!$E:$O,11,FALSE),"") -> 5.8
A62: 0000006139 | B62: SANGRIA FIESTA BRAVA 10° 1.75 LTS | C62: 135.96 | D62: =IFERROR(VLOOKUP($A62,'Lista de Precios_Bolívares_S'!$F:$Q,6,FALSE),"") ->  | E62: =IFERROR(VLOOKUP($A62,'Lista de Precios_Bolívares_S'!$F:$Q,12,FALSE),"") ->  | G62: =IFERROR(VLOOKUP($A62,'Lista de Precios_USD$_Euro€'!$E:$O,11,FALSE),"") -> 4.863666667
A63: 0000006141 | B63: RON AÑEJO OCUMARE EDICION RESERVADA 40º 0.700 LTS | C63: 634.82 | D63: =IFERROR(VLOOKUP($A63,'Lista de Precios_Bolívares_S'!$F:$Q,6,FALSE),"") ->  | E63: =IFERROR(VLOOKUP($A63,'Lista de Precios_Bolívares_S'!$F:$Q,12,FALSE),"") ->  | G63: =IFERROR(VLOOKUP($A63,'Lista de Precios_USD$_Euro€'!$E:$O,11,FALSE),"") -> 21.03333333
A64: 0000006143 | B64: BEBIDA ESPIRITUOSA SECA CALICANTO AMBAR 30? 1.000 LTS | C64: 95.06 | D64: =IFERROR(VLOOKUP($A64,'Lista de Precios_Bolívares_S'!$F:$Q,6,FALSE),"") -> 22.47 | E64: =IFERROR(VLOOKUP($A64,'Lista de Precios_Bolívares_S'!$F:$Q,12,FALSE),"") -> 22.5 | F64: 95.06 | G64: =IFERROR(VLOOKUP($A64,'Lista de Precios_USD$_Euro€'!$E:$O,11,FALSE),"") -> 3.07
A65: 0000006144 | B65: BEBIDA ESPIRITUOSA SECA CALICANTO AMBAR 30? 0.70 LTS | C65: 74.32 | D65: =IFERROR(VLOOKUP($A65,'Lista de Precios_Bolívares_S'!$F:$Q,6,FALSE),"") -> 17.98 | E65: =IFERROR(VLOOKUP($A65,'Lista de Precios_Bolívares_S'!$F:$Q,12,FALSE),"") -> 18 | F65: 74.32 | G65: =IFERROR(VLOOKUP($A65,'Lista de Precios_USD$_Euro€'!$E:$O,11,FALSE),"") -> 2.4
A66: 0000006186 | B66: BEBIDA ESPIRITUOSA SECA CALICANTO AMBAR 30º 0.350 LTS | C66: 43.66 | D66: =IFERROR(VLOOKUP($A66,'Lista de Precios_Bolívares_S'!$F:$Q,6,FALSE),"") -> 11.99 | E66: =IFERROR(VLOOKUP($A66,'Lista de Precios_Bolívares_S'!$F:$Q,12,FALSE),"") -> 12 | F66: 43.66 | G66: =IFERROR(VLOOKUP($A66,'Lista de Precios_USD$_Euro€'!$E:$O,11,FALSE),"") -> 
A67: 0000006187 | B67: B.E.S. MACONDO CON MACERACION DE ROBLE 31.50° 0.350 LTS | C67: 3.75 | D67: =IFERROR(VLOOKUP($A67,'Lista de Precios_Bolívares_S'!$F:$Q,6,FALSE),"") ->  | E67: =IFERROR(VLOOKUP($A67,'Lista de Precios_Bolívares_S'!$F:$Q,12,FALSE),"") ->  | F67: =IFERROR(IF(ROUND($C67,2)=ROUND($D67,2),ROUND($E67,2),ROUND($C67,2)),"") ->  | G67: =IFERROR(VLOOKUP($A67,'Lista de Precios_USD$_Euro€'!$E:$O,11,FALSE),"") -> 
A68: 0000006321 | B68: BOLSAS SIN LOGO 15 KILOS | C68: 0.47 | D68: =IFERROR(VLOOKUP($A68,'Lista de Precios_Bolívares_S'!$F:$Q,6,FALSE),"") ->  | E68: =IFERROR(VLOOKUP($A68,'Lista de Precios_Bolívares_S'!$F:$Q,12,FALSE),"") ->  | G68: =IFERROR(VLOOKUP($A68,'Lista de Precios_USD$_Euro€'!$E:$O,11,FALSE),"") -> 
A69: 0000006372 | B69: CHUCHERÍA PAPAS PRINGLES ORIGINAL149GR | C69: 92.92 | D69: =IFERROR(VLOOKUP($A69,'Lista de Precios_Bolívares_S'!$F:$Q,6,FALSE),"") ->  | E69: =IFERROR(VLOOKUP($A69,'Lista de Precios_Bolívares_S'!$F:$Q,12,FALSE),"") ->  | G69: =IFERROR(VLOOKUP($A69,'Lista de Precios_USD$_Euro€'!$E:$O,11,FALSE),"") -> 3
A70: 0000006382 | B70: VINO TTO MISIONES DE RENGO CAB SAUV 14.1ª 0.185 LTS | C70: 65.97 | D70: =IFERROR(VLOOKUP($A70,'Lista de Precios_Bolívares_S'!$F:$Q,6,FALSE),"") -> 12.52541667 | E70: =IFERROR(VLOOKUP($A70,'Lista de Precios_Bolívares_S'!$F:$Q,12,FALSE),"") -> 15 | F70: 65.97 | G70: =IFERROR(VLOOKUP($A70,'Lista de Precios_USD$_Euro€'!$E:$O,11,FALSE),"") -> 2.13
A71: 0000006721 | B71: CHUCHERÍA PAPAS PRINGLES JALAPEÑO 158GRS | C71: 92.92 | D71: =IFERROR(VLOOKUP($A71,'Lista de Precios_Bolívares_S'!$F:$Q,6,FALSE),"") ->  | E71: =IFERROR(VLOOKUP($A71,'Lista de Precios_Bolívares_S'!$F:$Q,12,FALSE),"") ->  | G71: =IFERROR(VLOOKUP($A71,'Lista de Precios_USD$_Euro€'!$E:$O,11,FALSE),"") -> 3
A72: 0000007007 | B72: CHUCHERÍA PAPAS PRINGLES BARBECUE 158GRS | C72: 92.92 | D72: =IFERROR(VLOOKUP($A72,'Lista de Precios_Bolívares_S'!$F:$Q,6,FALSE),"") ->  | E72: =IFERROR(VLOOKUP($A72,'Lista de Precios_Bolívares_S'!$F:$Q,12,FALSE),"") ->  | G72: =IFERROR(VLOOKUP($A72,'Lista de Precios_USD$_Euro€'!$E:$O,11,FALSE),"") -> 3
A73: 0000007537 | B73: VINO TINTO LOIOS ALENTEJANO TTO 14ª 0.750 LTS | C73: 314.96 | D73: =IFERROR(VLOOKUP($A73,'Lista de Precios_Bolívares_S'!$F:$Q,6,FALSE),"") ->  | E73: =IFERROR(VLOOKUP($A73,'Lista de Precios_Bolívares_S'!$F:$Q,12,FALSE),"") ->  | G73: =IFERROR(VLOOKUP($A73,'Lista de Precios_USD$_Euro€'!$E:$O,11,FALSE),"") -> 10.40291339
A74: 0000007538 | B74: VINO BCO LOIOS ALENTEJO BCO 12.5ª 0.750 LTS | C74: 314.96 | D74: =IFERROR(VLOOKUP($A74,'Lista de Precios_Bolívares_S'!$F:$Q,6,FALSE),"") ->  | E74: =IFERROR(VLOOKUP($A74,'Lista de Precios_Bolívares_S'!$F:$Q,12,FALSE),"") ->  | G74: =IFERROR(VLOOKUP($A74,'Lista de Precios_USD$_Euro€'!$E:$O,11,FALSE),"") -> 10.40291339
A75: 0000007540 | B75: VINO BCO MARQUES DE BORBA 12.5ª 0.750 LTS | C75: 385.97 | D75: =IFERROR(VLOOKUP($A75,'Lista de Precios_Bolívares_S'!$F:$Q,6,FALSE),"") ->  | E75: =IFERROR(VLOOKUP($A75,'Lista de Precios_Bolívares_S'!$F:$Q,12,FALSE),"") ->  | G75: =IFERROR(VLOOKUP($A75,'Lista de Precios_USD$_Euro€'!$E:$O,11,FALSE),"") -> 12.78395026
A76: 0000007733 | B76: CHUCHERÍA PAPAS PRINGLES CREMA Y CEBOLLA 158GRS | C76: 92.92 | D76: =IFERROR(VLOOKUP($A76,'Lista de Precios_Bolívares_S'!$F:$Q,6,FALSE),"") ->  | E76: =IFERROR(VLOOKUP($A76,'Lista de Precios_Bolívares_S'!$F:$Q,12,FALSE),"") ->  | G76: =IFERROR(VLOOKUP($A76,'Lista de Precios_USD$_Euro€'!$E:$O,11,FALSE),"") -> 3
A77: 0000007748 | B77: CHUCHERÍA PAPAS PRINGLES QUESO.158GRS | C77: 92.92 | D77: =IFERROR(VLOOKUP($A77,'Lista de Precios_Bolívares_S'!$F:$Q,6,FALSE),"") ->  | E77: =IFERROR(VLOOKUP($A77,'Lista de Precios_Bolívares_S'!$F:$Q,12,FALSE),"") ->  | G77: =IFERROR(VLOOKUP($A77,'Lista de Precios_USD$_Euro€'!$E:$O,11,FALSE),"") -> 3
A78: 0000007788 | B78: RON AÑEJO EL CORSARIO MOMENTOS 40º 0,700 LTS | C78: 160.82 | D78: =IFERROR(VLOOKUP($A78,'Lista de Precios_Bolívares_S'!$F:$Q,6,FALSE),"") -> 30.6 | E78: =IFERROR(VLOOKUP($A78,'Lista de Precios_Bolívares_S'!$F:$Q,12,FALSE),"") -> 34.5 | F78: 160.82 | G78: =IFERROR(VLOOKUP($A78,'Lista de Precios_USD$_Euro€'!$E:$O,11,FALSE),"") -> 
A79: 0000007829 | B79: GINEBRA WIMBLEDON 40º 0.700 LTS | C79: 98.94 | D79: =IFERROR(VLOOKUP($A79,'Lista de Precios_Bolívares_S'!$F:$Q,6,FALSE),"") -> 17.43 | E79: =IFERROR(VLOOKUP($A79,'Lista de Precios_Bolívares_S'!$F:$Q,12,FALSE),"") -> 19.5 | F79: 98.94 | G79: =IFERROR(VLOOKUP($A79,'Lista de Precios_USD$_Euro€'!$E:$O,11,FALSE),"") -> 
A80: 0000007830 | B80: VODKA WIMBLEDON 40º 0.700 LTS | C80: 98.94 | D80: =IFERROR(VLOOKUP($A80,'Lista de Precios_Bolívares_S'!$F:$Q,6,FALSE),"") -> 17.43 | E80: =IFERROR(VLOOKUP($A80,'Lista de Precios_Bolívares_S'!$F:$Q,12,FALSE),"") -> 19.5 | F80: 98.94 | G80: =IFERROR(VLOOKUP($A80,'Lista de Precios_USD$_Euro€'!$E:$O,11,FALSE),"") -> 
A81: 0000007872 | B81: VODKA STOLICHNAYA 40º 1.000 LTS. | C81: 475.73 | D81: =IFERROR(VLOOKUP($A81,'Lista de Precios_Bolívares_S'!$F:$Q,6,FALSE),"") ->  | E81: =IFERROR(VLOOKUP($A81,'Lista de Precios_Bolívares_S'!$F:$Q,12,FALSE),"") ->  | G81: =IFERROR(VLOOKUP($A81,'Lista de Precios_USD$_Euro€'!$E:$O,11,FALSE),"") -> 17.32857143
A82: 0000007885 | B82: LICOR S.DE BRANDY BRANDIÑAC 40º 0,700 LTS | C82: 136.3 | D82: =IFERROR(VLOOKUP($A82,'Lista de Precios_Bolívares_S'!$F:$Q,6,FALSE),"") -> 20.37 | E82: =IFERROR(VLOOKUP($A82,'Lista de Precios_Bolívares_S'!$F:$Q,12,FALSE),"") -> 20.76 | F82: 136.3 | G82: =IFERROR(VLOOKUP($A82,'Lista de Precios_USD$_Euro€'!$E:$O,11,FALSE),"") -> 4.533551659
A83: 0000007900 | B83: LICOR SECO BADE RON EXTRA CARUPANO 39° 0.700LTS | C83: 88.17 | D83: =IFERROR(VLOOKUP($A83,'Lista de Precios_Bolívares_S'!$F:$Q,6,FALSE),"") -> 17.53 | E83: =IFERROR(VLOOKUP($A83,'Lista de Precios_Bolívares_S'!$F:$Q,12,FALSE),"") -> 18 | F83: 88.17 | G83: =IFERROR(VLOOKUP($A83,'Lista de Precios_USD$_Euro€'!$E:$O,11,FALSE),"") -> 2.961488889
A84: 0000007910 | B84: VINO TTO MISIONES DE RENGO RESERVA MERLOT 14° 0,750 LTS | C84: 0.22 | D84: =IFERROR(VLOOKUP($A84,'Lista de Precios_Bolívares_S'!$F:$Q,6,FALSE),"") ->  | E84: =IFERROR(VLOOKUP($A84,'Lista de Precios_Bolívares_S'!$F:$Q,12,FALSE),"") ->  | G84: =IFERROR(VLOOKUP($A84,'Lista de Precios_USD$_Euro€'!$E:$O,11,FALSE),"") -> 
A85: 0000007949 | B85: VINO TTO RIOJA BORDÒN CRIANZA TTO 12,5º 0.750 LTS | C85: 61.95 | D85: =IFERROR(VLOOKUP($A85,'Lista de Precios_Bolívares_S'!$F:$Q,6,FALSE),"") -> 75.94583333 | E85: =IFERROR(VLOOKUP($A85,'Lista de Precios_Bolívares_S'!$F:$Q,12,FALSE),"") -> 90 | F85: 61.95 | G85: =IFERROR(VLOOKUP($A85,'Lista de Precios_USD$_Euro€'!$E:$O,11,FALSE),"") -> 8.98
A86: 0000007971 | B86: GINEBRA TRAGOS BOTELLA DE GINEBRA 40º PET 1.750 LTS | C86: 155.96 | D86: =IFERROR(VLOOKUP($A86,'Lista de Precios_Bolívares_S'!$F:$Q,6,FALSE),"") ->  | E86: =IFERROR(VLOOKUP($A86,'Lista de Precios_Bolívares_S'!$F:$Q,12,FALSE),"") ->  | G86: =IFERROR(VLOOKUP($A86,'Lista de Precios_USD$_Euro€'!$E:$O,11,FALSE),"") -> 5.566666667
A87: 0000007972 | B87: VODKA TRAGOS BOTELLA DE VODKA 40º PET 1.750LTS | C87: 155.96 | D87: =IFERROR(VLOOKUP($A87,'Lista de Precios_Bolívares_S'!$F:$Q,6,FALSE),"") ->  | E87: =IFERROR(VLOOKUP($A87,'Lista de Precios_Bolívares_S'!$F:$Q,12,FALSE),"") ->  | G87: =IFERROR(VLOOKUP($A87,'Lista de Precios_USD$_Euro€'!$E:$O,11,FALSE),"") -> 5.566666667
A88: 0000008218 | B88: VINO BLANCO ESPUMANTE MISIONES DE RENGO BRUT 12.5° 0.750 LTS | C88: 238.18 | D88: =IFERROR(VLOOKUP($A88,'Lista de Precios_Bolívares_S'!$F:$Q,6,FALSE),"") -> 42.56833333 | E88: =IFERROR(VLOOKUP($A88,'Lista de Precios_Bolívares_S'!$F:$Q,12,FALSE),"") -> 51 | F88: 238.18 | G88: =IFERROR(VLOOKUP($A88,'Lista de Precios_USD$_Euro€'!$E:$O,11,FALSE),"") -> 
A89: 0000008219 | B89: VINO TTO MISIONES DE RENGO CUVEE CARMENERE 14° 0.750 LTS | C89: 437.8 | D89: =IFERROR(VLOOKUP($A89,'Lista de Precios_Bolívares_S'!$F:$Q,6,FALSE),"") ->  | E89: =IFERROR(VLOOKUP($A89,'Lista de Precios_Bolívares_S'!$F:$Q,12,FALSE),"") ->  | G89: =IFERROR(VLOOKUP($A89,'Lista de Precios_USD$_Euro€'!$E:$O,11,FALSE),"") -> 14.99650538
A90: 0000008239 | B90: B.E.S. ANISADO MICHE ANDINO CALICANTO 30° 1.000 | C90: 95.06 | D90: =IFERROR(VLOOKUP($A90,'Lista de Precios_Bolívares_S'!$F:$Q,6,FALSE),"") -> 22.47 | E90: =IFERROR(VLOOKUP($A90,'Lista de Precios_Bolívares_S'!$F:$Q,12,FALSE),"") -> 22.5 | F90: 95.06 | G90: =IFERROR(VLOOKUP($A90,'Lista de Precios_USD$_Euro€'!$E:$O,11,FALSE),"") -> 3.07
A91: 0000008240 | B91: B.E.S.ANISADO MICHE ANDINO CALICANTO 30° 0.700 LTS | C91: 74.32 | D91: =IFERROR(VLOOKUP($A91,'Lista de Precios_Bolívares_S'!$F:$Q,6,FALSE),"") -> 17.98 | E91: =IFERROR(VLOOKUP($A91,'Lista de Precios_Bolívares_S'!$F:$Q,12,FALSE),"") -> 18 | F91: 74.32 | G91: =IFERROR(VLOOKUP($A91,'Lista de Precios_USD$_Euro€'!$E:$O,11,FALSE),"") -> 2.4
A92: 0000008344 | B92: SANGRIA DON JULIAN PET 8° 1.750 LTS | C92: 132.15 | D92: =IFERROR(VLOOKUP($A92,'Lista de Precios_Bolívares_S'!$F:$Q,6,FALSE),"") -> 23.95 | E92: =IFERROR(VLOOKUP($A92,'Lista de Precios_Bolívares_S'!$F:$Q,12,FALSE),"") -> 24 | F92: 132.15 | G92: =IFERROR(VLOOKUP($A92,'Lista de Precios_USD$_Euro€'!$E:$O,11,FALSE),"") -> 4.592209618
A93: 0000008400 | B93: SANGRIA LA ESPAÑOLA DE VINO TINTO 7° 0.750 LTS | C93: 129.37 | D93: =IFERROR(VLOOKUP($A93,'Lista de Precios_Bolívares_S'!$F:$Q,6,FALSE),"") ->  | E93: =IFERROR(VLOOKUP($A93,'Lista de Precios_Bolívares_S'!$F:$Q,12,FALSE),"") ->  | G93: =IFERROR(VLOOKUP($A93,'Lista de Precios_USD$_Euro€'!$E:$O,11,FALSE),"") -> 3.791333333
A94: 0000008596 | B94: VINO TTO MISIONES DE RENGO RESERVA CABERNET SAUVIGNON 14° 0.750 LTS | C94: 277.88 | D94: =IFERROR(VLOOKUP($A94,'Lista de Precios_Bolívares_S'!$F:$Q,6,FALSE),"") -> 45.20833333 | E94: =IFERROR(VLOOKUP($A94,'Lista de Precios_Bolívares_S'!$F:$Q,12,FALSE),"") -> 54 | F94: 277.88 | G94: =IFERROR(VLOOKUP($A94,'Lista de Precios_USD$_Euro€'!$E:$O,11,FALSE),"") -> 8.523769841
A95: 0000008964 | B95: BEBIDA GASEOSA ROBBY BUBBLE CEREZA 0.750 LTS | C95: 179.65 | D95: =IFERROR(VLOOKUP($A95,'Lista de Precios_Bolívares_S'!$F:$Q,6,FALSE),"") ->  | E95: =IFERROR(VLOOKUP($A95,'Lista de Precios_Bolívares_S'!$F:$Q,12,FALSE),"") ->  | G95: =IFERROR(VLOOKUP($A95,'Lista de Precios_USD$_Euro€'!$E:$O,11,FALSE),"") -> 5.8
A96: 0000008965 | B96: BEBIDA GASEOSA ROBBY BUBBLE TROPICAL 0.750 LTS | C96: 179.65 | D96: =IFERROR(VLOOKUP($A96,'Lista de Precios_Bolívares_S'!$F:$Q,6,FALSE),"") ->  | E96: =IFERROR(VLOOKUP($A96,'Lista de Precios_Bolívares_S'!$F:$Q,12,FALSE),"") ->  | G96: =IFERROR(VLOOKUP($A96,'Lista de Precios_USD$_Euro€'!$E:$O,11,FALSE),"") -> 5.8
A97: 0000008995 | B97: VINO BCO LIEBFRAUMILCH BLUE ANGEL RHEINHESSEN 10º 0.750 LTS. | C97: 216.45 | D97: =IFERROR(VLOOKUP($A97,'Lista de Precios_Bolívares_S'!$F:$Q,6,FALSE),"") ->  | E97: =IFERROR(VLOOKUP($A97,'Lista de Precios_Bolívares_S'!$F:$Q,12,FALSE),"") ->  | G97: =IFERROR(VLOOKUP($A97,'Lista de Precios_USD$_Euro€'!$E:$O,11,FALSE),"") -> 7.77
A98: 0000009085 | B98: CHUCHERÍA PAPAS PRINGLES PIZZA 158GRS | C98: 92.92 | D98: =IFERROR(VLOOKUP($A98,'Lista de Precios_Bolívares_S'!$F:$Q,6,FALSE),"") ->  | E98: =IFERROR(VLOOKUP($A98,'Lista de Precios_Bolívares_S'!$F:$Q,12,FALSE),"") ->  | G98: =IFERROR(VLOOKUP($A98,'Lista de Precios_USD$_Euro€'!$E:$O,11,FALSE),"") -> 3
A99: 0000009260 | B99: WHISKY SCOTCH THE FAMOUS GROUSE 8 AÑOS 40º 0.750 LTS | C99: 343.6 | D99: =IFERROR(VLOOKUP($A99,'Lista de Precios_Bolívares_S'!$F:$Q,6,FALSE),"") ->  | E99: =IFERROR(VLOOKUP($A99,'Lista de Precios_Bolívares_S'!$F:$Q,12,FALSE),"") ->  | G99: =IFERROR(VLOOKUP($A99,'Lista de Precios_USD$_Euro€'!$E:$O,11,FALSE),"") -> 11.13
A100: 0000009386 | B100: SANGRIA LA ESPAÑOLA FRESA 7° 0.750 LTS | C100: 135.26 | D100: =IFERROR(VLOOKUP($A100,'Lista de Precios_Bolívares_S'!$F:$Q,6,FALSE),"") ->  | E100: =IFERROR(VLOOKUP($A100,'Lista de Precios_Bolívares_S'!$F:$Q,12,FALSE),"") ->  | G100: =IFERROR(VLOOKUP($A100,'Lista de Precios_USD$_Euro€'!$E:$O,11,FALSE),"") -> 4.574333333
A101: 0000009387 | B101: SANGRIA LA ESPAÑOLA DURAZNO 7° 0.750 LTS | C101: 135.26 | D101: =IFERROR(VLOOKUP($A101,'Lista de Precios_Bolívares_S'!$F:$Q,6,FALSE),"") ->  | E101: =IFERROR(VLOOKUP($A101,'Lista de Precios_Bolívares_S'!$F:$Q,12,FALSE),"") ->  | G101: =IFERROR(VLOOKUP($A101,'Lista de Precios_USD$_Euro€'!$E:$O,11,FALSE),"") -> 4.574333333
A102: 0000009549 | B102: BEBIDA GASEOSA ROBBY BUBBLE MANZANA 0.750 LTS | C102: 179.65 | D102: =IFERROR(VLOOKUP($A102,'Lista de Precios_Bolívares_S'!$F:$Q,6,FALSE),"") ->  | E102: =IFERROR(VLOOKUP($A102,'Lista de Precios_Bolívares_S'!$F:$Q,12,FALSE),"") ->  | G102: =IFERROR(VLOOKUP($A102,'Lista de Precios_USD$_Euro€'!$E:$O,11,FALSE),"") -> 5.8
A103: 0000009550 | B103: BEBIDA GASEOSA ROBBY BUBBLE FRAMBUESA 0.750 LTS | C103: 179.65 | D103: =IFERROR(VLOOKUP($A103,'Lista de Precios_Bolívares_S'!$F:$Q,6,FALSE),"") ->  | E103: =IFERROR(VLOOKUP($A103,'Lista de Precios_Bolívares_S'!$F:$Q,12,FALSE),"") ->  | G103: =IFERROR(VLOOKUP($A103,'Lista de Precios_USD$_Euro€'!$E:$O,11,FALSE),"") -> 5.8
A104: 0000009941 | B104: LICOR DULCE MOLIERE TRIPLE SEC ORANGE 40° 0.700 LTS | C104: 196.89 | D104: =IFERROR(VLOOKUP($A104,'Lista de Precios_Bolívares_S'!$F:$Q,6,FALSE),"") -> 30.65 | E104: =IFERROR(VLOOKUP($A104,'Lista de Precios_Bolívares_S'!$F:$Q,12,FALSE),"") -> 33 | F104: 196.89 | G104: =IFERROR(VLOOKUP($A104,'Lista de Precios_USD$_Euro€'!$E:$O,11,FALSE),"") -> 6.47
A105: 0000009942 | B105: LICOR DULCE VERONA AMARETO 28° 0.700 LTS | C105: 195.76 | D105: =IFERROR(VLOOKUP($A105,'Lista de Precios_Bolívares_S'!$F:$Q,6,FALSE),"") -> 30.08 | E105: =IFERROR(VLOOKUP($A105,'Lista de Precios_Bolívares_S'!$F:$Q,12,FALSE),"") -> 33 | F105: 195.76 | G105: =IFERROR(VLOOKUP($A105,'Lista de Precios_USD$_Euro€'!$E:$O,11,FALSE),"") -> 6.47
A106: 0000010100 | B106: VODKA STOLICHNAYA 40° 0.700 LTS. | C106: 370.37 | D106: =IFERROR(VLOOKUP($A106,'Lista de Precios_Bolívares_S'!$F:$Q,6,FALSE),"") ->  | E106: =IFERROR(VLOOKUP($A106,'Lista de Precios_Bolívares_S'!$F:$Q,12,FALSE),"") ->  | G106: =IFERROR(VLOOKUP($A106,'Lista de Precios_USD$_Euro€'!$E:$O,11,FALSE),"") -> 13.6
A107: 0000010159 | B107: LICOR CREMA DE CAFÉ MORASÁN 26,5° 0.700 LTS | C107: 195.09 | D107: =IFERROR(VLOOKUP($A107,'Lista de Precios_Bolívares_S'!$F:$Q,6,FALSE),"") -> 29.45 | E107: =IFERROR(VLOOKUP($A107,'Lista de Precios_Bolívares_S'!$F:$Q,12,FALSE),"") -> 33 | F107: 195.09 | G107: =IFERROR(VLOOKUP($A107,'Lista de Precios_USD$_Euro€'!$E:$O,11,FALSE),"") -> 6.47
A108: 0000010160 | B108: LICOR DULCE NÁPOLI SAMBVCA 40° 0.700 LTS. | C108: 197.14 | D108: =IFERROR(VLOOKUP($A108,'Lista de Precios_Bolívares_S'!$F:$Q,6,FALSE),"") -> 30.82 | E108: =IFERROR(VLOOKUP($A108,'Lista de Precios_Bolívares_S'!$F:$Q,12,FALSE),"") -> 33 | F108: 197.14 | G108: =IFERROR(VLOOKUP($A108,'Lista de Precios_USD$_Euro€'!$E:$O,11,FALSE),"") -> 6.47
A109: 0000010202 | B109: LICOR DE WHISKY PRESIDENT LIMITED RESERVE 40° 0.700 LTS | C109: 101.46 | D109: =IFERROR(VLOOKUP($A109,'Lista de Precios_Bolívares_S'!$F:$Q,6,FALSE),"") -> 20.44 | E109: =IFERROR(VLOOKUP($A109,'Lista de Precios_Bolívares_S'!$F:$Q,12,FALSE),"") -> 21 | F109: 101.46 | G109: =IFERROR(VLOOKUP($A109,'Lista de Precios_USD$_Euro€'!$E:$O,11,FALSE),"") -> 3.414755556
A110: 0000010214 | B110: SANGRIA LA ESPAÑOLA PARCHITA 7° 0.750 LTS | C110: 135.26 | D110: =IFERROR(VLOOKUP($A110,'Lista de Precios_Bolívares_S'!$F:$Q,6,FALSE),"") ->  | E110: =IFERROR(VLOOKUP($A110,'Lista de Precios_Bolívares_S'!$F:$Q,12,FALSE),"") ->  | G110: =IFERROR(VLOOKUP($A110,'Lista de Precios_USD$_Euro€'!$E:$O,11,FALSE),"") -> 4.574333333
A111: 0000010233 | B111: LICOR DE VODKA TRAGOS VODKA COCO 40º PET 1.750 LTS | C111: 155.96 | D111: =IFERROR(VLOOKUP($A111,'Lista de Precios_Bolívares_S'!$F:$Q,6,FALSE),"") ->  | E111: =IFERROR(VLOOKUP($A111,'Lista de Precios_Bolívares_S'!$F:$Q,12,FALSE),"") ->  | G111: =IFERROR(VLOOKUP($A111,'Lista de Precios_USD$_Euro€'!$E:$O,11,FALSE),"") -> 5.566666667
A112: 0000010283 | B112: LICOR DE VODKA TRAGOS VODKA PARCHITA 40º PET 1.750 LTS | C112: 155.96 | D112: =IFERROR(VLOOKUP($A112,'Lista de Precios_Bolívares_S'!$F:$Q,6,FALSE),"") ->  | E112: =IFERROR(VLOOKUP($A112,'Lista de Precios_Bolívares_S'!$F:$Q,12,FALSE),"") ->  | G112: =IFERROR(VLOOKUP($A112,'Lista de Precios_USD$_Euro€'!$E:$O,11,FALSE),"") -> 5.566666667
A113: 0000010367 | B113: VODKA GUARANA ZEPPELIN 30° 0.700 LTS | C113: 123.9 | D113: =IFERROR(VLOOKUP($A113,'Lista de Precios_Bolívares_S'!$F:$Q,6,FALSE),"") -> 23.93 | E113: =IFERROR(VLOOKUP($A113,'Lista de Precios_Bolívares_S'!$F:$Q,12,FALSE),"") -> 24 | F113: 123.9 | G113: =IFERROR(VLOOKUP($A113,'Lista de Precios_USD$_Euro€'!$E:$O,11,FALSE),"") -> 4
A114: 0000010398 | B114: VINO ROSADO MISIONES DE RENGO CABERNET SAUVIGNON SYRAH 13° 0.750 LTS | C114: 0.03 | D114: =IFERROR(VLOOKUP($A114,'Lista de Precios_Bolívares_S'!$F:$Q,6,FALSE),"") ->  | E114: =IFERROR(VLOOKUP($A114,'Lista de Precios_Bolívares_S'!$F:$Q,12,FALSE),"") ->  | G114: =IFERROR(VLOOKUP($A114,'Lista de Precios_USD$_Euro€'!$E:$O,11,FALSE),"") -> 
A115: 0000010415 | B115: BOLSAS SIN LOGO 5 KILOS | C115: 0.03 | D115: =IFERROR(VLOOKUP($A115,'Lista de Precios_Bolívares_S'!$F:$Q,6,FALSE),"") ->  | E115: =IFERROR(VLOOKUP($A115,'Lista de Precios_Bolívares_S'!$F:$Q,12,FALSE),"") ->  | G115: =IFERROR(VLOOKUP($A115,'Lista de Precios_USD$_Euro€'!$E:$O,11,FALSE),"") -> 
A116: 0000010506 | B116: GINEBRA ERISTOFF 40° 0.700 LTS | C116: 193.07 | D116: =IFERROR(VLOOKUP($A116,'Lista de Precios_Bolívares_S'!$F:$Q,6,FALSE),"") -> 30 | E116: =IFERROR(VLOOKUP($A116,'Lista de Precios_Bolívares_S'!$F:$Q,12,FALSE),"") -> 30 | F116: 193.07 | G116: =IFERROR(VLOOKUP($A116,'Lista de Precios_USD$_Euro€'!$E:$O,11,FALSE),"") -> 6.658233333
A117: 0000010535 | B117: B.E.S. EXTRA COSTEÑO 32° 0,700 LTS | C117: 96.29 | D117: =IFERROR(VLOOKUP($A117,'Lista de Precios_Bolívares_S'!$F:$Q,6,FALSE),"") ->  | E117: =IFERROR(VLOOKUP($A117,'Lista de Precios_Bolívares_S'!$F:$Q,12,FALSE),"") ->  | G117: =IFERROR(VLOOKUP($A117,'Lista de Precios_USD$_Euro€'!$E:$O,11,FALSE),"") -> 3.2
A118: 0000010776 | B118: BEBIDA ESPIRITUOSA SECA MACONDO ANISADO 30° 1.000 LTS | C118: 7.5 | D118: =IFERROR(VLOOKUP($A118,'Lista de Precios_Bolívares_S'!$F:$Q,6,FALSE),"") ->  | E118: =IFERROR(VLOOKUP($A118,'Lista de Precios_Bolívares_S'!$F:$Q,12,FALSE),"") ->  | G118: =IFERROR(VLOOKUP($A118,'Lista de Precios_USD$_Euro€'!$E:$O,11,FALSE),"") -> 
A119: 0000010983 | B119: VINO ESPUMANTE ALEXANDER BRUT 7º 0.750 LTS | C119: 149.82 | D119: =IFERROR(VLOOKUP($A119,'Lista de Precios_Bolívares_S'!$F:$Q,6,FALSE),"") ->  | E119: =IFERROR(VLOOKUP($A119,'Lista de Precios_Bolívares_S'!$F:$Q,12,FALSE),"") ->  | G119: =IFERROR(VLOOKUP($A119,'Lista de Precios_USD$_Euro€'!$E:$O,11,FALSE),"") -> 
A120: 0000010992 | B120: LICOR SECO DE BRANDY DON JUAN 40° 0.700 LTS | C120: 61.94 | D120: =IFERROR(VLOOKUP($A120,'Lista de Precios_Bolívares_S'!$F:$Q,6,FALSE),"") -> 11.99 | E120: =IFERROR(VLOOKUP($A120,'Lista de Precios_Bolívares_S'!$F:$Q,12,FALSE),"") -> 12 | F120: 61.94 | G120: =IFERROR(VLOOKUP($A120,'Lista de Precios_USD$_Euro€'!$E:$O,11,FALSE),"") -> 2
A121: 0000010998 | B121: LICOR SECO SABOR A RON TINAJERO 40° 1.000 LT | C121: 131.01 | D121: =IFERROR(VLOOKUP($A121,'Lista de Precios_Bolívares_S'!$F:$Q,6,FALSE),"") -> 25.49 | E121: =IFERROR(VLOOKUP($A121,'Lista de Precios_Bolívares_S'!$F:$Q,12,FALSE),"") -> 25.5 | F121: 131.01 | G121: =IFERROR(VLOOKUP($A121,'Lista de Precios_USD$_Euro€'!$E:$O,11,FALSE),"") -> 4.23
A122: 0000011008 | B122: BEBIDA ESPIRITUOSA SECA MACONDO CON MACERACION DE ROBLE 31.50° 0.700 LTS | C122: 6.25 | D122: =IFERROR(VLOOKUP($A122,'Lista de Precios_Bolívares_S'!$F:$Q,6,FALSE),"") ->  | E122: =IFERROR(VLOOKUP($A122,'Lista de Precios_Bolívares_S'!$F:$Q,12,FALSE),"") ->  | G122: =IFERROR(VLOOKUP($A122,'Lista de Precios_USD$_Euro€'!$E:$O,11,FALSE),"") -> 
A123: 0000011009 | B123: BEBIDA ESPIRITUOSA SECA MACONDO ANISADO 30º 0.350 LTS | C123: 3.13 | D123: =IFERROR(VLOOKUP($A123,'Lista de Precios_Bolívares_S'!$F:$Q,6,FALSE),"") ->  | E123: =IFERROR(VLOOKUP($A123,'Lista de Precios_Bolívares_S'!$F:$Q,12,FALSE),"") ->  | G123: =IFERROR(VLOOKUP($A123,'Lista de Precios_USD$_Euro€'!$E:$O,11,FALSE),"") -> 
A124: 0000011180 | B124: CARBÓN VEGETAL MILENIUM 1,5 KGS | C124: 72.17 | D124: =IFERROR(VLOOKUP($A124,'Lista de Precios_Bolívares_S'!$F:$Q,6,FALSE),"") ->  | E124: =IFERROR(VLOOKUP($A124,'Lista de Precios_Bolívares_S'!$F:$Q,12,FALSE),"") ->  | G124: =IFERROR(VLOOKUP($A124,'Lista de Precios_USD$_Euro€'!$E:$O,11,FALSE),"") -> 2.33
A125: 0000011181 | B125: CARBÓN VEGETAL MILENIUM 5 KGS | C125: 240.67 | D125: =IFERROR(VLOOKUP($A125,'Lista de Precios_Bolívares_S'!$F:$Q,6,FALSE),"") ->  | E125: =IFERROR(VLOOKUP($A125,'Lista de Precios_Bolívares_S'!$F:$Q,12,FALSE),"") ->  | G125: =IFERROR(VLOOKUP($A125,'Lista de Precios_USD$_Euro€'!$E:$O,11,FALSE),"") -> 7.77
A126: 0000011182 | B126: CARBON VEGETAL MILENIUM 3KGS | C126: 144.34 | D126: =IFERROR(VLOOKUP($A126,'Lista de Precios_Bolívares_S'!$F:$Q,6,FALSE),"") ->  | E126: =IFERROR(VLOOKUP($A126,'Lista de Precios_Bolívares_S'!$F:$Q,12,FALSE),"") ->  | G126: =IFERROR(VLOOKUP($A126,'Lista de Precios_USD$_Euro€'!$E:$O,11,FALSE),"") -> 4.66
A127: 0000011256 | B127: AGUARDIENTE ARAGUANEY 40° 1.000 LTS | C127: 95.06 | D127: =IFERROR(VLOOKUP($A127,'Lista de Precios_Bolívares_S'!$F:$Q,6,FALSE),"") -> 22.47 | E127: =IFERROR(VLOOKUP($A127,'Lista de Precios_Bolívares_S'!$F:$Q,12,FALSE),"") -> 22.5 | F127: 95.06 | G127: =IFERROR(VLOOKUP($A127,'Lista de Precios_USD$_Euro€'!$E:$O,11,FALSE),"") -> 3.07
A128: 0000011486 | B128: ANIS NAMUR 30° 1.000 LTS | C128: 121.38 | D128: =IFERROR(VLOOKUP($A128,'Lista de Precios_Bolívares_S'!$F:$Q,6,FALSE),"") -> 28.46 | E128: =IFERROR(VLOOKUP($A128,'Lista de Precios_Bolívares_S'!$F:$Q,12,FALSE),"") -> 28.5 | F128: 121.38 | G128: =IFERROR(VLOOKUP($A128,'Lista de Precios_USD$_Euro€'!$E:$O,11,FALSE),"") -> 3.92
A129: 0000011494 | B129: LICOR SECO DOBLE 5 ROJO 30° 1.000 LTS | C129: 53.42 | D129: =IFERROR(VLOOKUP($A129,'Lista de Precios_Bolívares_S'!$F:$Q,6,FALSE),"") -> 9.87 | E129: =IFERROR(VLOOKUP($A129,'Lista de Precios_Bolívares_S'!$F:$Q,12,FALSE),"") -> 10.5 | F129: 53.42 | G129: =IFERROR(VLOOKUP($A129,'Lista de Precios_USD$_Euro€'!$E:$O,11,FALSE),"") -> 
A130: 0000011495 | B130: LICOR SECO DOBLE 5 BLANCO 30° 1.000 LTS | C130: 53.42 | D130: =IFERROR(VLOOKUP($A130,'Lista de Precios_Bolívares_S'!$F:$Q,6,FALSE),"") -> 9.87 | E130: =IFERROR(VLOOKUP($A130,'Lista de Precios_Bolívares_S'!$F:$Q,12,FALSE),"") -> 10.5 | F130: 53.42 | G130: =IFERROR(VLOOKUP($A130,'Lista de Precios_USD$_Euro€'!$E:$O,11,FALSE),"") -> 
A131: 0000011507 | B131: SANGRIA LA ESPAÑOLA MANZANA 7° 0.750 LTS | C131: 135.26 | D131: =IFERROR(VLOOKUP($A131,'Lista de Precios_Bolívares_S'!$F:$Q,6,FALSE),"") ->  | E131: =IFERROR(VLOOKUP($A131,'Lista de Precios_Bolívares_S'!$F:$Q,12,FALSE),"") ->  | F131: =IFERROR(IF(ROUND($C131,2)=ROUND($D131,2),ROUND($E131,2),ROUND($C131,2)),"") ->  | G131: =IFERROR(VLOOKUP($A131,'Lista de Precios_USD$_Euro€'!$E:$O,11,FALSE),"") -> 4.574333333
A132: 0000011799 | B132: BEBIDA ESPIRITUOSA SECA CARICUA PLATINO 39° 1.000LTS | C132: 61.94 | D132: =IFERROR(VLOOKUP($A132,'Lista de Precios_Bolívares_S'!$F:$Q,6,FALSE),"") -> 11.09 | E132: =IFERROR(VLOOKUP($A132,'Lista de Precios_Bolívares_S'!$F:$Q,12,FALSE),"") -> 12 | F132: 61.94 | G132: =IFERROR(VLOOKUP($A132,'Lista de Precios_USD$_Euro€'!$E:$O,11,FALSE),"") -> 
A133: 0000011800 | B133: BEBIDA ESPIRITUOSA SECA CARICUAO PLATINO 39° 0.700LTS | C133: 46.45 | D133: =IFERROR(VLOOKUP($A133,'Lista de Precios_Bolívares_S'!$F:$Q,6,FALSE),"") -> 8.1 | E133: =IFERROR(VLOOKUP($A133,'Lista de Precios_Bolívares_S'!$F:$Q,12,FALSE),"") -> 9 | F133: 46.45 | G133: =IFERROR(VLOOKUP($A133,'Lista de Precios_USD$_Euro€'!$E:$O,11,FALSE),"") -> 
A134: 0000011869 | B134: LICOR SECO DOBLE 5 ROJO 30° 0.350 LTS | C134: 33.45 | D134: =IFERROR(VLOOKUP($A134,'Lista de Precios_Bolívares_S'!$F:$Q,6,FALSE),"") -> 6.42 | E134: =IFERROR(VLOOKUP($A134,'Lista de Precios_Bolívares_S'!$F:$Q,12,FALSE),"") -> 6.6 | F134: 33.45 | G134: =IFERROR(VLOOKUP($A134,'Lista de Precios_USD$_Euro€'!$E:$O,11,FALSE),"") -> 
A135: 0000011873 | B135: LICOR SECO DOBLE 5 BLANCO 30° 0.350 LTS | C135: 33.45 | D135: =IFERROR(VLOOKUP($A135,'Lista de Precios_Bolívares_S'!$F:$Q,6,FALSE),"") -> 6.42 | E135: =IFERROR(VLOOKUP($A135,'Lista de Precios_Bolívares_S'!$F:$Q,12,FALSE),"") -> 6.6 | F135: 33.45 | G135: =IFERROR(VLOOKUP($A135,'Lista de Precios_USD$_Euro€'!$E:$O,11,FALSE),"") -> 1.08
A136: 0000011876 | B136: COMBO 1BOT PACK BES CARUPANO EXTRA 39° +1 VASO 0.700 LTS | C136: 91.63 | D136: =IFERROR(VLOOKUP($A136,'Lista de Precios_Bolívares_S'!$F:$Q,6,FALSE),"") -> 17.53 | E136: =IFERROR(VLOOKUP($A136,'Lista de Precios_Bolívares_S'!$F:$Q,12,FALSE),"") -> 18 | F136: 91.63 | G136: =IFERROR(VLOOKUP($A136,'Lista de Precios_USD$_Euro€'!$E:$O,11,FALSE),"") -> 
A137: 0000011877 | B137: COMBO 1BOT PACK LIC DE BRANDY PURA CEPA 40° +1 VASO 0.700LTS | C137: 83.58 | D137: =IFERROR(VLOOKUP($A137,'Lista de Precios_Bolívares_S'!$F:$Q,6,FALSE),"") -> 16.08 | E137: =IFERROR(VLOOKUP($A137,'Lista de Precios_Bolívares_S'!$F:$Q,12,FALSE),"") -> 16.5 | F137: 83.58 | G137: =IFERROR(VLOOKUP($A137,'Lista de Precios_USD$_Euro€'!$E:$O,11,FALSE),"") -> 
A138: 0000011878 | B138: COMBO 1BOT PACK LIC WHISKY PRESIDENT L. RESERVA 40°+1VASO 0.700LTS | C138: 23.97 | D138: =IFERROR(VLOOKUP($A138,'Lista de Precios_Bolívares_S'!$F:$Q,6,FALSE),"") ->  | E138: =IFERROR(VLOOKUP($A138,'Lista de Precios_Bolívares_S'!$F:$Q,12,FALSE),"") ->  | G138: =IFERROR(VLOOKUP($A138,'Lista de Precios_USD$_Euro€'!$E:$O,11,FALSE),"") -> 
A139: 0000011948 | B139: COMBO LIC COCO MAMBO 30° 1.LTS 1BOT+1UND BEBIBA EN POLVO 1.000LTS | C139: 12.25 | D139: =IFERROR(VLOOKUP($A139,'Lista de Precios_Bolívares_S'!$F:$Q,6,FALSE),"") ->  | E139: =IFERROR(VLOOKUP($A139,'Lista de Precios_Bolívares_S'!$F:$Q,12,FALSE),"") ->  | G139: =IFERROR(VLOOKUP($A139,'Lista de Precios_USD$_Euro€'!$E:$O,11,FALSE),"") -> 
A140: 0000011949 | B140: COMBO GIN WIMBLENDON 40° 0.7LTS 1BOT+1 BEBIDA EN POLVO 0.700LTS | C140: 12.25 | D140: =IFERROR(VLOOKUP($A140,'Lista de Precios_Bolívares_S'!$F:$Q,6,FALSE),"") ->  | E140: =IFERROR(VLOOKUP($A140,'Lista de Precios_Bolívares_S'!$F:$Q,12,FALSE),"") ->  | G140: =IFERROR(VLOOKUP($A140,'Lista de Precios_USD$_Euro€'!$E:$O,11,FALSE),"") -> 
A141: 0000011966 | B141: COMBO RON EL CORSARIO 1 BOT+ VASO 40 ° 0.700 LTS | C141: 14 | D141: =IFERROR(VLOOKUP($A141,'Lista de Precios_Bolívares_S'!$F:$Q,6,FALSE),"") ->  | E141: =IFERROR(VLOOKUP($A141,'Lista de Precios_Bolívares_S'!$F:$Q,12,FALSE),"") ->  | G141: =IFERROR(VLOOKUP($A141,'Lista de Precios_USD$_Euro€'!$E:$O,11,FALSE),"") -> 
A142: 0000012007 | B142: B.E.S COLAITO DORADO PET 30° 1.000LTS | C142: 53.38 | D142: =IFERROR(VLOOKUP($A142,'Lista de Precios_Bolívares_S'!$F:$Q,6,FALSE),"") -> 8.87 | E142: =IFERROR(VLOOKUP($A142,'Lista de Precios_Bolívares_S'!$F:$Q,12,FALSE),"") -> 9.24 | F142: 53.38 | G142: =IFERROR(VLOOKUP($A142,'Lista de Precios_USD$_Euro€'!$E:$O,11,FALSE),"") -> 1.747875
A143: 0000012009 | B143: LICOR BASE DE RON EXTRA CARUPANO 39° 1.000LTS | C143: 94.75 | D143: =IFERROR(VLOOKUP($A143,'Lista de Precios_Bolívares_S'!$F:$Q,6,FALSE),"") -> 20.59 | E143: =IFERROR(VLOOKUP($A143,'Lista de Precios_Bolívares_S'!$F:$Q,12,FALSE),"") -> 21 | F143: 94.75 | G143: =IFERROR(VLOOKUP($A143,'Lista de Precios_USD$_Euro€'!$E:$O,11,FALSE),"") -> 3.186133333
A144: 0000012036 | B144: LICOR DE RON DORADO SAN AGUSTIN LEYENDA URBANA 36° 0,700 LTS | C144: 81.25 | D144: =IFERROR(VLOOKUP($A144,'Lista de Precios_Bolívares_S'!$F:$Q,6,FALSE),"") ->  | E144: =IFERROR(VLOOKUP($A144,'Lista de Precios_Bolívares_S'!$F:$Q,12,FALSE),"") ->  | G144: =IFERROR(VLOOKUP($A144,'Lista de Precios_USD$_Euro€'!$E:$O,11,FALSE),"") -> 2.635
A145: 0000012037 | B145: LICOR DE RON BLANCO SAN AGUSTIN LEY URBANA 36° 0,700LTS | C145: 84.65 | D145: =IFERROR(VLOOKUP($A145,'Lista de Precios_Bolívares_S'!$F:$Q,6,FALSE),"") ->  | E145: =IFERROR(VLOOKUP($A145,'Lista de Precios_Bolívares_S'!$F:$Q,12,FALSE),"") ->  | G145: =IFERROR(VLOOKUP($A145,'Lista de Precios_USD$_Euro€'!$E:$O,11,FALSE),"") -> 2.746643192
A146: 0000012052 | B146: WHISKY BLENDED SCOTCH KELVIN BRIDGE 40° 0,700 LTS | C146: 236.5 | D146: =IFERROR(VLOOKUP($A146,'Lista de Precios_Bolívares_S'!$F:$Q,6,FALSE),"") ->  | E146: =IFERROR(VLOOKUP($A146,'Lista de Precios_Bolívares_S'!$F:$Q,12,FALSE),"") ->  | G146: =IFERROR(VLOOKUP($A146,'Lista de Precios_USD$_Euro€'!$E:$O,11,FALSE),"") -> 
A147: 0000012142 | B147: COMBO CJA BES CARICUAO 12BOT 1.000+12BOT 0.700 39° 20.400LTS | C147: 325.36 | D147: =IFERROR(VLOOKUP($A147,'Lista de Precios_Bolívares_S'!$F:$Q,6,FALSE),"") ->  | E147: =IFERROR(VLOOKUP($A147,'Lista de Precios_Bolívares_S'!$F:$Q,12,FALSE),"") ->  | G147: =IFERROR(VLOOKUP($A147,'Lista de Precios_USD$_Euro€'!$E:$O,11,FALSE),"") -> 
A148: 0000012152 | B148: VODKA BLARNEFF NARANJA 29.2° 0.700 LTS | C148: 97.24 | D148: =IFERROR(VLOOKUP($A148,'Lista de Precios_Bolívares_S'!$F:$Q,6,FALSE),"") -> 19.48 | E148: =IFERROR(VLOOKUP($A148,'Lista de Precios_Bolívares_S'!$F:$Q,12,FALSE),"") -> 19.5 | F148: 97.24 | G148: =IFERROR(VLOOKUP($A148,'Lista de Precios_USD$_Euro€'!$E:$O,11,FALSE),"") -> 
A149: 0000012268 | B149: ANIS EXTRA 55 30° 1.000 LTS | C149: 112.26 | D149: =IFERROR(VLOOKUP($A149,'Lista de Precios_Bolívares_S'!$F:$Q,6,FALSE),"") -> 16.37 | E149: =IFERROR(VLOOKUP($A149,'Lista de Precios_Bolívares_S'!$F:$Q,12,FALSE),"") -> 17 | F149: 112.26 | G149: =IFERROR(VLOOKUP($A149,'Lista de Precios_USD$_Euro€'!$E:$O,11,FALSE),"") -> 3.84140133
A150: 0000012313 | B150: VINO CONSTELACION TINTO 12° 0.750 LTS | C150: 134.11 | D150: =IFERROR(VLOOKUP($A150,'Lista de Precios_Bolívares_S'!$F:$Q,6,FALSE),"") ->  | E150: =IFERROR(VLOOKUP($A150,'Lista de Precios_Bolívares_S'!$F:$Q,12,FALSE),"") ->  | G150: =IFERROR(VLOOKUP($A150,'Lista de Precios_USD$_Euro€'!$E:$O,11,FALSE),"") -> 4.33
A151: 0000012386 | B151: AGUARDIENTE BLANCO 55 40° 1.500 LTS | C151: 131.99 | D151: =IFERROR(VLOOKUP($A151,'Lista de Precios_Bolívares_S'!$F:$Q,6,FALSE),"") ->  | E151: =IFERROR(VLOOKUP($A151,'Lista de Precios_Bolívares_S'!$F:$Q,12,FALSE),"") ->  | G151: =IFERROR(VLOOKUP($A151,'Lista de Precios_USD$_Euro€'!$E:$O,11,FALSE),"") -> 4.517332995
A152: 0000012395 | B152: VINO CONSTELACION BLANCO 12° 0.750LTS | C152: 134.11 | D152: =IFERROR(VLOOKUP($A152,'Lista de Precios_Bolívares_S'!$F:$Q,6,FALSE),"") ->  | E152: =IFERROR(VLOOKUP($A152,'Lista de Precios_Bolívares_S'!$F:$Q,12,FALSE),"") ->  | G152: =IFERROR(VLOOKUP($A152,'Lista de Precios_USD$_Euro€'!$E:$O,11,FALSE),"") -> 4.33
A153: 0000012403 | B153: LICOR DE CAFÉ KAHLUA 20º 0.750 LTS | C153: 476.09 | D153: =IFERROR(VLOOKUP($A153,'Lista de Precios_Bolívares_S'!$F:$Q,6,FALSE),"") -> 81.45 | E153: =IFERROR(VLOOKUP($A153,'Lista de Precios_Bolívares_S'!$F:$Q,12,FALSE),"") -> 90 | F153: 476.09 | G153: =IFERROR(VLOOKUP($A153,'Lista de Precios_USD$_Euro€'!$E:$O,11,FALSE),"") -> 15.89333333
A154: 0000012466 | B154: SANGRIA DON JULIAN PET 8° 1.000 LTS | C154: 84.82 | D154: =IFERROR(VLOOKUP($A154,'Lista de Precios_Bolívares_S'!$F:$Q,6,FALSE),"") -> 13.53 | E154: =IFERROR(VLOOKUP($A154,'Lista de Precios_Bolívares_S'!$F:$Q,12,FALSE),"") -> 13.98 | F154: 84.82 | G154: =IFERROR(VLOOKUP($A154,'Lista de Precios_USD$_Euro€'!$E:$O,11,FALSE),"") -> 2.62
A155: 0000012507 | B155: BEBIDA ENERGETICA FURIA ENERGY CON AZUCAR 0.250LTS | C155: 43.67 | D155: =IFERROR(VLOOKUP($A155,'Lista de Precios_Bolívares_S'!$F:$Q,6,FALSE),"") -> 7.344827586 | E155: =IFERROR(VLOOKUP($A155,'Lista de Precios_Bolívares_S'!$F:$Q,12,FALSE),"") -> 8.52 | F155: 43.67 | G155: =IFERROR(VLOOKUP($A155,'Lista de Precios_USD$_Euro€'!$E:$O,11,FALSE),"") -> 
A156: 0000012508 | B156: BEBIDA ENERGETICA FURIA ENERGY SIN AZUCAR 0.250LTS | C156: 43.67 | D156: =IFERROR(VLOOKUP($A156,'Lista de Precios_Bolívares_S'!$F:$Q,6,FALSE),"") -> 7.344827586 | E156: =IFERROR(VLOOKUP($A156,'Lista de Precios_Bolívares_S'!$F:$Q,12,FALSE),"") -> 8.52 | F156: 43.67 | G156: =IFERROR(VLOOKUP($A156,'Lista de Precios_USD$_Euro€'!$E:$O,11,FALSE),"") -> 1.41
A157: 0000012515 | B157: WHISKY SCOTCH THE MACALLAN 18AÑOS DOUBLE CASK 43° 0.700LTS | C157: 13 | D157: =IFERROR(VLOOKUP($A157,'Lista de Precios_Bolívares_S'!$F:$Q,6,FALSE),"") -> 2456.57 | E157: =IFERROR(VLOOKUP($A157,'Lista de Precios_Bolívares_S'!$F:$Q,12,FALSE),"") -> 2712 | F157: 13 | G157: =IFERROR(VLOOKUP($A157,'Lista de Precios_USD$_Euro€'!$E:$O,11,FALSE),"") -> 433.26
A158: 0000012516 | B158: WHISKY SCOTH THE MACALLAN 15AÑOS DOUBLE CASK 43° 0.700LTS | C158: 4 | D158: =IFERROR(VLOOKUP($A158,'Lista de Precios_Bolívares_S'!$F:$Q,6,FALSE),"") -> 895.31 | E158: =IFERROR(VLOOKUP($A158,'Lista de Precios_Bolívares_S'!$F:$Q,12,FALSE),"") -> 996 | F158: 4 | G158: =IFERROR(VLOOKUP($A158,'Lista de Precios_USD$_Euro€'!$E:$O,11,FALSE),"") -> 161.55
A159: 0000012517 | B159: WHISKY SCOTCH THE MACALLAN CLASSIC CUT 55° 0.700LTS | C159: 4 | D159: =IFERROR(VLOOKUP($A159,'Lista de Precios_Bolívares_S'!$F:$Q,6,FALSE),"") -> 817.53 | E159: =IFERROR(VLOOKUP($A159,'Lista de Precios_Bolívares_S'!$F:$Q,12,FALSE),"") -> 906 | F159: 4 | G159: =IFERROR(VLOOKUP($A159,'Lista de Precios_USD$_Euro€'!$E:$O,11,FALSE),"") -> 144.5
A160: 0000012518 | B160: WHISKY SCOTCH THE MACALLAN SHERRY 12AÑOS 40° 0.700LTS | C160: 2 | D160: =IFERROR(VLOOKUP($A160,'Lista de Precios_Bolívares_S'!$F:$Q,6,FALSE),"") -> 543.94 | E160: =IFERROR(VLOOKUP($A160,'Lista de Precios_Bolívares_S'!$F:$Q,12,FALSE),"") -> 604.5 | F160: 2 | G160: =IFERROR(VLOOKUP($A160,'Lista de Precios_USD$_Euro€'!$E:$O,11,FALSE),"") -> 96.54
A161: 0000012519 | B161: WHISKY SCOTCH THE MACALLAN TRIPLE CASK 12AÑOS 40° 0.700LTS | C161: 2 | D161: =IFERROR(VLOOKUP($A161,'Lista de Precios_Bolívares_S'!$F:$Q,6,FALSE),"") -> 485.69 | E161: =IFERROR(VLOOKUP($A161,'Lista de Precios_Bolívares_S'!$F:$Q,12,FALSE),"") -> 544.5 | F161: 2 | G161: =IFERROR(VLOOKUP($A161,'Lista de Precios_USD$_Euro€'!$E:$O,11,FALSE),"") -> 86.24
A162: 0000012520 | B162: WHISKY SCOTCH THE MACALLAN DOUBLE CASK 12AÑOS 40° 0.700LTS | C162: 2 | D162: =IFERROR(VLOOKUP($A162,'Lista de Precios_Bolívares_S'!$F:$Q,6,FALSE),"") -> 535.94 | E162: =IFERROR(VLOOKUP($A162,'Lista de Precios_Bolívares_S'!$F:$Q,12,FALSE),"") -> 594 | F162: 2 | G162: =IFERROR(VLOOKUP($A162,'Lista de Precios_USD$_Euro€'!$E:$O,11,FALSE),"") -> 94.53
A163: 0000012521 | B163: WHISKY SCOTH SIR ALBERT 40° 0.700LTS | C163: 234.04 | D163: =IFERROR(VLOOKUP($A163,'Lista de Precios_Bolívares_S'!$F:$Q,6,FALSE),"") -> 39.53 | E163: =IFERROR(VLOOKUP($A163,'Lista de Precios_Bolívares_S'!$F:$Q,12,FALSE),"") -> 48 | F163: 234.04 | G163: =IFERROR(VLOOKUP($A163,'Lista de Precios_USD$_Euro€'!$E:$O,11,FALSE),"") -> 7.59
A164: 0000012523 | B164: LICOR DE CREMA AMARULA VAINILLA 15.5° 0.750LTS | C164: 634.41 | D164: =IFERROR(VLOOKUP($A164,'Lista de Precios_Bolívares_S'!$F:$Q,6,FALSE),"") ->  | E164: =IFERROR(VLOOKUP($A164,'Lista de Precios_Bolívares_S'!$F:$Q,12,FALSE),"") ->  | G164: =IFERROR(VLOOKUP($A164,'Lista de Precios_USD$_Euro€'!$E:$O,11,FALSE),"") -> 20.5
A165: 0000012524 | B165: TEQUILA ARRAIGO REPOSADO 35° 0.700LTS | C165: 549.92 | D165: =IFERROR(VLOOKUP($A165,'Lista de Precios_Bolívares_S'!$F:$Q,6,FALSE),"") ->  | E165: =IFERROR(VLOOKUP($A165,'Lista de Precios_Bolívares_S'!$F:$Q,12,FALSE),"") ->  | G165: =IFERROR(VLOOKUP($A165,'Lista de Precios_USD$_Euro€'!$E:$O,11,FALSE),"") -> 
A166: 0000012525 | B166: TEQUILA ARRAIGO SILVER 35° 0.700LTS | C166: 549.99 | D166: =IFERROR(VLOOKUP($A166,'Lista de Precios_Bolívares_S'!$F:$Q,6,FALSE),"") ->  | E166: =IFERROR(VLOOKUP($A166,'Lista de Precios_Bolívares_S'!$F:$Q,12,FALSE),"") ->  | G166: =IFERROR(VLOOKUP($A166,'Lista de Precios_USD$_Euro€'!$E:$O,11,FALSE),"") -> 
A167: 0000012526 | B167: BEBIDA GASEOSA FOUR LOKO SANDIA 12° 0.473LTS | C167: 111.81 | D167: =IFERROR(VLOOKUP($A167,'Lista de Precios_Bolívares_S'!$F:$Q,6,FALSE),"") -> 20.87 | E167: =IFERROR(VLOOKUP($A167,'Lista de Precios_Bolívares_S'!$F:$Q,12,FALSE),"") -> 24 | F167: 111.81 | G167: =IFERROR(VLOOKUP($A167,'Lista de Precios_USD$_Euro€'!$E:$O,11,FALSE),"") -> 3.63
A168: 0000012527 | B168: BEBIDA GASEOSA FOUR LOKO PONCHE FRUTAS 12° 0.473LTS | C168: 111.81 | D168: =IFERROR(VLOOKUP($A168,'Lista de Precios_Bolívares_S'!$F:$Q,6,FALSE),"") -> 20.87 | E168: =IFERROR(VLOOKUP($A168,'Lista de Precios_Bolívares_S'!$F:$Q,12,FALSE),"") -> 24 | F168: 111.81 | G168: =IFERROR(VLOOKUP($A168,'Lista de Precios_USD$_Euro€'!$E:$O,11,FALSE),"") -> 3.63
A169: 0000012528 | B169: BEBIDA GASEOSA FOUR LOKO GOLD 12° 0.473LTS | C169: 111.81 | D169: =IFERROR(VLOOKUP($A169,'Lista de Precios_Bolívares_S'!$F:$Q,6,FALSE),"") -> 20.87 | E169: =IFERROR(VLOOKUP($A169,'Lista de Precios_Bolívares_S'!$F:$Q,12,FALSE),"") -> 24 | F169: 111.81 | G169: =IFERROR(VLOOKUP($A169,'Lista de Precios_USD$_Euro€'!$E:$O,11,FALSE),"") -> 3.63
A170: 0000012529 | B170: BEBIDA GASEOSA FOUR LOKO PURPLE-UVA 12° 0.473LTS | C170: 111.81 | D170: =IFERROR(VLOOKUP($A170,'Lista de Precios_Bolívares_S'!$F:$Q,6,FALSE),"") -> 20.87 | E170: =IFERROR(VLOOKUP($A170,'Lista de Precios_Bolívares_S'!$F:$Q,12,FALSE),"") -> 24 | F170: 111.81 | G170: =IFERROR(VLOOKUP($A170,'Lista de Precios_USD$_Euro€'!$E:$O,11,FALSE),"") -> 3.63
A171: 0000012530 | B171: BEBIDA GASEOSA FOUR LOKO BLUE 12° 0.473LTS | C171: 111.81 | D171: =IFERROR(VLOOKUP($A171,'Lista de Precios_Bolívares_S'!$F:$Q,6,FALSE),"") -> 20.87 | E171: =IFERROR(VLOOKUP($A171,'Lista de Precios_Bolívares_S'!$F:$Q,12,FALSE),"") -> 24 | F171: 111.81 | G171: =IFERROR(VLOOKUP($A171,'Lista de Precios_USD$_Euro€'!$E:$O,11,FALSE),"") -> 3.63
A172: 0000012531 | B172: BEBIDA GASEOSA FOUR LOKO GREEN 12° 0.473LTS | C172: 111.81 | D172: =IFERROR(VLOOKUP($A172,'Lista de Precios_Bolívares_S'!$F:$Q,6,FALSE),"") -> 20.87 | E172: =IFERROR(VLOOKUP($A172,'Lista de Precios_Bolívares_S'!$F:$Q,12,FALSE),"") -> 24 | F172: 111.81 | G172: =IFERROR(VLOOKUP($A172,'Lista de Precios_USD$_Euro€'!$E:$O,11,FALSE),"") -> 3.63
A173: 0000012532 | B173: PONCHE CREMA DON CHUCHO 14° 0.700LTS | C173: 274.29 | D173: =IFERROR(VLOOKUP($A173,'Lista de Precios_Bolívares_S'!$F:$Q,6,FALSE),"") ->  | E173: =IFERROR(VLOOKUP($A173,'Lista de Precios_Bolívares_S'!$F:$Q,12,FALSE),"") ->  | G173: =IFERROR(VLOOKUP($A173,'Lista de Precios_USD$_Euro€'!$E:$O,11,FALSE),"") -> 9.62
A174: 0000012563 | B174: ANIS EXTRA 55 MARAQUITA 30° 1000LTS | C174: 112.26 | D174: =IFERROR(VLOOKUP($A174,'Lista de Precios_Bolívares_S'!$F:$Q,6,FALSE),"") -> 16.29 | E174: =IFERROR(VLOOKUP($A174,'Lista de Precios_Bolívares_S'!$F:$Q,12,FALSE),"") -> 16.98 | F174: 112.26 | G174: =IFERROR(VLOOKUP($A174,'Lista de Precios_USD$_Euro€'!$E:$O,11,FALSE),"") -> 3.841827687
A175: 0000012564 | B175: ANIS EXTRA 55 STAR PURE BLUE 25° 1000LTS | C175: 112.26 | D175: =IFERROR(VLOOKUP($A175,'Lista de Precios_Bolívares_S'!$F:$Q,6,FALSE),"") -> 16.29 | E175: =IFERROR(VLOOKUP($A175,'Lista de Precios_Bolívares_S'!$F:$Q,12,FALSE),"") -> 16.98 | F175: 112.26 | G175: =IFERROR(VLOOKUP($A175,'Lista de Precios_USD$_Euro€'!$E:$O,11,FALSE),"") -> 3.841827687
A176: 0000012566 | B176: VINO BCO ESP MISIONES DE RENGO DEMI SEC 12.10° 0.750LTS | C176: 304.46 | D176: =IFERROR(VLOOKUP($A176,'Lista de Precios_Bolívares_S'!$F:$Q,6,FALSE),"") ->  | E176: =IFERROR(VLOOKUP($A176,'Lista de Precios_Bolívares_S'!$F:$Q,12,FALSE),"") ->  | G176: =IFERROR(VLOOKUP($A176,'Lista de Precios_USD$_Euro€'!$E:$O,11,FALSE),"") -> 9.999632768
A177: 0000012567 | B177: VINO RSD ESP MISIONES DE RENGO ROSE 12.2° 0.750LTS | C177: 304.32 | D177: =IFERROR(VLOOKUP($A177,'Lista de Precios_Bolívares_S'!$F:$Q,6,FALSE),"") ->  | E177: =IFERROR(VLOOKUP($A177,'Lista de Precios_Bolívares_S'!$F:$Q,12,FALSE),"") ->  | G177: =IFERROR(VLOOKUP($A177,'Lista de Precios_USD$_Euro€'!$E:$O,11,FALSE),"") -> 9.999632768
A178: 0000012568 | B178: VINO BCO ESP MISIONES DE RENGO BRUT 12.4° 0.750LTS | C178: 304.46 | D178: =IFERROR(VLOOKUP($A178,'Lista de Precios_Bolívares_S'!$F:$Q,6,FALSE),"") ->  | E178: =IFERROR(VLOOKUP($A178,'Lista de Precios_Bolívares_S'!$F:$Q,12,FALSE),"") ->  | G178: =IFERROR(VLOOKUP($A178,'Lista de Precios_USD$_Euro€'!$E:$O,11,FALSE),"") -> 9.998135767
A179: 0000012583 | B179: VINO TTO KOSCHER MANISCHEWITZ 11° 0.750LTS | C179: 249.54 | D179: =IFERROR(VLOOKUP($A179,'Lista de Precios_Bolívares_S'!$F:$Q,6,FALSE),"") ->  | E179: =IFERROR(VLOOKUP($A179,'Lista de Precios_Bolívares_S'!$F:$Q,12,FALSE),"") ->  | G179: =IFERROR(VLOOKUP($A179,'Lista de Precios_USD$_Euro€'!$E:$O,11,FALSE),"") -> 8.07
A180: 0000012584 | B180: VINO TTO CARLO ROSSI CALIFORNIA RED 12° 0.750LTS | C180: 242.41 | D180: =IFERROR(VLOOKUP($A180,'Lista de Precios_Bolívares_S'!$F:$Q,6,FALSE),"") ->  | E180: =IFERROR(VLOOKUP($A180,'Lista de Precios_Bolívares_S'!$F:$Q,12,FALSE),"") ->  | G180: =IFERROR(VLOOKUP($A180,'Lista de Precios_USD$_Euro€'!$E:$O,11,FALSE),"") -> 7.84
A181: 0000012585 | B181: VINO ARBOR MIST STRAWBERRY WHITE ZINFANDEL 6° 0.750LTS | C181: 249.54 | D181: =IFERROR(VLOOKUP($A181,'Lista de Precios_Bolívares_S'!$F:$Q,6,FALSE),"") ->  | E181: =IFERROR(VLOOKUP($A181,'Lista de Precios_Bolívares_S'!$F:$Q,12,FALSE),"") ->  | G181: =IFERROR(VLOOKUP($A181,'Lista de Precios_USD$_Euro€'!$E:$O,11,FALSE),"") -> 8.07
A182: 0000012586 | B182: VINO ARBOR MIST BLACKBERRY MERLOT 6° 0.750LTS | C182: 249.54 | D182: =IFERROR(VLOOKUP($A182,'Lista de Precios_Bolívares_S'!$F:$Q,6,FALSE),"") ->  | E182: =IFERROR(VLOOKUP($A182,'Lista de Precios_Bolívares_S'!$F:$Q,12,FALSE),"") ->  | G182: =IFERROR(VLOOKUP($A182,'Lista de Precios_USD$_Euro€'!$E:$O,11,FALSE),"") -> 8.07
A183: 0000012587 | B183: VINO ESPUMOSO ANDRE ROSE 10.5° 0.750LTS | C183: 384.77 | D183: =IFERROR(VLOOKUP($A183,'Lista de Precios_Bolívares_S'!$F:$Q,6,FALSE),"") ->  | E183: =IFERROR(VLOOKUP($A183,'Lista de Precios_Bolívares_S'!$F:$Q,12,FALSE),"") ->  | G183: =IFERROR(VLOOKUP($A183,'Lista de Precios_USD$_Euro€'!$E:$O,11,FALSE),"") -> 12.44
A184: 0000012588 | B184: VINO RSD ARBOR MIST MOSCATO RASPBERRY 6° 0.750LTS | C184: 249.54 | D184: =IFERROR(VLOOKUP($A184,'Lista de Precios_Bolívares_S'!$F:$Q,6,FALSE),"") ->  | E184: =IFERROR(VLOOKUP($A184,'Lista de Precios_Bolívares_S'!$F:$Q,12,FALSE),"") ->  | G184: =IFERROR(VLOOKUP($A184,'Lista de Precios_USD$_Euro€'!$E:$O,11,FALSE),"") -> 8.07
A185: 0000012589 | B185: SANGRIA RSD CARLO ROSSI PINK SWEET 8° 0.750LTS | C185: 232.19 | D185: =IFERROR(VLOOKUP($A185,'Lista de Precios_Bolívares_S'!$F:$Q,6,FALSE),"") ->  | E185: =IFERROR(VLOOKUP($A185,'Lista de Precios_Bolívares_S'!$F:$Q,12,FALSE),"") ->  | G185: =IFERROR(VLOOKUP($A185,'Lista de Precios_USD$_Euro€'!$E:$O,11,FALSE),"") -> 7.51
A186: 0000012590 | B186: BEBIDA ESPIRITUOSA SECA MORUCO 30° 1.000LTS | C186: 75.98 | D186: =IFERROR(VLOOKUP($A186,'Lista de Precios_Bolívares_S'!$F:$Q,6,FALSE),"") ->  | E186: =IFERROR(VLOOKUP($A186,'Lista de Precios_Bolívares_S'!$F:$Q,12,FALSE),"") ->  | G186: =IFERROR(VLOOKUP($A186,'Lista de Precios_USD$_Euro€'!$E:$O,11,FALSE),"") -> 2.467535211
A187: 0000012593 | B187: WHISKY SCOTCH FAMOUS GROUSE 8 AÑOS 40º 1.000 LTS | C187: 495.45 | D187: =IFERROR(VLOOKUP($A187,'Lista de Precios_Bolívares_S'!$F:$Q,6,FALSE),"") ->  | E187: =IFERROR(VLOOKUP($A187,'Lista de Precios_Bolívares_S'!$F:$Q,12,FALSE),"") ->  | G187: =IFERROR(VLOOKUP($A187,'Lista de Precios_USD$_Euro€'!$E:$O,11,FALSE),"") -> 16.36
A188: 0000012650 | B188: LICOR DE CREMA AMARULA ETHIOPIAN COFEE 15.5° 0.750LTS | C188: 634.41 | D188: =IFERROR(VLOOKUP($A188,'Lista de Precios_Bolívares_S'!$F:$Q,6,FALSE),"") ->  | E188: =IFERROR(VLOOKUP($A188,'Lista de Precios_Bolívares_S'!$F:$Q,12,FALSE),"") ->  | G188: =IFERROR(VLOOKUP($A188,'Lista de Precios_USD$_Euro€'!$E:$O,11,FALSE),"") -> 20.5
A189: 0000012653 | B189: PONCHE CREMA CERO'S 14° 0,700LTS | C189: 367.2 | D189: =IFERROR(VLOOKUP($A189,'Lista de Precios_Bolívares_S'!$F:$Q,6,FALSE),"") ->  | E189: =IFERROR(VLOOKUP($A189,'Lista de Precios_Bolívares_S'!$F:$Q,12,FALSE),"") ->  | G189: =IFERROR(VLOOKUP($A189,'Lista de Precios_USD$_Euro€'!$E:$O,11,FALSE),"") -> 11.86
A190: 0000012654 | B190: LICOR DE CREMA DE WHISKY CERO'S 14° 0,700LTS | C190: 414.9 | D190: =IFERROR(VLOOKUP($A190,'Lista de Precios_Bolívares_S'!$F:$Q,6,FALSE),"") ->  | E190: =IFERROR(VLOOKUP($A190,'Lista de Precios_Bolívares_S'!$F:$Q,12,FALSE),"") ->  | G190: =IFERROR(VLOOKUP($A190,'Lista de Precios_USD$_Euro€'!$E:$O,11,FALSE),"") -> 13.4
A191: 0000012661 | B191: VINO ESPUMANTE ANDRE BRUT 10.5° 0.750LTS | C191: 296.95 | D191: =IFERROR(VLOOKUP($A191,'Lista de Precios_Bolívares_S'!$F:$Q,6,FALSE),"") ->  | E191: =IFERROR(VLOOKUP($A191,'Lista de Precios_Bolívares_S'!$F:$Q,12,FALSE),"") ->  | G191: =IFERROR(VLOOKUP($A191,'Lista de Precios_USD$_Euro€'!$E:$O,11,FALSE),"") -> 13.01333333
A192: 0000012677 | B192: RON ANTIGUO MESTIZO 20 COLECCION PRIV 40° 0.700LTS | C192: 1 | D192: =IFERROR(VLOOKUP($A217,'Lista de Precios_Bolívares_S'!$F:$Q,6,FALSE),"") ->  | E192: =IFERROR(VLOOKUP($A217,'Lista de Precios_Bolívares_S'!$F:$Q,12,FALSE),"") ->  | F192: =IFERROR(IF(ROUND($C217,2)=ROUND($D192,2),ROUND($E192,2),ROUND($C217,2)),"") ->  | G192: =IFERROR(VLOOKUP($A192,'Lista de Precios_USD$_Euro€'!$E:$O,11,FALSE),"") -> 45.88
A193: 0000012817 | B193: LICOR SECO BASE RON TRANCAO 34° 1.000LTS | C193: 94.49 | D193: =IFERROR(VLOOKUP($A218,'Lista de Precios_Bolívares_S'!$F:$Q,6,FALSE),"") ->  | E193: =IFERROR(VLOOKUP($A218,'Lista de Precios_Bolívares_S'!$F:$Q,12,FALSE),"") ->  | G193: =IFERROR(VLOOKUP($A193,'Lista de Precios_USD$_Euro€'!$E:$O,11,FALSE),"") -> 3.176875
A194: 0000012828 | B194: BRANDY ST-REMY 40° 0.700LTS | C194: 612.76 | D194: =IFERROR(VLOOKUP($A219,'Lista de Precios_Bolívares_S'!$F:$Q,6,FALSE),"") ->  | E194: =IFERROR(VLOOKUP($A219,'Lista de Precios_Bolívares_S'!$F:$Q,12,FALSE),"") ->  | G194: =IFERROR(VLOOKUP($A194,'Lista de Precios_USD$_Euro€'!$E:$O,11,FALSE),"") -> 19.94226667
A195: 0000012832 | B195: COMBO PAPAS PRINGLES SURTIDO 14UND 158GRS | C195: 92.92 | D195: =IFERROR(VLOOKUP($A220,'Lista de Precios_Bolívares_S'!$F:$Q,6,FALSE),"") ->  | E195: =IFERROR(VLOOKUP($A220,'Lista de Precios_Bolívares_S'!$F:$Q,12,FALSE),"") ->  | G195: =IFERROR(VLOOKUP($A195,'Lista de Precios_USD$_Euro€'!$E:$O,11,FALSE),"") -> 3
A196: 0000012874 | B196: WHISKY CHIVAS REGAL 40° 13YO 0.700LTS. | C196: 874.07 | D196: =IFERROR(VLOOKUP($A221,'Lista de Precios_Bolívares_S'!$F:$Q,6,FALSE),"") ->  | E196: =IFERROR(VLOOKUP($A221,'Lista de Precios_Bolívares_S'!$F:$Q,12,FALSE),"") ->  | G196: =IFERROR(VLOOKUP($A196,'Lista de Precios_USD$_Euro€'!$E:$O,11,FALSE),"") -> 35.355
A197: 0000012972 | B197: VINO BCO ARBOR MIST PEACH CHARDONNAY 6° 0.750LTS | C197: 263.99 | D197: =IFERROR(VLOOKUP($A222,'Lista de Precios_Bolívares_S'!$F:$Q,6,FALSE),"") ->  | E197: =IFERROR(VLOOKUP($A222,'Lista de Precios_Bolívares_S'!$F:$Q,12,FALSE),"") ->  | G197: =IFERROR(VLOOKUP($A197,'Lista de Precios_USD$_Euro€'!$E:$O,11,FALSE),"") -> 8.682533333
A198: 0000012973 | B198: W.CELEBRA PROM CHIVAS REGAL 12 AÑOS 40° 0.750LTS. | C198: 717.66 | D198: =IFERROR(VLOOKUP($A223,'Lista de Precios_Bolívares_S'!$F:$Q,6,FALSE),"") ->  | E198: =IFERROR(VLOOKUP($A223,'Lista de Precios_Bolívares_S'!$F:$Q,12,FALSE),"") ->  | G198: =IFERROR(VLOOKUP($A198,'Lista de Precios_USD$_Euro€'!$E:$O,11,FALSE),"") -> 26.4935596
A199: 0000012976 | B199: W.CONTIGO 100 PIPERS 40° 0.700 LTS. | C199: 318.3 | D199: =IFERROR(VLOOKUP($A224,'Lista de Precios_Bolívares_S'!$F:$Q,6,FALSE),"") ->  | E199: =IFERROR(VLOOKUP($A224,'Lista de Precios_Bolívares_S'!$F:$Q,12,FALSE),"") ->  | G199: =IFERROR(VLOOKUP($A199,'Lista de Precios_USD$_Euro€'!$E:$O,11,FALSE),"") -> 11.18895128
A200: 0000012989 | B200: RON ANTIGUO MESTIZO 40° 0.700LTS | C200: 643.27 | D200: =IFERROR(VLOOKUP($A225,'Lista de Precios_Bolívares_S'!$F:$Q,6,FALSE),"") ->  | E200: =IFERROR(VLOOKUP($A225,'Lista de Precios_Bolívares_S'!$F:$Q,12,FALSE),"") ->  | G200: =IFERROR(VLOOKUP($A200,'Lista de Precios_USD$_Euro€'!$E:$O,11,FALSE),"") -> 22.25
... 2887 more rows

Sheet CLIENTE (hidden)
A1: CodCliente | B1: Vendedor | C1: Razon_Social | D1: Denominacion_Comercial | E1: Apertura_Cliente | F1: Nombre_De_la_Firma | G1: Direccion_Fiscal1 | H1: Direccion_Fiscal2 | I1: Direccion_Fiscal3 | J1: Telefono1 | K1: Telefono2 | L1: Correo_Electronico_Cliente | M1: DESTINO | N1: ESTATUS3 | O1: ESTATUS2 | P1: ESTATUS1 | Q1: ESTATUS_ACTUAL | R1: REPRESENTANTE_LEGAL_1 | S1: REPRESENTANTE_LEGAL_2 | T1: REPRESENTANTE_LEGAL_3 | U1: Direccion_Entrega1 | V1: Direccion_Entrega2 | W1: Direccion_Entrega3 | X1: Estatus_5 | Y1: Estatus_4 | Z1: Telefono_1 | AA1: Telefono_2 | AB1: Observacion1 | AC1: Observacion2 | AD1: Dias_Caja | AE1: RIF_Cliente | AF1: No_Licencia_Licores | AG1: LimiteCredito | AH1: BLOQUEO | AI1: CodCondicionesPago | AJ1: CondicionesPago | AK1: CodZona | AL1: Zona | AM1: Categoria | AN1: CodAreaPublicidad | AO1: AreaPublicidad | AP1: ListaDePrecio | AQ1: DescListaDePrecio | AR1: ListaPrecio(Contrato) | AS1: DescListaPrecio(Contrato) | AT1: NoContenedor | AU1: CodVendedor | AV1: SupervisorVendedor | AW1: OBSERVACIONES
A2: 10894358 | B2: 71 - OFICINA | C2: NELSON CENTENO | D2: NELSON CENTENO | F2: NELSON CENTENO | G2: ZONA INDUSTRIAL TERRINCA | H2: GALPON 6-A GUATIRE | I2: EDO.MIRANDA | J2: (0212) 3444622 | M2: GUATIRE | R2: NELSON CENTENO | U2: NELSON CENTENO | V2: ZONA INDUSTRIAL TERRINCA GALPON 6-A | W2: GUATIRE EDO. MIRANDA | Z2: (0212) 3444622 | AE2: V-1089435-8 | AF2: PARTICULAR | AG2: 1600 | AH2: No | AI2: 05 | AJ2: CREDITO 5 DIAS | AK2: 71 | AL2: OFICINA | AM2: 07 | AN2: 31 | AO2: PARTICULAR | AP2: 01 | AQ2: OFF PREMISSE | AR2: 01 | AS2: OFF PREMISSE | AU2: 71 | AV2: 71 - OFICINA | AW2: =CONCATENATE(AB2," ",AC2) -> 
A3: 115609951 | B3: 71 - OFICINA | C3: JOSE LUIS FERREIRA | D3: JOSE LUIS FERREIRA | F3: JOSE LUIS FERREIRA | G3: AV. FRANCISCO DE MIRANDA | H3: EDIF, PARQUE CRISTAL TORRE ESTE, | I3: PISO 8 OFIC 8-12 | M3: CARACAS | N3: LOS PALOS GRANDES | U3: JOSE LUIS FERREIRA | V3: OFICINA LOS PALOS GRANDE | W3: DINAMICA | AB3: OFICINA LOS PALOS GRANDES | AC3: DINAMICA | AE3: V-11560995-1 | AF3: PARTICULAR | AG3: 7500 | AH3: No | AI3: 05 | AJ3: CREDITO 5 DIAS | AK3: 71 | AL3: OFICINA | AM3: 07 | AN3: 31 | AO3: PARTICULAR | AP3: 11 | AQ3: FRANQUICIAS PROLICOR,C.A. | AR3: 11 | AS3: FRANQUICIAS PROLICOR,C.A. | AU3: 71 | AV3: 71 - OFICINA | AW3: OFICINA LOS PALOS GRANDES DINAMICA
A4: 13824118 | B4: 70 - COMPRA/PERSONAL | C4: ADRIANA ALVES | D4: ADRIANA ALVES | F4: ADRIANA ALVES | G4: CALLE 10 CON 11 EDIF. | H4: PLASENCIA LA URBINA | J4: 0212-242.11.11 | M4: CARACAS | R4: ADRIANA ALVES | U4: ADRIANA ALVES | V4: CALLE 10 CON 11 EDIFICIO | W4: PLASENCIA LA URBINA | Z4: 2421111 | AE4: V-1382411-8 | AF4: PARTICULAR | AG4: 7500 | AH4: No | AI4: 00 | AJ4: CONTADO | AK4: 70 | AL4: PERSONAL EMPLEADO | AM4: 07 | AN4: 25 | AO4: EMPLEADOS | AP4: 10 | AQ4: PROLICOR,C.A | AR4: 10 | AS4: PROLICOR,C.A | AU4: 70 | AV4: 70 - EMPLEADOS
A5: 14757320 | B5: 09 - CLIENTE INHABILITADO | C5: THAINA LUNA | D5: THAINA LUNA | F5: THAINA LUNA | G5: QUINTA CRESPO RESIDENCIA IMATACA | H5: AL LADO DE ELMESON DE JAVIER | U5: THAINA LUNA | V5: QUITAN CRESPO RESIDENCIA IMATACA AL | W5: LADO DE EL MENSO DE JAVIER | AE5: 14757320 | AG5: 89250 | AH5: No | AI5: 05 | AJ5: CREDITO 5 DIAS | AK5: 09 | AL5: CLIENTE INHABILITADO | AP5: 00 | AQ5: ESTANDAR | AR5: 00 | AS5: ESTANDAR | AT5: 09 | AU5: 09 | AV5: 71-OFICINA - OFF
A6: 17531891 | B6: 70 - COMPRA/PERSONAL | C6: ANGEL MARTINEZ | D6: ANGEL MARTINEZ | E6: 23-12-16 | F6: ANGEL MARTINEZ | G6: ZONA INDUSTRIAL TERRINCA, GALPON Nº | H6: 6-A, GUATIRE EDO. MIRANDA | J6: 0212-242.11.11 | M6: CARACAS | R6: ANGEL MARTINEZ | U6: ANGEL MARTINEZ | V6: ZONA INDUSTRIAL TERRINCA, GALPON Nº | W6: 6-A, GUATIRE EDO. MIRANDA | Z6: 0212-242.11.11 | AB6: EJECUTIVO DE VENTAS | AC6: VACACIONISTA | AE6: V-1753189-1 | AF6: PARTICULAR | AG6: 1 | AH6: No | AI6: 00 | AJ6: CONTADO | AK6: 70 | AL6: PERSONAL EMPLEADO | AM6: 07 | AN6: 25 | AO6: EMPLEADOS | AP6: 10 | AQ6: PROLICOR,C.A | AR6: 10 | AS6: PROLICOR,C.A | AT6: 70 | AU6: 70 | AV6: 70 - EMPLEADOS | AW6: EJECUTIVO DE VENTAS VACACIONISTA
A7: 295737025 | B7: 09 - CLIENTE INHABILITADO | C7: CENTRO HIPICO GRAN ESTEFANI 3001 CA | D7: CENTRO HIPICO GRAN ESTEFANI 3001 CA | F7: CENTRO HIPICO GRAN ESTEFANI 3001 CA | G7: CALLESEGUNDA DE VISTA ALEGRE EDIF | H7: MAGO PISO PB APT LOCAL No 1 URB | J7: 0212 242.23.46 | Q7: CLTE INHAB COD 09 240919 WP | R7: JUAQUIN GONCALVES | S7: DE SOUSA | U7: CENTRO HIPICO GRAN ESTEFANI 3001 CA | Z7: 0212. 472.23.46 | AB7: TRASPASO AL SUP 03 | AC7: CARLOS DA SILVA 01-08-13 | AE7: J295737025 | AF7: MM-767 | AG7: 15000 | AH7: Sí | AI7: 00 | AJ7: CONTADO | AK7: 20 | AL7: CENTRO DE CARACAS | AM7: 05 | AN7: 23 | AO7: ABASTOS PEQUEÑOS/BODEGAS | AP7: 01 | AQ7: OFF PREMISSE | AR7: 01 | AS7: OFF PREMISSE | AT7: 09 | AU7: 09 | AV7: 09 - CLIENTE INHABILITADO | AW7: TRASPASO AL SUP 03 CARLOS DA SILVA 01-08-13
A8: E001 | C8: INDUSTRIA LICORERA DE CALDAS | D8: INDUSTRIA LICORERA DE CALDAS | F8: INDUSTRIA LICORERA DE CALDAS | U8: INDUSTRIA LICORERA DE CALDAS | AF8: E001 | AG8: 43750 | AH8: No | AI8: 21 | AJ8: CREDITO 21 DIAS | AM8: 06 | AP8: 00 | AQ8: ESTANDAR | AR8: 00 | AS8: ESTANDAR
A9: E001176784 | B9: 09 - CLIENTE INHABILITADO | C9: MANUEL DE FREITAS ASCENCAO | D9: MANUEL DE FREITAS ASCENCAO | F9: MANUEL DE FREITAS ASCENCAO | G9: SEGUNDA CALLE EL CEMENTERIO, BARRIO | H9: AQUÍ ES. PARIATA. MAIQUETIA-LA GU | I9: AIRA-EDO.VARGAS | J9: (0212) 3322281 | K9: (0212) 3322281 | M9: LA GUAIRA | Q9: BAJA FRECUENCIA DE COMPRA 12/03/14 | R9: MANUEL DE FREITAS | S9: ASCENCAO | U9: MANUEL DE FREITAS ASCENCAO | V9: SEGUNDA CALLE EL CEMENTERIO, BARRIO | W9: AQUÍ ES. PARIATA. MAIQUETIA-LA GU | X9: AIRA-EDO.VARGAS | Z9: (0212) 3322281 | AE9: E-00117678-4 | AF9: M-N 62 | AG9: 15000 | AH9: Sí | AI9: 00 | AJ9: CONTADO | AK9: 14 | AL9: LITORAL CENTRAL | AM9: 05 | AN9: 23 | AO9: ABASTOS PEQUEÑOS/BODEGAS | AP9: 01 | AQ9: OFF PREMISSE | AR9: 01 | AS9: OFF PREMISSE | AU9: 09 | AV9: 09 - CLIENTE INHABILITADO
A10: E002 | C10: SOGRAPE VINHOS | D10: SOGRAPE VINHOS | F10: SOGRAPE VINHOS | U10: SOGRAPE VINHOS | AF10: E002 | AG10: 43750 | AH10: No | AI10: 01 | AJ10: PREPAGO | AM10: 06 | AP10: 00 | AQ10: ESTANDAR | AR10: 00 | AS10: ESTANDAR
A11: E002203440 | B11: 09 - CLIENTE INHABILITADO | C11: ATILIO M. CICCARIELLO | D11: ABASTOS CICCARIELLO | F11: ABASTOS CICCARIELLO | G11: AVENIDA MARIA TERESA TORO ESQUNA | H11: CUBA EDIF. CARLOS LOCAL "A" LAS | I11: ACACIAS | J11: (0212) 633-02-89 | M11: CARACAS | Q11: CAMBIO DE ZONA 24 A 09 250222 ST | R11: ATILIO CICCARIELLO | U11: ABASTOS CICCARIELLO | V11: AVENIDA MARIA TERESA TORO ESQUNA CU | W11: CUBA EDIF. CARLOS LOCAL "A" LAS | X11: ACACIAS | Z11: (0212) 633-02-89 | AB11: RECIBE DE LUNES A VIERNES | AC11: 11 AM A 1 PM Y 3 A 5 PM | AD11: VIERNES | AE11: E-00220344-0 | AF11: MN-4992 | AG11: 15000 | AH11: No | AI11: 05 | AJ11: CREDITO 5 DIAS | AK11: 09 | AL11: CLIENTE INHABILITADO | AM11: 06 | AN11: 23 | AO11: ABASTOS PEQUEÑOS/BODEGAS | AP11: 01 | AQ11: OFF PREMISSE | AR11: 01 | AS11: OFF PREMISSE | AT11: 09 | AU11: 09 | AV11: 09 - CLIENTE INHABILITADO | AW11: RECIBE DE LUNES A VIERNES 11 AM A 1 PM Y 3 A 5 PM
A12: E003 | C12: DE KUYPER ROYAL DISTILLERIES | D12: DE KUYPER ROYAL DISTILLERIES | F12: DE KUYPER ROYAL DISTILLERIES | U12: DE KUYPER ROYAL DISTILLERIES | AG12: 43750 | AH12: No | AI12: 01 | AJ12: PREPAGO | AM12: 06 | AP12: 00 | AQ12: ESTANDAR | AR12: 00 | AS12: ESTANDAR
A13: E004 | C13: ALIANCA-VINHOS DE PORTUGAL, S.A | D13: ALIANCA-VINHOS DE PORTUGAL, S.A | F13: ALIANCA-VINHOS DE PORTUGAL, S.A | U13: ALIANCA-VINHOS DE PORTUGAL, S.A | AG13: 43750 | AH13: No | AI13: 01 | AJ13: PREPAGO | AM13: 06 | AP13: 00 | AQ13: ESTANDAR | AR13: 00 | AS13: ESTANDAR
A14: E005 | C14: VIÑA MISIONES DE RENGO, S.A | D14: VIÑA MISIONES DE RENGO, S.A | F14: VIÑA MISIONES DE RENGO, S.A | U14: VIÑA MISIONES DE RENGO, S.A | AG14: 43750 | AH14: No | AI14: 01 | AJ14: PREPAGO | AM14: 06 | AP14: 00 | AQ14: ESTANDAR | AR14: 00 | AS14: ESTANDAR
A15: E005065251 | B15: 02 - REQUENA JOHAN - OFF | C15: BODEGA COROMOTO | D15: BODEGA COROMOTO | F15: BODEGA COROMOTO | G15: CALLE EL PROGRESO Nº 15SAN PEDRO DE | H15: LOS ALTOS | M15: LOS TEQUES | R15: ANTONIO DE ABREU | U15: BODEGA COROMOTO | V15: CALLE EL PROGRESO Nº 15SAN PEDRO DE | W15: LOS ALTOS | AE15: E-00506525-1 | AF15: M-N 3643 | AG15: 89250 | AH15: No | AI15: 05 | AJ15: CREDITO 5 DIAS | AK15: 25 | AL15: LOS TEQUES | AM15: 05 | AN15: 25 | AO15: EMPLEADOS | AP15: 01 | AQ15: OFF PREMISSE | AR15: 01 | AS15: OFF PREMISSE | AU15: 02
A16: E006 | C16: BODEGAS WILLIANS & HUMBERT S.A.U | D16: BODEGAS WILLIANS & HUMBERT S.A.U | F16: BODEGAS WILLIANS & HUMBERT S.A.U | U16: BODEGAS WILLIANS & HUMBERT S.A.U | AG16: 43750 | AH16: No | AI16: 01 | AJ16: PREPAGO | AM16: 06 | AP16: 00 | AQ16: ESTANDAR | AR16: 00 | AS16: ESTANDAR
A17: E006389794 | B17: 09 - CLIENTE INHABILITADO | C17: VIRGILIO HERNANDEZ GARCIA | D17: ABASTOS LILIBETTY | F17: VIRGILIO HERNANDEZ GARCIA | G17: CARRETERA NACIONAL GUATIRE ARAIRAE | H17: SECTOR EL DESVIO. ESTADO MIRANDA | J17: 0212 - 341.29.29 | M17: GUATIRE | Q17: BLOQ.3CD 010813-040814 | R17: VIRGILIO H GARCIA | S17: JOSE LUIS GUERRA | U17: ABASTOS LILIBETTY | V17: CARRETERA NACIONAL GUATIRE ARAIRASE | W17: CTOR EL DESVIO ARAIRA-EDO.MIRANDA | Z17: 0416 - 834.12.08 | AB17: NO RECIBE LOS VIERNES, | AC17: RECIBE EN LA MAÑANA | AD17: MIERCOLES | AE17: E-00638979-4 | AF17: M-N 457 | AG17: 15000 | AH17: Sí | AI17: 00 | AJ17: CONTADO | AK17: 11 | AL17: GUARENAS | AM17: 05 | AN17: 23 | AO17: ABASTOS PEQUEÑOS/BODEGAS | AP17: 01 | AQ17: OFF PREMISSE | AR17: 01 | AS17: OFF PREMISSE | AT17: 09 | AU17: 09 | AV17: 09 - CLIENTE INHABILITADO | AW17: NO RECIBE LOS VIERNES, RECIBE EN LA MAÑANA
A18: E006704541 | B18: 09 - CLIENTE INHABILITADO | C18: FRANCISCO PINTO DA SILVA | D18: FUENTE DE SODA FLOR DE CAMPO | F18: FRANCISCO PINTO DA SILVA | G18: AVENIDA BARALT ENTRE ESQ. MIRANDA A | H18: MADERERO EL SILENCIO | J18: (0212) 481.55.31 | K18: (0424) 247.49.29 | L18: franpintoh@hotmail.com | M18: CARACAS | P18: CAMBIO DE ZONA 33 A 09 16/9/19 GT | Q18: CAMBIO V- 33 A V-09 17/09/2019 | R18: FRANCISCO PINTO DA S | S18: ILVA | U18: FUENTE DE SODA FLOR DEL CAMPO | V18: AVENIDA BARALT ENTRE ESQ. MIRANDA A | W18: MADERERO EL SILENCIO | Y18: 2CD 011215/28/12/16 HP20 LA/HD | AB18: RECIBE LOS VIERNES | AC18: 9:00 AM A 7:00 PM | AD18: MIERCOLES | AE18: E-00670454-1 | AF18: C 4844 | AG18: 0 | AH18: Sí | AI18: 00 | AJ18: CONTADO | AK18: 09 | AL18: CLIENTE INHABILITADO | AM18: 04 | AN18: 06 | AO18: BAR/TABER./S. BAR/PUB/TAS | AP18: 02 | AQ18: ON PREMISSE | AR18: 02 | AS18: ON PREMISSE | AT18: 09 | AU18: 09 | AV18: 09 - CLIENTE INHABILITADO | AW18: RECIBE LOS VIERNES 9:00 AM A 7:00 PM
A19: E006794141 | B19: 02 - REQUENA JOHAN - OFF | C19: LICORERIA OXIRIS | D19: LICORERIA OXIRIS | F19: LICORERIA OXIRIS | G19: AV PRINCIPAL PLAYA VERDE FRENTE PLA | H19: CATIA LA MAR | J19: 3526079 | M19: LA GUAIRA | R19: JHONNY CASTELLANOS M | S19: ARTINEZ | U19: LICORERIA OXIRIS | V19: AV.PRINCIPAL PLAYA VERDE FRENTE | W19: PLAYA CULITO CATIA LA MAR | AB19: NO RECIBE LOS VIERNES | AC19: CAMBIO DE RIF POR J295864 | AE19: E-00679414-1 | AF19: M-M 888 | AG19: 89250 | AH19: No | AI19: 00 | AJ19: CONTADO | AK19: 02 | AM19: 05 | AP19: 01 | AQ19: OFF PREMISSE | AR19: 01 | AS19: OFF PREMISSE | AU19: 02 | AW19: NO RECIBE LOS VIERNES CAMBIO DE RIF POR J295864
A20: E007 | C20: VIÑA VALDIVIESO, S.A | D20: VIÑA VALDIVIESO, S.A | F20: VIÑA VALDIVIESO, S.A | U20: VIÑA VALDIVIESO, S.A | AG20: 43750 | AH20: No | AI20: 01 | AJ20: PREPAGO | AM20: 06 | AP20: 00 | AQ20: ESTANDAR | AR20: 00 | AS20: ESTANDAR
A21: E007068797 | B21: 09 - CLIENTE INHABILITADO | C21: MANUEL BALSA RODRIGUEZ | D21: ABASTOS EL CARMEN | F21: MANUEL BALSA RODRIGUEZ | G21: CALLE EULALIA BUROZ. CON CALLE EL | H21: CARMEN. CASA SIN NRO. SECTOR CALLE | I21: EL CARMEN. MAMPORAL. | J21: 0234 - 3423663 | M21: BARLOVENTO | Q21: CAMBIO DE ZONA 12 A 09 020821 YP | R21: MANUEL BALSA R | U21: ABASTOS EL CARMEN | V21: CALLE EULALIA BUROZ. CON CALLE EL | W21: CARMEN. CASA SIN NRO. SECTOR CALLE | X21: EL CARMEN. MAMPORAL. | Z21: 0234 3423663 | AB21: CERRADO MIERCOLES | AD21: LUNES | AE21: E-00706879-7 | AF21: M-N 331 M-Y | AG21: 15000 | AH21: No | AI21: 05 | AJ21: CREDITO 5 DIAS | AK21: 09 | AL21: CLIENTE INHABILITADO | AM21: 05 | AN21: 18 | AO21: LICORERIAS/BODEGONES | AP21: 02 | AQ21: ON PREMISSE | AR21: 02 | AS21: ON PREMISSE | AT21: 09 | AU21: 09 | AV21: 09 - CLIENTE INHABILITADO | AW21: CERRADO MIERCOLES
A22: E007690358 | B22: 11 - PEREIRA GENARO | C22: LICORERIA PORTO MONIZ,C.A. | D22: LICORERIA PORTO MONIZ,C.A. | F22: GONCALVES T JOSE F | G22: FINAL CALLE AFRICA CON FRATERNIDADT | H22: ACARIGUA DE MANPORAL-EDO.MIRANDA | J22: (0234) 342.10.35 | K22: (0414) 298.47.12 | L22: distportomonit@hotmail.com | M22: BARLOVENTO | P22: CAMBIO DE ZONA 14 A 09 020821 YP | Q22: CAMBIO DE ZONA 09 A 12 26/06/23 YR | R22: FERNANDO CONCARBE | U22: LICORERIA PORTO MONIZ,C.A. | V22: FINAL CALLE AFRICA CON FRATERNIDADT | W22: ACARIGUA DE MANPORAL-EDO.MIRANDA | AB22: RECIBE LUNES A VIERNES | AC22: 08:00 AM A 06:00 PM | AD22: LUNES | AE22: E-00769035-8 | AF22: M-M 570 | AG22: 89250 | AH22: No | AI22: 05 | AJ22: CREDITO 5 DIAS | AK22: 09 | AL22: CLIENTE INHABILITADO | AM22: 05 | AN22: 20 | AO22: DELICATESES/FRIGO/CHARCUT | AP22: 01 | AQ22: OFF PREMISSE | AR22: 01 | AS22: OFF PREMISSE | AT22: 11 | AU22: 11 | AV22: 01 - GUERRERO SALVADOR - OFF | AW22: RECIBE LUNES A VIERNES 08:00 AM A 06:00 PM
A23: E008 | C23: VITI-VINICOLA CERESER LTDA | D23: VITI-VINICOLA CERESER LTDA | F23: VITI-VINICOLA CERESER LTDA | U23: VITI-VINICOLA CERESER LTDA | AG23: 43750 | AH23: No | AI23: 01 | AJ23: PREPAGO | AM23: 06 | AP23: 00 | AQ23: ESTANDAR | AR23: 00 | AS23: ESTANDAR
A24: E009 | C24: AMERICO COELHO REIVAS SUCRE, S.A | D24: AMERICO COELHO REIVAS SUCRE, S.A | F24: AMERICO COELHO REIVAS SUCRE, S.A | U24: AMERICO COELHO REIVAS SUCRE, S.A | AG24: 43750 | AH24: No | AI24: 01 | AJ24: PREPAGO | AM24: 06 | AP24: 00 | AQ24: ESTANDAR | AR24: 00 | AS24: ESTANDAR
A25: E009481616 | B25: 71 - OFICINA | C25: AMERICO CATANHO DA SILVA | D25: AMERICO CATANHO DA SILVA | F25: AMERICO CATANHO DA SILVA | G25: CALLE 10 CON 11 EDIF.PLASENCIA | H25: LA URBINA | J25: (0212) 2421111 | M25: CARACAS | R25: AMERICO CATANHO | U25: AMERICO CATANHO DA SILVA | V25: CALLE 10 CON 11 EDIF PLASENCIA | W25: LA URBINA | Z25: (0212) 2421111 | AB25: DESPACHAR EN OFICINA | AD25: CONTADO | AE25: E-00948161-6 | AF25: PARTICULAR | AG25: 15000 | AH25: No | AI25: 00 | AJ25: CONTADO | AK25: 71 | AL25: OFICINA | AM25: 07 | AN25: 25 | AO25: EMPLEADOS | AP25: 19 | AQ25: SUCU-PROLI-CO-DISTR CILCA | AR25: 19 | AS25: SUCU-PROLI-CO-DISTR CILCA | AU25: 71 | AV25: 71 - OFICINA | AW25: DESPACHAR EN OFICINA
A26: E009877420 | B26: 02 - REQUENA JOHAN - OFF | C26: JOSE M. CABRAL(ABASTO Y FRUT.BRISOL | D26: JOSE M. CABRAL(ABASTO Y FRUT.BRISOL | F26: JOSE MARIA CABRAL(ABASTO Y FRUT.BRISOL) | G26: AVENIDA BOLIVAR EDIFICIO NEVES LOCA | H26: L Nº 3LOS TEQUES-MNPIO.GUAICAIPURO- | I26: EDO.MIRANDA | J26: 3214303 | M26: LOS TEQUES | R26: JOSE MARIA CABRAL | U26: JOSE M. CABRAL(ABASTO Y FRUT.BRISOL | V26: AVENIDA BOLIVAR EDIFICIO NEVES LOCA | W26: L Nº 3LOS TEQUES-MNPIO.GUAICAIPURO- | X26: EDO.MIRANDA | AB26: TRASPASO ZONA 02. SEGUN | AC26: SOLICITUD 22/02/11 | AE26: E-00987742-0 | AF26: M-N 048 | AG26: 89250 | AH26: No | AI26: 05 | AJ26: CREDITO 5 DIAS | AK26: 25 | AL26: LOS TEQUES | AM26: 05 | AN26: 23 | AO26: ABASTOS PEQUEÑOS/BODEGAS | AP26: 01 | AQ26: OFF PREMISSE | AR26: 01 | AS26: OFF PREMISSE | AU26: 02 | AW26: TRASPASO ZONA 02. SEGUN SOLICITUD 22/02/11
A27: E010 | C27: ANGOSTURA LIMITED | D27: ANGOSTURA LIMITED | F27: ANGOSTURA LIMITED | U27: ANGOSTURA LIMITED | AG27: 43750 | AH27: No | AI27: 01 | AJ27: PREPAGO | AM27: 06 | AP27: 00 | AQ27: ESTANDAR | AR27: 00 | AS27: ESTANDAR
A28: E010301036 | B28: 09 - CLIENTE INHABILITADO | C28: CRUZ MARIA TEJANO DE VALAY | D28: LICORERIA CRUZ MARIA | F28: PICO PICO HUGO TAJANO | G28: CARRETERA SANTA TERESA (LA RAIZA) | H28: ENTRADA ACARACAS TUY=SECTOR | I28: EL MANGUITO 3 | J28: 0414-911.22.39 | M28: VALLE DEL TUY | R28: HUGO TRAJANO PICO | U28: AB/ CRUZ MARIA TEJADA | V28: CARRETERA SANTA TERESA (LA RAIZA) | W28: ENTRADA ACARACAS TUY=SECTOR EL | X28: MANGUITO 3 | AB28: TRASP.SUP.02 CARLOS G. | AC28: 08-08-2013 | AD28: MARTES | AE28: E-01030103-6 | AF28: 039 MN 34D | AG28: 15000 | AH28: Sí | AI28: 00 | AJ28: CONTADO | AK28: 14 | AL28: LITORAL CENTRAL | AM28: 05 | AN28: 18 | AO28: LICORERIAS/BODEGONES | AP28: 01 | AQ28: OFF PREMISSE | AR28: 01 | AS28: OFF PREMISSE | AU28: 09 | AV28: 09 - CLIENTE INHABILITADO | AW28: TRASP.SUP.02 CARLOS G. 08-08-2013
A29: E010310418 | B29: 09 - CLIENTE INHABILITADO | C29: ADELINO EUSEBIO CARDOSO BAPTISTA | D29: ADELINO EUSEBIO CARDOSO BAPTISTA | F29: ADELINO EUSEBIO CARDOSO BAPTISTA (INVERSIONES BOULEVARD 24) | G29: URBANIZACION CARTANAL VIEJO, CALLE | H29: PRINCIPAL, LOCAL 30, SANTA TERESA | I29: DEL TUY MUNICIPIO INDEPENDENCIA EDO | J29: (0239) 232.13.19 | K29: (0412) 016.22.51 | M29: STA TERESA DEL TUY | N29: MIRANDA | P29: BLOQ MAYOR 46 DIAS SEGUI 240222 MYZ | Q29: CAMBIO DE ZONA 21 A 09 06/12/22 ST | R29: ADELINO EUSEBIO | S29: CARDOSO BAPTISTA | U29: INVERSIONES BOULEVARD 24 | V29: URBANIZACION CARTANAL,SECTOR 1,AVEN | W29: IDA 4,CASA N°38,PASANDO AUTOMERCADO | X29: CARDOSO | Z29: (0239) 232-13-12 | AB29: RECIBE LUNES A SABADO | AC29: 9:00 AM A 9:00 PM | AD29: DE LUNES A VIERNES | AE29: E-01031041-8 | AF29: 039-MY-968 | AG29: 15000 | AH29: Sí | AI29: 05 | AJ29: CREDITO 5 DIAS | AK29: 09 | AL29: CLIENTE INHABILITADO | AM29: 01 | AN29: 18 | AO29: LICORERIAS/BODEGONES | AP29: 01 | AQ29: OFF PREMISSE | AR29: 01 | AS29: OFF PREMISSE | AT29: 09 | AU29: 09 | AV29: 09 - CLIENTE INHABILITADO | AW29: RECIBE LUNES A SABADO 9:00 AM A 9:00 PM
A30: E011 | C30: SOVIDIS | D30: SOVIDIS | F30: SOVIDIS | U30: SOVIDIS | AG30: 43750 | AH30: No | AI30: 01 | AJ30: PREPAGO | AM30: 06 | AP30: 00 | AQ30: ESTANDAR | AR30: 00 | AS30: ESTANDAR
A31: E012 | C31: CHATEAU LOS BOLDOS LIMITADA | D31: CHATEAU LOS BOLDOS LIMITADA | F31: CHATEAU LOS BOLDOS LIMITADA | U31: CHATEAU LOS BOLDOS LIMITADA | AG31: 43750 | AH31: No | AI31: 01 | AJ31: PREPAGO | AM31: 06 | AP31: 00 | AQ31: ESTANDAR | AR31: 00 | AS31: ESTANDAR
A32: E013 | B32: 71 - OFICINA | C32: WILLIAM GRANT & SONS DISTILLERS | D32: WILLIAM GRANT & SONS DISTILLERS | F32: WILLIAM GRANT & SONS DISTILLERS LTD | G32: CUSTOMER SERVICE CENTRE, PHOENIX | H32: CRESCENT, STRATHCLYDE BUSINESS PAR | I32: C BELLSHILL, SCOTLAND ML4 3AN | U32: WILLIAM GRANT & SONS DISTILLERS | V32: CUSTOMER SERVICE CENTRE, PHOENIX | W32: CRESCENT, STRATHCLYDE BUSINESS PAR | X32: C BELLSHILL, SCOTLAND ML4 3AN | AG32: 999999999999999999 | AH32: No | AI32: 00 | AJ32: CONTADO | AK32: 71 | AL32: OFICINA | AM32: 06 | AN32: 26 | AO32: FINANCIEROS | AP32: 00 | AQ32: ESTANDAR | AR32: 00 | AS32: ESTANDAR | AU32: 71
A33: E014 | C33: VITIVINICOLA DEL MAIPO S.A | D33: VITIVINICOLA DEL MAIPO S.A | F33: VITIVINICOLA DEL MAIPO S.A | R33: VIVIANA HORTA | U33: VITIVINICOLA DEL MAIPO S.A | AG33: 43750 | AH33: No | AI33: 01 | AJ33: PREPAGO | AM33: 06 | AP33: 00 | AQ33: ESTANDAR | AR33: 00 | AS33: ESTANDAR
A34: E015 | C34: DEL BUONO S.A | D34: DEL BUONO S.A | F34: DEL BUONO S.A | J34: 054-11-43746974 | U34: DEL BUONO S.A | AG34: 43750 | AH34: No | AI34: 01 | AJ34: PREPAGO | AM34: 06 | AP34: 00 | AQ34: ESTANDAR | AR34: 00 | AS34: ESTANDAR
A35: E016 | C35: FRATELLI BRANCA DESTILERIAS S.A | D35: FRATELLI BRANCA DESTILERIAS S.A | F35: FRATELLI BRANCA DESTILERIAS S.A | J35: 03327-442500 | U35: FRATELLI BRANCA DESTILERIAS S.A | AG35: 43750 | AH35: No | AI35: 01 | AJ35: PREPAGO | AM35: 06 | AP35: 00 | AQ35: ESTANDAR | AR35: 00 | AS35: ESTANDAR
A36: E017 | C36: LES CHAIS DU SUD | D36: LES CHAIS DU SUD | F36: LES CHAIS DU SUD | J36: +33467809090 | U36: LES CHAIS DU SUD | AG36: 43750 | AH36: No | AI36: 01 | AJ36: PREPAGO | AM36: 06 | AP36: 00 | AQ36: ESTANDAR | AR36: 00 | AS36: ESTANDAR
A37: E018 | B37: 71 - OFICINA | C37: DISTELL LIMITED | D37: DISTELL LIMITED | F37: DISTELL LIMITED | J37: +2702108097000 | U37: DISTELL LIMITED | AG37: 999999999999999999 | AH37: No | AI37: 00 | AJ37: CONTADO | AK37: 71 | AL37: OFICINA | AM37: 06 | AN37: 26 | AO37: FINANCIEROS | AP37: 00 | AQ37: ESTANDAR | AR37: 00 | AS37: ESTANDAR | AU37: 71
A38: E019 | C38: JF HILLEBRAND | D38: JF HILLEBRAND | F38: JF HILLEBRAND | U38: JF HILLEBRAND | AG38: 43750 | AH38: No | AI38: 01 | AJ38: PREPAGO | AM38: 06 | AP38: 00 | AQ38: ESTANDAR | AR38: 00 | AS38: ESTANDAR
A39: E020 | C39: LEE PRIMIUM LTD | D39: LEE PRIMIUM LTD | F39: LEE PRIMIUM LTD | U39: LEE PRIMIUM LTD | AG39: 43750 | AH39: No | AI39: 01 | AJ39: PREPAGO | AM39: 06 | AP39: 00 | AQ39: ESTANDAR | AR39: 00 | AS39: ESTANDAR
A40: E021 | C40: HMA CREATIVE | D40: HMA CREATIVE | F40: HMA CREATIVE | U40: HMA CREATIVE | AG40: 43750 | AH40: No | AI40: 01 | AJ40: PREPAGO | AM40: 06 | AP40: 00 | AQ40: ESTANDAR | AR40: 00 | AS40: ESTANDAR
A41: E022 | C41: PETER MERTES GMGH & CO | D41: PETER MERTES GMGH & CO | F41: PETER MERTES GMGH & CO | U41: PETER MERTES GMGH & CO | AG41: 43750 | AH41: No | AI41: 01 | AJ41: PREPAGO | AM41: 06 | AP41: 00 | AQ41: ESTANDAR | AR41: 00 | AS41: ESTANDAR
A42: E023 | C42: AEROINFLABLES GROUP S.A C.I | D42: AEROINFLABLES GROUP S.A C.I | F42: AEROINFLABLES GROUP S.A C.I | U42: AEROINFLABLES GROUP S.A C.I | AG42: 43750 | AH42: No | AI42: 01 | AJ42: PREPAGO | AM42: 06 | AP42: 00 | AQ42: ESTANDAR | AR42: 00 | AS42: ESTANDAR
A43: E024 | C43: CARIBBEAN LABEL CRAFTS LTD | D43: CARIBBEAN LABEL CRAFTS LTD | F43: CARIBBEAN LABEL CRAFTS LTD | U43: CARIBBEAN LABEL CRAFTS LTD | AG43: 43750 | AH43: No | AI43: 01 | AJ43: PREPAGO | AM43: 06 | AP43: 00 | AQ43: ESTANDAR | AR43: 00 | AS43: ESTANDAR
A44: E025 | C44: BODEGAS TAMARI S.A | D44: BODEGAS TAMARI S.A | F44: BODEGAS TAMARI S.A | U44: BODEGAS TAMARI S.A | AG44: 43750 | AH44: No | AI44: 01 | AJ44: PREPAGO | AM44: 06 | AP44: 00 | AQ44: ESTANDAR | AR44: 00 | AS44: ESTANDAR
A45: E026 | C45: BODEGAS FRANCO-ESPAÑOLAS, S.A | D45: BODEGAS FRANCO-ESPAÑOLAS, S.A | F45: BODEGAS FRANCO-ESPAÑOLAS, S.A | U45: BODEGAS FRANCO-ESPAÑOLAS, S.A | AG45: 43750 | AH45: No | AI45: 01 | AJ45: PREPAGO | AM45: 06 | AP45: 00 | AQ45: ESTANDAR | AR45: 00 | AS45: ESTANDAR
A46: E027 | C46: FEDERICO PATERNINA, S.A | D46: FEDERICO PATERNINA, S.A | F46: FEDERICO PATERNINA, S.A | U46: FEDERICO PATERNINA, S.A | AG46: 43750 | AH46: No | AI46: 01 | AJ46: PREPAGO | AM46: 06 | AP46: 00 | AQ46: ESTANDAR | AR46: 00 | AS46: ESTANDAR
A47: E028 | C47: SABIA, S.A | D47: SABIA, S.A | F47: SABIA, S.A | U47: SABIA, S.A | AG47: 43750 | AH47: No | AI47: 01 | AJ47: PREPAGO | AM47: 06 | AP47: 00 | AQ47: ESTANDAR | AR47: 00 | AS47: ESTANDAR
A48: E029 | C48: SOCIETE DES VINS EL SPIRITUEUX LAMA | D48: SOCIETE DES VINS EL SPIRITUEUX LAMA | F48: SOCIETE DES VINS EL SPIRITUEUX LAMA | U48: SOCIETE DES VINS EL SPIRITUEUX LAMA | AG48: 43750 | AH48: No | AI48: 01 | AJ48: PREPAGO | AM48: 06 | AP48: 00 | AQ48: ESTANDAR | AR48: 00 | AS48: ESTANDAR
A49: E030 | C49: BELOW ZERO MARKETING | D49: BELOW ZERO MARKETING | F49: BELOW ZERO MARKETING | U49: BELOW ZERO MARKETING | AG49: 43750 | AH49: No | AI49: 01 | AJ49: PREPAGO | AM49: 06 | AP49: 00 | AQ49: ESTANDAR | AR49: 00 | AS49: ESTANDAR
A50: E031 | C50: VIÑA SAN PEDRO TARAPACA S.A | D50: VIÑA SAN PEDRO TARAPACA S.A | F50: VIÑA SAN PEDRO TARAPACA S.A | G50: VITACURA 2670 P16 | H50: VITACURA - SANTIAGO - CHILE | L50: SWIFT MPANPAPA ABA 026002561 DIRECCION TORRES DE LAS AMERICAS, PUNTA PACIFICA CIUDAD PANAMA REPUBLICA DE PANAMA | U50: VIÑA SAN PEDRO TARAPACA S.A | AB50: BANCO MERCANTIL, S.A | AC50: CUENTA 30025400 | AG50: 43750 | AH50: No | AI50: 01 | AJ50: PREPAGO | AM50: 06 | AP50: 00 | AQ50: ESTANDAR | AR50: 00 | AS50: ESTANDAR | AW50: BANCO MERCANTIL, S.A CUENTA 30025400
A51: E032 | C51: BODEGAS Y VIÑEDOS CORDORNIU RAVENT | D51: BODEGAS Y VIÑEDOS CORDORNIU RAVENT | F51: BODEGAS Y VIÑEDOS CORDORNIU RAVENT | U51: BODEGAS Y VIÑEDOS CORDORNIU RAVENT | AG51: 43750 | AH51: No | AI51: 01 | AJ51: PREPAGO | AM51: 06 | AP51: 00 | AQ51: ESTANDAR | AR51: 00 | AS51: ESTANDAR
A52: E033 | C52: CODORNIU ESPAÑA, S.A. | D52: CODORNIU ESPAÑA, S.A. | F52: CODORNIU ESPAÑA, S.A. | G52: AVINGUDA DELS PAISOS CATALANS 38 | H52: 2º E-08950. ESPLUGUES DE LLOBREGAT | I52: (BCN), SPAIN | J52: +34935051564 | K52: +34938910850 | L52: f.serrat@codorniu.com | R52: FELIP SERRAT | U52: CODORNIU ESPAÑA, S.A. | AB52: a.casanovas@codorniu.es | AG52: 43750 | AH52: No | AI52: 01 | AJ52: PREPAGO | AM52: 06 | AP52: 00 | AQ52: ESTANDAR | AR52: 00 | AS52: ESTANDAR | AW52: a.casanovas@codorniu.es
A53: E034 | C53: INFORMATICS SYSTEMS NYC, INS | D53: INFORMATICS SYSTEMS NYC, INS | F53: INFORMATICS SYSTEMS NYC, INS | U53: INFORMATICS SYSTEMS NYC, INS | AG53: 43750 | AH53: No | AI53: 01 | AJ53: PREPAGO | AM53: 06 | AP53: 00 | AQ53: ESTANDAR | AR53: 00 | AS53: ESTANDAR
A54: E035 | C54: FINCA LA CELIA, C.A. | D54: FINCA LA CELIA, C.A. | F54: FINCA LA CELIA, C.A. | U54: FINCA LA CELIA, C.A. | AG54: 43750 | AH54: No | AI54: 01 | AJ54: PREPAGO | AM54: 06 | AP54: 00 | AQ54: ESTANDAR | AR54: 00 | AS54: ESTANDAR
A55: E036 | C55: TAPOPLASTIC DE ARANDAS SA DE CV | D55: TAPOPLASTIC DE ARANDAS SA DE CV | F55: TAPOPLASTIC DE ARANDAS SA DE CV | U55: TAPOPLASTIC DE ARANDAS SA DE CV | AG55: 43750 | AH55: No | AI55: 01 | AJ55: PREPAGO | AM55: 06 | AP55: 00 | AQ55: ESTANDAR | AR55: 00 | AS55: ESTANDAR
A56: E037 | C56: VIÑA CASAL DE GORCHS | D56: VIÑA CASAL DE GORCHS | F56: VIÑA CASAL DE GORCHS | U56: VIÑA CASAL DE GORCHS | AG56: 43750 | AH56: No | AI56: 01 | AJ56: PREPAGO | AM56: 06 | AP56: 00 | AQ56: ESTANDAR | AR56: 00 | AS56: ESTANDAR
A57: E038 | C57: CODORNIU ARGENTINA S.A. | D57: CODORNIU ARGENTINA S.A. | F57: CODORNIU ARGENTINA S.A. | G57: TALCAHUANO 833 Piso:8 Dpto:B | H57: 1013-CIUDAD AUTONOMA BUENOS AIRES. | J57: +54 261 4989554 | L57: e.viluron@codorniu.com | R57: ELIZABETH VILORUN | U57: CODORNIU ARGENTINA S.A. | AG57: 43750 | AH57: No | AI57: 01 | AJ57: PREPAGO | AM57: 06 | AP57: 00 | AQ57: ESTANDAR | AR57: 00 | AS57: ESTANDAR
A58: E039 | C58: GEPROCOR SAM | D58: GEPROCOR SAM | F58: GEPROCOR SAM | U58: GEPROCOR SAM | AG58: 43750 | AH58: No | AI58: 01 | AJ58: PREPAGO | AM58: 06 | AP58: 00 | AQ58: ESTANDAR | AR58: 00 | AS58: ESTANDAR
A59: E040 | C59: TOG INTERNATIONAL SERVICES LTD | D59: TOG INTERNATIONAL SERVICES LTD | F59: TOG INTERNATIONAL SERVICES LTD | U59: TOG INTERNATIONAL SERVICES LTD | AG59: 43750 | AH59: No | AI59: 01 | AJ59: PREPAGO | AM59: 06 | AP59: 00 | AQ59: ESTANDAR | AR59: 00 | AS59: ESTANDAR
A60: E041 | C60: CHANGSHU JIANHUA MOULD TECHNOLOGYC | D60: CHANGSHU JIANHUA MOULD TECHNOLOGYC | F60: CHANGSHU JIANHUA MOULD TECHNOLOGYC | U60: CHANGSHU JIANHUA MOULD TECHNOLOGYC | AG60: 43750 | AH60: No | AI60: 01 | AJ60: PREPAGO | AM60: 06 | AP60: 00 | AQ60: ESTANDAR | AR60: 00 | AS60: ESTANDAR
A61: E1067827 | B61: 36 CLIENT-CORPORAT-OFIC. | C61: MANUEL PEREIRA | D61: MANUEL PEREIRA | F61: MANUEL PEREIRA | G61: PRADOS DEL ESTE | J61: 0414-277-4987 | K61: 120219 | M61: CARACAS | R61: LUCY DE ABREU | U61: MANUEL PEREIRA | V61: CALLE 10 CON ESQUINA CALLE 11 | W61: EDF PLASENCIA LA URBINA | X61: PETARE ESTADO MIRANDA | Z61: 04142774987 | AB61: RECIBE DE LUNES A VIERNES | AC61: DE 8:00 AM A 4:00 PM | AD61: JUEVES Y VIERNES | AE61: E-1067827 | AF61: PARTICULAR | AG61: 89250 | AH61: No | AI61: 05 | AJ61: CREDITO 5 DIAS | AK61: 36 | AL61: VTAS.CORPORATIVAS | AM61: 07 | AN61: 31 | AO61: PARTICULAR | AP61: 01 | AQ61: OFF PREMISSE | AR61: 01 | AS61: OFF PREMISSE | AT61: 36 | AU61: 36 | AW61: RECIBE DE LUNES A VIERNES DE 8:00 AM A 4:00 PM
A62: E736968 | B62: 71 - OFICINA | C62: MONICA BRANDES | D62: MONICA BRANDES | F62: MONICA BRANDES | G62: TERRAZAS DEL AVILA | K62: 20/05/19 | R62: LUCY DE ABREU | U62: MONICA BRANDES | V62: LA URBINA CALLE 10 CON CALLE 11 | W62: EDF. PLASENCIA LA URBINA | X62: MNC. SUCRE PETARE ESTADO MIRANDA | AB62: RECIBE DE LUNES A VIERNES | AC62: DE 8 AM A 4 PM | AE62: E-73696-8 | AF62: PARTICULAR | AG62: 7500 | AH62: No | AI62: 00 | AJ62: CONTADO | AK62: 71 | AL62: OFICINA | AM62: 07 | AN62: 31 | AO62: PARTICULAR | AP62: 01 | AQ62: OFF PREMISSE | AR62: 01 | AS62: OFF PREMISSE | AT62: 71 | AU62: 71 | AV62: 71 - OFICINA | AW62: RECIBE DE LUNES A VIERNES DE 8 AM A 4 PM
A63: E803391044 | B63: 09 - CLIENTE INHABILITADO | C63: QUAN FENG FENG | D63: BAR REST. LA FAVORITA CHINA 952 | F63: QUANFENG FENG(B/R/LA FAVORITA CHINA 952) | G63: AVENIDA RAFAEL AREVALO GONCALEZMNCP | H63: .PAEZ-RIO CHICO-EDO.MIRANDA | J63: 414/3447929 | M63: RIO CHICO | R63: QUAN FENG FENG | U63: BAR REST. LA FAVORITA CHINA 952 | V63: AVENIDA RAFAEL AREVALO GONCALEZMNCP | W63: .PAEZ-RIO CHICO-EDO.MIRANDA | AE63: E-80339104-4 | AF63: M-N 1155 | AG63: 15000 | AH63: Sí | AI63: 00 | AJ63: CONTADO | AK63: 12 | AL63: BARLOVENTO | AM63: 04 | AN63: 07 | AO63: RESTAURANTES | AP63: 01 | AQ63: OFF PREMISSE | AR63: 01 | AS63: OFF PREMISSE | AT63: 09 | AU63: 09 | AV63: 09 - CLIENTE INHABILITADO
A64: E805846847 | B64: 13 - GUDIÑO FABIAN | C64: JUVENAL FERREIRA DE ABREU | D64: SUPERMERCADO ACUARIO | F64: JUVENAL FERREIRA DE ABREU | G64: AVENIDA TAMANACO CON CALLE TIUNA, | H64: EDIF.CASTELMONTE LOCAL B-1 EL | I64: LLANITO PETARE EDO.MIRANDA. | J64: (0212) 257.72.97 | K64: (0424) 209.69.55 | M64: CARACAS | R64: JUVENAL FERREIRA DE | S64: ABREU | U64: SUPERMERCADO ACUARIO | V64: AVENIDA TAMANACO CON CALLE TIUNA, | W64: EDIF.CASTELMONTE LOCAL B-1 EL | X64: LLANITO PETARE EDO.MIRANDA. | Z64: 0212-257.72.97 | AB64: RECIBE LUNES A VIERNES | AC64: 9:00 AM A 4:00 PM | AD64: MARTES | AE64: E-80584684-7 | AF64: 00043/2019 | AG64: 89250 | AH64: No | AI64: 05 | AJ64: CREDITO 5 DIAS | AK64: 13 | AL64: PETARE | AM64: 05 | AN64: 23 | AO64: ABASTOS PEQUEÑOS/BODEGAS | AP64: 01 | AQ64: OFF PREMISSE | AR64: 01 | AS64: OFF PREMISSE | AT64: 13 | AU64: 13 | AV64: 01 - CARLOS DA SILVA - OFF | AW64: RECIBE LUNES A VIERNES 9:00 AM A 4:00 PM
A65: E81044373 | B65: 60 - SKO CARVAJAL EDUARDO | C65: SORIA VARGAS LUIS ALBERTO | D65: NULL | F65: SORIA VARGAS LUIS ALBERTO | G65: ZONA INDUSTRIAL TERRINCA GALPON 6-A | H65: GUATIRE-MNCP.AUTONOMO ZAMORA-EDO.MI | I65: RANDA | J65: 0414/2505555 | M65: CARACAS | R65: SORIA VARGAS LUIS AL | S65: BERTO | U65: NULL | V65: ZONA INDUSTRIAL TERRINCA GALPON 6-A | W65: GUATIRE-MNCP.AUTONOMO ZAMORA-EDO.MI | X65: RANDA | AE65: E-E8104437-3 | AF65: PARTICULAR | AG65: 0 | AH65: Sí | AI65: 00 | AJ65: CONTADO | AK65: 60 | AM65: 05 | AN65: 25 | AO65: EMPLEADOS | AP65: 01 | AQ65: OFF PREMISSE | AR65: 01 | AS65: OFF PREMISSE | AU65: 60
A66: E810566550 | B66: 09 - CLIENTE INHABILITADO | C66: JOSE GONCALVES RABIM | D66: ABASTOS LOS GUAYABITOS | F66: JOSE MANUEL REIS F.(AB.LOS GUAYABITOS) | G66: CARRETERA LOS GUAYABITOS BARUTABARU | H66: TA | M66: CARACAS | P66: BLOQ. CLIENTE MOROSO | Q66: BAJA FRECUENCIA DE COMPRA 12/03/14 | R66: JOSE MANUEL REIS FER | S66: NANDEZ | U66: ABASTOS LOS GUAYABITOS | V66: CARRETERA LOS GUAYABITOS BARUTABARU | W66: TA | AE66: E-81056655-0 | AF66: M-N 5643 | AG66: 15000 | AH66: Sí | AI66: 00 | AJ66: CONTADO | AK66: 15 | AL66: BARUTA | AM66: 05 | AN66: 23 | AO66: ABASTOS PEQUEÑOS/BODEGAS | AP66: 01 | AQ66: OFF PREMISSE | AR66: 01 | AS66: OFF PREMISSE | AT66: 09 | AU66: 09 | AV66: 09 - CLIENTE INHABILITADO | AW66: =CONCATENATE(AB66," ",AC66) -> 
A67: E810721483 | B67: 09 - CLIENTE INHABILITADO | C67: DUARTE SAMUEL NEVES DA SIVA | D67: DUARTE SAMUEL NEVES DA SIVA | F67: ABASTOMLOS ALMENDRONES DE CUA | G67: CALLE PRINCIPAL DE QDA DE CUA | H67: ABASTO LOS ALMENDRONES | I67: CTA RESV ARAGUANEY | J67: 02392128652 | M67: CUA | R67: DUARTE S. DA SILVA | S67: NEVES ANTONIO VICENT | U67: DUARTE SAMUEL NEVES DA SILVA | V67: CALLE PRINCIPAL DE QDA DE CUA | W67: CTO RES ARAGUANEY | X67: ABASTO LOS ALMENDRONES | Z67: 02392128652 | AB67: PASADO ZONA 01.SUP JHONNY | AC67: R. S/SOLIC DEL 11/03/11 | AE67: E-81072148-3 | AF67: M-N567 | AG67: 15000 | AH67: No | AI67: 05 | AJ67: CREDITO 5 DIAS | AK67: 14 | AL67: LITORAL CENTRAL | AM67: 05 | AN67: 18 | AO67: LICORERIAS/BODEGONES | AP67: 01 | AQ67: OFF PREMISSE | AR67: 01 | AS67: OFF PREMISSE | AU67: 09 | AV67: 09 - CLIENTE INHABILITADO | AW67: PASADO ZONA 01.SUP JHONNY R. S/SOLIC DEL 11/03/11
A68: E81104219 | B68: 71 - OFICINA | C68: HELIO MACIEL DE ASSIS | D68: HELIO MACIEL DE ASSIS | E68: 17/12/2021 | F68: HELIO MACIEL DE ASSIS | G68: AV. JOSE ANTONIO PAEZ, RESIDENCIAS | H68: BOSQUE PINAR EL PARAISO CARACAS | U68: HELIO MACIEL DE ASSIS | V68: AV. JOSE ANTONIO PAEZ, RESIDENCIAS | W68: BOSQUE PINAR EL PARAISO CARACAS | AE68: E-8110421-9 | AG68: 15000 | AH68: No | AI68: 00 | AJ68: CONTADO | AK68: 71 | AL68: OFICINA | AM68: 07 | AP68: 00 | AQ68: ESTANDAR | AR68: 00 | AS68: ESTANDAR | AT68: 71 | AU68: 71 | AV68: 71 - EMPRESA
A69: E811715886 | B69: 09 - CLIENTE INHABILITADO | C69: FELIPE MANUEL BARBOSA | D69: DISTRIBUIDORA COCO FRIO | F69: FELIPE M.BARBOSA TEIXEIRA(DIST.COCO FRIO | G69: AVENIDA BARLOVENTO ENTRADA DE HIGUE | H69: ROTEHIGUEROTE MUNICIPO BRION | M69: HIGUEROTE | R69: FELIPE MANUEL BARBOS | S69: A | U69: DISTRIBUIDORA COCO FRIO | V69: AVENIDA BARLOVENTO ENTRADA DE HIGUE | W69: ROTEHIGUEROTE MUNICIPO BRION | AB69: CAMBIO DE RAZON | AC69: POR J299156728 | AE69: E-81171588-6 | AF69: M-M 667 | AG69: 15000 | AH69: No | AI69: 00 | AJ69: CONTADO | AK69: 12 | AL69: BARLOVENTO | AM69: 05 | AN69: 18 | AO69: LICORERIAS/BODEGONES | AP69: 01 | AQ69: OFF PREMISSE | AR69: 01 | AS69: OFF PREMISSE | AU69: 09 | AV69: 09 - CLIENTE INHABILITADO | AW69: CAMBIO DE RAZON POR J299156728
A70: E811725067 | B70: 02 - REQUENA JOHAN - OFF | C70: MANUEL FERNANDEZ L. (AB MONTOVANI) | D70: ABASTOS MANTOVANI | F70: MANUEL FERNANDEZ L. (ABASTOS MONTOVANI) | G70: AVENIDA ATLANTICO,ENTRE 6TA Y 7MA A | H70: VENIDAFRENTE A CAUCHOS PIRELLI CAT | I70: IA | M70: CARACAS | R70: FERNANDEZ LUCAS MANU | S70: EL | U70: ABASTOS MANTOVANI | V70: AVENIDA ATLANTICO,ENTRE 6TA Y 7MA A | W70: VENIDAFRENTE A CAUCHOS PIRELLI CAT | X70: IA | AB70: TRASP. SUP 02-CARLOS GON. | AC70: S/S FECHA 02/08/2013 | AE70: E-81172506-7 | AF70: M-N 4403 | AG70: 89250 | AH70: Sí | AI70: 05 | AJ70: CREDITO 5 DIAS | AK70: 22 | AL70: CATIA-JUNQUITO | AM70: 05 | AN70: 23 | AO70: ABASTOS PEQUEÑOS/BODEGAS | AP70: 01 | AQ70: OFF PREMISSE | AR70: 01 | AS70: OFF PREMISSE | AU70: 02 | AW70: TRASP. SUP 02-CARLOS GON. S/S FECHA 02/08/2013
A71: E811747630 | B71: 21 - CAÑONGO SAUL | C71: MARCELINO DE ABREU | D71: MARC. DE ABREU(C/SOU VENIR EL VAIVE | F71: MARCELINO DE ABREU(C/SOU VENIR EL VAIVEN | G71: AVENIDA LAMAS N-24.FRENTE S/M CENTR | H71: AL TUY SANTA TERESA | J71: (0239) 231.10.11 | K71: (0414) 106.60.89 | M71: STA. TERESA | R71: MARCELINO DE ABREU | U71: MARC. DE ABREU(C/SOU VENIR EL VAIVE | V71: AVENIDA LAMAS N-24.FRENTE S/M CENTR | W71: AL TUYSANTA TERESA | Z71: (0239) 231-10-11 | AB71: RECIBE LUNES A VIERNES | AC71: 9:00 AM A 6:00 PM | AD71: MARTES | AE71: E-81174763-0 | AF71: 039-MY-948 | AG71: 89250 | AH71: No | AI71: 05 | AJ71: CREDITO 5 DIAS | AK71: 27 | AL71: VALLES DEL TUY-27 | AM71: 06 | AN71: 23 | AO71: ABASTOS PEQUEÑOS/BODEGAS | AP71: 01 | AQ71: OFF PREMISSE | AR71: 01 | AS71: OFF PREMISSE | AT71: 21 | AU71: 21 | AV71: 02 - VICTOR TORRES - OFF | AW71: RECIBE LUNES A VIERNES 9:00 AM A 6:00 PM
A72: E811747648 | B72: 09 - CLIENTE INHABILITADO | C72: DE ABREU JOSE SEVERINO | D72: ABASTOS MONTE CLARO | F72: DE ABREU JOSE SEVERINO | G72: CALLE BOLIVAR ENTRADA AL PUEBLOCUPI | H72: RA | J72: (0234)887.91.53 | M72: BARLOVENTO | R72: DE ABREU JOSE SEVERI | S72: NO | U72: ABASTOS MONTE CLARO | V72: CALLE BOLIVAR ENTRADA AL PUEBLOCUPI | W72: RA | Z72: (0234)887.91.53 | AB72: CLIENTE EN CUPIRA C/ZONA | AC72: SUP-01 S/S FECHA 23/07/13 | AE72: E-81174764-8 | AF72: 039 MN 780 | AG72: 15000 | AH72: Sí | AI72: 00 | AJ72: CONTADO | AK72: 12 | AL72: BARLOVENTO | AM72: 05 | AN72: 23 | AO72: ABASTOS PEQUEÑOS/BODEGAS | AP72: 01 | AQ72: OFF PREMISSE | AR72: 01 | AS72: OFF PREMISSE | AU72: 09 | AV72: 09 - CLIENTE INHABILITADO | AW72: CLIENTE EN CUPIRA C/ZONA SUP-01 S/S FECHA 23/07/13
A73: E812141158 | B73: 09 - CLIENTE INHABILITADO | C73: ABASTOS CENELDA F.P, CECILIA PEREIR | D73: ABASTOS CENELDA F.P, CECILIA PEREIR | F73: ABASTOS CENELDA F.P, CECILIA PEREIR | G73: KM.1 CARRETERA PETARE SANTA LUCIA C | H73: ERCA OFICINASCENTRAL MADEIRENSE PET | I73: ARE | M73: CARACAS | Q73: CAMBIO DE ZONA DE 13 A 09 141021 ST | R73: CECILIA PEREIRA S. | U73: ABASTOS CENELDA F.P, CECILIA PEREIR | V73: KM.1 CARRETERA PETARE SANTA LUCIA C | W73: ERCA OFICINASCENTRAL MADEIRENSE PET | X73: ARE | AB73: RECIDE DE LUNES A VIERNES | AC73: 9:00 AM A 4:00 PM | AD73: LUNES | AE73: E812141158 | AF73: M-N6642 | AG73: 15000 | AH73: No | AI73: 05 | AJ73: CREDITO 5 DIAS | AK73: 09 | AL73: CLIENTE INHABILITADO | AM73: 05 | AN73: 23 | AO73: ABASTOS PEQUEÑOS/BODEGAS | AP73: 01 | AQ73: OFF PREMISSE | AR73: 01 | AS73: OFF PREMISSE | AT73: 09 | AU73: 09 | AV73: 09 - CLIENTE INHABILITADO | AW73: RECIDE DE LUNES A VIERNES 9:00 AM A 4:00 PM
A74: E812359277 | B74: 09 - CLIENTE INHABILITADO | C74: JOSE DOMINGO LEANDRO DE SOUSA | D74: INVERSIONES EL NOGAL J.D.L. | F74: JOSE DOMINGO LEANDRO DE SOUSA | G74: CARRETERA NACIONAL PETARE-STA.LUCIA | H74: SECTOR EL NOGAL, LOCAL S/N, SANTA | I74: LUCIA EDO. MIRANDA | J74: 0416 - 824.48.68 | M74: SANTA LUCIA | P74: NO QUIERE COMPRAR MAS 10/03/2014 | Q74: CAMBIO A LA ZONA 09 23-09-19 YM | R74: LEANDRO JOSE | U74: INVERSIONES EL NOGAL J.D. L. | V74: CARRETERA NACIONAL PETARE-STA.LUCIA | W74: SECTOR EL NOGAL, LOCAL S/N, SANTA | X74: LUCIA EDO. MIRANDA | Z74: 0416 - 824.48.68 | AB74: RECIBE DE LUNES A JUEVES | AC74: A PARTIR DE LAS 9:00 AM | AD74: MARTES | AE74: E-81235927-7 | AF74: P-00117 | AG74: 15000 | AH74: Sí | AI74: 00 | AJ74: CONTADO | AK74: 21 | AL74: VALLES DEL TUY-21 | AM74: 06 | AN74: 18 | AO74: LICORERIAS/BODEGONES | AP74: 01 | AQ74: OFF PREMISSE | AR74: 01 | AS74: OFF PREMISSE | AT74: 09 | AU74: 09 | AV74: 09 - CLIENTE INHABILITADO | AW74: RECIBE DE LUNES A JUEVES A PARTIR DE LAS 9:00 AM
A75: E81238829 | B75: 09 - CLIENTE INHABILITADO | C75: EDUARDO DO ROSARIO FELIX PITA | D75: EDUARDO DO ROSARIO FELIX PITA | F75: EDUARDO DO ROSARIO FELIX PITA | G75: AV AUGUSTO CESAR SANDINO CON ESQUIN | H75: ANDRES BELLO (HERMANDAD GALLEGAS ) | I75: URB MARI PEREZ | K75: 14/01/19 | M75: MUNICIPIO LIBERTADOR | N75: MUNICIPIO LIBERTADOR CARACAS | P75: CAMBIO DE Z30 A Z33 13/2/19 YR | Q75: CAMBIO DE ZONA 33 A 09 16/9/19 GT | R75: FELIX PITA EDUARDO | U75: EDUARDO DO ROSARIO FELIX PITA | V75: LA URBINA CALLE 10 CON CALLE 11 | W75: EDF PLASENCIA MUNICIPIO SUCRE | X75: ESTADO MIRANDA | Y75: ESTREGAR AL SEÑOR CARLOS CARREIRA | AB75: RECIBE DE LUNES A VIERNES | AC75: DE 8:00 AM A 3:30 PM | AD75: MARTES Y VIERNES | AE75: E-8123882-9 | AF75: PARTICULAR | AG75: 0 | AH75: Sí | AI75: 00 | AJ75: CONTADO | AK75: 09 | AL75: CLIENTE INHABILITADO | AM75: 07 | AN75: 33 | AO75: RELACIONADOS | AP75: 02 | AQ75: ON PREMISSE | AR75: 02 | AS75: ON PREMISSE | AT75: 09 | AU75: 09 | AV75: 09 - CLIENTE INHABILITADO | AW75: RECIBE DE LUNES A VIERNES DE 8:00 AM A 3:30 PM
A76: E812416459 | B76: 09 - CLIENTE INHABILITADO | C76: FRANCISCO RIBEIRO GONCALVES | D76: FRUTERIA CHARCUTERIA LA VIA 28 | F76: FRUTERIA CHARCUTERIA LA VIA 28 | G76: CARRETERA VIA BARUTA EL HATILLO. | H76: SECTOR SEMINARIO SAN JOSE | I76: PARCELA S/N. | J76: 0212-961.12.54 | K76: 0414-908.43.46 | M76: CARACAS | Q76: BAJA FRECUENCIA DE COMPRA 21/01/14 | R76: FRANCISCO SILVINO | S76: C.I E81241645 | U76: FRUTERIA LA VIA | V76: CARRETERA VIA BARUTA EL HATILLO. | W76: SECTOR SEMINARIO SAN JOSE PARCELA | X76: S/N (AL LADO DE PIRELLI) | Z76: 0212-961.12.54 | AE76: E-81241645-9 | AF76: TRAMITE | AG76: 15000 | AH76: Sí | AI76: 00 | AJ76: CONTADO | AK76: 15 | AL76: BARUTA | AM76: 01 | AN76: 02 | AO76: DE LICORES S/FZA DE VTA | AP76: 01 | AQ76: OFF PREMISSE | AR76: 01 | AS76: OFF PREMISSE | AU76: 09 | AV76: 09 - CLIENTE INHABILITADO
A77: E812473363 | B77: 25 - OCAMPO O. ROMAY | C77: SANCHO PINTO DE FARIAS | D77: ABASTOS Y FRUTERIA DON SANCHO | F77: SANCHO DE FARIA P.(FRUT.VIV Y LIC DON S. | G77: CALLE GUAICAIPURO CON PAEZ RESD.PAE | H77: ZPLAZA PISO 1-GUAICAIPURO-LOS TEQUE | I77: S | J77: (0212) 364.33.33 | L77: licoreriadonsancho@hotmail.com | M77: LOS TEQUES | R77: SANCHO D`FARIAS PINT | S77: O | U77: ABASTOS Y FRUTERIA DON SANCHO | V77: AVENIDA BOLIVAR NRO. 32 | W77: LOS TEQUES EDO. MIRANDA | Z77: (0212) 364-33-33 | AB77: RECIBE LUNES A VIERNES | AC77: 9 AM A 12 - 2 PM A 5 PM | AD77: MARTES | AE77: E-81247336-3 | AF77: 032-MN-086 | AG77: 89250 | AH77: No | AI77: 05 | AJ77: CREDITO 5 DIAS | AK77: 25 | AL77: LOS TEQUES | AM77: 05 | AN77: 23 | AO77: ABASTOS PEQUEÑOS/BODEGAS | AP77: 01 | AQ77: OFF PREMISSE | AR77: 01 | AS77: OFF PREMISSE | AT77: 25 | AU77: 25 | AV77: 02 - VICTOR TORRES - OFF | AW77: RECIBE LUNES A VIERNES 9 AM A 12 - 2 PM A 5 PM
A78: E812826649 | B78: 20 - DIEGO MANUEL | C78: JOAO EMILIO PEREIRA GONCALVES | D78: SUPERMERCADO LA LLAVE DE ORO | E78: 230922 FL | F78: JOAO EMILIO PEREIRA GONCALVES | G78: AV FRANCISCO JAVIER YANEZ. CASA #45 | H78: SAN BERNARDINO CARACAS DTTO. | I78: CAPITAL. DETRAS DEL IUTI | J78: 0212-551.36.82 | L78: JOAOPEREIRA3344@GMAIL.COM | N78: SAN BERNARDINO | R78: JOAO EMILIO PEREIRA | U78: JOAO EMILIO PEREIRA GONCALVES | V78: AV FRANCISCO JAVIER YANEZ | W78: CASA #45 URB SAN BERNARDINO CARACAS | X78: DTTO. CAPITAL. DETRAS DEL IUTI | Y78: SAN BERNARDINO | Z78: 0212-551.36.82 | AA78: 230922 FL | AB78: RECIBE DE LUNES A VIERNES | AC78: 10:00AM A 05:00PM | AD78: DE LUNES A VIERNES | AE78: E-81282664-9 | AF78: 06-MN-001998 | AG78: 89250 | AH78: No | AI78: 05 | AJ78: CREDITO 5 DIAS | AK78: 20 | AL78: CENTRO DE CARACAS | AM78: 05 | AN78: 21 | AO78: SUPERMERCADOS/AUTOMERCADO | AP78: 01 | AQ78: OFF PREMISSE | AR78: 01 | AS78: OFF PREMISSE | AT78: 20 | AU78: 20 | AV78: 02 - TORRES VICTOR - OFF | AW78: RECIBE DE LUNES A VIERNES 10:00AM A 05:00PM
A79: E813029939 | B79: 02 - REQUENA JOHAN - OFF | C79: ARLINDO I MENDES P. | D79: ABASTOS EL ROCIO DEL JUNQUITO | F79: ARLINDO I MENDES P. | G79: CARRETERA EL JUNQUITO KM 12 URB | H79: MONTE VERDE LOC-1 EL JUNQUITO | J79: (0212) 422-48-30 | M79: JUNQUITO | R79: MANUELA LUCAS | U79: ABASTOS EL ROCIO DEL JUNQUITO | V79: CARRETERA EL JUNQUITO KM 12 URB MON | W79: TE VERDE LOC-1 EL JUNQUITO | Z79: (0212) 422-48-30 | AB79: TRASP. SUP 02-CARLOS GON. | AC79: S/S FECHA 02/08/2013 | AE79: E-81302993-9 | AF79: 18-MN-1370 | AG79: 89250 | AH79: Sí | AI79: 05 | AJ79: CREDITO 5 DIAS | AK79: 22 | AL79: CATIA-JUNQUITO | AM79: 05 | AN79: 23 | AO79: ABASTOS PEQUEÑOS/BODEGAS | AP79: 01 | AQ79: OFF PREMISSE | AR79: 01 | AS79: OFF PREMISSE | AU79: 02 | AW79: TRASP. SUP 02-CARLOS GON. S/S FECHA 02/08/2013
A80: E813048887 | B80: 09 - CLIENTE INHABILITADO | C80: MANUEL DOMINGOS DE JESUS CAMACHO | D80: MANUEL DOMINGOS DE JESUS CAMACHO | F80: MANUEL DOMINGOS DE JESUS CAMACHO | G80: AV BOLIVAR. CASA NRO 48. ZONA CASCO | H80: CENTRAL DE SANTA TERESA DEL TUY | J80: 02139 - 511.07.93 | M80: CUA | R80: DE JESUS MANUEL | U80: MANUEL DOMINGOS DE JESUS CAMACHO | V80: AV BOLIVAR. CASA NRO 48. ZONA CASCO | W80: CENTRAL DE SANTA TERESA DEL TUY | Z80: 0239 - 511.07.93 | AB80: CAMBIO DE RAZON SOCIAL | AC80: FECHA BLOQUEO 16-08-2012 | AD80: MARTES | AE80: E-81304888-7 | AF80: 039 MY 00165 | AG80: 15000 | AH80: Sí | AI80: 05 | AJ80: CREDITO 5 DIAS | AK80: 14 | AL80: LITORAL CENTRAL | AM80: 05 | AN80: 18 | AO80: LICORERIAS/BODEGONES | AP80: 01 | AQ80: OFF PREMISSE | AR80: 01 | AS80: OFF PREMISSE | AU80: 09 | AV80: 09 - CLIENTE INHABILITADO | AW80: CAMBIO DE RAZON SOCIAL FECHA BLOQUEO 16-08-2012
A81: E813392545 | B81: 09 - CLIENTE INHABILITADO | C81: GONCALVES DE GONCALVES DIANA MARIA | D81: GONCALVES DE GONCALVES DIANA MARIA | F81: GONCALVES DE GONCALVES DIANA MARIA | G81: KM 7 VIA ORIENTE E/S EL GUAPETONSEC | H81: TOR SANTA INES EL GUAPO | J81: (0212) 808-15-03 | M81: BARLOVENTO | P81: DESACTIVADO EL 04/08/2014 | Q81: BALA FRECUENCIA DE COMPRA | R81: AUGUSTO GONCALVEZ/JU | S81: AQUIN FREITAS | U81: GONCALVES DE GONCALVES DIANA MARIA | V81: KM 7 VIA ORIENTE E/S EL GUAPETONSEC | W81: TOR SANTA INES EL GUAPO | Z81: (0212) 808-15-03 | AB81: RECIBE DE LUNES A VIERNES | AC81: DE 8:00 AM A 6:00 PM | AD81: MARTES | AE81: E-81339254-5 | AF81: PARTICULAR | AG81: 15000 | AH81: Sí | AI81: 00 | AJ81: CONTADO | AK81: 12 | AL81: BARLOVENTO | AM81: 05 | AN81: 19 | AO81: TIENDAS DE CONVENIENCIA | AP81: 01 | AQ81: OFF PREMISSE | AR81: 01 | AS81: OFF PREMISSE | AT81: 09 | AU81: 09 | AV81: 09 - CLIENTE INHABILITADO | AW81: RECIBE DE LUNES A VIERNES DE 8:00 AM A 6:00 PM
A82: E814618288 | B82: 02 - REQUENA JOHAN - OFF | C82: YLIDIO VASCONCELOS GOMES PERERIRA | D82: INVERSIONES UDETRES, C.A. | F82: YLIDIO VASCONCELOS GOMES PERERIRA | G82: AVENIDA PPAL UD-3 BLOQUE 1 LOCAL 50 | H82: CARICUAO | J82: (0212) 433-11-77 | M82: CARACAS | R82: ILIDIO VASCONCELOS | U82: YLIDIO VASCONCELOS GOMES PERERIRA | V82: AVENIDA PPAL UD-3 BLOQUE 1 LOCAL 50 | W82: CARICUAO | Z82: (0212) 433-11-77 | AB82: TRASP.AL 02 SEGUN SOLIC | AC82: 14/02/11 | AE82: E-81461828-8 | AF82: EN TRAMITES | AG82: 89250 | AH82: No | AI82: 05 | AJ82: CREDITO 5 DIAS | AK82: 24 | AL82: CARICUAO | AM82: 05 | AN82: 18 | AO82: LICORERIAS/BODEGONES | AP82: 01 | AQ82: OFF PREMISSE | AR82: 01 | AS82: OFF PREMISSE | AU82: 02 | AW82: TRASP.AL 02 SEGUN SOLIC 14/02/11
A83: E814925733 | B83: 09 - CLIENTE INHABILITADO | C83: ARMANDO V. PEREIRA G. | D83: ABASTOS FLORENCIA | F83: ARMANDO V.PEREIRA G.(ABASTO FLORENCIA) | G83: AV.LA COLINA,PARROQUIA STA.ROSALIA | H83: EDIF. LAFLORENCIA,P.B.LOCAL Nº 1,UR | I83: B.LOS CHAGUARAMOS | J83: 6617076 | M83: CARACAS | R83: ARMANDO V. PEREIRA G | S83: . | U83: ABASTOS FLORENCIA | V83: AV.LA COLINA,PARROQUIA STA.ROSALIA | W83: EDIF. LAFLORENCIA,P.B.LOCAL Nº 1,UR | X83: B.LOS CHAGUARAMOS | AE83: E-81492573-3 | AF83: M-N 4065 | AG83: 15000 | AH83: No | AI83: 05 | AJ83: CREDITO 5 DIAS | AK83: 15 | AL83: BARUTA | AM83: 05 | AN83: 23 | AO83: ABASTOS PEQUEÑOS/BODEGAS | AP83: 01 | AQ83: OFF PREMISSE | AR83: 01 | AS83: OFF PREMISSE | AT83: 09 | AU83: 09 | AV83: 09 - CLIENTE INHABILITADO
A84: E81504506 | B84: 71 - OFICINA | C84: JOAO SIDONIO RODRIGUEZ | D84: JOAO SIDONIO RODRIGUEZ | F84: JOAO SIDONIO RODRIGUEZ | G84: CALLE 10 CON ESQUINA CALLE 11 | H84: EDIFICIO PLASENCIA LA URBINA | I84: EDO-MIRANDA | J84: (0212)242.11.11 | M84: CARACAS | R84: JOAO RODRIGUEZ | U84: JOAO SIDONIO RODRIGUEZ | V84: CALLE 10 CON ESQUINA CALLE 11 | W84: EDIFICIO PLASENCIA LA URBINA | X84: EDO-MIRANDA | Z84: 0212 2421111 | AA84: 301216 | AE84: E-8150450-6 | AF84: PARTICULAR | AG84: 7500 | AH84: No | AI84: 05 | AJ84: CREDITO 5 DIAS | AK84: 71 | AL84: OFICINA | AM84: 08 | AN84: 33 | AO84: RELACIONADOS | AP84: 00 | AQ84: ESTANDAR | AR84: 00 | AS84: ESTANDAR | AT84: 71 | AU84: 71 | AV84: 71 - OFICINA
A85: E815134624 | B85: 09 - CLIENTE INHABILITADO | C85: JOSE A GONCALVEZ BRITO | D85: ABASTOS TACHIRA | F85: FERNANDES G JOSE M | G85: AVENIDA GARCILAZO EDIFICIO TACHIRAC | H85: OLINAS DE BELLO MONTE-CARACAS | J85: 7529304/9717 | M85: CARACAS | R85: JOSE GONCALVEZ | U85: ABASTOS TACHIRA | V85: AVENIDA GARCILAZO EDIFICIO TACHIRAC | W85: OLINAS DE BELLO MONTE-CARACAS | AB85: TRASP. ZONA 01 SUP.JHONNY | AC85: RODRIGUEZ S/SOL.21-02-11 | AE85: E-81513462-4 | AF85: M-N 3353 | AG85: 15000 | AH85: No | AI85: 05 | AJ85: CREDITO 5 DIAS | AK85: 15 | AL85: BARUTA | AM85: 05 | AN85: 23 | AO85: ABASTOS PEQUEÑOS/BODEGAS | AP85: 01 | AQ85: OFF PREMISSE | AR85: 01 | AS85: OFF PREMISSE | AU85: 09 | AV85: 09 - CLIENTE INHABILITADO | AW85: TRASP. ZONA 01 SUP.JHONNY RODRIGUEZ S/SOL.21-02-11
A86: E815986582 | B86: 70 - COMPRA/PERSONAL | C86: MARIO RODRIGUEZ | D86: MARIO RODRIGUEZ | F86: MARIO RODRIGUEZ | G86: AV MATURIN AV CAICARA Y EL EMPALME | H86: QTA AYAYA NRO S/N URB. LA CAMPIÑA | I86: SUR LOS CEDROS CARACAS DIST. CAP. | J86: 0424-1123976 | M86: CARACAS | N86: ZONA POSTAL 1050 | R86: MARIO RODRIGUEZ | U86: MARIO RODRIGUEZ | V86: AV. MARUTIN AV CAICARA Y EL EMPALME | W86: QTA AYAYA S/N URB. LA CAMPIÑA SUR | X86: LOS CEDROS CARACAS DIST. CAPITAL | Y86: ZONA POSTAL 1050 | Z86: 04241123976 | AE86: E-0815986582 | AF86: PARTICULAR | AG86: 15000 | AH86: No | AI86: 00 | AJ86: CONTADO | AK86: 70 | AL86: PERSONAL EMPLEADO | AM86: 07 | AN86: 31 | AO86: PARTICULAR | AP86: 01 | AQ86: OFF PREMISSE | AR86: 01 | AS86: OFF PREMISSE | AT86: 70 | AU86: 70 | AV86: 70 - PERSONAL EMPLEADO
A87: E816555054 | B87: 31 - RODRIGUEZ WLADIMIR | C87: GONZALEZ B. MODESTO JOSÉ | D87: GONZALEZ B. MODESTO JOSÉ | F87: GONZALEZ B. MODESTO JOSÉ | G87: AV FRANCISCO DE MIRANDA. EDIF. | H87: CARLOTA PLAZA. TORRE B. PISO 1 | I87: APTO 14-D. URB. LA CARLOTA | J87: 0412-241.40.52 | M87: CARACAS | R87: GONZALEZ MODESTO | U87: GONZALEZ B. MODESTO JOSÉ | V87: CIRCULO MILITAR DE VENEZUELA. REST. | W87: CARIBE. LOS PROCERES | X87: MCPIO. SUCRE CARACAS EDO.MIRANDA | Z87: 0414-328.57.19 | AB87: TRASP.AL 03.SUP.CARLOS DA | AC87: SILVA S/SOLIC 04/02/11 | AE87: E-81655505-4 | AF87: PARTICULAR | AG87: 89250 | AH87: No | AI87: 05 | AJ87: CREDITO 5 DIAS | AK87: 33 | AL87: CENTRO-CANDELARIA | AM87: 07 | AN87: 31 | AO87: PARTICULAR | AP87: 02 | AQ87: ON PREMISSE | AR87: 02 | AS87: ON PREMISSE | AU87: 31 | AW87: TRASP.AL 03.SUP.CARLOS DA SILVA S/SOLIC 04/02/11
A88: E816752011 | B88: 22 - GONZALEZ CARLOS | C88: DA COSTA OLIVEIRA VICTOR M. | D88: LIC. Y CHARCT/ VIMAR | F88: DA COSTA OLIVEIRA VICTOR M. | G88: 1ra. AV.PROPATRIA FRENTE AL METRO ( | H88: VIMAR )CATIA | J88: 0212 870 11 07 | K88: 0414 019 44 94 | L88: jesus_2011@hotmail.com | M88: CARACAS | Q88: BLOQ MAYOR 44 DIAS SEGUIM 08/03 PH | R88: VICTOR M. OLIVEROS | U88: LIC. Y CHARCT/ VIMAR | V88: 1ra. AV.PROPATRIA FRENTE AL METRO ( | W88: VIMAR )CATIA | Z88: (0212) 870-11-07 | AB88: RECIBE LUNES A VIERNES | AC88: 11:00AM A 5:00PM | AD88: MIERCOLES | AE88: E-81675201-1 | AF88: 15-MN-1451 | AG88: 89250 | AH88: Sí | AI88: 05 | AJ88: CREDITO 5 DIAS | AK88: 22 | AL88: CATIA-JUNQUITO | AM88: 06 | AN88: 18 | AO88: LICORERIAS/BODEGONES | AP88: 01 | AQ88: OFF PREMISSE | AR88: 01 | AS88: OFF PREMISSE | AT88: 22 | AU88: 22 | AV88: 02 - VICTOR TORRES - OFF | AW88: RECIBE LUNES A VIERNES 11:00AM A 5:00PM
A89: E818754771 | B89: 09 - CLIENTE INHABILITADO | C89: LICORERIA SAN FRANCISCO DE PADUA | D89: LICORERIA SAN FRANCISCO DE PADUA | F89: JOAO FERNANDES P. (LIC.SAN FCO.DE PADUA) | G89: CALLE RIVAS,DE SAN FRANCISCO DE YAR | H89: EMPO,AUTONOMO SIMON BOLIVAR | J89: 39,29344 | M89: SAN FCO.DE YARE | R89: JOAO FERNANDES PESTA | S89: NA | U89: LICORERIA SAN FRANCISCO DE PADUA | V89: CALLE RIVAS,DE SAN FRANCISCO DE YAR | W89: EMPO,AUTONOMO SIMON BOLIVAR | AB89: CAMBIO RIF P/J309318101 | AC89: CCIAL.SAN F.PADUA YARE | AE89: E-81875477-1 | AF89: 039 MY 1016 | AG89: 0 | AH89: No | AI89: 00 | AJ89: CONTADO | AK89: 09 | AL89: CLIENTE INHABILITADO | AM89: 05 | AN89: 18 | AO89: LICORERIAS/BODEGONES | AP89: 11 | AQ89: FRANQUICIAS PROLICOR,C.A. | AR89: 11 | AS89: FRANQUICIAS PROLICOR,C.A. | AT89: 09 | AU89: 09 | AV89: 09 - CLIENTE INHABILITADO | AW89: CAMBIO RIF P/J309318101 CCIAL.SAN F.PADUA YARE
A90: E819685471 | B90: 36 CLIENT-CORPORAT-OFIC. | C90: FARO CUSUMANO | D90: CTRO. CULT. GASTRONIMICO SICILIANO | F90: FARO CUSUMANO | G90: AVENIDA NEVERI CASA MAPORAL S/N URB | H90: COLINAS DE BELLO MONTE | I90: CARACAS | J90: (0212) 753-70-93 | M90: CARACAS | R90: FARO CUSUMANO | U90: FARO CUSUMANO | V90: AVENIDA NEVERI CASA MAPORAL S/N URB | W90: COLINAS DE BELLO MONTE (DIAGONAL A | X90: LA CANTV) BELLO MONTE - CARACAS | Z90: (0212) 753-70-93 | AE90: E-81968547-1 | AF90: PARTICULAR | AG90: 89250 | AH90: No | AI90: 05 | AJ90: CREDITO 5 DIAS | AK90: 36 | AL90: VTAS.CORPORATIVAS | AM90: 04 | AN90: 07 | AO90: RESTAURANTES | AP90: 02 | AQ90: ON PREMISSE | AR90: 02 | AS90: ON PREMISSE | AT90: 36 | AU90: 36 | AV90: 71 - OFICINA
A91: E819942857 | B91: 09 - CLIENTE INHABILITADO | C91: CARLOS MAGNO CANDIDO CORREIA | D91: LICORERIA GUAYABAL | F91: CARLOS MAGNO CANDIDO CORREIA | G91: ESQUINA GUAYABAL LOCAL Nº 20 SANTAR | H91: OSALIA PTE. HIERRO CARACAS | M91: CARACAS | O91: 2CHED 010416/120417 36HP MYZ | P91: CAMBIO DE RAZON SOCIAL 01117 KF | Q91: CAMBIO A ZONA 09 19-09-19 YM | R91: ORLANDO ALFREDO MIRA | S91: NDA | U91: LICORERIA GUAYABAL | V91: ESQUINA GUAYABAL LOCAL Nº 20 SANTAR | W91: OSALIA PTE. HIERRO CARACAS | AB91: RECIBE DE LUNES A VIERNES | AC91: DE 11:00AM A 6:00PM | AD91: JUEVES | AE91: E-81994285-7 | AF91: M-N 4607 | AG91: 0 | AH91: Sí | AI91: 00 | AJ91: CONTADO | AK91: 09 | AL91: CLIENTE INHABILITADO | AM91: 06 | AN91: 18 | AO91: LICORERIAS/BODEGONES | AP91: 01 | AQ91: OFF PREMISSE | AR91: 01 | AS91: OFF PREMISSE | AT91: 09 | AU91: 09 | AV91: 09 - CLIENTE INHABILITADO | AW91: RECIBE DE LUNES A VIERNES DE 11:00AM A 6:00PM
A92: G200000309 | B92: 71 - OFICINA | C92: TRIBUNAL SUPREMO DE JUSTICIA | D92: TRIBUNAL SUPREMO DE JUSTICIA | F92: TRIBUNAL SUPREMO DE JUSTICIA | G92: FINAL AV.BARALT ESQUINA DOS PILITAS | H92: EDIF. SEDE (T.S.J.) TRIBUNAL SUPRE | I92: MO JUSTICIA. CARACAS. DTTO.CAPITAL | J92: 0212-801.91.36 | M92: CARACAS | R92: TRIBUNAL SUPREMO | S92: JUSTICIA | U92: TRIBUNAL SUPREMO DE JUSTICIA | V92: FINAL AV.BARALT ESQ.DOS PILITAS | W92: EDIF. SEDE (T.S.J.)TRIBUNAL SUPREMO | X92: JUSTICIA. P.B. ALMACEN | Z92: 0412-575.44.06 | AB92: CONTACTO LISSET MESA | AC92: 0412-575.44.06 | AE92: G-20000030-9 | AF92: PARTICULAR | AG92: 7500 | AH92: No | AI92: 00 | AJ92: CONTADO | AK92: 71 | AL92: OFICINA | AM92: 06 | AN92: 30 | AO92: GOBIERNO | AP92: 01 | AQ92: OFF PREMISSE | AR92: 01 | AS92: OFF PREMISSE | AU92: 71 | AV92: 71 - OFICINA | AW92: CONTACTO LISSET MESA 0412-575.44.06
A93: G200002190 | B93: 36 CLIENT-CORPORAT-OFIC. | C93: ALCALDIA DE ZAMORA | D93: ALCALDIA DE ZAMORA | E93: 05/12/23EP | F93: ALCALDIA DE ZAMORA | G93: AV.MIRANDA,LOCAL EDF CENTRO CIVICO | H93: SECTOR GUATIRE-MIRANDA | R93: BERMARI AÑEZ | U93: ALCALDIA DE ZAMORA | V93: AV.MIRANDA,LOCAL EDF CENTRO CIVICO | W93: SECTRO GUATIRE-MIRNDA | AE93: G200002190 | AG93: 89250 | AH93: No | AI93: 05 | AJ93: CREDITO 5 DIAS | AK93: 36 | AL93: VTAS.CORPORATIVAS | AM93: 06 | AN93: 30 | AO93: GOBIERNO | AP93: 00 | AQ93: ESTANDAR | AR93: 00 | AS93: ESTANDAR | AT93: 36 | AU93: 36 | AV93: 36-CLIENTE CORPORATIVO
A94: G200036923 | B94: 60 - SKO CARVAJAL EDUARDO | C94: I.P.S.F.A. | D94: I.P.S.F.A. | F94: INST DE PRV SOC DE LAS FUERZ ARMAD IPSFA | G94: CALLE LOS PROCERES EDIF IPSFA OCUPA | H94: CION TODO EL EDF PISO PB OF | I94: TESORERIA URB LOS PROCERES STA | J94: 0212-609.25.70 | M94: CARACAS | N94: MONICA. ZONA POSTAL 1030 | R94: I.P.S.F.A. | U94: INST DE PRV SOC DE LAS FZA ARM IPSF | V94: CALLE LOS PROCERES EDIF IPSFA OCUPA | W94: CION TODO EL EDF PISO PB OF | X94: TESORERIA URB LOS PROCERES STA | Y94: MONICA. ZONA 1030 | Z94: 0212-609.25.70 | AE94: G-20003692-3 | AF94: 002-MN-7570 | AG94: 0 | AH94: Sí | AI94: 00 | AJ94: CONTADO | AK94: 60 | AM94: 05 | AN94: 18 | AO94: LICORERIAS/BODEGONES | AP94: 01 | AQ94: OFF PREMISSE | AR94: 01 | AS94: OFF PREMISSE | AU94: 60
A95: G200042389 | B95: 31 - RODRIGUEZ WLADIMIR | C95: ASOC. CIVIL CLUB SUB OFIC F.F A.A | D95: ASOC. CIVIL CLUB SUB OFIC F.F A.A | F95: ASOCIACION CIVIL CLUB SUB OFIC F.F A.A | G95: FINAL AV VALLE-COCHE VIA LA RINCONA | H95: DASECTOR LAS MAYAS CLUB SOFA-MNPIO. | I95: LIBERTADOR | J95: 6816180 | M95: CARACAS | R95: JUAN VICENTE LOYO | U95: ASOC. CIVIL CLUB SUB OFIC F.F A.A | V95: FINAL AV VALLE-COCHE VIA LA RINCONA | W95: DASECTOR LAS MAYAS CLUB SOFA-MNPIO. | X95: LIBERTADOR | AE95: G-20004238-9 | AF95: PARTICULAR | AG95: 89250 | AH95: No | AI95: 05 | AJ95: CREDITO 5 DIAS | AK95: 33 | AL95: CENTRO-CANDELARIA | AM95: 06 | AN95: 30 | AO95: GOBIERNO | AP95: 01 | AQ95: OFF PREMISSE | AR95: 01 | AS95: OFF PREMISSE | AU95: 31
A96: G200080620 | B96: 31 - RODRIGUEZ WLADIMIR | C96: FUND PARA ASIST SOCIAL DE LA PM | D96: FUND PARA ASIST SOCIAL DE LA PM | F96: FUND PARA ASIST SOCIAL DE LA PM | G96: CALLE AYACUCHO ENTRE PAEZ. AV | H96: GUZMAN BLANCO COTA 905 CLUB SOCIAL | I96: PM. URB EL PARAISO. | J96: 0212.564.99.48 | M96: CARACAS | R96: PEDRO MENDOZA RIVERO | U96: FUND PARA ASIST SOCIAL DE LA PM | V96: CALLE AYACUCHO ENTRE PAEZ. AV | W96: GUZMAN BLANCO. COTA 905 CLUB SOCIAL | X96: PM. URB EL PARAISO | Z96: 0212.564.99.48 | AB96: TRASP.AL 03 SUP.CARLOS DA | AC96: SILVA S/SOLIC.24-01-2011 | AE96: G-20008062-0 | AF96: TRAMITE | AG96: 89250 | AH96: No | AI96: 05 | AJ96: CREDITO 5 DIAS | AK96: 33 | AL96: CENTRO-CANDELARIA | AM96: 04 | AN96: 10 | AO96: CLUB SOCIALES | AP96: 02 | AQ96: ON PREMISSE | AR96: 02 | AS96: ON PREMISSE | AU96: 31 | AW96: TRASP.AL 03 SUP.CARLOS DA SILVA S/SOLIC.24-01-2011
A97: G200088494 | B97: 31 - RODRIGUEZ WLADIMIR | C97: DESARROLLOS GRAN CARACAS, C.A. | D97: HOTEL ALBA | F97: DESARROLLOS GRAN CARACAS, C.A. | G97: AV. MEXICO. EDIF HOTEL ALBA. PISO | H97: PB. RECEPCION. URB EL CONDE | J97: 0212.5035013 | K97: CLIENTE PREPAGO | M97: CARACAS | R97: AGUILERA ROMERO | S97: EUSTACIO | T97: ELENA | U97: DESARROLLOS GRAN CARACAS, C.A. | V97: AV. MEXICO. EDIF HOTEL ALBA. PISO | W97: PB. RECEPCION. URB EL CONDE | Z97: 0212.5035013 | AB97: RECIBE DE LUNES A VIERNES | AC97: DE 8AM A 11:30AM | AE97: G-20008849-4 | AF97: PARTICULAR | AG97: 89250 | AH97: Sí | AI97: 00 | AJ97: CONTADO | AK97: 33 | AL97: CENTRO-CANDELARIA | AM97: 04 | AN97: 08 | AO97: HOTELES/CASINOS/BINGOS | AP97: 02 | AQ97: ON PREMISSE | AR97: 02 | AS97: ON PREMISSE | AU97: 31 | AW97: RECIBE DE LUNES A VIERNES DE 8AM A 11:30AM
A98: INTER-PROL | B98: 71 - OFICINA | C98: PROV DE LICORES PROLICOR,C.A. | D98: PROV DE LICORES PROLICOR,C.A. | F98: PROVEEDORES DE LICORES PROLICOR C.A. | G98: CALLE 10, CON ESQUINA CALLE 11 | H98: EDIFICIO PLASENCIA-LA URBINA | I98: MIRANDA | M98: CARACAS | U98: PROV DE LICORES PROLICOR,C.A. | V98: CALLE 10, CON ESQUINA CALLE 11 | W98: EDIFICIO PLASENCIA-LA URBINA | X98: EDO-MIRANDA | Y98: J001708685 | AE98: J0001708685 | AF98: 002-M-N-760 | AG98: 2 | AH98: No | AI98: 00 | AJ98: CONTADO | AK98: 71 | AL98: OFICINA | AP98: 00 | AQ98: ESTANDAR | AR98: 00 | AS98: ESTANDAR | AT98: 550 | AU98: 71
A99: INTR-CHRIS | B99: 71 - OFICINA | C99: INVERSIONES CHRISJOHN, C.A. | D99: INVERSIONES CHRISJOHN, C.A. | F99: INVERSIONES CHRISJOHN, C.A. | J99: 212-2861446 | U99: INVERSIONES CHRISJOHN, C.A. | V99: AV.FRANCISCO DE MIRANDA, CENTRO | W99: PLAZA, TORRE C, PISO 13, OFICINA 13 | X99: LOS PALOS GRANDES-CS-VENEZUELA | Y99: J002937734 | AG99: 0 | AH99: No | AI99: 01 | AJ99: PREPAGO | AK99: 71 | AL99: OFICINA | AP99: 00 | AQ99: ESTANDAR | AR99: 00 | AS99: ESTANDAR | AU99: 71 | AV99: 71 - OFICINA
A100: INTR-DINAZ | B100: 71 - OFICINA | C100: DISTRIBUIDORA NUBE AZUL,C.A. | D100: DISTRIBUIDORA NUBE AZUL,C.A. | F100: DISTRIBUIDORA NUBE AZUL,C.A. | G100: ZONA INDUSTRIAL TERRINCA GALPON 6-A | H100: GUATIRE-MNCP.AUTONOMO ZAMORA-EDO. | I100: MIRANDA | J100: 212-2343300 | M100: CARACAS | U100: DISTRIBUIDORA NUBE AZUL,C.A. | V100: ZONA INDUSTRIAL TERRINCA GALPON 6-A | W100: GUATIRE-MNCP.AUTONOMO ZAMORA-EDO. | X100: MIRANDA | AE100: J-00140645-0 | AG100: 0 | AH100: No | AI100: 00 | AJ100: CONTADO | AK100: 71 | AL100: OFICINA | AP100: 00 | AQ100: ESTANDAR | AR100: 00 | AS100: ESTANDAR | AU100: 71
A101: INTR-ENVAC | B101: 71 - OFICINA | C101: ENVACAR DEL CARIBE, C.A. | D101: ENVACAR DEL CARIBE, C.A. | F101: ENVACAR DEL CARIBE, C.A. | G101: AV. ESTANCIA CENTRO BANAVEN, TORRE | H101: D, PISO 2, OFICINA D-22 CHUAO | I101: CARACAS | J101: 0212-9916842 | R101: PARTICULAR | U101: ENVACAR DEL CARIBE, C.A. | V101: AV. ESTANCIA CENTRO BANAVEN, TORRE | W101: D, PISO 2, OFICINA D-22 CHUAO | X101: CARACAS | Y101: J308803618 | AE101: J-30880361-8 | AG101: 0 | AH101: No | AI101: 00 | AJ101: CONTADO | AK101: 71 | AL101: OFICINA | AP101: 00 | AQ101: ESTANDAR | AR101: 00 | AS101: ESTANDAR | AU101: 71
A102: INTR-IPECA | B102: 71 - OFICINA | C102: IMPORT PROD.ENOLOGICAS,CA (IPECA) | D102: IMPORT PROD.ENOLOGICAS,CA (IPECA) | F102: IMPORT PROD.ENOLOGICAS,CA (IPECA) | G102: CALLE PRINCIPAL BOLEITA NORTE EDIF. | H102: CASTEL GANDOLFO- CARACAS | J102: 212-2343300 | M102: CARACAS | U102: IMPORT PROD.ENOLOGICAS,CA (IPECA) | V102: CALLE PRINCIPAL BOLEITA NORTE EDIF. | W102: CASTEL GANDOLFO- CARACAS | AF102: MY-0261 | AG102: 0 | AH102: No | AI102: 99 | AJ102: ILIMITADO | AK102: 71 | AL102: OFICINA | AP102: 00 | AQ102: ESTANDAR | AR102: 00 | AS102: ESTANDAR | AU102: 71
A103: INTR-LANDE | B103: 71 - OFICINA | C103: LANDER & VERA,S.A. | D103: LANDER & VERA,S.A. | F103: LANDER & VERA,S.A. | G103: MANZANA I, PARCELA II | H103: LA VICTORIA-EDO.ARAGUA | R103: PARTICULAR | U103: LANDER & VERA,S.A. | V103: MANZANA I, PARCELA II | W103: LA VICTORIA-EDO.ARAGUA | Y103: J000217084 | AE103: J-00021708-4 | AG103: 0 | AH103: No | AI103: 00 | AJ103: CONTADO | AK103: 71 | AL103: OFICINA | AP103: 00 | AQ103: ESTANDAR | AR103: 00 | AS103: ESTANDAR | AU103: 71
A104: INTR-VINO | B104: 71 - OFICINA | C104: CORPORACION VINOS DE CHILE C.A. | D104: CORPORACION VINOS DE CHILE C.A. | F104: CORPORACION VINOS DE CHILE C.A. | J104: 212-9916842 | U104: CORPORACION VINOS DE CHILE C.A. | V104: AVENIDA LA ESTANCIA CENTRO BANAVEN | W104: CUBO NEGRO TORRE D PISO 2 | X104: OFIC.D-22 | Y104: J309133500 | AG104: 0 | AH104: No | AI104: 01 | AJ104: PREPAGO | AK104: 71 | AL104: OFICINA | AP104: 00 | AQ104: ESTANDAR | AR104: 00 | AS104: ESTANDAR | AU104: 71 | AV104: 71 - OFICINA
A105: J000007853 | B105: 32 - HERNANDEZ EDGAR | C105: BAR REST.CERVECERIA LAS ROCAS,C.A. | D105: RESTAURANT LA HUERTA | F105: BAR REST. CERVECERIA LAS ROCAS,C.A | G105: AV.FRANCISCO SOLANO CON 1RA.AV.LAS | H105: DELICIAS SABANA GRANDE CARACAS | I105: CAMBIO DE ZONA 30 A 35 12/02/19 BB | J105: (0212) 726.78.82 | K105: (0424) 288.49.40 | L105: RESTAURANTLAHUERTACARACAS@GMAIL.COM | M105: CARACAS | N105: CAMBIO DE ZONA 35 A 33 120319 WP | O105: 1CD 150419 / 150719 HP 8D. GA | P105: CAMBIO V-31 vs V-332 200421 | Q105: CAMBIO V-31 vs V-32 220223 PH | R105: GURMENSINDO ROMANO | S105: JOSE LORENZO TORRES | U105: RESTAURANT LA HUERTA | V105: AV.FRANCISCO SOLANO CON 1RA.AV.LAS | W105: DELICIAS SABANAGRANDE CARACAS | AB105: RECIBE LUNES A VIERNES | AC105: 8:00AM A11:00AM | AD105: MARTES | AE105: J-00000785-3 | AF105: C 5115 | AG105: 89250 | AH105: Sí | AI105: 05 | AJ105: CREDITO 5 DIAS | AK105: 30 | AL105: PARROQUIA EL RECREO | AM105: 04 | AN105: 07 | AO105: RESTAURANTES | AP105: 02 | AQ105: ON PREMISSE | AR105: 02 | AS105: ON PREMISSE | AT105: 32 | AU105: 32 | AV105: 01 - CARLOS DA SILVA - ON | AW105: RECIBE LUNES A VIERNES 8:00AM A11:00AM
A106: J000030316 | B106: 09 - CLIENTE INHABILITADO | C106: BAR RESTAURANT EL FARO C.A. | D106: BAR RESTAURANT EL FARO C.A. | E106: 672-24-64 | F106: BAR RESTAURANT EL FARO C.A. | G106: SECTOR CUMBRE DE LA BOYERA, VIA | H106: LA MARIPOSA LOS TEQUES EDO. MIRANDA | J106: (0212) 672.24.64 | K106: (0414) 235.91.99 | L106: elfaro95@gmail.com | M106: LOS TEQUES | Q106: CAMBIO DE ZONA 26 A 09 16/9/19 GT | R106: ANTONIO ROTONDA | S106: ROTONDA | U106: BAR RESTAURANT EL FARO C.A. | V106: SECTOR CUMBRE DE LA BOYERA, VIA | W106: LA MARIPOSA LOS TEQUES EDO. MIRANDA | Z106: (0212) 671-67-10 | AB106: RECIBE LUNES A VIERNES | AC106: 08:00 AM A 05:00 PM | AD106: MIERCOLES | AE106: J-00003031-6 | AF106: C-4768 | AG106: 0 | AH106: Sí | AI106: 00 | AJ106: CONTADO | AK106: 09 | AL106: CLIENTE INHABILITADO | AM106: 04 | AN106: 07 | AO106: RESTAURANTES | AP106: 02 | AQ106: ON PREMISSE | AR106: 02 | AS106: ON PREMISSE | AT106: 09 | AU106: 09 | AV106: 09 - CLIENTE INHABILITADO | AW106: RECIBE LUNES A VIERNES 08:00 AM A 05:00 PM
A107: J000035903 | B107: 31 - RODRIGUEZ WLADIMIR | C107: TARZILANDIA, C.A. | D107: REST TARZILANDIA,C.A. | F107: TARZILANDIA,C.A. | G107: DECIMA TRANSVERSAL DE ALTAMIRAMNCP. | H107: CHACAO-DTTO.CAPITAL | J107: (0212) 261.06.28 | K107: (0424) 233.93.53 | L107: admintarzilandia@hotmail.com | M107: CARACAS | N107: AU-LIM-300.000 16-06-14 AUT/HD | O107: AUM.LIM CRED 145.000 030614 A/HD | P107: 2CHED 011214/291215 14HP MYZ | Q107: CAMBIO V-31 vs V-332 200421 | R107: ARAUJO JOSE MANUEL | U107: TARZILANDIA,C.A. (REST.TARZILANDIA | V107: DECIMA TRANSVERSAL DE ALTAMIRAMNCP. | W107: CHACAO-DTTO.CAPITAL | AB107: RECIBE LUNES A VIERNES | AC107: 08:00 AM A 11:30 AM | AD107: JUEVES | AE107: J-00003590-3 | AF107: C 1419 | AG107: 89250 | AH107: No | AI107: 05 | AJ107: CREDITO 5 DIAS | AK107: 31 | AL107: LA CASTELLANA | AM107: 04 | AN107: 07 | AO107: RESTAURANTES | AP107: 02 | AQ107: ON PREMISSE | AR107: 02 | AS107: ON PREMISSE | AT107: 31 | AU107: 31 | AV107: 01 - CARLOS DA SILVA - ON | AW107: RECIBE LUNES A VIERNES 08:00 AM A 11:30 AM
A108: J000060134 | B108: 31 - RODRIGUEZ WLADIMIR | C108: BAR REST LING NAM C.A. | D108: BAR REST LING NAM C.A. | F108: BAR REST LING NAM C.A. | G108: AVENIDA LAS CIENCIAS LOS CHAGUARAMO | H108: S | J108: 6616019 | M108: CARACAS | U108: BAR REST LING NAM C.A. | V108: AVENIDA LAS CIENCIAS LOS CHAGUARAMO | W108: S CARACAS | Z108: 6616019 | AE108: J-00006013-4 | AF108: C 75 | AG108: 89250 | AH108: No | AI108: 05 | AJ108: CREDITO 5 DIAS | AK108: 03 | AM108: 04 | AN108: 06 | AO108: BAR/TABER./S. BAR/PUB/TAS | AP108: 02 | AQ108: ON PREMISSE | AR108: 02 | AS108: ON PREMISSE | AU108: 31
A109: J000061890 | B109: 09 - CLIENTE INHABILITADO | C109: CECICLE C.A. | D109: CECICLE C.A. | F109: CECICLE C.A. | G109: AV.PARAISO CON AVENIDA CAJIGAL EDIF | H109: RESIDENCIA LOURDES PISO PB LOCAL | I109: NRO 2 URB SAN BERNANDINO CARACAS | K109: 21-09-2017 | M109: CARACAS | Q109: CAMBIO DE ZONA 20 A 09 150322 ST | R109: ANTONELLA LOBOSCO | S109: GUSTAVO GARCIA | U109: CECICLE C.A. | V109: AV PARAISO CON AVENIDA CAJIGAL EDIF | W109: RESIDENCIAS LOURDES PISO PB LOCAL | X109: N°2 URB SAN BERNARDINO CARACAS | AB109: DESPACHO LUNES A VIERNES | AC109: 11:00AM A 4:00 PM | AD109: MARTES | AE109: J-00006189-0 | AF109: 21-MY-002512 | AG109: 15000 | AH109: No | AI109: 05 | AJ109: CREDITO 5 DIAS | AK109: 09 | AL109: CLIENTE INHABILITADO | AM109: 05 | AN109: 18 | AO109: LICORERIAS/BODEGONES | AP109: 01 | AQ109: OFF PREMISSE | AR109: 01 | AS109: OFF PREMISSE | AT109: 09 | AU109: 09 | AV109: 09 - CLIENTE INHABILITADO | AW109: DESPACHO LUNES A VIERNES 11:00AM A 4:00 PM
A110: J000062757 | B110: 43 - RIVERO CARLOS | C110: CENTRAL MADEIRENSE, C.A. | D110: CENTRAL MADEIRENSE, C.A. | E110: 204-76-00 | F110: CENTRAL MADEIRENSE, C.A. | G110: CENTRO CM, CARRETERA PETARE-SANTA | H110: LUCIA KM 5,FILAS DE MARICHE-CARACAS | J110: (0212) 204.75.00 | M110: CARACAS | R110: ROBERT KELLER DA S. | S110: MANUEL MOLGADO | U110: CENTRAL MADEIRENSE, C.A. | V110: CENTRO CM,CARRETERA PETARE-SANTA | W110: LUCIA KM 5,FILAS DE MARICHE-CARACAS | Z110: (0212) 204.75.00 | AA110: 204-76-00 | AB110: LUNES A SABADO | AC110: 8:00 A 3:00 | AD110: MIERCOLES Y JUEVES | AE110: J-00006275-7 | AF110: 002-MY-3571 | AG110: 89250 | AH110: No | AI110: 05 | AJ110: CREDITO 5 DIAS | AK110: 41 | AL110: CADENAS NACIONAL | AM110: 03 | AN110: 04 | AO110: CADENAS AUTOM. NACIONALES | AP110: 01 | AQ110: OFF PREMISSE | AR110: 01 | AS110: OFF PREMISSE | AT110: 43 | AU110: 43 | AV110: 01 - GUERRERO SALVADOR - OFF | AW110: LUNES A SABADO 8:00 A 3:00
A111: J000069522 | B111: 09 - CLIENTE INHABILITADO | C111: CLUB CAMPESTRE LOS CORTIJOS | D111: CLUB CAMPESTRE LOS CORTIJOS | F111: CLUB CAMPESTRE LOS CORTIJOS | G111: AVDA. 3RA. TRANSVERSAL QTA. CLUB | H111: LOS CORTIJOS | J111: (0414) 307-87-60 | K111: CLIENTE PREPAGO | M111: CARACAS | Q111: CAMBIO A LA ZONA 09 23-09-19 YM | R111: JESUS VASQUEZ | U111: CLUB CAMPESTRE LOS CORTIJOS | V111: AVDA. 3RA. TRANSVERSAL QTA. CLUB | W111: LOS CORTIJOS | Z111: (0414) 307-87-60 | AB111: CAMBIO DE ZONA SUP.03 | AC111: EN FECHA 25/07/2013 | AD111: MARTES | AE111: J-00006952-2 | AF111: C-761 | AG111: 0 | AH111: Sí | AI111: 00 | AJ111: CONTADO | AK111: 09 | AL111: CLIENTE INHABILITADO | AM111: 04 | AN111: 10 | AO111: CLUB SOCIALES | AP111: 02 | AQ111: ON PREMISSE | AR111: 02 | AS111: ON PREMISSE | AT111: 09 | AU111: 09 | AV111: 09 - CLIENTE INHABILITADO | AW111: CAMBIO DE ZONA SUP.03 EN FECHA 25/07/2013
A112: J000082936 | B112: 09 - CLIENTE INHABILITADO | C112: ABASTOS URDANETA SRL | D112: ABASTOS URDANETA SRL | E112: 16/11/22ST | F112: ABASTOS URDANETA SRL | G112: AV MOHEDANO, CALLE LA URDANETA EDIF | H112: URDANETA PISO PB LOCAL B URB CHACAO | I112: CARACAS, CHACAO MIRANDA | J112: 0426-3118251 | L112: CCTIENDASYOSITOMO@GMAIL.COM | Q112: CAMBIO ZONA 43 A 09 210823 LI | R112: JOAO MARIA DOS SANTO | S112: JOSE DE ABREU | T112: FRANCISCO FIGUEIRA | U112: ABASTOS URDANETA SRL | V112: AV MOHEDANO CALLE URDANETA EDIF | W112: URDANETA PISO PB LOCAL B URB CHACAO | X112: CARACAS CHACAO MIRANDA | Z112: 0426-3118251 | AB112: RECIBE DE LUNES A VIERNES | AC112: DE 9:00AM A 4:00PM | AD112: LUNES | AE112: J-00008293-6 | AF112: MN-1808 | AG112: 15000 | AH112: No | AI112: 05 | AJ112: CREDITO 5 DIAS | AK112: 43 | AL112: PROLICOR / CELICOR | AM112: 05 | AN112: 18 | AO112: LICORERIAS/BODEGONES | AP112: 01 | AQ112: OFF PREMISSE | AR112: 01 | AS112: OFF PREMISSE | AT112: 09 | AU112: 09 | AV112: 09 - INHABILITADO | AW112: RECIBE DE LUNES A VIERNES DE 9:00AM A 4:00PM
A113: J000083169 | B113: 22 - GONZALEZ CARLOS | C113: SUPERM.COMESTIBLES GENER., S.R.L. | D113: SUPERM.COMESTIBLES GENER., S.R.L. | E113: 120623 LL | F113: SUPERM.COMESTIBLES GENERALES, S.R.L. | G113: AVENIDA SUCRE EDIF ARAYA S/M PISO | H113: PB LOCAL B URB CATIA FRENTE AL | I113: TEATRO VENEZUELA DISTRITO CAPITAL | J113: (0424) 183.19.05 | L113: COMESTIBLESGENERALES@GMAIL.COM | M113: CARACAS | R113: ENRIQUE FERNANDES | S113: ROBERTO FERREIRA | U113: SUPERM.COMESTIBLES GENER., S.R.L. | V113: AVENIDA SUCRE EDIF ARAYA | W113: (FRENTE A COLCHONAR) | Z113: (0424) 183.19.05 | AB113: RECIBE LUNE A VIERNES | AC113: 9:00 AM A 5:00 PM | AD113: DE LUNES A VIERNES | AE113: J-00008316-9 | AF113: MN-00-1585 | AG113: 89250 | AH113: Sí | AI113: 05 | AJ113: CREDITO 5 DIAS | AK113: 22 | AL113: CATIA-JUNQUITO | AM113: 05 | AN113: 21 | AO113: SUPERMERCADOS/AUTOMERCADO | AP113: 01 | AQ113: OFF PREMISSE | AR113: 01 | AS113: OFF PREMISSE | AT113: 22 | AU113: 22 | AV113: 02 - TORRES VICTOR - OFF | AW113: RECIBE LUNE A VIERNES 9:00 AM A 5:00 PM
A114: J000090424 | B114: 60 - SKO CARVAJAL EDUARDO | C114: L `OREAL VENEZUELA, C.A | D114: L `OREAL VENEZUELA, C.A | F114: L `OREAL VENEZUELA, C.A | G114: FINAL CALLE VARGAS URBANIZACIÒN | H114: BOLEITA NORTE EDIF. CENTRO BERIMER | I114: PISO 4 | J114: 202/53/91 | M114: CARACAS | R114: NATALY BAIS | U114: L `OREAL VENEZUELA, C.A | V114: CALLE 10 CON 11 EDIF PLASENCIA | W114: LA URBINA (MERCADEO GRANT`S) | Z114: 2421111 | AE114: J-00009042-4 | AF114: PARTICULAR | AG114: 0 | AH114: No | AI114: 00 | AJ114: CONTADO | AK114: 60 | AM114: 06 | AN114: 31 | AO114: PARTICULAR | AP114: 00 | AQ114: ESTANDAR | AR114: 00 | AS114: ESTANDAR | AU114: 60
A115: J000107912 | B115: 36 CLIENT-CORPORAT-OFIC. | C115: DESTILERIA CARUPANO CA | D115: DESTILERIA CARUPANO CA | E115: 2127538964 | F115: DESTILERIA CARUPANO CA | G115: AV PPAL DE COLINA DE BELLO MONTE | H115: CC BELLO MONTE NIVEL MEZZANINA OF04 | I115: URB BELLO MONTE CARACAS | J115: 04141316004 | M115: CARACAS | Q115: BLOQ.MOROSIDAD MAYOR 90 DIAS MYZ/HD | R115: HENRY MORRISON | U115: DESTILERIA CARUPANO CA | V115: AV PPAL DE COLINA DE BELLO MONTE | W115: CC BELLO MONTE NIVEL MEZZANINA OF04 | X115: URB BELLO MONTE CARACAS | Z115: 04141316004 | AA115: 2127017790 | AE115: J-00010791-2 | AF115: M-Y 4258 | AG115: 89250 | AH115: No | AI115: 00 | AJ115: CONTADO | AK115: 71 | AL115: OFICINA | AM115: 01 | AN115: 01 | AO115: DE LICORES CON FZA DE VTA | AP115: 01 | AQ115: OFF PREMISSE | AR115: 01 | AS115: OFF PREMISSE | AT115: 36 | AU115: 36 | AV115: 71 - OFICINA
A116: J000115605 | B116: 09 - CLIENTE INHABILITADO | C116: HOGOLRI,C.A. | D116: REST. RANCHO GRILL | F116: HOGOLRI,C.A. | G116: CARRT/PANAMERICANA KM 23 C/PASEO EL | H116: OSOURB CLUB HIPICO | M116: CARACAS | P116: BLOQ NO QUIERE COMPRAR MAS 150416 | Q116: CAMBIO A LA ZONA 09 19-09-19 YM | R116: JOSE COHELLO/RAUL HI | S116: GUERA | U116: REST. RANCHO GRILL | V116: CARRT/PANAMERICANA KM 23 C/PASEO EL | W116: OSOURB CLUB HIPICO | AE116: J-00011560-5 | AF116: C 2180 | AG116: 0 | AH116: Sí | AI116: 00 | AJ116: CONTADO | AK116: 09 | AL116: CLIENTE INHABILITADO | AM116: 04 | AN116: 07 | AO116: RESTAURANTES | AP116: 02 | AQ116: ON PREMISSE | AR116: 02 | AS116: ON PREMISSE | AT116: 09 | AU116: 09 | AV116: 09 - CLIENTE INHABILITADO
A117: J000122423 | B117: 71 - OFICINA | C117: C.A. EDITORA EL NACIONAL | D117: C.A. EDITORA EL NACIONAL | F117: C.A. EDITORA EL NACIONAL | G117: AVDA. PPAL. LOS CORTIJOS DE LOURDES | H117: EDIF. CORPORATIVO EL NACIONAL PISO | I117: PB. | J117: (0212) 203-31-28 | M117: CARACAS | R117: MIGUEL OTERO | U117: C.A. EDITORA EL NACIONAL | V117: AVDA. PPAL. LOS CORTIJOS DE LOURDES | W117: EDIF. CORPORATIVO EL NACIONAL PISO | X117: PB. | Z117: (0212) 203-31-28 | AE117: J-00012242-3 | AF117: PARTICULAR | AG117: 7500 | AH117: No | AI117: 05 | AJ117: CREDITO 5 DIAS | AK117: 71 | AL117: OFICINA | AM117: 06 | AN117: 31 | AO117: PARTICULAR | AP117: 00 | AQ117: ESTANDAR | AR117: 00 | AS117: ESTANDAR | AU117: 71 | AV117: 71 - OFICINA
A118: J000141690 | B118: 09 - CLIENTE INHABILITADO | C118: SUPERMERCADO FUNCHAL,C.A. | D118: SUPERMERCADO FUNCHAL,C.A. | F118: SUPERMERCADO FUNCHAL,C.A. | G118: AV. PATROCINIO PEÑUELA Nº 49 | H118: BOLEITA SUR | J118: (0212) 234-18-52 | M118: CARACAS | Q118: BLOQ. CERRADO 09/06/15 ZONA 01 S.U. | R118: JOSE CARVALLO | U118: SUPERMERCADO FUNCHAL,C.A. | V118: AVE. PATROCIO PEÑUELA Nº 49 | W118: BOLEITA SUR | Z118: (0212) 234-18-52 | AB118: RECIBE DE LUNES A VIERNES | AC118: 8:AM A 12:30PM Y 3:PM A 5 | AD118: MARTES | AE118: J-00014169-0 | AF118: M-N 4055 | AG118: 15000 | AH118: No | AI118: 00 | AJ118: CONTADO | AK118: 16 | AL118: GUATIRE | AM118: 05 | AN118: 21 | AO118: SUPERMERCADOS/AUTOMERCADO | AP118: 01 | AQ118: OFF PREMISSE | AR118: 01 | AS118: OFF PREMISSE | AT118: 09 | AU118: 09 | AV118: 09 - CLIENTE INHABILITADO | AW118: RECIBE DE LUNES A VIERNES 8:AM A 12:30PM Y 3:PM A 5
A119: J000152110 | B119: 09 - CLIENTE INHABILITADO | C119: SUPERM. Y LICORERIA CARNICHA, S.R.L | D119: SUPERMERCADO Y LICORERIA CARNICHA | F119: SUPERMERCADO Y LICORERIA CARNICHA,S. R. L. | G119: AVENIDA GUZMAN BLANCO VEREDA A URB. | H119: CARLOS DELGADO CHALBAUD, PARROQUIA | I119: EL VALLE - CARACAS | J119: (0212) 681-05-25 | M119: CARACAS | N119: 2CH 011113-041114 5HP 15DC | O119: DESBLOQ.150115 AUT.GCIA.VTAS | P119: 2CHD 150115-030715 HP 4 DC 7 | Q119: CAMBIO A LA ZONA 09 20-09-19 YM | R119: ANTONIO PESTANA | U119: SUPERMERCADO Y LICORERIA CARNICHA | V119: REDOMA COCHE FRENTE AL COLEGIO | W119: CARACAS | Z119: (0212) 681-05-25 | AB119: RECIBE DE LUNES A VIERNES | AC119: 11 AM A 6 PM | AD119: MARTES | AE119: J-00015211-0 | AF119: 6-MN-1244 | AG119: 0 | AH119: Sí | AI119: 00 | AJ119: CONTADO | AK119: 09 | AL119: CLIENTE INHABILITADO | AM119: 06 | AN119: 21 | AO119: SUPERMERCADOS/AUTOMERCADO | AP119: 01 | AQ119: OFF PREMISSE | AR119: 01 | AS119: OFF PREMISSE | AT119: 09 | AU119: 09 | AV119: 09 - CLIENTE INHABILITADO | AW119: RECIBE DE LUNES A VIERNES 11 AM A 6 PM
A120: J000153515 | B120: 02 - REQUENA JOHAN - OFF | C120: ABASTOS ALICET S.R.L. | D120: ABASTOS ALICET S.R.L. | F120: ABASTOS ALICET S.R.L. | G120: AV.SAN MARTIN,EDIF.SAN MARCOS,LOCAL | H120: A,ESQUINA PALO GRANDE,PQUIA.SAN JU | I120: AN-CARACAS | J120: 4622504 | M120: CARACAS | R120: DE ABREU HOMEN FERNA | S120: NDO | U120: ABASTOS ALICET S.R.L. | V120: AV.SAN MARTIN,EDIF.SAN MARCOS,LOCAL | W120: A,ESQUINA PALO GRANDE,PQUIA.SAN JU | X120: AN-CARACAS | AE120: J-00015351-5 | AF120: M-N 0262 | AG120: 89250 | AH120: No | AI120: 05 | AJ120: CREDITO 5 DIAS | AK120: 23 | AL120: CENTRO-SAN MARTIN | AM120: 05 | AN120: 23 | AO120: ABASTOS PEQUEÑOS/BODEGAS | AP120: 01 | AQ120: OFF PREMISSE | AR120: 01 | AS120: OFF PREMISSE | AU120: 02
A121: J000167664 | B121: 09 - CLIENTE INHABILITADO | C121: GONCALVES RODRIGUEZ & DA ASCENCAO | D121: BAR RESTAURANT LAS PALMAS | F121: GONCALVES RODRIGUEZ & DA ASCENCAO | G121: AVENIDA,PRINCIPAL BOLEITA SUR N°19C | H121: ARACAS DISTRITO CAPITAL | J121: 0212.234.70.13 | M121: CARACAS | Q121: REEST-V-31 AL V-09 20092019 MYZ | R121: VASCO PEDRO RODRIGUE | S121: Z | U121: BAR RESTAURANT LAS PALMAS | V121: AVENIDA,PRINCIPAL BOLEITA SUR N°19C | W121: ARACAS DISTRITO CAPITAL | AD121: MARTES | AE121: J-00016766-4 | AF121: C 953 | AG121: 15000 | AH121: Sí | AI121: 00 | AJ121: CONTADO | AK121: 32 | AL121: SUCRE - BARUTA | AM121: 04 | AN121: 07 | AO121: RESTAURANTES | AP121: 02 | AQ121: ON PREMISSE | AR121: 02 | AS121: ON PREMISSE | AT121: 09 | AU121: 09 | AV121: 09 - CLIENTE INHABILITADO
A122: J000177970 | B122: 09 - CLIENTE INHABILITADO | C122: ABASTOS GUAYMAR,C.A. | D122: ABASTOS GUAYMAR | F122: ABASTOS GUAYMAR,C.A. | G122: PROLONGACION 10 DE MARZO FRENTE AL | H122: BLOQUE 6 CALLE NUEVA - MAIQUETIA | I122: EDO. VARGAS | J122: (0212) 332.99.69 | K122: (0414) 116.56.84 | M122: LA GUAIRA | N122: CAMBIO ZONA 01 FZA DE VENTAS 230117 | O122: C/ZONA 01 A 14 FZA DE VENTAS 100217 | P122: BLOQ P/MHP 45 DIAS CALLE 210319 WP | Q122: CAMBIO Z16 A Z09 YR 20/6/19 | R122: JOSE RIVERO | U122: ABASTOS GUAYMAR,C.A. | V122: PROLONGACION 10 DE MARZO FRENTE AL | W122: BLOQUE 6 CALLE NUEVA - MAIQUETIA | X122: EDO. VARGAS | Z122: 0212-332-99-69 | AB122: RECIBE LUNES A VIERNES | AC122: 08:00 AM A 06:00 PM | AD122: DE LUNES A JUEVES | AE122: J-00017797-0 | AF122: 031-MN-82 | AG122: 0 | AH122: Sí | AI122: 00 | AJ122: CONTADO | AK122: 09 | AL122: CLIENTE INHABILITADO | AM122: 05 | AN122: 23 | AO122: ABASTOS PEQUEÑOS/BODEGAS | AP122: 01 | AQ122: OFF PREMISSE | AR122: 01 | AS122: OFF PREMISSE | AT122: 09 | AU122: 09 | AV122: 09 - CLIENTE INHABILITADO | AW122: RECIBE LUNES A VIERNES 08:00 AM A 06:00 PM
A123: J000189161 | B123: 31 - RODRIGUEZ WLADIMIR | C123: H. TAMANACO INTERCONTINENTAL,C.A. | D123: H. TAMANACO INTERCONTINENTAL,C.A. | F123: HOTEL TAMANACO,C.A. | G123: FINAL AVENIDA PRINCIPAL LAS MERCEDE | H123: SMNCP.BARUTA-CARACAS-EDO.DTTO.CAPIT | I123: AL | J123: 9097111 | M123: CARACAS | R123: RAMON AZPURUA AZPURU | S123: A | U123: H. TAMANACO INTERCONTINENTAL,C.A. | V123: FINAL AVENIDA PRINCIPAL LAS MERCEDE | W123: SMNCP.BARUTA-CARACAS-EDO.DTTO.CAPIT | X123: AL | AE123: J-00018916-1 | AF123: C 2060 | AG123: 89250 | AH123: No | AI123: 05 | AJ123: CREDITO 5 DIAS | AK123: 30 | AL123: PARROQUIA EL RECREO | AM123: 04 | AN123: 08 | AO123: HOTELES/CASINOS/BINGOS | AP123: 02 | AQ123: ON PREMISSE | AR123: 02 | AS123: ON PREMISSE | AU123: 31
A124: J000189188 | B124: 09 - CLIENTE INHABILITADO | C124: HOTEL WALDORF, C.A. | D124: HOTEL WALDORF, C.A. | F124: HOTEL WALDORF, C.A. | G124: AVDA. LA INDUSTRIA ESQUINAS CAMPO | H124: ELIAS A PUENTE ANAUCO EDF. WALDORF | I124: PISO EDIFICIO LOCAL PB URB. LA | J124: 0212 575 11 66 | K124: 0414 339 79 09 | L124: fjavier758@hotmail.com | M124: CARACAS | N124: CANDELARIA | Q124: REEST-V-31 AL V-09 20092019 MYZ | R124: NELSON GUERREIRO | S124: LEOPOLDO TRAVIESO | U124: HOTEL WALDORF, C.A. | V124: AVDA. LA INDUSTRIA ESQUINAS CAMPO | W124: ELIAS A PUENTE ANAUCO EDF. WALDORF | X124: PISO EDIFICIO LOCAL PB URB. LA | Y124: CANDELARIA | Z124: (0414) 021-31-71 | AB124: RECIBE LUNES A VIERNES | AC124: 6:00AM A 4:00PM | AD124: JUEVES | AE124: J-00018918-8 | AF124: 3-C-0741 | AG124: 15000 | AH124: Sí | AI124: 00 | AJ124: CONTADO | AK124: 33 | AL124: CENTRO-CANDELARIA | AM124: 04 | AN124: 08 | AO124: HOTELES/CASINOS/BINGOS | AP124: 02 | AQ124: ON PREMISSE | AR124: 02 | AS124: ON PREMISSE | AT124: 09 | AU124: 09 | AV124: 09 - CLIENTE INHABILITADO | AW124: RECIBE LUNES A VIERNES 6:00AM A 4:00PM
A125: J000189285 | B125: 31 - RODRIGUEZ WLADIMIR | C125: HOTEL LAS MERCEDES | D125: HOTEL LAS MERCEDES | F125: HOTELES UNIDOS C A | G125: AV. WOLMER FTE. HOSPITAL DE NIÑOS | H125: SAN BERNARDINO | J125: 577-65-61 | M125: CARACAS | R125: MANUEL VASCONCELOS D | S125: A SILVA | U125: HOTEL LAS MERCEDES | V125: AV. WOLMER FTE. HOSPITAL DE NIÑOS | W125: SAN BERNARDINO | AE125: J-00018928-5 | AF125: C 457 | AG125: 89250 | AH125: No | AI125: 05 | AJ125: CREDITO 5 DIAS | AK125: 33 | AL125: CENTRO-CANDELARIA | AM125: 04 | AN125: 08 | AO125: HOTELES/CASINOS/BINGOS | AP125: 02 | AQ125: ON PREMISSE | AR125: 02 | AS125: ON PREMISSE | AU125: 31
A126: J000192057 | B126: 72 - ALMACEN ROTURA | C126: IMPORT PROD.ENOLOGICAS,CA (IPECA) | D126: IMPORT PROD.ENOLOGICAS,CA (IPECA) | F126: IMPORTACIONES PROD.ENOLOGICAS,CA (IPECA) | G126: CALLE VARGAS EDIF..GRECO II BOLEITA | H126: NORTE-CARACAS | M126: CARACAS | R126: IMPORTACIONES PROD.E | S126: NOLOGICAS,CA (IPECA) | U126: IMPORT PROD.ENOLOGICAS,CA (IPECA) | V126: CALLE VARGAS EDIF..GRECO II BOLEITA | W126: NORTECARACAS | AE126: J-00019205-7 | AF126: M-Y 261 | AG126: 0 | AH126: No | AI126: 00 | AJ126: CONTADO | AK126: 72 | AL126: ROTURAS ALMACEN | AM126: 04 | AN126: 08 | AO126: HOTELES/CASINOS/BINGOS | AP126: 02 | AQ126: ON PREMISSE | AR126: 02 | AS126: ON PREMISSE | AU126: 72
A127: J000192731 | B127: 09 - CLIENTE INHABILITADO | C127: FRANCISCO DE ABREU PAULINO,C.A. | D127: FRANCISCO DE ABREU PAULINO,C.A. | F127: FRANCISCO DE ABREU PAULINO,C.A. | G127: CALLE MIRANDA Nº3 PETARE ZONA COLON | H127: IAL | J127: 0212-2718213 | M127: CARACAS | O127: ACT. DATOS AL 29/01/19 JA | P127: DIRRECCONAR AL EDV 332 170119 | Q127: CAMBIO DE ZONA 32 A 09 20/9/19 GT | R127: FRANCISCO DE ABREU P | S127: AULINO | U127: FRANCISCO DE ABREU PAULINO, C.A. | V127: CALLE MIRANDA Nº 3 PETARE | W127: ZONA COLONIAL | Z127: (0212)2715480 | AB127: DE LUNES A VIERNES | AC127: DE 8AM A 4 PM | AE127: J-00019273-1 | AF127: 002C-6597 | AG127: 0 | AH127: Sí | AI127: 00 | AJ127: CONTADO | AK127: 09 | AL127: CLIENTE INHABILITADO | AM127: 04 | AN127: 06 | AO127: BAR/TABER./S. BAR/PUB/TAS | AP127: 01 | AQ127: OFF PREMISSE | AR127: 01 | AS127: OFF PREMISSE | AT127: 09 | AU127: 09 | AV127: 09 - CLIENTE INHABILITADO | AW127: DE LUNES A VIERNES DE 8AM A 4 PM
A128: J000192791 | B128: 09 - CLIENTE INHABILITADO | C128: FRANCISCO DE ABREU PAULINO, C.A | D128: FRANCISCO DE ABREU PAULINO, C.A | F128: FRANCISCO DE ABREU PAULINO, C.A | G128: CALLE MIRANDA LOCAL NRO 3 ZONA | H128: COLONIAL CARACAS (PETARE) | I128: MINISIPIO SUCRE | J128: 0212-2718213 | K128: 14/01/19 | M128: PETARE | N128: ESTD MIRANDA | Q128: CAMBIO Z - 31 A Z - 09 200919 GA | R128: FRANCISCO DE ABREU | U128: FRANCISCO DE ABREU PAULINO, C.A | V128: CALLE MIRANDA LOCAL NRO3 ZONA COLON | W128: IAL PETARE FRENTE ALCATALINA LA ¨O¨ | X128: ESTADO MIRANDA MUNISIPIO SUCRE | Z128: 0212-271-8213 | AB128: DE LUNES A VIERNES DE | AC128: 8:00 AM A 4:00 PM | AD128: JUEVES Y VIERNES | AE128: J-00019273-1 | AF128: 002C-6597 | AG128: 15000 | AH128: Sí | AI128: 00 | AJ128: CONTADO | AK128: 32 | AL128: SUCRE - BARUTA | AM128: 04 | AN128: 06 | AO128: BAR/TABER./S. BAR/PUB/TAS | AP128: 02 | AQ128: ON PREMISSE | AR128: 02 | AS128: ON PREMISSE | AT128: 09 | AU128: 09 | AV128: 09 - CLIENTE INHABILITADO | AW128: DE LUNES A VIERNES DE 8:00 AM A 4:00 PM
A129: J000215006 | B129: 60 - SKO CARVAJAL EDUARDO | C129: LABORATORIOS LETI S.A.V. | D129: LABORATORIOS LETI S.A.V. | F129: LABORATORIOS LETI S.A.V. | G129: ZONA INDUSTRIAL DEL ESTE,AVDA 2,PAR | H129: CELA 3MANZANA J,EDIF.LETI-GUARENAS- | I129: EDO.MIRANDA | M129: GUARENAS | R129: JOSE MARIA MASSA BON | S129: ET | U129: LABORATORIOS LETI S.A.V. | V129: ZONA INDUSTRIAL DEL ESTE,AVDA 2,PAR | W129: CELA 3MANZANA J,EDIF.LETI-GUARENAS- | X129: EDO.MIRANDA | AE129: J-00021500-6 | AF129: PARTICULAR | AG129: 0 | AH129: No | AI129: 00 | AJ129: CONTADO | AK129: 60 | AM129: 06 | AN129: 29 | AO129: INDUSTRIAL | AP129: 01 | AQ129: OFF PREMISSE | AR129: 01 | AS129: OFF PREMISSE | AU129: 60
A130: J000217084 | B130: 71 - OFICINA | C130: LANDER Y VERA, S.A. | D130: LANDER Y VERA, S.A. | E130: 020813 | F130: LANDER Y VERA, S.A. | G130: AV. PPAL. LA MORA II, LOCAL MANZANA | H130: I. NRO. 2 URB. MORA II, LA VICTORIA | M130: CARACAS | R130: GILBER SALCEDO | U130: LANDER Y VERA, S.A. | V130: URB. CHUAO, AV. LA ESTANCIA, CENTRO | W130: BANAVEN, NUCLEO D, PISO 2, OFC.D-22 | X130: CHACAO | Z130: (0212) 991-00-29 | AA130: 991-68-42 | AD130: CONTADO | AE130: J-00021708-4 | AF130: PARTICULAR | AG130: 7500 | AH130: No | AI130: 05 | AJ130: CREDITO 5 DIAS | AK130: 71 | AL130: OFICINA | AM130: 06 | AN130: 33 | AO130: RELACIONADOS | AP130: 00 | AQ130: ESTANDAR | AR130: 00 | AS130: ESTANDAR | AU130: 71 | AV130: 71 - OFICINA | AW130: =CONCATENATE(AB130," ",AC130) -> 
A131: J000222690 | B131: 22 - GONZALEZ CARLOS | C131: LICORES CATIA,C.A. | D131: LICORES CATIA,C.A. | F131: LICORES CATIA,C.A. | G131: LOS MAGALLANES CATIA | J131: 0212 810 23 44 | K131: 0414 186 97 77 | L131: leibis@gmail.com | M131: CARACAS | P131: DESBLOQ.190218 CUMP.3PP JQ-HD | Q131: BLOQ MAYOR 112 DIAS SEGUI 240222 PH | R131: GENARO CORDONA | U131: LICORES CATIA,C.A. | V131: AVENIDA SUCRE FRENTE PLAZA CATIA | Z131: (0212) 870-23-44 | AB131: RECIBE LUNES A JUEVES | AC131: 11:00AM A 5:00PM | AD131: MARTES | AE131: J-00022269-0 | AF131: 21-MN-313 | AG131: 89250 | AH131: Sí | AI131: 05 | AJ131: CREDITO 5 DIAS | AK131: 22 | AL131: CATIA-JUNQUITO | AM131: 06 | AN131: 18 | AO131: LICORERIAS/BODEGONES | AP131: 01 | AQ131: OFF PREMISSE | AR131: 01 | AS131: OFF PREMISSE | AT131: 22 | AU131: 22 | AV131: 02 - VICTOR TORRES - OFF | AW131: RECIBE LUNES A JUEVES 11:00AM A 5:00PM
A132: J000222720 | B132: 20 - DIEGO MANUEL | C132: BODEGON Y DELIC. LA ESMERALDA, C.A. | D132: BODEGON Y DELICATESES LA ESMERALDA | F132: BODEGON Y DELICATESES LA ESMERALDA, C.A. | G132: AVENIDA CASANOVA ESQ.COROMOTO EDF. | H132: OROMA,PISO PB LOCAL Nº. 03, SECTOR | I132: BELLO MONTE, PARROQUIA EL RECREO | J132: (0212) 762.14.78 | K132: (0414) 272.15.68 | L132: mhgf@hotmail.com | M132: CARACAS | P132: CAMBIO DE ZONA 20 AL 09 111022 FL | Q132: CAMBIO DE ZONA 09 AL 20 29/6/23 LL | R132: MARILUZ DE GOUVEIA | S132: CAMBIO DE ZONA 23 A | T132: 20 200117 | U132: BODEGON Y DELICATESES LA ESMERALDA | V132: AVENIDA CASANOVA ESQ.COROMOTO EDF. | W132: OROMA,PISO PB LOCAL Nº. 03, SECTOR | X132: BELLO MONTE, PARROQUIA EL RECREO | Y132: (PASANDO EL FORNTIN- SABANA GRANDE) | Z132: 0412-013.56.56 | AB132: RECIBE LUNES A JUEVES | AC132: 11:00 AM A 4:00 PM | AD132: JUEVES | AE132: J-00022272-0 | AF132: 5-MN-1872 | AG132: 89250 | AH132: No | AI132: 00 | AJ132: CONTADO | AK132: 09 | AL132: CLIENTE INHABILITADO | AM132: 06 | AN132: 18 | AO132: LICORERIAS/BODEGONES | AP132: 01 | AQ132: OFF PREMISSE | AR132: 01 | AS132: OFF PREMISSE | AT132: 20 | AU132: 20 | AV132: 02 - TORRES VICTOR - OFF | AW132: RECIBE LUNES A JUEVES 11:00 AM A 4:00 PM
A133: J000303614 | B133: 60 - SKO CARVAJAL EDUARDO | C133: C.A SUCESORA DE JOSE PUIG & CIA | D133: C.A SUCESORA DE JOSE PUIG & CIA | F133: C.A SUCESORA DE JOSE PUIG & CIA | G133: 2DA TRANSV.LOS CORTIJOS DE LOURDESE | H133: DIF.PUIG PLANTA BAJA-CARACAS-EDOMIR | I133: ANDA | J133: 2340872 | M133: CARACAS | R133: NULL | U133: C.A SUCESORA DE JOSE PUIG & CIA | V133: 2DA TRANSV.LOS CORTIJOS DE LOURDESE | W133: DIF.PUIG PLANTA BAJA-CARACAS-EDOMIR | X133: ANDA | AE133: J-00030361-4 | AF133: PARTICULAR | AG133: 0 | AH133: No | AI133: 00 | AJ133: CONTADO | AK133: 60 | AM133: 06 | AN133: 28 | AO133: COMERCIOS | AP133: 01 | AQ133: OFF PREMISSE | AR133: 01 | AS133: OFF PREMISSE | AU133: 60
A134: J000306516 | B134: 02 - REQUENA JOHAN - OFF | C134: LICORERIA LA VIEJA, C.A. | D134: LICORERIA LA VIEJA, C.A | F134: LICORERIA LA VIEJA, C.A | G134: C/DEL MEDIO PRADO DE MARIA C/C LUIS | H134: BRAILLEEDIF.RICAURTE EL CEMENTERIO | I134: -CARACAS-DTTO.FEDERAL | J134: 6320289 | M134: CARACAS | R134: DOS SANTOS DE ARAUJO | S134: MARIA ELIZABETH | U134: LICORERIA LA VIEJA, C.A | V134: C/DEL MEDIO PRADO DE MARIA C/C LUIS | W134: BRAILLEEDIF.RICAURTE EL CEMENTERIO | X134: -CARACAS-DTTO.FEDERAL | AB134: TRASP.AL 02 SEGUN SOLIC | AC134: 14/02/11 | AE134: J-00030651-6 | AF134: 13-MN 0848 | AG134: 89250 | AH134: No | AI134: 05 | AJ134: CREDITO 5 DIAS | AK134: 24 | AL134: CARICUAO | AM134: 05 | AN134: 18 | AO134: LICORERIAS/BODEGONES | AP134: 01 | AQ134: OFF PREMISSE | AR134: 01 | AS134: OFF PREMISSE | AU134: 02 | AW134: TRASP.AL 02 SEGUN SOLIC 14/02/11
A135: J000312575 | B135: 09 - CLIENTE INHABILITADO | C135: ABTOS.Y CARN. EL MAS BARATO, S.R.L. | D135: ABASTOS EL MAS BARATO | F135: ABTOS.Y CARN. EL MAS BARATO, S.R.L. | G135: AVDA. LA ARMADA LA AVIACION, PQIA. | H135: CATIA LA MAR C.C. DE INAVI LOCAL A, | I135: MAIQUETIA EDO. VARGAS | K135: 3 CHD | M135: LA GUAIRA | P135: DESBLQ.CONVERS.PROMET.MEJORAR PAGOS | Q135: BLOQ. MOROSO 09-06-15 ZONA 01 S.U. | R135: FELIX GONZALEZ | S135: C.I. 5.862.096 | U135: ABTOS.Y CARN. EL MAS BARATO, S.R.L. | V135: AVDA. LA ARMADA LA AVIACION, PQUIA. | W135: CATIA LA MAR C.C. DE INAVI LOCAL A, | X135: MAIQUETIA EDO. VARGAS | AD135: LUNES | AE135: J-00031257-5 | AF135: 031-MN-560 | AG135: 15000 | AH135: No | AI135: 00 | AJ135: CONTADO | AK135: 14 | AL135: LITORAL CENTRAL | AM135: 05 | AN135: 22 | AO135: ABASTOS GRANDES | AP135: 01 | AQ135: OFF PREMISSE | AR135: 01 | AS135: OFF PREMISSE | AT135: 09 | AU135: 09 | AV135: 09 - CLIENTE INHABILITADO
A136: J000325693 | B136: 09 - CLIENTE INHABILITADO | C136: C.A RON SANTA TERESA | D136: C.A RON SANTA TERESA | F136: C.A RON SANTA TERESA | G136: HACIENDA SANTA TERESA CARRETERA | H136: PANAMERICANA, EL CONSEJO | I136: ESTADO MIRANDA | J136: 0244-400.27.44 | K136: 0244-400.25.90 | P136: EL CLIENTE SE CREO POR ERROR | Q136: SE DEBIO HACER EN LA COMPAÑIA 53 | U136: C.A RON SANTA TERESA | V136: HACIENDA SANTA TERESA | W136: CARRETERA PANAMERICANA, EL CONSEJO | X136: ESTADO MIRANDA | Z136: 0244-400.27.44 | AD136: CONTADO | AE136: J-00032569-3 | AF136: PARTICULAR | AG136: 0 | AH136: No | AI136: 00 | AJ136: CONTADO | AK136: 09 | AL136: CLIENTE INHABILITADO | AM136: 01 | AP136: 00 | AQ136: ESTANDAR | AR136: 00 | AS136: ESTANDAR | AT136: 09 | AU136: 09 | AV136: 09 - CLIENTE INHABILITADO
A137: J000340366 | B137: 36 CLIENT-CORPORAT-OFIC. | C137: SEGUROS VENEZUELA C.A | D137: SEGUROS VENEZUELA C.A | F137: SEGUROS VENEZUELA C.A | G137: AV FRANCISCO DE MIRANDA EDIF SEGURO | H137: VENEZUELA PISO 8 Y 9 OF ADMINISTRAC | I137: ION URB CAMPO ALEGRE CARACAS CHACAO | M137: CARACAS | N137: MIRANDA | U137: SEGUROS VENEZUELA C.A | V137: AV FRANCISCO DE MIRANDA EDIF SEGURO | W137: VENEZUELA PISO 8 Y 9 OF ADMINISTRAC | X137: ION URB CAMPO ALEGRE CARACAS CHACAO | Y137: MIRANDA | AE137: J-00034036-6 | AF137: PARTICULAR | AG137: 89250 | AH137: No | AI137: 05 | AJ137: CREDITO 5 DIAS | AK137: 36 | AL137: VTAS.CORPORATIVAS | AM137: 06 | AN137: 31 | AO137: PARTICULAR | AP137: 01 | AQ137: OFF PREMISSE | AR137: 00 | AS137: ESTANDAR | AT137: 36 | AU137: 36 | AV137: 71 - OFICINA
A138: J000341940 | B138: 09 - CLIENTE INHABILITADO | C138: SERV PANAM DE PROTECCION C.A | D138: SERV PANAM DE PROTECCION C.A | F138: SERVICIO PANAMERICANO DE PROTECCION C.A | G138: AV.TERESA DE LA PARRA EDIFICIOSERPA | H138: PROCA - SANTA MONICA-DTTO.FEDERAL | J138: 6094237 | M138: CARACAS | R138: LUIS DEL PINO | U138: SERV PANAM DE PROTECCION C.A | V138: AV.TERESA DE LA PARRA EDIFICIOSERPA | W138: PROCA - SANTA MONICA-DTTO.FEDERAL | AE138: J-00034194-0 | AF138: PARTICULAR | AG138: 15000 | AH138: No | AI138: 05 | AJ138: CREDITO 5 DIAS | AK138: 15 | AL138: BARUTA | AM138: 06 | AN138: 29 | AO138: INDUSTRIAL | AP138: 01 | AQ138: OFF PREMISSE | AR138: 01 | AS138: OFF PREMISSE | AT138: 09 | AU138: 09 | AV138: 09 - CLIENTE INHABILITADO
A139: J000355100 | B139: 09 - CLIENTE INHABILITADO | C139: SUPERMERCADO VERACRUZ,C.A. | D139: C A SUPERMERCADO VERACRUZ | F139: C A SUPERMERCADO VERACRUZ | G139: CALLE VERACRUZ LA HACIENDA LAS MERC | H139: EDESCARACAS | M139: CARACAS | R139: BRITO ANTONIO | U139: C A SUPERMERCADO VERACRUZ | V139: CALLE VERACRUZ LA HACIENDA LAS MERC | W139: EDESCARACAS | AE139: J-00035510-0 | AF139: M-M 136 | AG139: 15000 | AH139: No | AI139: 05 | AJ139: CREDITO 5 DIAS | AK139: 15 | AL139: BARUTA | AM139: 05 | AN139: 21 | AO139: SUPERMERCADOS/AUTOMERCADO | AP139: 01 | AQ139: OFF PREMISSE | AR139: 01 | AS139: OFF PREMISSE | AT139: 09 | AU139: 09 | AV139: 09 - CLIENTE INHABILITADO
A140: J000400237 | B140: 02 - REQUENA JOHAN - OFF | C140: LICORERIA LA FUNDACION,S.R.L. | D140: LICORERIA LA FUNDACION,S.R.L. | F140: LICORERIA LA FUNDACION,S.R.L. | G140: AV.PPAL.DE LA ARMADA, ENTRADA LOS M | H140: OLINOSFTE. LA PEPSICOLA- CATIA LA M | I140: AR-EDO.VARGAS | J140: 3515369 | M140: LA GUAIRA | R140: VIEIRA HECTOR | U140: LICORERIA LA FUNDACION,S.R.L. | V140: AV.PPAL.DE LA ARMADA, ENTRADA LOS M | W140: OLINOSFTE. LA PEPSICOLA- CATIA LA M | X140: AR-EDO.VARGAS | AE140: J-00040023-7 | AF140: M-M 745 | AG140: 89250 | AH140: No | AI140: 05 | AJ140: CREDITO 5 DIAS | AK140: 21 | AL140: VALLES DEL TUY-21 | AM140: 05 | AN140: 18 | AO140: LICORERIAS/BODEGONES | AP140: 01 | AQ140: OFF PREMISSE | AR140: 01 | AS140: OFF PREMISSE | AU140: 02
A141: J000407134 | B141: 09 - CLIENTE INHABILITADO | C141: CASA OLIVEIRA C.A. | D141: CASA OLIVEIRA C.A. | F141: CASA OLIVEIRA C.A. | G141: CALLE VARGAS CON CALLE SANTA CLARA | H141: EDIFICIOOLIVEIRA,URBANIZACION BOLEI | I141: TA NORTE-CARACAS | J141: 2398242 | M141: CARACAS | R141: CASA OLIVEIRA C.A. | U141: CASA OLIVEIRA C.A. | V141: CALLE VARGAS CON CALLE SANTA CLARA | W141: EDIFICIOOLIVEIRA,URBANIZACION BOLEI | X141: TA NORTE-CARACAS | AE141: J-00040713-4 | AF141: M-Y 200 | AG141: 15000 | AH141: No | AI141: 05 | AJ141: CREDITO 5 DIAS | AK141: 13 | AL141: PETARE | AM141: 01 | AN141: 01 | AO141: DE LICORES CON FZA DE VTA | AP141: 01 | AQ141: OFF PREMISSE | AR141: 01 | AS141: OFF PREMISSE | AU141: 09 | AV141: 09 - CLIENTE INHABILITADO
A142: J000411816 | B142: 09 - CLIENTE INHABILITADO | C142: CLUB PUERTO AZUL, A.C. | D142: CLUB PUERTO AZUL, A.C. | F142: CLUB PUERTO AZUL, A.C. | G142: CARRETERA VIA NAIGUATA SECTOR CLUB | H142: PUERTO AZUL NAIGUATA EDO. VARGAS | M142: LA GUAIRA | Q142: BAJA FRECUENCIA DE COMPRA 12/03/14 | R142: RAUL ANDRES COHEN C | S142: C.I. 6.006.389 | U142: CLUB PUERTO AZUL, A.C. | V142: CARRETERA VIA NAIGUATA SECTOR CLUB | W142: PUERTO AZUL NAIGUATA EDO. VARGAS | AD142: JUEVES | AE142: J-00041181-6 | AF142: 031-C-519 | AG142: 15000 | AH142: Sí | AI142: 00 | AJ142: CONTADO | AK142: 14 | AL142: LITORAL CENTRAL | AM142: 04 | AN142: 10 | AO142: CLUB SOCIALES | AP142: 02 | AQ142: ON PREMISSE | AR142: 02 | AS142: ON PREMISSE | AU142: 09 | AV142: 09 - CLIENTE INHABILITADO
A143: J000413763 | B143: 09 - CLIENTE INHABILITADO | C143: CERV.Y M.LA SELECTA SRL. | D143: CERV.Y M.LA SELECTA SRL. | F143: CERV.Y M.LA SELECTA SRL. | G143: CENTRO COMERCIAL MIRANDA ARRIBABANC | H143: O LATINO-GUARENAS-EDO.MIRANDA | M143: GUARENAS | R143: HILARIO DA COSTA | U143: CERV.Y M.LA SELECTA SRL. | V143: CENTRO COMERCIAL MIRANDA ARRIBABANC | W143: O LATINO-GUARENAS-EDO.MIRANDA | AE143: J-00041376-3 | AF143: C 22416 | AG143: 15000 | AH143: No | AI143: 05 | AJ143: CREDITO 5 DIAS | AK143: 11 | AL143: GUARENAS | AM143: 04 | AN143: 07 | AO143: RESTAURANTES | AP143: 02 | AQ143: ON PREMISSE | AR143: 02 | AS143: ON PREMISSE | AT143: 09 | AU143: 09 | AV143: 09 - CLIENTE INHABILITADO
A144: J000418055 | B144: 22 - GONZALEZ CARLOS | C144: ABAS Y CARNICERIA LA LIBERTAD C.A. | D144: ABAS Y CARNICERIA LA LIBERTAD C.A. | F144: ABASTOS Y CARNICERIA LA LIBERTAD, C.A. | G144: CALLE ZONA F CC 15, NIVEL PB, LOCAL | H144: E Y F, URB 23 DE ENERO CARACAS | J144: 0424-2548908 | M144: CARACAS | Q144: REACTIVACION ZONA 22 AL 02/02/23 ST | R144: LUIS FELIPE JORGE | U144: ABASTOS Y CARNICERIA LA LIBERTAD, C | V144: CALLE ZONA F, CC 15, NIVEL PB LOCAL | W144: E Y F, URB 23 DE ENERO CARACAS | Z144: 0424-2548908 | AB144: RECIBE DE LUNES A VIERNES | AC144: DE 9:30AM A 5:00PM | AD144: MIERCOLES | AE144: J-00041805-5 | AF144: MN-601 | AG144: 89250 | AH144: No | AI144: 05 | AJ144: CREDITO 5 DIAS | AK144: 22 | AL144: CATIA-JUNQUITO | AM144: 05 | AN144: 22 | AO144: ABASTOS GRANDES | AP144: 01 | AQ144: OFF PREMISSE | AR144: 01 | AS144: OFF PREMISSE | AT144: 22 | AU144: 22 | AV144: 02 - TORRES VICTOR - OFF | AW144: RECIBE DE LUNES A VIERNES DE 9:30AM A 5:00PM
A145: J000421617 | B145: 09 - CLIENTE INHABILITADO | C145: AUTOMERCADO LAS TRES ESTRELLAS,C.A. | D145: AUTOMERCADO TRES ESTRELLAS,C.A. | F145: AUTOMERCADO TRES ESTRELLAS,C.A. | G145: AV. EL EJERCITO EDIF.VENEZUELALOCAL | H145: 1 - CATIA LA MAR-EDO.VARGAS | J145: 3513814 | M145: LA GUAIRA | Q145: PASO A 01 SUP.JOAN REQUENA 040116 | R145: MANICA RAFAEL | U145: AUTOMERCADO TRES ESTRELLAS,C.A. | V145: AV. EL EJERCITO EDIF.VENEZUELALOCAL | W145: 1 - CATIA LA MAR-EDO.VARGAS | AB145: NO RECIBE LOS VIERNES | AD145: MARTES | AE145: J-00042161-7 | AF145: M-N 1 | AG145: 15000 | AH145: Sí | AI145: 00 | AJ145: CONTADO | AK145: 14 | AL145: LITORAL CENTRAL | AM145: 05 | AN145: 21 | AO145: SUPERMERCADOS/AUTOMERCADO | AP145: 01 | AQ145: OFF PREMISSE | AR145: 01 | AS145: OFF PREMISSE | AT145: 09 | AU145: 09 | AV145: 09 - CLIENTE INHABILITADO | AW145: NO RECIBE LOS VIERNES
A146: J000422141 | B146: 71 - OFICINA | C146: LICORES DE CALIDAD, C.A | D146: LICORES DE CALIDAD, C.A | E146: 12/06/19 | F146: LICORES DE CALIDAD, C.A | G146: CARRETERA PANAMERICANA, HACIENDA | H146: SANTA TERESA , SECTOR EL CONSEJO, | I146: ESTADO ARAGUA | J146: (58-244)400-2628 | M146: ARAGUA | U146: LICORES DE CALIDAD, C.A | V146: CARRETERA PANAMERICANA, HACIENDA | W146: SANTA TERESA, SECTOR EL CONSEJO | X146: ESTADO ARAGUA VENEZUELA | Z146: (58-244)400.2628 | AB146: RECIBE DE LUNES A VIERNES | AC146: HORARIO DE OFICINA | AE146: J-00042214-1 | AF146: MY-044-098 | AG146: 7500 | AH146: No | AI146: 05 | AJ146: CREDITO 5 DIAS | AK146: 71 | AL146: OFICINA | AM146: 01 | AN146: 28 | AO146: COMERCIOS | AP146: 01 | AQ146: OFF PREMISSE | AR146: 01 | AS146: OFF PREMISSE | AT146: 71 | AU146: 71 | AV146: 71 - OFICINA | AW146: RECIBE DE LUNES A VIERNES HORARIO DE OFICINA
A147: J000429634 | B147: 24 - REYES OSWALDO | C147: SUPERMERCADO LUGO LEON S.R.L. | D147: SUPERMERCADO LUGO LEON S.R.L. | F147: SUPERMERCADO LUGO LEON S.R.L. | G147: CURAMICHATE A VIENTO, EDF. MIAMI | H147: LOCAL A Y B. | I147: CARACAS DTTO. CAPITAL | J147: NO POSEE | K147: 0414 364 70 40 | L147: NO POSEE | M147: CARACAS | P147: CAMBIO DE ZONA 28 A 228 190122 ST | Q147: CAMBIO DE ZONA V28 A V24 140223 ST | R147: JHON PAULO GONCALVES | S147: C.I. 15.793.223 | U147: SUPERMERCAD LUGO LEON SRL | V147: CURAMICHATE A VIENTO EDF. MIAMI | W147: LOCAL A Y B. CARACAS DTTO. CAPITAL | Z147: (0414) 200-71-48 | AB147: RECIBE LUNES A VIERNES | AC147: 11:00AM A 4:00PM | AD147: JUEVES | AE147: J000429634 | AF147: MN-446 | AG147: 89250 | AH147: No | AI147: 05 | AJ147: CREDITO 5 DIAS | AK147: 23 | AL147: CENTRO-SAN MARTIN | AM147: 06 | AN147: 21 | AO147: SUPERMERCADOS/AUTOMERCADO | AP147: 01 | AQ147: OFF PREMISSE | AR147: 01 | AS147: OFF PREMISSE | AT147: 24 | AU147: 24 | AV147: 02 - VICTOR TORRES - OFF | AW147: RECIBE LUNES A VIERNES 11:00AM A 4:00PM
A148: J000429677 | B148: 09 - CLIENTE INHABILITADO | C148: SUP. LA NACIONAL DEL PARAISO,C.A. | D148: SUP. LA NACIONAL DEL PARAISO,C.A. | F148: SUP. LA NACIONAL DEL PARAISO,C.A. | G148: AVENIDA PAEZ CRUCE CON AV EL EJERCI | H148: TOEL PARAISO CARACAS | J148: 482-20-32 | M148: CARACAS | Q148: CLT CIERRE DEFINIT CZ-01 160118 | R148: QUINTINO PESTANA | U148: SUP. LA NACIONAL DEL PARAISO,C.A. | V148: AVENIDA PAEZ CRUCE CON AV EL EJERCI | W148: TO EL PARAISO CARACAS | AB148: RECIBE DE LUNES A JUEVES | AC148: 9 AM A 1 PM Y 3 A 5 PM | AD148: VIERNES | AE148: J-00042967-7 | AF148: M-N 1724 | AG148: 0 | AH148: Sí | AI148: 00 | AJ148: CONTADO | AK148: 09 | AL148: CLIENTE INHABILITADO | AM148: 06 | AN148: 21 | AO148: SUPERMERCADOS/AUTOMERCADO | AP148: 01 | AQ148: OFF PREMISSE | AR148: 01 | AS148: OFF PREMISSE | AT148: 09 | AU148: 09 | AV148: 09 - CLIENTE INHABILITADO | AW148: RECIBE DE LUNES A JUEVES 9 AM A 1 PM Y 3 A 5 PM
A149: J000443939 | B149: 31 - RODRIGUEZ WLADIMIR | C149: CERVECERIA RESTAURANT RIO CHICO,C.A | D149: CERVECERIA RESTAURANT RIO CHICO,C.A | F149: CERVECERIA RESTAURANT RIO CHICO,C.A | G149: AV.FRANCISCO DE MIRANDA EDF.GALERIA | H149: MIRANDA PBLOCAL B-8 ZONA CHACAO | I149: MIRANDA ZONA POSTAL 1060 | J149: 0212.2633761 | M149: CARACAS | Q149: CAMBIO DE ZONA 35 A 31 07/03/23 LL | R149: VIRGILIO RANGEL M. | U149: CERVECERIA RESTAURANT RIO CHICO,C.A | V149: AV.FRANCISCO DE MIRANDA EDF.GALERIA | W149: MIRANDA PB LOCAL B-8 | X149: ZONA CHACAO | Z149: 0212.2633761 | AB149: RECIBE DIAS LUNES | AC149: DE 9:00 AM A 3:00 PM | AD149: LUNES | AE149: J-00044393-9 | AF149: 70100000386 | AG149: 89250 | AH149: No | AI149: 05 | AJ149: CREDITO 5 DIAS | AK149: 35 | AL149: EL ROSAL-CHACAO | AM149: 04 | AN149: 07 | AO149: RESTAURANTES | AP149: 02 | AQ149: ON PREMISSE | AR149: 02 | AS149: ON PREMISSE | AT149: 31 | AU149: 31 | AV149: 01 - GUERRERO SALVADOR - OFF | AW149: RECIBE DIAS LUNES DE 9:00 AM A 3:00 PM
A150: J000446857 | B150: 623 - SKO HERNANDEZ JOSE | C150: LA PENINSULA, C.A. | D150: LA PENINSULA, C.A. | F150: LA PENINSULA, C.A. | G150: BLOQUE 3 LOCAL 22-EL SILENCIO | H150: CARACAS | J150: (0212) 481.91.31 | L150: lapeninsulaventas@gmail.com | M150: CARACAS | Q150: CAMBIIO DE ZONA V23 A V623 13/04 PH | R150: JOSE RAFAEL DE FREIT | S150: AS | U150: LA PENINSULA, C.A. | V150: BLOQUE 3 LOCAL 22-EL SILENCIO | W150: CARACAS | Z150: (0212) 481-91-31 | AB150: RECIBE LUNES A VIERNES | AC150: 8 a 12 PM - 2 A 4 PM | AD150: LUNES | AE150: J-00044685-7 | AF150: M-Y 908 | AG150: 89250 | AH150: No | AI150: 05 | AJ150: CREDITO 5 DIAS | AK150: 23 | AL150: CENTRO-SAN MARTIN | AM150: 01 | AN150: 01 | AO150: DE LICORES CON FZA DE VTA | AP150: 19 | AQ150: SUCU-PROLI-CO-DISTR CILCA | AR150: 19 | AS150: SUCU-PROLI-CO-DISTR CILCA | AT150: 623 | AU150: 623 | AV150: 02 - VICTOR TORRES - OFF | AW150: RECIBE LUNES A VIERNES 8 a 12 PM - 2 A 4 PM
A151: J000473668 | B151: 32 - HERNANDEZ EDGAR | C151: GISANA C.A | D151: GISANA C.A | E151: 301122 LL | F151: GISANA C.A | G151: AV FRANCISCO SOLANO ENTRE JABILLO | H151: SAN JERONIMO EDIF CASTELLANO PISO | I151: PB LOCAL PC URB SABANA GRANDE | J151: 0414-3227458 | Q151: CAMBIO DE ZONA V31 A LA V32 220223 | R151: JHONY DUQUE CHACON | U151: GISANA C.A | V151: AV FRANCISCO SOLANO ENTRE JABILLO | W151: SAN JERONIMO EDIF CASTELLANO PISO | X151: PB LOCAL PC URB SABANA GRANDE | Z151: 0414-3227458 | AB151: RECIBE DE LUNES A VIERNES | AC151: DE10AM A 12PM Y 2PM A 4PM | AD151: DE LUNES A VIERNES | AE151: J-00047366-8 | AF151: 05-CVC-002515 | AG151: 89250 | AH151: No | AI151: 05 | AJ151: CREDITO 5 DIAS | AK151: 31 | AL151: LA CASTELLANA | AM151: 04 | AN151: 07 | AO151: RESTAURANTES | AP151: 01 | AQ151: OFF PREMISSE | AR151: 00 | AS151: ESTANDAR | AT151: 32 | AU151: 32 | AV151: 01 - GUERRERO SALVADOR - OFF | AW151: RECIBE DE LUNES A VIERNES DE10AM A 12PM Y 2PM A 4PM
A152: J000480273 | B152: 31 - RODRIGUEZ WLADIMIR | C152: CORPORACION VENFEC, S.A | D152: BOWLING CONCRESA | F152: CORPORACION VENFEC, S.A | G152: AV RIO CAURA C.C. PARQUE HUMBOLDT, | H152: NIVEL 02, URB. PRADOS DEL ESTE, | I152: MUNICIPIO BARUTA | J152: 0212.979.31.64 | K152: CLIENTE PREPAGO | M152: CARACAS | R152: JOSE MONTILLA | U152: BOWLING CONCRESA | V152: AV. RIO CAURA, C.C. PARQUE HUMBOLDT | W152: NIVEL 02, URB. PRADOS DEL ESTE, | X152: MUNICIPIO BARUTA | Z152: 0212.979.31.64 | AB152: CAMBIO DE ZONA SUP.03 | AC152: DE FECHA 25/07/2013 | AD152: JUEVES | AE152: J-00048027-3 | AF152: B-110-0-0288 | AG152: 89250 | AH152: Sí | AI152: 00 | AJ152: CONTADO | AK152: 30 | AL152: PARROQUIA EL RECREO | AM152: 04 | AN152: 06 | AO152: BAR/TABER./S. BAR/PUB/TAS | AP152: 02 | AQ152: ON PREMISSE | AR152: 02 | AS152: ON PREMISSE | AU152: 31 | AW152: CAMBIO DE ZONA SUP.03 DE FECHA 25/07/2013
A153: J000511829 | B153: 09 - CLIENTE INHABILITADO | C153: SUPERMERCADO ECONOMICO C A | D153: SUPERMERCADO ECONOMICO C A | F153: SUPERMERCADO ECONOMICO C A | G153: AV. FRANCISCO DE MIRANDA FRENTE A L | H153: APREFECTURA DE PETARE | J153: 2566722 | M153: CARACAS | R153: LUIS HUNG | U153: SUPERMERCADO ECONOMICO C A | V153: AV. FRANCISCO DE MIRANDA FRENTE A L | W153: APREFECTURA DE PETARE | AE153: J-00051182-9 | AF153: M-N 1599 | AG153: 15000 | AH153: No | AI153: 05 | AJ153: CREDITO 5 DIAS | AK153: 13 | AL153: PETARE | AM153: 05 | AN153: 21 | AO153: SUPERMERCADOS/AUTOMERCADO | AP153: 01 | AQ153: OFF PREMISSE | AR153: 01 | AS153: OFF PREMISSE | AT153: 09 | AU153: 09 | AV153: 09 - CLIENTE INHABILITADO
A154: J000526621 | B154: 60 - SKO CARVAJAL EDUARDO | C154: CITIBANK, N.A. | D154: CITIBANK, N.A. | F154: CITIBANK, N.A. | G154: AV.CASANOVA,URB.SABANA GRANDE C.CEL | H154: RECREO,TORRE NORTE P-16,L-16-CARAC | I154: AS | J154: 0212.705.21.54/23.22 | M154: CARACAS | R154: FRED AARONS P. | U154: CITIBANK, N.A. | V154: AV.CASANOVA,URB.SABANA GRANDE C.CEL | W154: RECREO,TORRE NORTE P-16,L-16-CARAC | X154: AS | AE154: J-00052662-1 | AF154: PARTICULAR | AG154: 0 | AH154: No | AI154: 00 | AJ154: CONTADO | AK154: 60 | AM154: 06 | AN154: 29 | AO154: INDUSTRIAL | AP154: 01 | AQ154: OFF PREMISSE | AR154: 01 | AS154: OFF PREMISSE | AU154: 60
A155: J000530793 | B155: 31 - RODRIGUEZ WLADIMIR | C155: FTE DE SODA. REST EL SILENCIO C.A | D155: GRAN CERV REST. FTE SODA EL SILENC | F155: FTE DE SODA. REST EL SILENCIO C.A | G155: ESQ PEDRERA LA GORDA EDIF MATUTE | H155: PISO PB 2 ZONA EL SILENCIO | J155: 0212.484.64.34 | M155: CARACAS | R155: CARLOS NATIVIDAD F | S155: CATHERINE CARMONA B | U155: FTE DE SODA. REST EL SILENCIO C.A | V155: ESQ PEDRERA A LA GORDA EDIF MATUTE | W155: PISO PB LOCAL 2 ZONA EL SILENCIO | Z155: 0212.484.64.34 | AE155: J-00053079-3 | AF155: 4C0660 | AG155: 89250 | AH155: No | AI155: 05 | AJ155: CREDITO 5 DIAS | AK155: 23 | AL155: CENTRO-SAN MARTIN | AM155: 04 | AN155: 07 | AO155: RESTAURANTES | AP155: 02 | AQ155: ON PREMISSE | AR155: 02 | AS155: ON PREMISSE | AU155: 31
A156: J000537585 | B156: 34 - MARQUINA CARLOS | C156: AUTOMERCADO SAN LORENZO, C.A. | D156: AUTOMERCADO SAN LORENZO, C.A. | F156: AUTOMERCADO SAN LORENZO, C.A. | G156: CALLE SEXTA TRANSVERSAL ENTRE | H156: ALTAMIRA Y LOS PALOS GRANDES | I156: QTA AKOBA NRO S/N URB LOS | J156: (0212) 285.61.69 | K156: (0212) 285.86.35 | L156: automercadosanlorezo@gmail.com | M156: CARACAS | N156: PALOS GRANDES, CARACAS | O156: CAMBIO DE ZONA 42 A 10 16-02-22 FL | P156: CAMBIO DE ZONA 10 A 34 060923 RM | R156: LUIS PINTO DA SILVA | S156: JOSE MANUEL DA SILVA | T156: JOSE LUIS PINTO | U156: AUTOMERCADO SAN LORENZO, C.A. | V156: CALLE SEXTA TRANSVERSAL ENTRE | W156: ALTAMIRA Y LOS PALOS GRANDES | X156: QTA AKOBA NRO S/N URB LOS | Y156: PALOS GRANDES, CARACAS | Z156: 0212-254.33.81 | AB156: RECIBE LUNES A VIERNES | AC156: 8AM A 1PM | AD156: DE LUNES A JUEVES | AE156: J-00053758-5 | AF156: 70100000582 | AG156: 89250 | AH156: No | AI156: 05 | AJ156: CREDITO 5 DIAS | AK156: 10 | AL156: ALTAMIRA-OFF | AM156: 05 | AN156: 21 | AO156: SUPERMERCADOS/AUTOMERCADO | AP156: 01 | AQ156: OFF PREMISSE | AR156: 01 | AS156: OFF PREMISSE | AT156: 34 | AU156: 34 | AV156: 01 - GUERRERO SALVADOR - OFF | AW156: RECIBE LUNES A VIERNES 8AM A 1PM
A157: J000538255 | B157: 71 - OFICINA | C157: ORGANON VENEZOLANA,S.A. | D157: ORGANON VENEZOLANA,S.A. | F157: ORGANON VENEZOLANA,S.A. | G157: CALLE SUAPURE C/C DIANA PISO Nº 01L | H157: OMAS DE BELLO MONTE- CARACAS-EDO.MI | I157: RANDA | J157: 7532511 | M157: CARACAS | R157: ALEJANDRO ALFONZO LA | S157: RRAIN | U157: ORGANON VENEZOLANA,S.A. | V157: CALLE SUAPURE C/C DIANA PISO Nº 01L | W157: OMAS DE BELLO MONTE- CARACAS-EDO.MI | X157: RANDA | AE157: J-00053825-5 | AF157: PARTICULAR | AG157: 2200 | AH157: No | AI157: 05 | AJ157: CREDITO 5 DIAS | AK157: 71 | AL157: OFICINA | AM157: 06 | AN157: 28 | AO157: COMERCIOS | AP157: 01 | AQ157: OFF PREMISSE | AR157: 01 | AS157: OFF PREMISSE | AT157: 71 | AU157: 71 | AV157: 71 - OFICINA
A158: J000540063 | B158: 09 - CLIENTE INHABILITADO | C158: AUTO POLLO CARIBE C A | D158: AUTO POLLO CARIBE C A | F158: AUTO POLLO CARIBE C A | G158: CENTRO C.M, CARRETERA PETARE SANTA | H158: LUCIAKM 5 FILA DE MARICHE-EDO.MIRAN | I158: DA | J158: 2346548 | M158: CARACAS | Q158: CAMBIO A LA ZONA 09 23-09-19 YM | R158: AGOSTINHO DE SOUSA | U158: AUTO POLLO CARIBE C A | V158: CENTRO C.M, CARRETERA PETARE SANTA | W158: LUCIAKM 5 FILA DE MARICHE-EDO.MIRAN | X158: DA | AE158: J-00054006-3 | AF158: C 3585 | AG158: 0 | AH158: Sí | AI158: 00 | AJ158: CONTADO | AK158: 09 | AL158: CLIENTE INHABILITADO | AM158: 04 | AN158: 07 | AO158: RESTAURANTES | AP158: 02 | AQ158: ON PREMISSE | AR158: 02 | AS158: ON PREMISSE | AT158: 09 | AU158: 09 | AV158: 09 - CLIENTE INHABILITADO
A159: J000540705 | B159: 09 - CLIENTE INHABILITADO | C159: ZEROSTAND, C.A. | D159: BAR RESTAURANT ZEROSTAND | F159: ZEROSTAND, C.A. | G159: AV ANAUCO EDIF ASTORIA PISO PB | H159: LOCAL A Y B. URB SAN BERNARDINO | I159: CARACAS-DISTRITO FEDERAL | J159: 0212-551.00.95 | M159: CARACAS | P159: BLOQ.210416 SOLO COMPRA N DICIEMBRE | Q159: CAMBIO A ZONA 09 19-09-19 YM | R159: IRANILDO DE FREITAS | U159: BAR RESTAURANT ZEROSTAND | V159: AV ANAUCO EDIF ASTORIA PISO PB | W159: LOCAL A Y B. URB SAN BERNARDINO | X159: CARACAS-DISTRITO FEDERAL | Z159: 0212-551.00.95 | AD159: JUEVES | AE159: J-00054070-5 | AF159: EN TRAMITE | AG159: 0 | AH159: Sí | AI159: 00 | AJ159: CONTADO | AK159: 09 | AL159: CLIENTE INHABILITADO | AM159: 06 | AN159: 20 | AO159: DELICATESES/FRIGO/CHARCUT | AP159: 01 | AQ159: OFF PREMISSE | AR159: 01 | AS159: OFF PREMISSE | AT159: 09 | AU159: 09 | AV159: 09 - CLIENTE INHABILITADO
A160: J000549087 | B160: 13 - GUDIÑO FABIAN | C160: SUPERMERCADO 3 DE SEPTIEMBRE,C.A. | D160: SUPERMERCADO 3 DE SEPTIEMBRE | F160: SUPERMERCADO 3 DE SEPTIEMBRE,C.A. | G160: CALLE GUAICAIPURO EL MARQUES FRENTE | H160: PARADA DE AUTOBUS-CARACAS | J160: (0212)242.03.24 | L160: super3septiembre@gmail.com | M160: CARACAS | O160: CAMBIO V-10 AL V-43 MYZ 06072021 | P160: CAMBIO DE ZONA 43 A 10 160222 ST | Q160: CAMBIO DE ZONA 10 A 13 050923 RM | R160: FERNANDO GOMEZ | U160: SUPERMERCADO 3 DE SEPTIEMBRE | V160: CALLE GUAICAIPURO EL MARQUES FRENTE | W160: PARADA DE AUTOBUS-CARACAS | Z160: (0212) 242-03-24 | AB160: RECIBE LUNES A VIERNES | AC160: 7 AM A 4 PM | AD160: JUEVES | AE160: J-00054908-7 | AF160: 002-MN-374 | AG160: 89250 | AH160: No | AI160: 05 | AJ160: CREDITO 5 DIAS | AK160: 10 | AL160: ALTAMIRA-OFF | AM160: 05 | AN160: 21 | AO160: SUPERMERCADOS/AUTOMERCADO | AP160: 01 | AQ160: OFF PREMISSE | AR160: 01 | AS160: OFF PREMISSE | AT160: 13 | AU160: 13 | AV160: 01 - GUERRERO SALVADOR - OFF | AW160: RECIBE LUNES A VIERNES 7 AM A 4 PM
A161: J000554978 | B161: 09 - CLIENTE INHABILITADO | C161: AUTOMERCADO LAS FUENTES C.A. | D161: AUTOMERCADO LAS FUENTES | F161: AUTOMERCADO LAS FUENTES C.A. | G161: AVENIDA PRINCIPAL DE LAS FUENTES EL | H161: PARAISO- CARACAS-DTTO.CAPITAL | J161: 0212 461 42 63 | K161: NO POSEE | L161: NO POSEE | M161: CARACAS | O161: CONTRIB.ESPEC.FACTURAR AL 28 C/MES | P161: DESBLOQ.180815 HD NO APLICA RET.75% | Q161: COMBIO D ZONA24 A 09 AL 190619 JA | R161: ANTONIO RODRIGUES ME | S161: NDES | U161: AUTOMERCADO LAS FUENTES C.A. | V161: AVENIDA PRINCIPAL DE LAS FUENTES EL | W161: PARAISO- CARACAS-DTTO.CAPITAL | AB161: RECIBE LUNES A VIERNES | AC161: 9:00AM A 4:00PM | AD161: MIERCOLES | AE161: J-00055497-8 | AF161: 22-MN-002236 | AG161: 0 | AH161: Sí | AI161: 00 | AJ161: CONTADO | AK161: 09 | AL161: CLIENTE INHABILITADO | AM161: 06 | AN161: 21 | AO161: SUPERMERCADOS/AUTOMERCADO | AP161: 01 | AQ161: OFF PREMISSE | AR161: 01 | AS161: OFF PREMISSE | AT161: 09 | AU161: 09 | AV161: 09 - CLIENTE INHABILITADO | AW161: RECIBE LUNES A VIERNES 9:00AM A 4:00PM
A162: J000557500 | B162: 09 - CLIENTE INHABILITADO | C162: BAR RESTAURANT LA GIRALDA C.A. | D162: BAR REST.LA GIRALDA C.A. | F162: BAR REST.LA GIRALDA C.A. | G162: 1ERA AV. DE BELLO MONTE CRUCE CON | H162: AVDA.CAZANOVA SABANA GRANDE CARACAS | J162: 762-32-91 | M162: CARACAS | Q162: CAMBIO A LA ZONA 09 23-09-19 YM | R162: AGUSTIN ANDRADE | U162: BAR REST.LA GIRALDA C.A. | V162: 1ERA AV. DE BELLO MONTE CRUCE CON | W162: AVDA.CAZANOVA SABANA GRANDE CARACAS | AE162: J-00055750-0 | AF162: C 289 | AG162: 0 | AH162: Sí | AI162: 00 | AJ162: CONTADO | AK162: 09 | AL162: CLIENTE INHABILITADO | AM162: 04 | AN162: 07 | AO162: RESTAURANTES | AP162: 02 | AQ162: ON PREMISSE | AR162: 02 | AS162: ON PREMISSE | AT162: 09 | AU162: 09 | AV162: 09 - CLIENTE INHABILITADO
A163: J000562768 | B163: 31 - RODRIGUEZ WLADIMIR | C163: HERMANDAD GALLEGA DE VENEZUELA A.C. | D163: HERMANDAD GALLEGA DE VENEZUELA A.C. | F163: HERMANDAD GALLEGA DE VENEZUELA A.C. | G163: AVDA. PRINCIPAL DE MARIPEREZ ENTRE | H163: AVDA. 7 Y AUGUSTO SANDIN HERMANDAD | I163: GALLEGA NRO. PB URB. MARIPEREZ | J163: (0414) 114-87-87 | K163: (0212) 793-72-30 | M163: CARACAS | N163: CARACAS | R163: ANTONIO PIÑON | U163: HERMANDAD GALLEGA DE VENEZUELA A.C. | V163: AVDA. PRINCIPAL DE MARIPEREZ ENTRE | W163: AVDA. 7 Y AUGUSTO SANDIN HERMANDAD | X163: GALLEGA NRO. PB URB. MARIPEREZ | Z163: (0414) 114-87-87 | AA163: (0212) 793-72-30 | AB163: PERSONA CONTACTO JAVIER | AC163: RODRIGUEZ | AE163: J-00056276-8 | AF163: PARTICULAR | AG163: 89250 | AH163: No | AI163: 05 | AJ163: CREDITO 5 DIAS | AK163: 33 | AL163: CENTRO-CANDELARIA | AM163: 06 | AN163: 10 | AO163: CLUB SOCIALES | AP163: 00 | AQ163: ESTANDAR | AR163: 00 | AS163: ESTANDAR | AU163: 31 | AW163: PERSONA CONTACTO JAVIER RODRIGUEZ
A164: J000572844 | B164: 22 - GONZALEZ CARLOS | C164: FREITAS HERMANOS J.& Z.,S.R.L. | D164: FREITAS HERMANOS J.& Z.,S.R.L. | F164: FREITAS HERMANOS J.& Z.,S.R.L. | G164: CALLE ESTADIUN ALTA VISTA CATIACARA | H164: CAS | J164: 814645 | M164: CARACAS | R164: JOSE LUIS GONCALVEZ | S164: ABREU | U164: FREITAS HERMANOS J.& Z.,S.R.L. | V164: CALLE ESTADIUN ALTA VISTA CATIACARA | W164: CAS | AB164: RECIBE - MARTES A VIERNES | AC164: 11:00AM A 5:00PM | AD164: JUEVES | AE164: J-00057284-4 | AF164: M-N 4900 | AG164: 89250 | AH164: No | AI164: 05 | AJ164: CREDITO 5 DIAS | AK164: 22 | AL164: CATIA-JUNQUITO | AM164: 06 | AN164: 21 | AO164: SUPERMERCADOS/AUTOMERCADO | AP164: 01 | AQ164: OFF PREMISSE | AR164: 01 | AS164: OFF PREMISSE | AT164: 22 | AU164: 22 | AV164: 02 - VICTOR TORRES - OFF | AW164: RECIBE - MARTES A VIERNES 11:00AM A 5:00PM
A165: J000582440 | B165: 14 - GIL EXIO JOSE | C165: LICORES EL MENCEY I, C.A. | D165: LICORES EL MENCEY I, C.A. | F165: LICORES EL MENCEY I, C.A. | G165: CALLE REAL DE NAIGUATA LOCAL PB NRO | H165: 2 SECTOR PUEBLO ABAJO EDO. VARGAS | J165: (0212) 337.05.67 | K165: (0416) 820.61.11 | L165: fcorodriguez09@hotmail.com | M165: LA GUAIRA | Q165: RESTRUCT. EDV 14 AL 16 MYZ 25-11-22 | R165: FRANCISCO DE SOUSA | U165: LICORES EL MENCEY I, C.A. | V165: CALLE REAL DE NAIGUATA LOCAL PB NRO | W165: 2 SECTOR PUEBLO ABAJO EDO. VARGAS | Z165: (0212) 337-05-67 | AB165: LUN-MAR-JUE Y VIE | AC165: 9 AM A 1 PM Y 3 PM A 6 PM | AD165: JUEVES | AE165: J-00058244-0 | AF165: 031-MN-1266 | AG165: 89250 | AH165: No | AI165: 05 | AJ165: CREDITO 5 DIAS | AK165: 14 | AL165: LITORAL CENTRAL | AM165: 05 | AN165: 18 | AO165: LICORERIAS/BODEGONES | AP165: 01 | AQ165: OFF PREMISSE | AR165: 01 | AS165: OFF PREMISSE | AT165: 14 | AU165: 14 | AV165: 01 - CARLOS DA SILVA - OFF | AW165: LUN-MAR-JUE Y VIE 9 AM A 1 PM Y 3 PM A 6 PM
A166: J000583307 | B166: 09 - CLIENTE INHABILITADO | C166: NEOGRAFICA C.A. | D166: NEOGRAFICA C.A. | F166: NEOGRAFICA C.A. | G166: CALLE VARGAS EDIFICIO COMARTIN PISO | H166: 2 LOCAL COMARTIN URB. BOLEITA NORTE | I166: CARACAS | M166: CARACAS | Q166: CAMBIO DE Z 31 A ZONA 09 200919 JA | R166: GIUSEPPE FUMAI | U166: NEOGRAFICA, C.A. | V166: CALLE VARGAS EDIFICIO COMARTIN PISO | W166: 2 LOCAL COMARTIN URB. BOLEITA NORTE | X166: CARACAS | AB166: TRASP. ZONA 03 CARLOS | AC166: DA SILVA S/SOLIC 03/02/11 | AE166: J-00058330-7 | AF166: PARTICULAR | AG166: 15000 | AH166: Sí | AI166: 00 | AJ166: CONTADO | AK166: 31 | AL166: LA CASTELLANA | AM166: 04 | AN166: 31 | AO166: PARTICULAR | AP166: 00 | AQ166: ESTANDAR | AR166: 00 | AS166: ESTANDAR | AT166: 09 | AU166: 09 | AV166: 09 - CLIENTE INHABILITADO | AW166: TRASP. ZONA 03 CARLOS DA SILVA S/SOLIC 03/02/11
A167: J000592217 | B167: 31 - RODRIGUEZ WLADIMIR | C167: BAR RESTAURANT EL BRASERO, C.A. | D167: BAR Y RESTAURANT EL BRASERO, C.A. | F167: BAR Y RESTAURANT EL BRASERO, C.A. | G167: AVENIDA JOSE ANTONIO PAEZ,EL PARAIS | H167: O FRENTEA MC DONALDS Y FARMACIA EL | I167: PINAR | J167: 0212.451.77.38/462.2 | M167: CARACAS | R167: MAGALI BARRIOS | U167: BAR Y RESTAURANT EL BRASERO, C.A. | V167: AVENIDA JOSE ANTONIO PAEZ,EL PARAIS | W167: O FRENTEA MC DONALDS Y FARMACIA EL | X167: PINAR | AE167: J-00059221-7 | AF167: C-002786 | AG167: 89250 | AH167: No | AI167: 05 | AJ167: CREDITO 5 DIAS | AK167: 33 | AL167: CENTRO-CANDELARIA | AM167: 04 | AN167: 06 | AO167: BAR/TABER./S. BAR/PUB/TAS | AP167: 02 | AQ167: ON PREMISSE | AR167: 02 | AS167: ON PREMISSE | AU167: 31
A168: J000596140 | B168: 31 - RODRIGUEZ WLADIMIR | C168: HILTON INTER.DE VZLA.C.A(HILTON CCS | D168: HOTEL HILTON | F168: HILTON INTERNC.DE VZLA.C.A(HILTON CCSS) | G168: AV.MEXICO,CON SUR 25, EL CONDE, PLA | H168: ZAPLAZA MORELOS BELLAS ARTES | J168: 503-5000 FAX 5035002 | M168: CARACAS | R168: YAMILETH RIZO | U168: HOTEL HILTON | V168: AV.MEXICO,CON SUR 25, EL CONDE, PLA | W168: ZAPLAZA MORELOS BELLAS ARTES | AE168: J-00059614-0 | AF168: PARTICULAR | AG168: 89250 | AH168: No | AI168: 05 | AJ168: CREDITO 5 DIAS | AK168: 33 | AL168: CENTRO-CANDELARIA | AM168: 04 | AN168: 08 | AO168: HOTELES/CASINOS/BINGOS | AP168: 02 | AQ168: ON PREMISSE | AR168: 02 | AS168: ON PREMISSE | AU168: 31
A169: J000600295 | B169: 09 - CLIENTE INHABILITADO | C169: PANADERIA Y ABASTOS EL CARMEN, C.A. | D169: PANADERIA Y ABASTOS EL CARMEN, C.A. | E169: 080917 | F169: PANADERIA Y ABASTOS EL CARMEN, C.A. | G169: CALLE BOLIVAR EDIF SIMON PISO PB LO | H169: CAL 1-2 SECTOR EL PUEBLO SA DE LOS | I169: ALTOS EDO MIRANDA | J169: (0212) 371.11.93 | K169: (0424) 258.80.00 | L169: victorjgomes73@gmail.com | M169: SA DE LOS ALTOS | P169: BLOQ.MHP 27 DIAS CALLE 210319 WP | Q169: CAMBIO DE ZONA 26 A 09 16/9/19 GT | R169: FRANCISCO GOMES | U169: PANADERIA Y ABASTOS EL CARMEN, C.A. | V169: CALLE BOLIVAR EDIF SIMON PISO PB LO | W169: CAL 1-2 SECTOR EL PUEBLO SA DE LOS | X169: ALTOS EDO MIRANDA | Z169: (0212) 371.11.93 | AB169: RECIBE LUNES A VIERNES | AC169: 08:00 AM A 5:00 PM | AD169: JUEVES | AE169: J-00060029-5 | AF169: 032-MN-113 | AG169: 0 | AH169: Sí | AI169: 00 | AJ169: CONTADO | AK169: 09 | AL169: CLIENTE INHABILITADO | AM169: 05 | AN169: 23 | AO169: ABASTOS PEQUEÑOS/BODEGAS | AP169: 01 | AQ169: OFF PREMISSE | AR169: 01 | AS169: OFF PREMISSE | AT169: 09 | AU169: 09 | AV169: 09 - CLIENTE INHABILITADO | AW169: RECIBE LUNES A VIERNES 08:00 AM A 5:00 PM
A170: J000605394 | B170: 36 CLIENT-CORPORAT-OFIC. | C170: MOLINA Y CIA, C.A. | D170: LA MARCONA | E170: 171017 | F170: MOLINA Y CIA, C.A. | G170: CTRA CARRETERA PANAMERICANA KM 18 | H170: EDIF LA MARCONA PSIO PB OF PLANTA B | I170: AJA SECTOR LOMA GORDA CARRIZAL | J170: 0212 3830195 | L170: compraslamarcona@gmail.com | M170: CARACAS | N170: EDO MIRANDA | R170: MARIA TERESA MOLINA | S170: CAROLINA MOLINA | U170: MOLINA Y CIA, C.A. | V170: CTRA CARRETERA PANAMERICANA KM 18 | W170: EDIF LA MARCONA PSIO PB OF PLANTA B | X170: AJA SECTOR LOMA GORDA CARRIZAL | Y170: EDO MIRANDA | Z170: 0212 3832002 | AA170: 0212 3830681 | AB170: DESPACHAR JUEVES | AC170: DE 7:00 AM A 12:00 M | AE170: J-00060539-4 | AF170: PARTICULAR | AG170: 89250 | AH170: No | AI170: 05 | AJ170: CREDITO 5 DIAS | AK170: 36 | AL170: VTAS.CORPORATIVAS | AM170: 08 | AN170: 33 | AO170: RELACIONADOS | AP170: 00 | AQ170: ESTANDAR | AR170: 00 | AS170: ESTANDAR | AT170: 36 | AU170: 36 | AV170: 71 - OFICINA | AW170: DESPACHAR JUEVES DE 7:00 AM A 12:00 M
A171: J000605610 | B171: 09 - CLIENTE INHABILITADO | C171: BALNEARIO MARINA GRANDE, S.A. | D171: BALNEARIO MARINA GRANDE, S.A. | F171: BALNEARIO MARINA GRANDE, S.A. | G171: AV. BOULEVARD LA PLAYA LOCAL BALNEA | H171: RIO MARINA GRANDE URB PLAYA GRANDE | I171: CATIA LA MAR EDO VARGAS | M171: LA GUAIRA | Q171: CAMBIO Z-01 AUT GCIA VENTAS 210717 | R171: JORGE TANI | U171: BALNEARIO MARINA GRANDE, S.A. | V171: AV. BOULEVARD LA PLAYA LOCAL BALNEA | W171: RIO MARINA GRANDE URB PLAYA GRANDE | X171: CATIA LA MAR EDO VARGAS | AB171: RECIBE DE LUNES A JUEVES | AC171: DE 8:00 AM A 4:00 PM | AD171: DE LUNES A VIERNES | AE171: J-00060561-0 | AF171: 031-C-73 | AG171: 15000 | AH171: Sí | AI171: 00 | AJ171: CONTADO | AK171: 14 | AL171: LITORAL CENTRAL | AM171: 04 | AN171: 07 | AO171: RESTAURANTES | AP171: 02 | AQ171: ON PREMISSE | AR171: 02 | AS171: ON PREMISSE | AT171: 09 | AU171: 09 | AV171: 09 - CLIENTE INHABILITADO | AW171: RECIBE DE LUNES A JUEVES DE 8:00 AM A 4:00 PM
A172: J000607613 | B172: 71 - OFICINA | C172: ASOC.P.D.C.E.A.C. APROCRE | D172: ASOC.P.D.C.E.A.C. APROCRE | F172: ASOC.P.D.C.E.A.C. APROCRE | G172: AV.FRANCISCO DE MIRANDA ESQ.REPUBLI | H172: CADOMINICANA TORRE BAZAR BOLIVAR PI | I172: SO 14 PH 1 | J172: 2358507 | M172: CARACAS | R172: YRAIDA MELLUSO | U172: ASOC.P.D.C.E.A.C. APROCRE | V172: AV.FRANCISCO DE MIRANDA ESQ.REPUBLI | W172: CADOMINICANA TORRE BAZAR BOLIVAR PI | X172: SO 14 PH 1 | AE172: J-00060761-3 | AF172: PARTICULAR | AG172: 2200 | AH172: No | AI172: 05 | AJ172: CREDITO 5 DIAS | AK172: 71 | AL172: OFICINA | AM172: 06 | AN172: 29 | AO172: INDUSTRIAL | AP172: 01 | AQ172: OFF PREMISSE | AR172: 01 | AS172: OFF PREMISSE | AU172: 71 | AV172: 71 - OFICINA
A173: J000614660 | B173: 02 - REQUENA JOHAN - OFF | C173: AUTOMERCADO DE VIVERES C.A. | D173: TABANCO MARKET | F173: AUTOMERCADO DE VIVERES, C.A. (AUDEVICA) | G173: AV.ROOSVELT RES. TIUNA PB, LOS ROSA | H173: LESDTTO. FEDERAL - CARACAS | M173: CARACAS | R173: DAMASO RODRIGUEZ ALV | S173: AREZ | U173: TABANCO MARKET | V173: AV.ROOSVELT RES. TIUNA PB, LOS ROSA | W173: LESDTTO. FEDERAL - CARACAS | AE173: J-00061466-0 | AF173: MN 465 | AG173: 89250 | AH173: No | AI173: 05 | AJ173: CREDITO 5 DIAS | AK173: 24 | AL173: CARICUAO | AM173: 05 | AN173: 21 | AO173: SUPERMERCADOS/AUTOMERCADO | AP173: 01 | AQ173: OFF PREMISSE | AR173: 01 | AS173: OFF PREMISSE | AU173: 02
A174: J000625239 | B174: 24 - REYES OSWALDO | C174: SUPER ABASTOS MISS VENEZUELA,S.R.L. | D174: SUPER ABASTOS MISS VENEZUELA,S.R.L. | F174: SUPER ABASTOS MISS VENEZUELA,S.R.L. | G174: URB.RUIZ PINEDA FRENTE A LA ESTACIO | H174: NDEL METRO UD-7 - CARICUAO-MNCP.LIB | I174: ERTADOR | J174: 0212 434 14 32 | K174: NO POSEE | L174: NO POSEE | M174: CARACAS | Q174: BLOQ MAYOR 67 DIAS SEGUI 240222 PH | R174: GOVEIA ELISA | S174: WILIAM | U174: SUPER ABASTOS MISS VENEZUELA,S.R.L. | V174: URB.RUIZ PINEDA FRENTE A LA ESTACIO | W174: NDEL METRO UD-7 - CARICUAO-MNCP.LIB | X174: ERTADOR | AB174: RECIBE LUNES A JUEVES | AC174: 9:00AM A 5:00PM | AD174: VIERNES | AE174: J-00062523-9 | AF174: MN-0085 | AG174: 89250 | AH174: No | AI174: 05 | AJ174: CREDITO 5 DIAS | AK174: 24 | AL174: CARICUAO | AM174: 06 | AN174: 21 | AO174: SUPERMERCADOS/AUTOMERCADO | AP174: 01 | AQ174: OFF PREMISSE | AR174: 01 | AS174: OFF PREMISSE | AT174: 24 | AU174: 24 | AV174: 02 - VICTOR TORRES - OFF | AW174: RECIBE LUNES A JUEVES 9:00AM A 5:00PM
A175: J000633622 | B175: 31 - RODRIGUEZ WLADIMIR | C175: LAMELAS, ABELLA & CIA | D175: TASCA RESTAURANT EL CASCORRO | F175: LAMELAS, ABELLA & CIA | G175: DE PELOTA A ABANICO CON AV. URDANET | H175: A,EDIF. CARMEN, LA CANDELARIA CCS | J175: 564.68.12 | M175: CARACAS | R175: JUAN GONCALVEZ | U175: LAMELAS, ABELLA & CIA | V175: DE PELOTA A ABANICO CON AV. URDANET | W175: A,EDIF. CARMEN, LA CANDELARIA CCS | AB175: TRASP.AL 03 SUP.CARLOS DA | AC175: SILVA S/SOLICI.24-01-2011 | AE175: J-00063362-2 | AF175: C 3542 | AG175: 89250 | AH175: No | AI175: 05 | AJ175: CREDITO 5 DIAS | AK175: 33 | AL175: CENTRO-CANDELARIA | AM175: 04 | AN175: 06 | AO175: BAR/TABER./S. BAR/PUB/TAS | AP175: 02 | AQ175: ON PREMISSE | AR175: 02 | AS175: ON PREMISSE | AU175: 31 | AW175: TRASP.AL 03 SUP.CARLOS DA SILVA S/SOLICI.24-01-2011
A176: J000635706 | B176: 09 - CLIENTE INHABILITADO | C176: INVERSIONES ANA | D176: REST.PENSION ANA | F176: PENSION ANA CA | G176: AVENIDA SANTIAGO DE CHILE QUINTA AN | H176: ALOS CAOBOS-MNPIO.LIBERTADOR-CARACA | I176: S | J176: 7816691 | M176: CARACAS | Q176: REEST-V-31 AL V-09 20092019 MYZ | R176: BONGORNO IVO | U176: REST.PENSION ANA | V176: AVENIDA SANTIAGO DE CHILE QUINTA AN | W176: ALOS CAOBOS-MNPIO.LIBERTADOR-CARACA | X176: S | AE176: J-00063570-6 | AF176: 002-C-3809 | AG176: 15000 | AH176: Sí | AI176: 00 | AJ176: CONTADO | AK176: 32 | AL176: SUCRE - BARUTA | AM176: 04 | AN176: 06 | AO176: BAR/TABER./S. BAR/PUB/TAS | AP176: 02 | AQ176: ON PREMISSE | AR176: 02 | AS176: ON PREMISSE | AT176: 09 | AU176: 09 | AV176: 09 - CLIENTE INHABILITADO
A177: J000641587 | B177: 502 - DRA. ALEXI Y. PINT0 | C177: PEREIRA VALERIO NUNES,S.R.L. | D177: BAR RESTAURANT NUEVA LISBOA | F177: BAR RESTAURANT NUEVA LISBOA | G177: AVENIDA 9 DE DICIEMBRE CENTRO COMER | H177: CIAL9 DE DICIEMBRE- EL PARAISO-CARA | I177: CAS | M177: CARACAS | R177: ARMANDO A. PIMENTEL | U177: BAR RESTAURANT NUEVA LISBOA | V177: AVENIDA 9 DE DICIEMBRE CENTRO COMER | W177: CIAL9 DE DICIEMBRE- EL PARAISO-CARA | X177: CAS | AB177: Bs 825,49 LLEVADO A | AC177: INCOBRABLE EL 30-12-10 | AE177: J-00064158-7 | AF177: C 2651 | AG177: 0 | AH177: No | AI177: 00 | AJ177: CONTADO | AK177: 24 | AL177: CARICUAO | AM177: 04 | AN177: 06 | AO177: BAR/TABER./S. BAR/PUB/TAS | AP177: 02 | AQ177: ON PREMISSE | AR177: 02 | AS177: ON PREMISSE | AU177: 502 | AW177: Bs 825,49 LLEVADO A INCOBRABLE EL 30-12-10
A178: J000647470 | B178: 09 - CLIENTE INHABILITADO | C178: BAR REST. EL PORTON, C.A. | D178: RESTAURANTE BAR EL PORTON, C.A. * | F178: RESTAURANTE BAR EL PORTON, C.A. * | G178: AVDA. PINCHINCHA Nº 18 ESQUINACALLE | H178: GUAICAIPURO, EL ROSAL | J178: 9520027 | M178: CARACAS | Q178: CAMBIO A LA ZONA 09 23-09-19 YM | R178: TY JOUK DE PIÑEIRO L | S178: IDIA. | U178: RESTAURANTE BAR EL PORTON, C.A. * | V178: AVDA. PINCHINCHA Nº 18 ESQUINACALLE | W178: GUAICAIPURO, EL ROSAL | AE178: J-00064747-0 | AF178: C 1867 | AG178: 0 | AH178: Sí | AI178: 00 | AJ178: CONTADO | AK178: 09 | AL178: CLIENTE INHABILITADO | AM178: 04 | AN178: 06 | AO178: BAR/TABER./S. BAR/PUB/TAS | AP178: 02 | AQ178: ON PREMISSE | AR178: 02 | AS178: ON PREMISSE | AT178: 09 | AU178: 09 | AV178: 09 - CLIENTE INHABILITADO
A179: J000650276 | B179: 13 - GUDIÑO FABIAN | C179: AUTOMERCADO SAN GONZALO SRL | D179: AUTOMERCADO SAN GONZALO SRL | F179: AUTOMERCADO SAN GONZALO SRL | G179: 1ERA AV. DE BUENA VISTA CON CALLE E | H179: LCARMEN PETARE | J179: (0212) 271.13.90 | K179: (0212) 271.23.53 | L179: pailafari@gmail.com | M179: PETARE | R179: ENRIQUE FERREIRA | U179: AUTOMERCADO SAN GONZALO SRL | V179: 1ERA AV. DE BUENA VISTA CON CALLE E | W179: LCARMEN PETARE | AB179: RECIBE MARTES A VIERNES | AC179: 8 A 1 PM - 3 A 6 PM | AD179: MIERCOLES | AE179: J-00065027-6 | AF179: M-N 3337 | AG179: 89250 | AH179: No | AI179: 05 | AJ179: CREDITO 5 DIAS | AK179: 13 | AL179: PETARE | AM179: 05 | AN179: 21 | AO179: SUPERMERCADOS/AUTOMERCADO | AP179: 01 | AQ179: OFF PREMISSE | AR179: 01 | AS179: OFF PREMISSE | AT179: 13 | AU179: 13 | AV179: 01 - CARLOS DA SILVA - OFF | AW179: RECIBE MARTES A VIERNES 8 A 1 PM - 3 A 6 PM
A180: J000652937 | B180: 25 - OCAMPO O. ROMAY | C180: ASOCIADOS CUMBRE ROJA,C.A. | D180: RESTAURANT LA CUMBRE ROJA | F180: ASOCIADOS CUMBRE ROJA,C.A. | G180: CARRETERA PANAMERICANA KM 35 VIA TE | H180: JERIASLOS TEQUES | J180: (0212) 893.60.65 | K180: (0414) 335.78.51 | L180: antoniojabreuda@hotmail.com | M180: LOS TEQUES | R180: JOAO ANDRADE | U180: RESTAURANT LA CUMBRE ROJA | V180: CARRETERA PANAMERICANA KM 35 VIA TE | W180: JERIASLOS TEQUES | AB180: RECIBE LUNES A VIERNES | AC180: 08:00 AM A 2:00 PM | AD180: JUEVES | AE180: J-00065293-7 | AF180: C 51 | AG180: 89250 | AH180: No | AI180: 05 | AJ180: CREDITO 5 DIAS | AK180: 25 | AL180: LOS TEQUES | AM180: 04 | AN180: 07 | AO180: RESTAURANTES | AP180: 02 | AQ180: ON PREMISSE | AR180: 02 | AS180: ON PREMISSE | AT180: 25 | AU180: 25 | AV180: 02 - VICTOR TORRES - OFF | AW180: RECIBE LUNES A VIERNES 08:00 AM A 2:00 PM
A181: J000655987 | B181: 15 - GUTIERREZ WALTER | C181: AGENCIA DE FEST STA MONICA, S.R.L. | D181: AGENCIA DE FEST STA MONICA, S.R.L. | F181: AGENCIA DE FESTEJOS SANTA MONICA, S.R.L. | G181: AVENIDA TERESA DE LA PARRA EDF.MIRE | H181: NTXUSANTA MONICA CARACAS | J181: (0212) 661.58.70 | M181: CARACAS | N181: 2CD 200415-200416 HP9 DC7 HD | O181: DESBLOQ.260416 EXCEP.PROB.FIRMA HD | Q181: 1CD EXEPC. ERROR EDV 29/01/19 GA | R181: JOSE FIGUEIRA | U181: AGENCIA DE FEST STA MONICA, S.R.L. | V181: AVENIDA TERESA DE LA PARRA EDF.MIRE | W181: NTXUSANTA MONICA CARACAS | AB181: RECIBE MARTES A JUEVES | AC181: 09:00 AM A 04:00 AM | AD181: MIERCOLES | AE181: J-00065598-7 | AF181: MY-991 | AG181: 89250 | AH181: No | AI181: 05 | AJ181: CREDITO 5 DIAS | AK181: 16 | AL181: GUATIRE | AM181: 05 | AN181: 18 | AO181: LICORERIAS/BODEGONES | AP181: 01 | AQ181: OFF PREMISSE | AR181: 01 | AS181: OFF PREMISSE | AT181: 15 | AU181: 15 | AV181: 01 - CARLOS DA SILVA - OFF | AW181: RECIBE MARTES A JUEVES 09:00 AM A 04:00 AM
A182: J000656746 | B182: 02 - REQUENA JOHAN - OFF | C182: A/M BAZAR LAS DOS ESTRELLAS, C.A. | D182: A/M BAZAR LAS DOS ESTRELLAS, C.A. | F182: A/M BAZAR LAS DOS ESTRELLAS, C.A. | G182: CALLE STA ANA BAJANDO POR LA JEFATU | H182: RADE MACUTO | M182: LA GUAIRA | R182: ALFREDO RODRIGUEZ | U182: A/M BAZAR LAS DOS ESTRELLAS, C.A. | V182: CALLE STA ANA BAJANDO POR LA JEFATU | W182: RADE MACUTO | AE182: J-00065674-6 | AF182: M-N 76 | AG182: 89250 | AH182: No | AI182: 05 | AJ182: CREDITO 5 DIAS | AK182: 21 | AL182: VALLES DEL TUY-21 | AM182: 05 | AN182: 22 | AO182: ABASTOS GRANDES | AP182: 01 | AQ182: OFF PREMISSE | AR182: 01 | AS182: OFF PREMISSE | AU182: 02
A183: J000657475 | B183: 24 - REYES OSWALDO | C183: CASTANHO CASTANHO & CARVALHO, C.A. | D183: CARN. PESC. Y CHARC. CATERINA, C.A. | F183: CARN.PESC.Y CHARC. CATERINA C.A. | G183: AV. PPAL DE RUIZ PINEDA ENTRE BLOQ | H183: 16 Y 14 O V 619-620 EDIF S/N BLOQ | I183: 13 PISO PB LOCAL 50 UD 7 CARICUAO | J183: 0212 431 92 79 | K183: NO POSEE | L183: NO POSEE | M183: CARACAS | R183: JOAO RODRIGUES | U183: CARN. PESC. Y CHARC. CATERINA, C.A. | V183: AV. PRINCIPAL DE RUIZ PINEDA ENTRE | W183: BLOQ. 13 UD7 LOCAL 50 | X183: RUIZ PINEDA CARICUAO | Z183: 0212-431.92.79 | AB183: RECIBE LUNES A JUEVES | AC183: 9:00AM A 1:00PM | AD183: JUEVES | AE183: J-00065747-5 | AF183: 002-MN-0020 | AG183: 89250 | AH183: No | AI183: 05 | AJ183: CREDITO 5 DIAS | AK183: 24 | AL183: CARICUAO | AM183: 06 | AN183: 23 | AO183: ABASTOS PEQUEÑOS/BODEGAS | AP183: 01 | AQ183: OFF PREMISSE | AR183: 01 | AS183: OFF PREMISSE | AT183: 24 | AU183: 24 | AV183: 02 - VICTOR TORRES - OFF | AW183: RECIBE LUNES A JUEVES 9:00AM A 1:00PM
A184: J000658358 | B184: 31 - RODRIGUEZ WLADIMIR | C184: BAR RESTAURANT MESON SEGOVIANO | D184: BAR RESTAURANT MESON SEGOVIANO | F184: BAR RESTAURANT MESON SEGOVIANO | G184: AV. FUERZAS ARMADAS SOCORRAS A ROMU | H184: ALDALA CANDELARIA CARACAS | J184: 5612804-5619090 | M184: CARACAS | R184: JOSE MANUEL PEREIRA | U184: BAR RESTAURANT MESON SEGOVIANO | V184: AV. FUERZAS ARMADAS SOCORRAS A ROMU | W184: ALDALA CANDELARIA CARACAS | AB184: TRASP. ZONA 03 SUP.CARLOS | AC184: DA SILVA S/SOL.22/02/11 | AE184: J-00065835-8 | AF184: C 108 | AG184: 89250 | AH184: No | AI184: 05 | AJ184: CREDITO 5 DIAS | AK184: 33 | AL184: CENTRO-CANDELARIA | AM184: 04 | AN184: 06 | AO184: BAR/TABER./S. BAR/PUB/TAS | AP184: 02 | AQ184: ON PREMISSE | AR184: 02 | AS184: ON PREMISSE | AU184: 31 | AW184: TRASP. ZONA 03 SUP.CARLOS DA SILVA S/SOL.22/02/11
A185: J000660131 | B185: 09 - CLIENTE INHABILITADO | C185: DAGOMAR,S.A. | D185: DAGOMAR,S.A. | F185: DAGOMAR,S.A. | G185: CALLE VIADUCTO A DESVIO Nº 37 FRENT | H185: E ALLICEO LICENCIADO ARANDA- MAIQUE | I185: TIA-EDO.VARGAS | K185: (0414) 123.98.10 | M185: LA GUAIRA | Q185: CAMBIO DE ZONA 14 A 09 151021 FL | R185: JUAN DA CAMARA | U185: DAGOMAR,S.A. | V185: CALLE VIADUCTO A DESVIO Nº 37 FRENT | W185: E ALLICEO LICENCIADO ARANDA- MAIQUE | X185: TIA-EDO.VARGAS | AB185: RECIBE LUNES A VIERNES | AC185: 11:00 AM A 5:00 PM | AD185: MIERCOLES | AE185: J-00066013-1 | AF185: M-Y 585 | AG185: 15000 | AH185: No | AI185: 05 | AJ185: CREDITO 5 DIAS | AK185: 09 | AL185: CLIENTE INHABILITADO | AM185: 05 | AN185: 18 | AO185: LICORERIAS/BODEGONES | AP185: 01 | AQ185: OFF PREMISSE | AR185: 01 | AS185: OFF PREMISSE | AT185: 09 | AU185: 09 | AV185: 09 - CLIENTE IHNABILITADO | AW185: RECIBE LUNES A VIERNES 11:00 AM A 5:00 PM
A186: J000664129 | B186: 31 - RODRIGUEZ WLADIMIR | C186: CENTRO ITALO VENEZOLANO | D186: BA RESTAURANT LA RAQUETA | F186: BA RESTAURANT LA RAQUETA | G186: CENTRO ITALO VENEZOLANO NIVEL 1 CED | H186: E PRINCIPALNULL | M186: CARACAS | R186: JOSE BATALLAN | U186: BA RESTAURANT LA RAQUETA | V186: CENTRO ITALO VENEZOLANO NIVEL 1 CED | W186: E PRINCIPALNULL | AB186: CAMBIO DE ZONA SUP.03 | AC186: DE FECHA 25/07/2013 | AE186: J-00066412-9 | AF186: C 4910 | AG186: 89250 | AH186: Sí | AI186: 00 | AJ186: CONTADO | AK186: 30 | AL186: PARROQUIA EL RECREO | AM186: 04 | AN186: 06 | AO186: BAR/TABER./S. BAR/PUB/TAS | AP186: 02 | AQ186: ON PREMISSE | AR186: 02 | AS186: ON PREMISSE | AU186: 31 | AW186: CAMBIO DE ZONA SUP.03 DE FECHA 25/07/2013
A187: J000665354 | B187: 71 - OFICINA | C187: COLEGIO DE CONTADORES PUBLICOS DC | D187: COLEGIO DE CONTADORES PUBLICOS DC | F187: COLEGIO DE CONTADORES PUBLICOS DC | G187: AVENIDA FRANCISCO DE MIRANDA, EDF. | H187: MULTICENTRO EMPRESARIAL DEL ESTE, | I187: TORRE MIRANDA, NUCLEO A P.10 OF.101 | J187: (0212) 267-80-91 | M187: CARACAS | N187: Y 102- CHACAO | U187: COLEGIO DE CONTADORES PUBLICOS DC | V187: AVENIDA FRANCISCO DE MIRANDA, EDF. | W187: MULTICENTRO EMPRESARIAL DEL ESTE, | X187: TORRE MIRANDA, NUCLEO A P.10 OF.101 | Y187: Y 102- CHACAO | Z187: 0212) 267-80-91 | AE187: J-00066535-4 | AF187: PARTICULAR | AG187: 15000 | AH187: No | AI187: 05 | AJ187: CREDITO 5 DIAS | AK187: 71 | AL187: OFICINA | AM187: 06 | AN187: 31 | AO187: PARTICULAR | AP187: 01 | AQ187: OFF PREMISSE | AR187: 01 | AS187: OFF PREMISSE | AU187: 71 | AV187: 71 - OFICINA
A188: J000666539 | B188: 02 - REQUENA JOHAN - OFF | C188: BAR REST. AU-PETIT CONTINENTAL,C.A. | D188: BAR REST. AU-PETIT CONTINENTAL,C.A. | F188: BAR REST. AU-PETIT CONTINENTAL,C.A. | G188: AV. SUCRE AL LADO DE LA BOMBA CONTI | H188: NENTALCATIA | J188: 8613407 | M188: CARACAS | R188: ALBINO RODRIGUEZ PER | S188: EIRA | U188: BAR REST. AU-PETIT CONTINENTAL,C.A. | V188: AV. SUCRE AL LADO DE LA BOMBA CONTI | W188: NENTALCATIA | AE188: J-00066653-9 | AF188: C 820 | AG188: 89250 | AH188: No | AI188: 05 | AJ188: CREDITO 5 DIAS | AK188: 22 | AL188: CATIA-JUNQUITO | AM188: 04 | AN188: 06 | AO188: BAR/TABER./S. BAR/PUB/TAS | AP188: 02 | AQ188: ON PREMISSE | AR188: 02 | AS188: ON PREMISSE | AU188: 02
A189: J000666768 | B189: 09 - CLIENTE INHABILITADO | C189: AUTOMERCADO RUISEÑORES,C.A. | D189: AUTOMERCADO RUISEÑORES,C.A. | F189: AUTOMERCADO RUISEÑORES,C.A. | G189: COLINAS DE LOS RUICES C.COMERCIAL E | H189: L RUISEÑORDETRAS COMPA'IA AEROCAV.C | I189: ARACA | J189: 229490 | M189: CARACAS | R189: RUIZ ANTONIO OLIVEIR | S189: A | U189: AUTOMERCADO RUISEÑORES,C.A. | V189: COLINAS DE LOS RUICES C.COMERCIAL E | W189: L RUISEÑORDETRAS COMPA'IA AEROCAV.C | X189: ARACA | AE189: J-00066676-8 | AF189: M-N 5218 | AG189: 15000 | AH189: No | AI189: 05 | AJ189: CREDITO 5 DIAS | AK189: 15 | AL189: BARUTA | AM189: 05 | AN189: 21 | AO189: SUPERMERCADOS/AUTOMERCADO | AP189: 01 | AQ189: OFF PREMISSE | AR189: 01 | AS189: OFF PREMISSE | AU189: 09 | AV189: 09 - CLIENTE INHABILITADO
A190: J000668574 | B190: 09 - CLIENTE INHABILITADO | C190: RESTAURANT BIOMASI,S.R.L. | D190: RESTAURANT BIOMASI,S.R.L. | F190: RESTAURANT BIOMASI,S.R.L. | G190: AVENIDA PRINCIPAL URBANIZACION LEBR | H190: UNEDIFICIO BIOMASI - PETARE | J190: 2569685 | M190: CARACAS | Q190: REEST-V-31 AL V-09 20092019 MYZ | R190: JOAO MANUEL DE AZEVE | S190: DO | U190: RESTAURANT BIOMASI,S.R.L. | V190: AVENIDA PRINCIPAL URBANIZACION LEBR | W190: UNEDIFICIO BIOMASI - PETARE | AB190: LLEVADO A COD.03 SUPERV. | AC190: CARLOS DA SILVA | AE190: J-00066857-4 | AF190: C 6324 | AG190: 15000 | AH190: Sí | AI190: 00 | AJ190: CONTADO | AK190: 31 | AL190: LA CASTELLANA | AM190: 04 | AN190: 06 | AO190: BAR/TABER./S. BAR/PUB/TAS | AP190: 02 | AQ190: ON PREMISSE | AR190: 02 | AS190: ON PREMISSE | AT190: 09 | AU190: 09 | AV190: 09 - CLIENTE INHABILITADO | AW190: LLEVADO A COD.03 SUPERV. CARLOS DA SILVA
A191: J000669970 | B191: 32 - HERNANDEZ EDGAR | C191: DETRA,C.A. | D191: HOTEL VOX | E191: 782.19.23 | F191: DETRA C.A. HOTEL VOX | G191: AV LAS ACACIA PROLONGACION SUR | H191: EDF VOX PISO PB OF PB URB SAN | I191: ANTONIO CARACAS | J191: (0212) 782.16.22 | K191: (0416) 629.37.39 | L191: nancy-201@hotmail.com | M191: CARACAS | N191: ACTIV-V-30 040615 MYZ | O191: CAMBIO D ZONA 30 A 33 EL 12/02/19JA | P191: CAMBIO V-31 vs V-332 200421 | Q191: CAMBIO V-31 A LA V-32 220223 PH | R191: JOAO RAUL DE AGREDA | S191: MACIEL | U191: HOTEL VOX | V191: AV LAS ACACIA PROLONGACION SUR | W191: EDF VOX PISO PB OF PB URB SAN | X191: ANTONIO CARACAS | AB191: RECIBE LUNES A VIERNES | AC191: 08 A 12 PM - 2 A 5 PM | AD191: MIERCOLES | AE191: J-00066997-0 | AF191: 5-C-0256 | AG191: 89250 | AH191: No | AI191: 05 | AJ191: CREDITO 5 DIAS | AK191: 32 | AL191: SUCRE - BARUTA | AM191: 04 | AN191: 08 | AO191: HOTELES/CASINOS/BINGOS | AP191: 02 | AQ191: ON PREMISSE | AR191: 02 | AS191: ON PREMISSE | AT191: 32 | AU191: 32 | AV191: 01 - CARLOS DA SILVA - ON | AW191: RECIBE LUNES A VIERNES 08 A 12 PM - 2 A 5 PM
A192: J000670668 | B192: 09 - CLIENTE INHABILITADO | C192: HERMANOS DA GAMA | D192: ABASTOS LOS PINOS | F192: HERMANOS DA GAMA | G192: VEREDA 101 CASA Nº 4 URB. CARLOS | H192: DELGADO CH. EL VALLE | I192: CARACAS DTTO. CAPITAL | J192: (0212) 681-37-27 | M192: CARACAS | O192: 2CD 080914-090915 HP20 DC7 | P192: CAMBIO V-226 SUP 02 201117 MYZ | Q192: CAMBIO A LA ZONA 09 19-09-19 YM | R192: JORGE DE GAMA | U192: HERMANOS DA GAMA | V192: VEREDA 101 CASA Nº 4 URB. DELGADO | W192: CH. EL VALLE - COCHE | X192: CARACAS DTTO. CAPITAL | Z192: (0212) 861-37-27 | AB192: RECIBE DE LUNES A VIERNES | AC192: 10 AM A 1 PM Y 3 A 6 PM | AD192: MARTES | AE192: J-00067066-8 | AF192: 002-MN-01182 | AG192: 0 | AH192: Sí | AI192: 00 | AJ192: CONTADO | AK192: 09 | AL192: CLIENTE INHABILITADO | AM192: 06 | AN192: 22 | AO192: ABASTOS GRANDES | AP192: 01 | AQ192: OFF PREMISSE | AR192: 01 | AS192: OFF PREMISSE | AT192: 09 | AU192: 09 | AV192: 09 - CLIENTE INHABILITADO | AW192: RECIBE DE LUNES A VIERNES 10 AM A 1 PM Y 3 A 6 PM
A193: J000672008 | B193: 35 - PEREZ JOSMAN | C193: EL RANCHO TRANQUILINO, C.A | D193: EL RANCHO TRANQUILINO | F193: EL RANCHO TRANQUILINO, C.A | G193: AV. LEONARDO DA VINCI EDIF.GIRASOL | H193: PISO PB LOCAL PB URB COLINAS | I193: DE BELLO MONTE | J193: (0212) 753.13.73 | L193: rtranquilino53@hotmail.com | M193: CARACAS | O193: BLOQ MHP 21DIAS YR 25/06/19 | P193: DESBLOQ X BHP CLIENTE 04/09/19 JA | Q193: CAMBIO V-32 AL V-35 17/09/19 MY | R193: LUGO NEGRIN MANUEL | S193: WILLIAN DORTA | U193: EL RANCHO TRANQUILINO | V193: AV. LEONARDO DA VINCI EDIF.GIRASOL | W193: PISO PB LOCAL PB URB COLINAS | X193: DE BELLO MONTE | Z193: 0212-753-13-73 | AB193: RECIBE LUNES A VIERNES | AC193: 08:00 AM A 11:00 AM | AD193: JUEVES | AE193: J-00067200-8 | AF193: 5-C-2051 | AG193: 89250 | AH193: No | AI193: 05 | AJ193: CREDITO 5 DIAS | AK193: 30 | AL193: PARROQUIA EL RECREO | AM193: 04 | AN193: 07 | AO193: RESTAURANTES | AP193: 02 | AQ193: ON PREMISSE | AR193: 02 | AS193: ON PREMISSE | AT193: 35 | AU193: 35 | AV193: 02 - VICTOR TORRES - ON | AW193: RECIBE LUNES A VIERNES 08:00 AM A 11:00 AM
A194: J000672474 | B194: 25 - OCAMPO O. ROMAY | C194: HERMANOS GONCALVES PERREGIL, C.A. | D194: VIV.Y LIC.HERM.GONCALVES PERREGIL | F194: HERMANOS GONCALVES PERREGIL, C.A. | G194: CALLE PRINCIPAL SAN JOSE DE LOS ALT | H194: OS,EDIFICIO SAN JOSE, C 112,B 112-S | I194: AN J.DE LOS ALTOS | J194: (0212) 375.16.77 | K194: (0424) 132.32.25 | L194: bibigoncalves@gmail.com | M194: SAN JOSE DE LOS ALTO | P194: DESBLOQ 270117 CUMPLIO 3PP LA/HD | Q194: CAMBIO V-26 AL 25 16-09-19 YM | R194: MANUEL GONCALVES PER | S194: REGIL | U194: VIV.Y LIC.HERM.GONCALVES PERREGIL | V194: CALLE PRINCIPAL SAN JOSE DE LOS ALT | W194: OS,EDIFICIO SAN JOSE, C 112,B 112-S | X194: AN J.DE LOS ALTOS | Z194: (0212) 375-16-77 | AB194: RECIBE LUNES A VIERNES | AC194: 11:00 AM A 6:00 PM | AD194: JUEVES | AE194: J-00067247-4 | AF194: 032-MN-184 | AG194: 89250 | AH194: No | AI194: 05 | AJ194: CREDITO 5 DIAS | AK194: 26 | AL194: SAN ANTONIO DE LOS ALTOS | AM194: 06 | AN194: 18 | AO194: LICORERIAS/BODEGONES | AP194: 01 | AQ194: OFF PREMISSE | AR194: 01 | AS194: OFF PREMISSE | AT194: 25 | AU194: 25 | AV194: 02 - VICTOR TORRES - OFF | AW194: =CONCATENATE(AB194," ",AC194) -> RECIBE LUNES A VIERNES 11:00 AM A 6:00 PM
